Workbook

Sheet Overview

Sheet NOTES
A1: NOTES
A2: Assessments | B2: Download Dates | C2: Assessment Description | D2: Average Percent Correct
A3: Winter IA | B3: 2013-02-06 | C3: Winter Interim Assessment | D3: All Average % Correct of less than 51 are denoted in red.
A4: Fall IA | B4: Reading and Math: 11/15/2012; Science: 2/10/2013 | C4: Fall Interim Assessment
A5: Baseline | B5: 2012-09-22 | C5: Baseline Assessment

Sheet Select School
B3: =VLOOKUP(C3,SchList!$I$1:$J$499,2,FALSE) -> 9999 | C3: 1

Sheet AUTOMATE (hidden)
A1: AUTOMATE
B3: TAB NAME | D3: FILEPATH1 | E3: FILENAME1 | F3: FILENAME2
B5: BLG5BM-S | D5: C:\Documents and Settings\user\Desktop\Edusoft Baseline Files\ | E5: S-g05-bm-schl-all.xls | F5: S-g05-bm-dist-all.xls
B6: BLG5CC-S | D6: C:\Documents and Settings\user\Desktop\Edusoft Baseline Files\ | E6: S-g05-rc-schl-all.xls | F6: S-g05-rc-dist-all.xls
B7: BLG3BM-R | D7: C:\Documents and Settings\user\Desktop\Edusoft Baseline Files\ | E7: R-g03-bm-schl-all.xls | F7: R-g03-bm-dist-all.xls
B8: BLG3CC-R | D8: C:\Documents and Settings\user\Desktop\Edusoft Baseline Files\ | E8: R-g03-rc-schl-all.xls | F8: R-g03-rc-dist-all.xls
B9: BLG4BM-R | D9: C:\Documents and Settings\user\Desktop\Edusoft Baseline Files\ | E9: R-g04-bm-schl-all.xls | F9: R-g04-bm-dist-all.xls
B10: BLG4CC-R | D10: C:\Documents and Settings\user\Desktop\Edusoft Baseline Files\ | E10: R-g04-rc-schl-all.xls | F10: R-g04-rc-dist-all.xls
B11: BLG5BM-R | D11: C:\Documents and Settings\user\Desktop\Edusoft Baseline Files\ | E11: R-g05-bm-schl-all.xls | F11: R-g05-bm-dist-all.xls
B12: BLG5CC-R | D12: C:\Documents and Settings\user\Desktop\Edusoft Baseline Files\ | E12: R-g05-rc-schl-all.xls | F12: R-g05-rc-dist-all.xls
B13: BLG3BM-M | D13: C:\Documents and Settings\user\Desktop\Edusoft Baseline Files\ | E13: M-g03-bm-schl-all.xls | F13: M-g03-bm-dist-all.xls
B14: BLG3CC-M | D14: C:\Documents and Settings\user\Desktop\Edusoft Baseline Files\ | E14: M-g03-rc-schl-all.xls | F14: M-g03-rc-dist-all.xls
B15: BLG4BM-M | D15: C:\Documents and Settings\user\Desktop\Edusoft Baseline Files\ | E15: M-g04-bm-schl-all.xls | F15: M-g04-bm-dist-all.xls
B16: BLG4CC-M | D16: C:\Documents and Settings\user\Desktop\Edusoft Baseline Files\ | E16: M-g04-rc-schl-all.xls | F16: M-g04-rc-dist-all.xls
B17: BLG5BM-M | D17: C:\Documents and Settings\user\Desktop\Edusoft Baseline Files\ | E17: M-g05-bm-schl-all.xls | F17: M-g05-bm-dist-all.xls
B18: BLG5CC-M | D18: C:\Documents and Settings\user\Desktop\Edusoft Baseline Files\ | E18: M-g05-rc-schl-all.xls | F18: M-g05-rc-dist-all.xls
B20: FIAG5BM-S | D20: C:\Documents and Settings\user\Desktop\Edusoft FIA Files as of Nov 15, 2012\ | E20: S-g05-bm-schl-all.xls | F20: S-g05-bm-dist-all.xls
B21: FIAG5CC-S | D21: C:\Documents and Settings\user\Desktop\Edusoft FIA Files as of Nov 15, 2012\ | E21: S-g05-rc-schl-all.xls | F21: S-g05-rc-dist-all.xls
B22: FIAG3BM-R | D22: C:\Documents and Settings\user\Desktop\Edusoft FIA Files as of Nov 15, 2012\ | E22: R-g03-bm-schl-all.xls | F22: R-g03-bm-dist-all.xls
B23: FIAG3CC-R | D23: C:\Documents and Settings\user\Desktop\Edusoft FIA Files as of Nov 15, 2012\ | E23: R-g03-rc-schl-all.xls | F23: R-g03-rc-dist-all.xls
B24: FIAG4BM-R | D24: C:\Documents and Settings\user\Desktop\Edusoft FIA Files as of Nov 15, 2012\ | E24: R-g04-bm-schl-all.xls | F24: R-g04-bm-dist-all.xls
B25: FIAG4CC-R | D25: C:\Documents and Settings\user\Desktop\Edusoft FIA Files as of Nov 15, 2012\ | E25: R-g04-rc-schl-all.xls | F25: R-g04-rc-dist-all.xls
B26: FIAG5BM-R | D26: C:\Documents and Settings\user\Desktop\Edusoft FIA Files as of Nov 15, 2012\ | E26: R-g05-bm-schl-all.xls | F26: R-g05-bm-dist-all.xls
B27: FIAG5CC-R | D27: C:\Documents and Settings\user\Desktop\Edusoft FIA Files as of Nov 15, 2012\ | E27: R-g05-rc-schl-all.xls | F27: R-g05-rc-dist-all.xls
B28: FIAG3BM-M | D28: C:\Documents and Settings\user\Desktop\Edusoft FIA Files as of Nov 15, 2012\ | E28: M-g03-bm-schl-all.xls | F28: M-g03-bm-dist-all.xls
B29: FIAG3CC-M | D29: C:\Documents and Settings\user\Desktop\Edusoft FIA Files as of Nov 15, 2012\ | E29: M-g03-rc-schl-all.xls | F29: M-g03-rc-dist-all.xls
B30: FIAG4BM-M | D30: C:\Documents and Settings\user\Desktop\Edusoft FIA Files as of Nov 15, 2012\ | E30: M-g04-bm-schl-all.xls | F30: M-g04-bm-dist-all.xls
B31: FIAG4CC-M | D31: C:\Documents and Settings\user\Desktop\Edusoft FIA Files as of Nov 15, 2012\ | E31: M-g04-rc-schl-all.xls | F31: M-g04-rc-dist-all.xls
B32: FIAG5BM-M | D32: C:\Documents and Settings\user\Desktop\Edusoft FIA Files as of Nov 15, 2012\ | E32: M-g05-bm-schl-all.xls | F32: M-g05-bm-dist-all.xls
B33: FIAG5CC-M | D33: C:\Documents and Settings\user\Desktop\Edusoft FIA Files as of Nov 15, 2012\ | E33: M-g05-rc-schl-all.xls | F33: M-g05-rc-dist-all.xls
B35: WiaG5BM-S | D35: F:\School Data Reports\Winter Interim Assessment Report\Winter IA 2012-2013\Edusoft Files\ | E35: S-g05-bm-schl-all.xls | F35: S-g05-bm-dist-all.xls
B36: WiaG5CC-S | D36: F:\School Data Reports\Winter Interim Assessment Report\Winter IA 2012-2013\Edusoft Files\ | E36: S-g05-rc-schl-all.xls | F36: S-g05-rc-dist-all.xls
B37: WiaG3BM-R | D37: F:\School Data Reports\Winter Interim Assessment Report\Winter IA 2012-2013\Edusoft Files\ | E37: R-g03-bm-schl-all.xls | F37: R-g03-bm-dist-all.xls
B38: WiaG3CC-R | D38: F:\School Data Reports\Winter Interim Assessment Report\Winter IA 2012-2013\Edusoft Files\ | E38: R-g03-rc-schl-all.xls | F38: R-g03-rc-dist-all.xls
B39: WiaG4BM-R | D39: F:\School Data Reports\Winter Interim Assessment Report\Winter IA 2012-2013\Edusoft Files\ | E39: R-g04-bm-schl-all.xls | F39: R-g04-bm-dist-all.xls
B40: WiaG4CC-R | D40: F:\School Data Reports\Winter Interim Assessment Report\Winter IA 2012-2013\Edusoft Files\ | E40: R-g04-rc-schl-all.xls | F40: R-g04-rc-dist-all.xls
B41: WiaG5BM-R | D41: F:\School Data Reports\Winter Interim Assessment Report\Winter IA 2012-2013\Edusoft Files\ | E41: R-g05-bm-schl-all.xls | F41: R-g05-bm-dist-all.xls
B42: WiaG5CC-R | D42: F:\School Data Reports\Winter Interim Assessment Report\Winter IA 2012-2013\Edusoft Files\ | E42: R-g05-rc-schl-all.xls | F42: R-g05-rc-dist-all.xls
B43: WiaG3BM-M | D43: F:\School Data Reports\Winter Interim Assessment Report\Winter IA 2012-2013\Edusoft Files\ | E43: M-g03-bm-schl-all.xls | F43: M-g03-bm-dist-all.xls
B44: WiaG3CC-M | D44: F:\School Data Reports\Winter Interim Assessment Report\Winter IA 2012-2013\Edusoft Files\ | E44: M-g03-rc-schl-all.xls | F44: M-g03-rc-dist-all.xls
B45: WiaG4BM-M | D45: F:\School Data Reports\Winter Interim Assessment Report\Winter IA 2012-2013\Edusoft Files\ | E45: M-g04-bm-schl-all.xls | F45: M-g04-bm-dist-all.xls
B46: WiaG4CC-M | D46: F:\School Data Reports\Winter Interim Assessment Report\Winter IA 2012-2013\Edusoft Files\ | E46: M-g04-rc-schl-all.xls | F46: M-g04-rc-dist-all.xls
B47: WiaG5BM-M | D47: F:\School Data Reports\Winter Interim Assessment Report\Winter IA 2012-2013\Edusoft Files\ | E47: M-g05-bm-schl-all.xls | F47: M-g05-bm-dist-all.xls
B48: WiaG5CC-M | D48: F:\School Data Reports\Winter Interim Assessment Report\Winter IA 2012-2013\Edusoft Files\ | E48: M-g05-rc-schl-all.xls | F48: M-g05-rc-dist-all.xls

Sheet Grade 3 Math
A1: Direction: Click on "School Name" below then click on arrow key on the right to select a school. To see benchmark description, move the mouse over the benchmark code.
A2: Click here to return to the school and subject selection sheet
B3: =VALUE('Select School'!B3) -> 9999 | U3: =TEXT(B3,"0000") -> 9999
A4: 2012-13 Grade 3 Mathematics Benchmark Analysis Report
A5: Baseline, Fall Interim Assessment (Fall IA), and Winter Interim Assessments (Winter IA)
A6: =TEXT($B$3,"0000")&"-"&VLOOKUP(B3,SchList!$A$2:$B$499,2,FALSE) -> 9999-District
A7: Reporting Categories | B7: Bench-marks | C7: No. of Items | F7: Average % Correct
C8: Base- line | D8: Fall IA | E8: Winter IA | F8: Base- line | G8: Fall IA | H8: Winter IA
B9: No. of Tested | F9: =IFERROR(VLOOKUP($B$3,'BLG3CC-M'!$A$14:$BZ$500,3,FALSE),"") -> 25342 | G9: =IFERROR(VLOOKUP($B$3,'FIAG3CC-M'!$A$14:$BZ$500,3,FALSE),"") -> 25140 | H9: =IFERROR(VLOOKUP($B$3,'WIAG3CC-M'!$A$14:$BZ$500,3,FALSE),"") -> 25610
B10: MA.3.A.1.1 | C10: 2 | D10: 5 | E10: 4 | F10: =IFERROR(VLOOKUP($B$3,'BLG3BM-M'!$A$14:$CZ$500,7,FALSE),"") -> 0.32 | G10: =IFERROR(VLOOKUP($B$3,'FIAG3BM-M'!$A$14:$CZ$500,7,FALSE),"") -> 0.68 | H10: =IFERROR(VLOOKUP($B$3,'WIAG3BM-M'!$A$14:$CZ$500,7,FALSE),"") -> 0.5
B11: MA.3.A.1.2 | C11: 2 | D11: 7 | E11: 6 | F11: =IFERROR(VLOOKUP($B$3,'BLG3BM-M'!$A$14:$CZ$500,9,FALSE),"") -> 0.36 | G11: =IFERROR(VLOOKUP($B$3,'FIAG3BM-M'!$A$14:$CZ$500,9,FALSE),"") -> 0.55 | H11: =IFERROR(VLOOKUP($B$3,'WIAG3BM-M'!$A$14:$CZ$500,9,FALSE),"") -> 0.53
B12: MA.3.A.1.3 | C12: 2 | E12: 6 | F12: =IFERROR(VLOOKUP($B$3,'BLG3BM-M'!$A$14:$CZ$500,11,FALSE),"") -> 0.22 | H12: =IFERROR(VLOOKUP($B$3,'WIAG3BM-M'!$A$14:$CZ$500,11,FALSE),"") -> 0.67
B13: MA.3.A.4.1 | C13: 2 | D13: 4 | F13: =IFERROR(VLOOKUP($B$3,'BLG3BM-M'!$A$14:$CZ$500,23,FALSE),"") -> 0.55 | G13: =IFERROR(VLOOKUP($B$3,'FIAG3BM-M'!$A$14:$CZ$500,11,FALSE),"") -> 0.7
B14: MA.3.A.6.1 | C14: 2 | D14: 7 | F14: =IFERROR(VLOOKUP($B$3,'BLG3BM-M'!$A$14:$CZ$500,31,FALSE),"") -> 0.49 | G14: =IFERROR(VLOOKUP($B$3,'FIAG3BM-M'!$A$14:$CZ$500,13,FALSE),"") -> 0.6
B15: MA.3.A.6.2 | C15: 2 | F15: =IFERROR(VLOOKUP($B$3,'BLG3BM-M'!$A$14:$CZ$500,33,FALSE),"") -> 0.2
B16: MA.3.S.7.1 | C16: 3 | D16: 7 | F16: =IFERROR(VLOOKUP($B$3,'BLG3BM-M'!$A$14:$CZ$500,35,FALSE),"") -> 0.29 | G16: =IFERROR(VLOOKUP($B$3,'FIAG3BM-M'!$A$14:$CZ$500,15,FALSE),"") -> 0.65
B17: MA.3.A.2.1 | E17: 6 | H17: =IFERROR(VLOOKUP($B$3,'WIAG3BM-M'!$A$14:$CZ$500,13,FALSE),"") -> 0.61
B18: MA.3.A.2.3 | C18: 2 | E18: 6 | F18: =IFERROR(VLOOKUP($B$3,'BLG3BM-M'!$A$14:$CZ$500,13,FALSE),"") -> 0.45 | H18: =IFERROR(VLOOKUP($B$3,'WIAG3BM-M'!$A$14:$CZ$500,15,FALSE),"") -> 0.59
B19: MA.3.A.2.4 | C19: 1 | E19: 6 | F19: =IFERROR(VLOOKUP($B$3,'BLG3BM-M'!$A$14:$CZ$500,15,FALSE),"") -> 0.53 | H19: =IFERROR(VLOOKUP($B$3,'WIAG3BM-M'!$A$14:$CZ$500,17,FALSE),"") -> 0.39
B20: MA.3.G.3.1 | C20: 4 | F20: =IFERROR(VLOOKUP($B$3,'BLG3BM-M'!$A$14:$CZ$500,17,FALSE),"") -> 0.27
B21: MA.3.G.3.2 | C21: 3 | F21: =IFERROR(VLOOKUP($B$3,'BLG3BM-M'!$A$14:$CZ$500,19,FALSE),"") -> 0.49
B22: MA.3.G.3.3 | C22: 2 | F22: =IFERROR(VLOOKUP($B$3,'BLG3BM-M'!$A$14:$CZ$500,21,FALSE),"") -> 0.68
B23: MA.3.G.5.1 | C23: 3 | F23: =IFERROR(VLOOKUP($B$3,'BLG3BM-M'!$A$14:$CZ$500,25,FALSE),"") -> 0.19
B24: MA.3.G.5.2 | C24: 2 | F24: =IFERROR(VLOOKUP($B$3,'BLG3BM-M'!$A$14:$CZ$500,27,FALSE),"") -> 0.77
B25: MA.3.G.5.3 | C25: 2 | F25: =IFERROR(VLOOKUP($B$3,'BLG3BM-M'!$A$14:$CZ$500,29,FALSE),"") -> 0.44
A26: All Benchmarks | C26: =SUM(C10:C25) -> 34 | D26: =SUM(D10:D25) -> 30 | E26: =SUM(E10:E25) -> 34 | F26: =IFERROR(VLOOKUP($B$3,'BLG3CC-M'!$A$14:$CZ$500,5,FALSE),"") -> 0.4 | G26: =IFERROR(VLOOKUP($B$3,'FIAG3CC-M'!$A$14:$CZ$500,5,FALSE),"") -> 0.63 | H26: =IFERROR(VLOOKUP($B$3,'WIAG3CC-M'!$A$14:$CZ$500,5,FALSE),"") -> 0.55
A42: Reporting Categories | C42: Number of Items | F42: Average % Correct | I42: % of Students at or above Proficiency Level (70%)
C43: BL | D43: Fall IA | E43: Winter IA | F43: BL | G43: Fall IA | H43: Winter IA | I43: BL | J43: Fall IA | K43: Winter IA
A44: 1 | B44: Number: Oper., Prob., and Stat. | C44: =SUM(C10:C16) -> 15 | D44: =SUM(D10:D16) -> 30 | E44: 16 | F44: =IFERROR(VLOOKUP($B$3,'BLG3CC-M'!$A$14:$AA$500,23,FALSE),"") -> 0.35 | G44: =IFERROR(VLOOKUP($B$3,'FIAG3CC-M'!$A$14:$AA$500,13,FALSE),"") -> 0.63 | H44: =IFERROR(VLOOKUP($B$3,'WIAG3CC-M'!$A$14:$AA$500,13,FALSE),"") -> 0.58 | K44: =IFERROR(VALUE(VLOOKUP($B$3,'WIAG3CC-M'!$A$14:$AA$500,9,FALSE)),"") -> 0.2594
A45: 2 | B45: Number: Fractions | C45: =SUM(C17:C19) -> 3 | D45: =SUM(D17:D19) -> 0 | E45: =SUM(E17:E19) -> 18 | F45: =IFERROR(VLOOKUP($B$3,'BLG3CC-M'!$A$14:$AA$500,17,FALSE),"") -> 0.47 | H45: =IFERROR(VLOOKUP($B$3,'WIAG3CC-M'!$A$14:$AA$500,17,FALSE),"") -> 0.53
A46: 3 | B46: Geometry and Measurement | C46: =SUM(C20:C25) -> 16 | D46: =SUM(D20:D25) -> 0 | E46: 0 | F46: =IFERROR(VLOOKUP($B$3,'BLG3CC-M'!$A$14:$AA$500,11,FALSE),"") -> 0.43
C47: =SUM(C43:C46) -> 34 | D47: =SUM(D43:D46) -> 30 | E47: =SUM(E43:E46) -> 34

Sheet Grade 3 MATH NGSSS
A1: Click here to return to the school and subject selection sheet
A2: Next Generation Sunshine State Standards Grade 3 Mathematics Benchmarks Assessed by the FCAT 2.0
A3: Reporting Categories | B3: Benchmarks | C3: Description
A4: Number: Oper., Prob., & Stat. | B4: MA.3.A.1.1 | C4: Model multiplication and division including problems presented in context: repeated addition, multiplicative comparison, array, how many combinations, measurement, and partitioning.
A5: Number: Oper., Prob., & Stat. | B5: MA.3.A.1.2 | C5: Solve multiplication and division fact problems by using strategies that result from applying number properties.
A6: Number: Oper., Prob., & Stat. | B6: MA.3.A.1.3 | C6: Identify, describe, and apply division and multiplication as inverse operations.
A7: Number: Fractions | B7: MA.3.A.2.1 | C7: Represent fractions, including fractions greater than one, using area, set, and linear models.
A8: Number: Fractions | B8: MA.3.A.2.3 | C8: Compare and order fractions, including fractions greater than one, using models and strategies.
A9: Number: Fractions | B9: MA.3.A.2.4 | C9: Use models to represent equivalent fractions, including fractions greater than 1, and identify representations of equivalence.
A10: Number: Oper., Prob., & Stat. | B10: MA.3.A.4.1 | C10: Create, analyze, and represent patterns and relationships using words, variables, tables, and graphs.
A11: Number: Oper., Prob., & Stat. | B11: MA.3.A.6.1 | C11: Represent, compute, estimate, and solve problems using numbers through hundred thousands.
A12: Number: Oper., Prob., & Stat. | B12: MA.3.A.6.2 | C12: Solve non-routine problems by making a table, chart ,or list and searching for patterns.
A13: Geometry and Measurement | B13: MA.3.G.3.1 | C13: Describe, analyze, compare, and classify two-dimensional shapes using sides and angles - including acute, obtuse, and right angles - and connect these ideas to the definition of shapes.
A14: Geometry and Measurement | B14: MA.3.G.3.2 | C14: Compose, decompose, and transform polygons to make other polygons, including concave and convex polygons with three, four, five, six, eight, or ten sides.
A15: Geometry and Measurement | B15: MA.3.G.3.3 | C15: Build, draw, and analyze two-dimensional shapes from several orientations in order to examine and apply congruence and symmetry.
A16: Geometry and Measurement | B16: MA.3.G.5.1 | C16: Select appropriate units, strategies, and tools to solve problems involving perimeter.
A17: Geometry and Measurement | B17: MA.3.G.5.2 | C17: Measure objects using fractional parts of linear units such as 1/2, 1/4, and 1/10.
A18: Geometry and Measurement | B18: MA.3.G.5.3 | C18: Tell time to the nearest minute and to the nearest quarter hour, and determine the amount of time elapsed.
A19: Number: Oper., Prob., & Stat. | B19: MA.3.S.7.1 | C19: Construct and analyze frequency tables, bar graphs, pictographs, and line plots from data, including data collected through observations, surveys, and experiments.

Sheet Grade 3 Reading
A1: Direction: Click on "School Name" below then click on arrow key on the right to select a school. To see benchmark description, move the mouse over the benchmark code.
A2: Click here to return to the school and subject selection sheet
B3: =VALUE('Select School'!B3) -> 9999 | U3: =TEXT(B3,"0000") -> 9999
A4: 2012-13 Grade 3 Reading Benchmark Analysis Report
A5: Baseline, Fall Interim Assessment (Fall IA), and Winter Interim Assessments (Winter IA)
A6: =TEXT($B$3,"0000")&"-"&VLOOKUP(B3,SchList!$A$2:$B$499,2,FALSE) -> 9999-District
A7: Reporting Categories | B7: Bench-marks | C7: No. of Items | F7: Average % Correct
C8: Base- line | D8: Fall IA | E8: Winter IA | F8: Base- line | G8: Fall IA | H8: Winter IA
B9: No. of Tested | F9: =IFERROR(VLOOKUP($B$3,'BLG3CC-R'!$A$14:$BZ$500,3,FALSE),"") -> 25563 | G9: =IFERROR(VLOOKUP($B$3,'FIAG3CC-R'!$A$14:$BZ$500,3,FALSE),"") -> 25383 | H9: =IFERROR(VLOOKUP($B$3,'WIAG3CC-R'!$A$14:$BZ$500,3,FALSE),"") -> 25859
B10: LA.3.1.6.3 | C10: 2 | D10: 4 | E10: 4 | F10: =IFERROR(VLOOKUP($B$3,'BLG3BM-R'!$A$14:$CZ$500,7,FALSE),"") -> 0.66 | G10: =IFERROR(VLOOKUP($B$3,'FIAG3BM-R'!$A$14:$CZ$500,7,FALSE),"") -> 0.66 | H10: =IFERROR(VLOOKUP($B$3,'WIAG3BM-R'!$A$14:$CZ$500,7,FALSE),"") -> 0.69
B11: LA.3.1.6.7 | C11: 1 | D11: 4 | E11: 4 | F11: =IFERROR(VLOOKUP($B$3,'BLG3BM-R'!$A$14:$CZ$500,9,FALSE),"") -> 0.51 | G11: =IFERROR(VLOOKUP($B$3,'FIAG3BM-R'!$A$14:$CZ$500,9,FALSE),"") -> 0.65 | H11: =IFERROR(VLOOKUP($B$3,'WIAG3BM-R'!$A$14:$CZ$500,9,FALSE),"") -> 0.79
B12: LA.3.1.6.8 | C12: 2 | D12: 4 | E12: 4 | F12: =IFERROR(VLOOKUP($B$3,'BLG3BM-R'!$A$14:$CZ$500,11,FALSE),"") -> 0.58 | G12: =IFERROR(VLOOKUP($B$3,'FIAG3BM-R'!$A$14:$CZ$500,11,FALSE),"") -> 0.65 | H12: =IFERROR(VLOOKUP($B$3,'WIAG3BM-R'!$A$14:$CZ$500,11,FALSE),"") -> 0.66
B13: LA.3.1.6.9 | C13: 1 | D13: 4 | E13: 3 | F13: =IFERROR(VLOOKUP($B$3,'BLG3BM-R'!$A$14:$CZ$500,13,FALSE),"") -> 0.77 | G13: =IFERROR(VLOOKUP($B$3,'FIAG3BM-R'!$A$14:$CZ$500,13,FALSE),"") -> 0.61 | H13: =IFERROR(VLOOKUP($B$3,'WIAG3BM-R'!$A$14:$CZ$500,13,FALSE),"") -> 0.7
B14: LA.3.1.7.2 | C14: 2 | D14: 4 | E14: 4 | F14: =IFERROR(VLOOKUP($B$3,'BLG3BM-R'!$A$14:$CZ$500,15,FALSE),"") -> 0.67 | G14: =IFERROR(VLOOKUP($B$3,'FIAG3BM-R'!$A$14:$CZ$500,15,FALSE),"") -> 0.68 | H14: =IFERROR(VLOOKUP($B$3,'WIAG3BM-R'!$A$14:$CZ$500,15,FALSE),"") -> 0.71
B15: LA.3.1.7.3 | C15: 4 | D15: 4 | E15: 4 | F15: =IFERROR(VLOOKUP($B$3,'BLG3BM-R'!$A$14:$CZ$500,17,FALSE),"") -> 0.57 | G15: =IFERROR(VLOOKUP($B$3,'FIAG3BM-R'!$A$14:$CZ$500,17,FALSE),"") -> 0.46 | H15: =IFERROR(VLOOKUP($B$3,'WIAG3BM-R'!$A$14:$CZ$500,17,FALSE),"") -> 0.61
B16: LA.3.1.7.4 | C16: 2 | D16: 4 | E16: 4 | F16: =IFERROR(VLOOKUP($B$3,'BLG3BM-R'!$A$14:$CZ$500,19,FALSE),"") -> 0.58 | G16: =IFERROR(VLOOKUP($B$3,'FIAG3BM-R'!$A$14:$CZ$500,19,FALSE),"") -> 0.52 | H16: =IFERROR(VLOOKUP($B$3,'WIAG3BM-R'!$A$14:$CZ$500,19,FALSE),"") -> 0.61
B17: LA.3.1.7.5 | C17: 1 | D17: 4 | E17: 4 | F17: =IFERROR(VLOOKUP($B$3,'BLG3BM-R'!$A$14:$CZ$500,21,FALSE),"") -> 0.43 | G17: =IFERROR(VLOOKUP($B$3,'FIAG3BM-R'!$A$14:$CZ$500,21,FALSE),"") -> 0.51 | H17: =IFERROR(VLOOKUP($B$3,'WIAG3BM-R'!$A$14:$CZ$500,21,FALSE),"") -> 0.52
B18: LA.3.1.7.6 | C18: 2 | D18: 4 | E18: 4 | F18: =IFERROR(VLOOKUP($B$3,'BLG3BM-R'!$A$14:$CZ$500,23,FALSE),"") -> 0.57 | G18: =IFERROR(VLOOKUP($B$3,'FIAG3BM-R'!$A$14:$CZ$500,23,FALSE),"") -> 0.55 | H18: =IFERROR(VLOOKUP($B$3,'WIAG3BM-R'!$A$14:$CZ$500,23,FALSE),"") -> 0.68
B19: LA.3.1.7.7 | C19: 6 | D19: 4 | E19: 5 | F19: =IFERROR(VLOOKUP($B$3,'BLG3BM-R'!$A$14:$CZ$500,25,FALSE),"") -> 0.51 | G19: =IFERROR(VLOOKUP($B$3,'FIAG3BM-R'!$A$14:$CZ$500,25,FALSE),"") -> 0.55 | H19: =IFERROR(VLOOKUP($B$3,'WIAG3BM-R'!$A$14:$CZ$500,25,FALSE),"") -> 0.52
B20: LA.3.2.1.2 | C20: 5 | D20: 5 | E20: 5 | F20: =IFERROR(VLOOKUP($B$3,'BLG3BM-R'!$A$14:$CZ$500,27,FALSE),"") -> 0.55 | G20: =IFERROR(VLOOKUP($B$3,'FIAG3BM-R'!$A$14:$CZ$500,27,FALSE),"") -> 0.52 | H20: =IFERROR(VLOOKUP($B$3,'WIAG3BM-R'!$A$14:$CZ$500,27,FALSE),"") -> 0.62
B21: LA.3.2.1.7 | C21: 1 | D21: 3 | E21: 3 | F21: =IFERROR(VLOOKUP($B$3,'BLG3BM-R'!$A$14:$CZ$500,29,FALSE),"") -> 0.5 | G21: =IFERROR(VLOOKUP($B$3,'FIAG3BM-R'!$A$14:$CZ$500,29,FALSE),"") -> 0.33 | H21: =IFERROR(VLOOKUP($B$3,'WIAG3BM-R'!$A$14:$CZ$500,29,FALSE),"") -> 0.52
B22: LA.3.2.2.1 | D22: 4 | E22: 4 | G22: =IFERROR(VLOOKUP($B$3,'FIAG3BM-R'!$A$14:$CZ$500,31,FALSE),"") -> 0.37 | H22: =IFERROR(VLOOKUP($B$3,'WIAG3BM-R'!$A$14:$CZ$500,31,FALSE),"") -> 0.54
B23: LA.3.6.1.1 | C23: 2 | D23: 4 | E23: 4 | F23: =IFERROR(VLOOKUP($B$3,'BLG3BM-R'!$A$14:$CZ$500,31,FALSE),"") -> 0.41 | G23: =IFERROR(VLOOKUP($B$3,'FIAG3BM-R'!$A$14:$CZ$500,33,FALSE),"") -> 0.64 | H23: =IFERROR(VLOOKUP($B$3,'WIAG3BM-R'!$A$14:$CZ$500,33,FALSE),"") -> 0.54
A24: All Benchmarks | C24: =SUM(C10:C23) -> 31 | D24: =SUM(D10:D23) -> 56 | E24: 56 | F24: =IFERROR(VLOOKUP($B$3,'BLG3CC-R'!$A$14:$CZ$500,5,FALSE),"") -> 0.55 | G24: =IFERROR(VLOOKUP($B$3,'FIAG3CC-R'!$A$14:$CZ$500,5,FALSE),"") -> 0.55 | H24: =IFERROR(VLOOKUP($B$3,'WIAG3CC-R'!$A$14:$CZ$500,5,FALSE),"") -> 0.62
A40: Reporting Categories | C40: Number of Items | F40: Average % Correct
C41: BL | D41: Fall IA | E41: Winter IA | F41: BL | G41: Fall IA | H41: Winter IA
A42: 1 | B42: Vocabulary | C42: =SUM(C10:C13) -> 6 | D42: =SUM(D10:D13) -> 16 | E42: =SUM(E10:E13) -> 15 | F42: =IFERROR(VLOOKUP($B$3,'BLG3CC-R'!$A$14:$BZ$500,11,FALSE),"") -> 0.62 | G42: =IFERROR(VLOOKUP($B$3,'FIAG3CC-R'!$A$14:$BZ$500,13,FALSE),"") -> 0.65 | H42: =IFERROR(VLOOKUP($B$3,'WIAG3CC-R'!$A$14:$BZ$500,13,FALSE),"") -> 0.71
A43: 2 | B43: Reading Application | C43: =SUM(C14:C19) -> 17 | D43: =SUM(D14:D19) -> 24 | E43: 25 | F43: =IFERROR(VLOOKUP($B$3,'BLG3CC-R'!$A$14:$BZ$500,17,FALSE),"") -> 0.55 | G43: =IFERROR(VLOOKUP($B$3,'FIAG3CC-R'!$A$14:$BZ$500,17,FALSE),"") -> 0.54 | H43: =IFERROR(VLOOKUP($B$3,'WIAG3CC-R'!$A$14:$BZ$500,17,FALSE),"") -> 0.6
A44: 3 | B44: Literary Analysis-Fiction/NonFiction | C44: =SUM(C20:C22) -> 6 | D44: =SUM(D20:D22) -> 12 | E44: =SUM(E20:E22) -> 12 | F44: =IFERROR(VLOOKUP($B$3,'BLG3CC-R'!$A$14:$BZ$500,23,FALSE),"") -> 0.54 | G44: =IFERROR(VLOOKUP($B$3,'FIAG3CC-R'!$A$14:$BZ$500,21,FALSE),"") -> 0.42 | H44: =IFERROR(VLOOKUP($B$3,'WIAG3CC-R'!$A$14:$BZ$500,21,FALSE),"") -> 0.57
A45: 4 | B45: Informational Text/Research Process | C45: =SUM(C23:C23) -> 2 | D45: =SUM(D23:D23) -> 4 | E45: 4 | F45: =IFERROR(VLOOKUP($B$3,'BLG3CC-R'!$A$14:$BZ$500,29,FALSE),"") -> 0.41 | G45: =IFERROR(VLOOKUP($B$3,'FIAG3CC-R'!$A$14:$BZ$500,25,FALSE),"") -> 0.64 | H45: =IFERROR(VLOOKUP($B$3,'WIAG3CC-R'!$A$14:$BZ$500,25,FALSE),"") -> 0.54
C46: =SUM(C42:C45) -> 31 | D46: =SUM(D42:D45) -> 56 | E46: =SUM(E42:E45) -> 56

Sheet Grade 3 Reading NGSSS
A1: Click here to return to the school and subject selection sheet
A2: Next Generation Sunshine State Standards Grade 3 Reading Benchmarks Assessed by the FCAT 2.0
A3: Reporting Categories | B3: Benchmarks | C3: Description
A4: Vocabulary | B4: LA.3.1.6.3 | C4: The student will use context clues to determine meanings of unfamiliar words.
A5: Vocabulary | B5: LA.3.1.6.7 | C5: The student will use meaning of familiar base words and affixes (prefixes and suffixes) to determine meanings of unfamiliar complex words.
A6: Vocabulary | B6: LA.3.1.6.8 | C6: The student will use knowledge of antonyms, synonyms, homophones, and homographs to determine meanings of words.
A7: Vocabulary | B7: LA.3.1.6.9 | C7: The student will determine the correct meaning of words with multiple meanings in context.
A8: Reading Application | B8: LA.3.1.7.2 | C8: The student will identify the author's purpose (e.g., to inform, entertain, or explain) in text and how an author's perspective influences text.
A9: Reading Application | B9: LA.3.1.7.3 | C9: The student will determine explicit ideas and information in grade-level text, including but not limited to main idea, relevant supporting details, strongly implied message and inference, and chronological order of events.
A10: Reading Application | B10: LA.3.1.7.4 | C10: The student will identify cause-and-effect relationships in text.
A11: Reading Application | B11: LA.3.1.7.5 | C11: The student will identify the text structure an author uses (e.g., comparison/contrast, cause/effect, and sequence of events) and explain how it impacts meaning in text.
A12: Reading Application | B12: LA.3.1.7.6 | C12: The student will identify themes or topics across a variety of fiction and nonfiction selections.
A13: Reading Application | B13: LA.3.1.7.7 | C13: The student will compare and contrast elements, settings, characters, and problems in two texts.
A14: Literary Analysis- Fiction/Nonfiction | B14: LA.3.2.1.2 | C14: The student will identify and explain the elements of story structure, including character/character development, setting, plot, and problem/resolution in a variety of fiction.
A15: Literary Analysis- Fiction/Nonfiction | B15: LA.3.2.1.7 | C15: The student will identify and explain an author's use of descriptive, idiomatic, and figurative language (e.g., personification, similes, metaphors, symbolism), and examine how it is used to describe people, feelings, and objects.
A16: Literary Analysis- Fiction/Nonfiction | B16: LA.3.2.2.1 | C16: The student will identify and explain the purpose of text features (e.g., table of contents, glossary, headings, charts, graphs, diagrams, illustrations).
A17: Informational Text/Research Process | B17: LA.3.6.1.1 | C17: The student will read informational text (e.g., graphs, charts, manuals) and organize information for different purposes, including but not limited to being informed, following multi-step directions, making a report, conducting interviews, preparing to take a test, and performing a task.

Sheet Grade 4 Math
A1: Direction: Click on "School Name" below then click on arrow key on the right to select a school. To see benchmark description, move the mouse over the benchmark code.
A2: Click here to return to the school and subject selection sheet
B3: =VALUE('Select School'!B3) -> 9999 | U3: =TEXT(B3,"0000") -> 9999
A4: 2012-13 Grade 4 Mathematics Benchmark Analysis Report
A5: Baseline, Fall Interim Assessment (Fall IA), and Winter Interim Assessments (Winter IA)
A6: =TEXT($B$3,"0000")&"-"&VLOOKUP(B3,SchList!$A$2:$B$499,2,FALSE) -> 9999-District
A7: Reporting Categories | B7: Bench-marks | C7: No. of Items | F7: Average % Correct
C8: Base- line | D8: Fall IA | E8: Winter IA | F8: Base- line | G8: Fall IA | H8: Winter IA
B9: No. of Tested | F9: =IFERROR(VLOOKUP($B$3,'BLG4CC-M'!$A$14:$BZ$500,3,FALSE),"") -> 24127 | G9: =IFERROR(VLOOKUP($B$3,'FIAG4CC-M'!$A$14:$BZ$500,3,FALSE),"") -> 23841 | H9: =IFERROR(VLOOKUP($B$3,'WIAG4BM-M'!$A$14:$BZ$500,3,FALSE),"") -> 24516
B10: MA.4.A.1.1 | D10: 4 | G10: =IFERROR(VLOOKUP($B$3,'FIAG4BM-M'!$A$14:$CZ$500,7,FALSE),"") -> 0.8
B11: MA.4.A.1.2 | C11: 2 | D11: 6 | F11: =IFERROR(VLOOKUP($B$3,'BLG4BM-M'!$A$14:$CZ$500,7,FALSE),"") -> 0.36 | G11: =IFERROR(VLOOKUP($B$3,'FIAG4BM-M'!$A$14:$CZ$500,9,FALSE),"") -> 0.49
B12: MA.4.A.4.1 | C12: 2 | E12: 5 | F12: =IFERROR(VLOOKUP($B$3,'BLG4BM-M'!$A$14:$CZ$500,19,FALSE),"") -> 0.65 | H12: =IFERROR(VLOOKUP($B$3,'WIAG4BM-M'!$A$14:$CZ$500,11,FALSE),"") -> 0.7
B13: MA.4.A.4.2 | C13: 2 | E13: 5 | F13: =IFERROR(VLOOKUP($B$3,'BLG4BM-M'!$A$14:$CZ$500,21,FALSE),"") -> 0.59 | H13: =IFERROR(VLOOKUP($B$3,'WIAG4BM-M'!$A$14:$CZ$500,13,FALSE),"") -> 0.53
B14: MA.4.A.4.3 | C14: 2 | E14: 5 | F14: =IFERROR(VLOOKUP($B$3,'BLG4BM-M'!$A$14:$CZ$500,23,FALSE),"") -> 0.55 | H14: =IFERROR(VLOOKUP($B$3,'WIAG4BM-M'!$A$14:$CZ$500,15,FALSE),"") -> 0.5
B15: MA.4.A.6.1 | C15: 2 | D15: 6 | F15: =IFERROR(VLOOKUP($B$3,'BLG4BM-M'!$A$14:$CZ$500,31,FALSE),"") -> 0.34 | G15: =IFERROR(VLOOKUP($B$3,'FIAG4BM-M'!$A$14:$CZ$500,11,FALSE),"") -> 0.68
B16: MA.4.A.6.2 | C16: 2 | D16: 7 | F16: =IFERROR(VLOOKUP($B$3,'BLG4BM-M'!$A$14:$CZ$500,33,FALSE),"") -> 0.72 | G16: =IFERROR(VLOOKUP($B$3,'FIAG4BM-M'!$A$14:$CZ$500,13,FALSE),"") -> 0.6
B17: MA.4.A.6.4 | C17: 2 | D17: 7 | E17: 5 | F17: =IFERROR(VLOOKUP($B$3,'BLG4BM-M'!$A$14:$CZ$500,37,FALSE),"") -> 0.31 | G17: =IFERROR(VLOOKUP($B$3,'FIAG4BM-M'!$A$14:$CZ$500,15,FALSE),"") -> 0.58 | H17: =IFERROR(VLOOKUP($B$3,'WIAG4BM-M'!$A$14:$CZ$500,19,FALSE),"") -> 0.52
B18: MA.4.A.6.6 | C18: 2 | D18: 4 | F18: =IFERROR(VLOOKUP($B$3,'BLG4BM-M'!$A$14:$CZ$500,41,FALSE),"") -> 0.3 | G18: =IFERROR(VLOOKUP($B$3,'FIAG4BM-M'!$A$14:$CZ$500,17,FALSE),"") -> 0.41
B19: MA.4.A.2.3 | C19: 2 | E19: 5 | F19: =IFERROR(VLOOKUP($B$3,'BLG4BM-M'!$A$14:$CZ$500,9,FALSE),"") -> 0.3 | H19: =IFERROR(VLOOKUP($B$3,'WIAG4BM-M'!$A$14:$CZ$500,7,FALSE),"") -> 0.5
B20: MA.4.A.2.4 | C20: 2 | E20: 5 | F20: =IFERROR(VLOOKUP($B$3,'BLG4BM-M'!$A$14:$CZ$500,11,FALSE),"") -> 0.28 | H20: =IFERROR(VLOOKUP($B$3,'WIAG4BM-M'!$A$14:$CZ$500,9,FALSE),"") -> 0.51
B21: MA.4.A.6.3 | C21: 2 | E21: 5 | F21: =IFERROR(VLOOKUP($B$3,'BLG4BM-M'!$A$14:$CZ$500,35,FALSE),"") -> 0.26 | H21: =IFERROR(VLOOKUP($B$3,'WIAG4BM-M'!$A$14:$CZ$500,17,FALSE),"") -> 0.49
B22: MA.4.A.6.5 | C22: 2 | E22: 5 | F22: =IFERROR(VLOOKUP($B$3,'BLG4BM-M'!$A$14:$CZ$500,39,FALSE),"") -> 0.38 | H22: =IFERROR(VLOOKUP($B$3,'WIAG4BM-M'!$A$14:$CZ$500,21,FALSE),"") -> 0.61
B23: MA.4.G.3.1 | C23: 1 | F23: =IFERROR(VLOOKUP($B$3,'BLG4BM-M'!$A$14:$CZ$500,13,FALSE),"") -> 0.25
B24: MA.4.G.3.2 | C24: 2 | F24: =IFERROR(VLOOKUP($B$3,'BLG4BM-M'!$A$14:$CZ$500,15,FALSE),"") -> 0.29
B25: MA.4.G.3.3 | C25: 1 | F25: =IFERROR(VLOOKUP($B$3,'BLG4BM-M'!$A$14:$CZ$500,17,FALSE),"") -> 0.47
B26: MA.4.G.5.1 | C26: 2 | F26: =IFERROR(VLOOKUP($B$3,'BLG4BM-M'!$A$14:$CZ$500,25,FALSE),"") -> 0.28
B27: MA.4.G.5.2 | C27: 2 | F27: =IFERROR(VLOOKUP($B$3,'BLG4BM-M'!$A$14:$CZ$500,27,FALSE),"") -> 0.32
B28: MA.4.G.5.3 | C28: 2 | F28: =IFERROR(VLOOKUP($B$3,'BLG4BM-M'!$A$14:$CZ$500,29,FALSE),"") -> 0.59
A29: All Benchmarks | C29: =SUM(C10:C28) -> 34 | D29: =SUM(D10:D28) -> 34 | E29: =SUM(E10:E28) -> 40 | F29: =IFERROR(VLOOKUP($B$3,'BLG4CC-M'!$A$14:$CZ$500,5,FALSE),"") -> 0.4 | G29: =IFERROR(VLOOKUP($B$3,'FIAG4CC-M'!$A$14:$CZ$500,5,FALSE),"") -> 0.59 | H29: =IFERROR(VLOOKUP($B$3,'WIAG4CC-M'!$A$14:$CZ$500,5,FALSE),"") -> 0.55
A45: Reporting Categories | C45: Number of Items | F45: Average % Correct
C46: BL | D46: Fall IA | E46: Winter IA | F46: BL | G46: Fall IA | H46: Winter IA
A47: 1 | B47: Number: Operations and Problems | C47: =SUM(C10:C18) -> 16 | D47: =SUM(D10:D18) -> 34 | E47: 20 | F47: =IFERROR(VLOOKUP($B$3,'BLG4CC-M'!$A$14:$AA$500,17,FALSE),"") -> 0.48 | G47: =IFERROR(VLOOKUP($B$3,'FIAG4CC-M'!$A$14:$AA$500,13,FALSE),"") -> 0.59 | H47: =IFERROR(VLOOKUP($B$3,'WIAG4CC-M'!$A$14:$AA$500,13,FALSE),"") -> 0.56
A48: 2 | B48: Number: Base Ten and Fractions | C48: =SUM(C19:C22) -> 8 | D48: =SUM(D19:D22) -> 0 | E48: =SUM(E19:E22) -> 20 | F48: =IFERROR(VLOOKUP($B$3,'BLG4CC-M'!$A$14:$AA$500,23,FALSE),"") -> 0.31 | H48: =IFERROR(VLOOKUP($B$3,'WIAG4CC-M'!$A$14:$AA$500,17,FALSE),"") -> 0.53
A49: 3 | B49: Geometry and Measurement | C49: =SUM(C23:C28) -> 10 | D49: =SUM(D23:D28) -> 0 | E49: 0 | F49: =IFERROR(VLOOKUP($B$3,'BLG4CC-M'!$A$14:$AA$500,11,FALSE),"") -> 0.37
C50: =SUM(C46:C49) -> 34 | D50: =SUM(D46:D49) -> 34 | E50: =SUM(E46:E49) -> 40

Sheet Grade 4 MATH NGSSS
A1: Click here to return to the school and subject selection sheet
A2: Next Generation Sunshine State Standards Grade 4 Mathematics Benchmarks Assessed by the FCAT 2.0
A3: Reporting Categories | B3: Benchmarks | C3: Description
A4: Number: Oper. & Problems | B4: MA.4.A.1.1 | C4: Use and describe various models for multiplication in problem-solving situations, and demonstrate recall of basic multiplication and related division facts with ease.
A5: Number: Oper. & Problems | B5: MA.4.A.1.2 | C5: Multiply multi-digit whole numbers through four digits fluently, demonstrating understanding of the standard algorithm, and checking for reasonableness of results, including solving real-world problems.
A6: Number: Base Ten & Fractions | B6: MA.4.A.2.3 | C6: Relate equivalent fractions and decimals with and without models, including locations on a number line.
A7: Number: Base Ten & Fractions | B7: MA.4.A.2.4 | C7: Compare and order decimals, and estimate fraction and decimal amounts in real-world problems.
A8: Geometry & Measurement | B8: MA.4.G.3.1 | C8: Describe and determine area as the number of same-sized units that cover a region in the plane, recognizing that a unit square is the standard unit for measuring area.
A9: Geometry & Measurement | B9: MA.4.G.3.2 | C9: Justify the formula for the area of the rectangle "area = base x height".
A10: Geometry & Measurement | B10: MA.4.G.3.3 | C10: Select and use appropriate units, both customary and metric, strategies, and measuring tools to estimate and solve real-world area problems.
A11: Number: Oper. & Problems | B11: MA.4.A.4.1 | C11: Generate algebraic rules and use all four operations to describe patterns, including nonnumeric growing or repeating patterns.
A12: Number: Oper. & Problems | B12: MA.4.A.4.2 | C12: Describe mathematics relationships using expressions, equations, and visual representations.
A13: Number: Oper. & Problems | B13: MA.4.A.4.3 | C13: Recognize and write algebraic expressions for functions with two operations.
A14: Geometry & Measurement | B14: MA.4.G.5.1 | C14: Classify angles of two-dimensional shapes using benchmark angles (45°, 90°, 180°, and 360°)
A15: Geometry & Measurement | B15: MA.4.G.5.2 | C15: Identify and describe the results of translations, reflections, and rotations of 45, 90, 180, 270, and 360 degrees, including figures with line and rotational symmetry.
A16: Geometry & Measurement | B16: MA.4.G.5.3 | C16: Identify and build a three-dimensional object from a two-dimensional representation of that object and vice versa.
A17: Number: Oper. & Problems | B17: MA.4.A.6.1 | C17: Use and represent numbers through millions in various contexts, including estimation of relative sizes of amounts or distances.
A18: Number: Oper. & Problems | B18: MA.4.A.6.2 | C18: Use models to represent division as: -the inverse of multiplication -as partitioning -as successive subtraction
A19: Number: Base Ten & Fractions | B19: MA.4.A.6.3 | C19: Generate equivalent fractions and simplify fractions.
A20: Number: Oper. & Problems | B20: MA.4.A.6.4 | C20: Determine factors and multiples for specified whole numbers.
A21: Number: Base Ten & Fractions | B21: MA.4.A.6.5 | C21: Relate halves, fourths, tenths, and hundredths to decimals and percents.
A22: Number: Oper. & Problems | B22: MA.4.A.6.6 | C22: Estimate and describe reasonableness of estimates; determine the appropriateness of an estimate versus an exact answer.

Sheet Grade 4 Reading
A1: Direction: Click on "School Name" below then click on arrow key on the right to select a school. To see benchmark description, move the mouse over the benchmark code.
A2: Click here to return to the school and subject selection sheet
B3: =VALUE('Select School'!B3) -> 9999 | U3: =TEXT(B3,"0000") -> 9999
A4: 2012-13 Grade 4 Reading Benchmark Analysis Report
A5: Baseline, Fall Interim Assessment (Fall IA), and Winter Interim Assessments (Winter IA)
A6: =TEXT($B$3,"0000")&"-"&VLOOKUP(B3,SchList!$A$2:$B$499,2,FALSE) -> 9999-District
A7: Reporting Categories | B7: Bench-marks | C7: No. of Items | F7: Average % Correct
C8: Base- line | D8: Fall IA | E8: Winter IA | F8: Base- line | G8: Fall IA | H8: Winter IA
B9: No. of Tested | F9: =IFERROR(VLOOKUP($B$3,'BLG4CC-R'!$A$14:$BZ$500,3,FALSE),"") -> 24228 | G9: =IFERROR(VLOOKUP($B$3,'FIAG4CC-R'!$A$14:$BZ$500,3,FALSE),"") -> 24147 | H9: =IFERROR(VLOOKUP($B$3,'WIAG4CC-R'!$A$14:$BZ$500,3,FALSE),"") -> 24692
B10: LA.4.1.6.3 | C10: 2 | D10: 4 | E10: 4 | F10: =IFERROR(VLOOKUP($B$3,'BLG4BM-R'!$A$14:$CZ$500,7,FALSE),"") -> 0.45 | G10: =IFERROR(VLOOKUP($B$3,'FIAG4BM-R'!$A$14:$CZ$500,7,FALSE),"") -> 0.7 | H10: =IFERROR(VLOOKUP($B$3,'WIAG4BM-R'!$A$14:$CZ$500,7,FALSE),"") -> 0.72
B11: LA.4.1.6.7 | C11: 2 | D11: 3 | E11: 4 | F11: =IFERROR(VLOOKUP($B$3,'BLG4BM-R'!$A$14:$CZ$500,9,FALSE),"") -> 0.65 | G11: =IFERROR(VLOOKUP($B$3,'FIAG4BM-R'!$A$14:$CZ$500,9,FALSE),"") -> 0.82 | H11: =IFERROR(VLOOKUP($B$3,'WIAG4BM-R'!$A$14:$CZ$500,9,FALSE),"") -> 0.79
B12: LA.4.1.6.8 | C12: 2 | D12: 4 | E12: 3 | F12: =IFERROR(VLOOKUP($B$3,'BLG4BM-R'!$A$14:$CZ$500,11,FALSE),"") -> 0.8 | G12: =IFERROR(VLOOKUP($B$3,'FIAG4BM-R'!$A$14:$CZ$500,11,FALSE),"") -> 0.71 | H12: =IFERROR(VLOOKUP($B$3,'WIAG4BM-R'!$A$14:$CZ$500,11,FALSE),"") -> 0.71
B13: LA.4.1.6.9 | C13: 1 | D13: 4 | E13: 5 | F13: =IFERROR(VLOOKUP($B$3,'BLG4BM-R'!$A$14:$CZ$500,13,FALSE),"") -> 0.69 | G13: =IFERROR(VLOOKUP($B$3,'FIAG4BM-R'!$A$14:$CZ$500,13,FALSE),"") -> 0.68 | H13: =IFERROR(VLOOKUP($B$3,'WIAG4BM-R'!$A$14:$CZ$500,13,FALSE),"") -> 0.77
B14: LA.4.1.7.2 | C14: 6 | D14: 3 | E14: 3 | F14: =IFERROR(VLOOKUP($B$3,'BLG4BM-R'!$A$14:$CZ$500,15,FALSE),"") -> 0.59 | G14: =IFERROR(VLOOKUP($B$3,'FIAG4BM-R'!$A$14:$CZ$500,15,FALSE),"") -> 0.71 | H14: =IFERROR(VLOOKUP($B$3,'WIAG4BM-R'!$A$14:$CZ$500,15,FALSE),"") -> 0.78
B15: LA.4.1.7.3 | C15: 2 | D15: 5 | E15: 4 | F15: =IFERROR(VLOOKUP($B$3,'BLG4BM-R'!$A$14:$CZ$500,17,FALSE),"") -> 0.74 | G15: =IFERROR(VLOOKUP($B$3,'FIAG4BM-R'!$A$14:$CZ$500,17,FALSE),"") -> 0.55 | H15: =IFERROR(VLOOKUP($B$3,'WIAG4BM-R'!$A$14:$CZ$500,17,FALSE),"") -> 0.75
B16: LA.4.1.7.4 | C16: 4 | D16: 4 | E16: 3 | F16: =IFERROR(VLOOKUP($B$3,'BLG4BM-R'!$A$14:$CZ$500,19,FALSE),"") -> 0.56 | G16: =IFERROR(VLOOKUP($B$3,'FIAG4BM-R'!$A$14:$CZ$500,19,FALSE),"") -> 0.63 | H16: =IFERROR(VLOOKUP($B$3,'WIAG4BM-R'!$A$14:$CZ$500,19,FALSE),"") -> 0.72
B17: LA.4.1.7.5 | C17: 3 | D17: 4 | E17: 4 | F17: =IFERROR(VLOOKUP($B$3,'BLG4BM-R'!$A$14:$CZ$500,21,FALSE),"") -> 0.39 | G17: =IFERROR(VLOOKUP($B$3,'FIAG4BM-R'!$A$14:$CZ$500,21,FALSE),"") -> 0.58 | H17: =IFERROR(VLOOKUP($B$3,'WIAG4BM-R'!$A$14:$CZ$500,21,FALSE),"") -> 0.59
B18: LA.4.1.7.6 | C18: 4 | D18: 4 | E18: 4 | F18: =IFERROR(VLOOKUP($B$3,'BLG4BM-R'!$A$14:$CZ$500,23,FALSE),"") -> 0.53 | G18: =IFERROR(VLOOKUP($B$3,'FIAG4BM-R'!$A$14:$CZ$500,23,FALSE),"") -> 0.52 | H18: =IFERROR(VLOOKUP($B$3,'WIAG4BM-R'!$A$14:$CZ$500,23,FALSE),"") -> 0.72
B19: LA.4.1.7.7 | C19: 6 | D19: 4 | E19: 2 | F19: =IFERROR(VLOOKUP($B$3,'BLG4BM-R'!$A$14:$CZ$500,25,FALSE),"") -> 0.56 | G19: =IFERROR(VLOOKUP($B$3,'FIAG4BM-R'!$A$14:$CZ$500,25,FALSE),"") -> 0.57 | H19: =IFERROR(VLOOKUP($B$3,'WIAG4BM-R'!$A$14:$CZ$500,25,FALSE),"") -> 0.66
B20: LA.4.2.1.2 | C20: 4 | D20: 5 | E20: 5 | F20: =IFERROR(VLOOKUP($B$3,'BLG4BM-R'!$A$14:$CZ$500,27,FALSE),"") -> 0.59 | G20: =IFERROR(VLOOKUP($B$3,'FIAG4BM-R'!$A$14:$CZ$500,27,FALSE),"") -> 0.68 | H20: =IFERROR(VLOOKUP($B$3,'WIAG4BM-R'!$A$14:$CZ$500,27,FALSE),"") -> 0.58
B21: LA.4.2.1.7 | C21: 2 | D21: 4 | E21: 1 | F21: =IFERROR(VLOOKUP($B$3,'BLG4BM-R'!$A$14:$CZ$500,29,FALSE),"") -> 0.61 | G21: =IFERROR(VLOOKUP($B$3,'FIAG4BM-R'!$A$14:$CZ$500,29,FALSE),"") -> 0.43 | H21: =IFERROR(VLOOKUP($B$3,'WIAG4BM-R'!$A$14:$CZ$500,29,FALSE),"") -> 0.5
B22: LA.4.2.2.1 | D22: 4 | E22: 4 | G22: =IFERROR(VLOOKUP($B$3,'FIAG4BM-R'!$A$14:$CZ$500,31,FALSE),"") -> 0.6 | H22: =IFERROR(VLOOKUP($B$3,'WIAG4BM-R'!$A$14:$CZ$500,31,FALSE),"") -> 0.59
B23: LA.4.6.1.1 | C23: 5 | D23: 4 | E23: 5 | F23: =IFERROR(VLOOKUP($B$3,'BLG4BM-R'!$A$14:$CZ$500,31,FALSE),"") -> 0.69 | G23: =IFERROR(VLOOKUP($B$3,'FIAG4BM-R'!$A$14:$CZ$500,33,FALSE),"") -> 0.59 | H23: =IFERROR(VLOOKUP($B$3,'WIAG4BM-R'!$A$14:$CZ$500,33,FALSE),"") -> 0.54
A24: All Benchmarks | C24: =SUM(C10:C23) -> 43 | D24: =SUM(D10:D23) -> 56 | E24: 51 | F24: =IFERROR(VLOOKUP($B$3,'BLG4CC-R'!$A$14:$CZ$500,5,FALSE),"") -> 0.59 | G24: =IFERROR(VLOOKUP($B$3,'FIAG4CC-R'!$A$14:$CZ$500,5,FALSE),"") -> 0.62 | H24: =IFERROR(VLOOKUP($B$3,'WIAG4CC-R'!$A$14:$CZ$500,5,FALSE),"") -> 0.68
A40: Reporting Categories | C40: Number of Items | F40: Average % Correct
C41: BL | D41: Fall IA | E41: Winter IA | F41: BL | G41: Fall IA | H41: Winter IA
A42: 1 | B42: Vocabulary | C42: =SUM(C10:C13) -> 7 | D42: =SUM(D10:D13) -> 15 | E42: =SUM(E10:E13) -> 16 | F42: =IFERROR(VLOOKUP($B$3,'BLG4CC-R'!$A$14:$BZ$500,11,FALSE),"") -> 0.64 | G42: =IFERROR(VLOOKUP($B$3,'FIAG4CC-R'!$A$14:$BZ$500,13,FALSE),"") -> 0.72 | H42: =IFERROR(VLOOKUP($B$3,'WIAG4CC-R'!$A$14:$BZ$500,13,FALSE),"") -> 0.75
A43: 2 | B43: Reading Application | C43: =SUM(C14:C19) -> 25 | D43: =SUM(D14:D19) -> 24 | E43: 20 | F43: =IFERROR(VLOOKUP($B$3,'BLG4CC-R'!$A$14:$BZ$500,17,FALSE),"") -> 0.56 | G43: =IFERROR(VLOOKUP($B$3,'FIAG4CC-R'!$A$14:$BZ$500,17,FALSE),"") -> 0.59 | H43: =IFERROR(VLOOKUP($B$3,'WIAG4CC-R'!$A$14:$BZ$500,17,FALSE),"") -> 0.7
A44: 3 | B44: Literary Analysis-Fiction/NonFiction | C44: =SUM(C20:C22) -> 6 | D44: =SUM(D20:D22) -> 13 | E44: =SUM(E20:E22) -> 10 | F44: =IFERROR(VLOOKUP($B$3,'BLG4CC-R'!$A$14:$BZ$500,23,FALSE),"") -> 0.6 | G44: =IFERROR(VLOOKUP($B$3,'FIAG4CC-R'!$A$14:$BZ$500,21,FALSE),"") -> 0.58 | H44: =IFERROR(VLOOKUP($B$3,'WIAG4CC-R'!$A$14:$BZ$500,21,FALSE),"") -> 0.58
A45: 4 | B45: Informational Text/Research Process | C45: =SUM(C23:C23) -> 5 | D45: =SUM(D23:D23) -> 4 | E45: 5 | F45: =IFERROR(VLOOKUP($B$3,'BLG4CC-R'!$A$14:$BZ$500,29,FALSE),"") -> 0.69 | G45: =IFERROR(VLOOKUP($B$3,'FIAG4CC-R'!$A$14:$BZ$500,25,FALSE),"") -> 0.59 | H45: =IFERROR(VLOOKUP($B$3,'WIAG4CC-R'!$A$14:$BZ$500,25,FALSE),"") -> 0.54
C46: =SUM(C42:C45) -> 43 | D46: =SUM(D42:D45) -> 56 | E46: =SUM(E42:E45) -> 51

Sheet Grade 4 Reading NGSSS
A1: Click here to return to the school and subject selection sheet
A2: Next Generation Sunshine State Standards Grade 4 Reading Benchmarks Assessed by the FCAT 2.0
A3: Reporting Categories | B3: Benchmarks | C3: Description
A4: Vocabulary | B4: LA.4.1.6.3 | C4: The student will use context clues to determine meanings of unfamiliar words.
A5: Vocabulary | B5: LA.4.1.6.7 | C5: The student will use meaning of familiar base words and affixes to determine meanings of unfamiliar complex words.
A6: Vocabulary | B6: LA.4.1.6.8 | C6: The student will use knowledge of antonyms, synonyms, homophones, and homographs to determine meanings of words.
A7: Vocabulary | B7: LA.4.1.6.9 | C7: The student will determine the correct meaning of words with multiple meanings in context.
A8: Reading Application | B8: LA.4.1.7.2 | C8: The student will identify the author's purpose (e.g., to inform, entertain, explain) in text and how an author's perspective influences text.
A9: Reading Application | B9: LA.4.1.7.3 | C9: The student will determine explicit ideas and information in grade-level text, including but not limited to main idea, relevant supporting details, implied message, inferences, chronological order of events, summarizing, and paraphrasing.
A10: Reading Application | B10: LA.4.1.7.4 | C10: The student will identify cause-and-effect relationships in text.
A11: Reading Application | B11: LA.4.1.7.5 | C11: The student will identify the text structure an author uses (e.g., comparison/contrast, cause/effect, sequence of events) and explain how it impacts meaning in text.
A12: Reading Application | B12: LA.4.1.7.6 | C12: The student will identify themes or topics across a variety of fiction and nonfiction selections.
A13: Reading Application | B13: LA.4.1.7.7 | C13: The student will compare and contrast elements in multiple texts (e.g., setting, characters, problems).
A14: Literary Analysis- Fiction/Nonfiction | B14: LA.4.2.1.2 | C14: The student will identify and explain the elements of plot structure, including exposition, setting, character development, problem/resolution, and theme in a variety of fiction.
A15: Literary Analysis- Fiction/Nonfiction | B15: LA.4.2.1.7 | C15: The student will identify and explain an author's use of descriptive, idiomatic, and figurative language (e.g., personification, similes, metaphors, symbolism), and examine how it is used to describe people, feelings, and objects.
A16: Literary Analysis- Fiction/Nonfiction | B16: LA.4.2.2.1 | C16: The student will locate, explain, and use information from text features (e.g., table of contents, glossary, headings, charts, graphs, diagrams, illustrations).
A17: Informational Text/Research Process | B17: LA.4.6.1.1 | C17: The student will read informational text and text features (e.g., format, graphics, legends, illustrations, diagrams) to organize information for different purposes (e.g., being informed, following multi-step directions, creating a report, conducting interviews, preparing to take a test, performing a task).

Sheet Grade 5 Math
A1: Direction: Click on "School Name" below then click on arrow key on the right to select a school. To see benchmark description, move the mouse over the benchmark code.
A2: Click here to return to the school and subject selection sheet
B3: =VALUE('Select School'!B3) -> 9999 | U3: =TEXT(B3,"0000") -> 9999
A4: 2012-13 Grade 5 Mathematics Benchmark Analysis Report
A5: Baseline, Fall Interim Assessment (Fall IA), and Winter Interim Assessments (Winter IA)
A6: =TEXT($B$3,"0000")&"-"&VLOOKUP(B3,SchList!$A$2:$B$499,2,FALSE) -> 9999-District
A7: Reporting Categories | B7: Bench-marks | C7: No. of Items | F7: Average % Correct
C8: Base- line | D8: Fall IA | E8: Winter IA | F8: Base- line | G8: Fall IA | H8: Winter IA
B9: No. of Tested | F9: =IFERROR(VLOOKUP($B$3,'BLG5CC-M'!$A$14:$BZ$500,3,FALSE),"") -> 24057 | G9: =IFERROR(VLOOKUP($B$3,'FIAG5CC-M'!$A$14:$BZ$500,3,FALSE),"") -> 24122 | H9: =IFERROR(VLOOKUP($B$3,'WIAG5CC-M'!$A$14:$BZ$500,3,FALSE),"") -> 24574
B10: MA.5.A.1.1 | C10: 2 | D10: 6 | F10: =IFERROR(VLOOKUP($B$3,'BLG5BM-M'!$A$14:$CZ$500,7,FALSE),"") -> 0.55 | G10: =IFERROR(VLOOKUP($B$3,'FIAG5BM-M'!$A$14:$CZ$500,7,FALSE),"") -> 0.69
B11: MA.5.A.1.4 | C11: 2 | D11: 6 | F11: =IFERROR(VLOOKUP($B$3,'BLG5BM-M'!$A$14:$CZ$500,9,FALSE),"") -> 0.65 | G11: =IFERROR(VLOOKUP($B$3,'FIAG5BM-M'!$A$14:$CZ$500,9,FALSE),"") -> 0.63
B12: MA.5.A.2.1 | C12: 2 | E12: 5 | F12: =IFERROR(VLOOKUP($B$3,'BLG5BM-M'!$A$14:$CZ$500,11,FALSE),"") -> 0.32 | H12: =IFERROR(VLOOKUP($B$3,'WIAG5BM-M'!$A$14:$CZ$500,7,FALSE),"") -> 0.56
B13: MA.5.A.2.2 | C13: 3 | E13: 6 | F13: =IFERROR(VLOOKUP($B$3,'BLG5BM-M'!$A$14:$CZ$500,13,FALSE),"") -> 0.57 | H13: =IFERROR(VLOOKUP($B$3,'WIAG5BM-M'!$A$14:$CZ$500,9,FALSE),"") -> 0.6
B14: MA.5.A.2.4 | C14: 2 | E14: 5 | F14: =IFERROR(VLOOKUP($B$3,'BLG5BM-M'!$A$14:$CZ$500,15,FALSE),"") -> 0.39 | H14: =IFERROR(VLOOKUP($B$3,'WIAG5BM-M'!$A$14:$CZ$500,11,FALSE),"") -> 0.67
B15: MA.5.A.6.3 | C15: 2 | D15: 3 | F15: =IFERROR(VLOOKUP($B$3,'BLG5BM-M'!$A$14:$CZ$500,33,FALSE),"") -> 0.4 | G15: =IFERROR(VLOOKUP($B$3,'FIAG5BM-M'!$A$14:$CZ$500,15,FALSE),"") -> 0.61
B16: MA.5.A.6.4 | C16: 2 | D16: 4 | F16: =IFERROR(VLOOKUP($B$3,'BLG5BM-M'!$A$14:$CZ$500,35,FALSE),"") -> 0.39 | G16: =IFERROR(VLOOKUP($B$3,'FIAG5BM-M'!$A$14:$CZ$500,17,FALSE),"") -> 0.66
B17: MA.5.A.6.5 | C17: 1 | D17: 5 | E17: 5 | F17: =IFERROR(VLOOKUP($B$3,'BLG5BM-M'!$A$14:$CZ$500,37,FALSE),"") -> 0.56 | G17: =IFERROR(VLOOKUP($B$3,'FIAG5BM-M'!$A$14:$CZ$500,19,FALSE),"") -> 0.48 | H17: =IFERROR(VLOOKUP($B$3,'WIAG5BM-M'!$A$14:$CZ$500,15,FALSE),"") -> 0.38
B18: MA.5.A.4.1 | C18: 2 | D18: 4 | F18: =IFERROR(VLOOKUP($B$3,'BLG5BM-M'!$A$14:$CZ$500,21,FALSE),"") -> 0.58 | G18: =IFERROR(VLOOKUP($B$3,'FIAG5BM-M'!$A$14:$CZ$500,11,FALSE),"") -> 0.71
B19: MA.5.A.6.2 | C19: 2 | D19: 6 | F19: =IFERROR(VLOOKUP($B$3,'BLG5BM-M'!$A$14:$CZ$500,31,FALSE),"") -> 0.19 | G19: =IFERROR(VLOOKUP($B$3,'FIAG5BM-M'!$A$14:$CZ$500,13,FALSE),"") -> 0.63
B20: MA.5.S.7.1 | C20: 3 | E20: 6 | F20: =IFERROR(VLOOKUP($B$3,'BLG5BM-M'!$A$14:$CZ$500,39,FALSE),"") -> 0.43 | H20: =IFERROR(VLOOKUP($B$3,'WIAG5BM-M'!$A$14:$CZ$500,17,FALSE),"") -> 0.69
B21: MA.5.S.7.2 | C21: 2 | E21: 5 | F21: =IFERROR(VLOOKUP($B$3,'BLG5BM-M'!$A$14:$CZ$500,41,FALSE),"") -> 0.38 | H21: =IFERROR(VLOOKUP($B$3,'WIAG5BM-M'!$A$14:$CZ$500,19,FALSE),"") -> 0.64
B22: MA.5.G.3.1 | C22: 3 | F22: =IFERROR(VLOOKUP($B$3,'BLG5BM-M'!$A$14:$CZ$500,17,FALSE),"") -> 0.52
B23: MA.5.G.3.2 | C23: 1 | F23: =IFERROR(VLOOKUP($B$3,'BLG5BM-M'!$A$14:$CZ$500,19,FALSE),"") -> 0.22
B24: MA.5.G.5.1 | C24: 2 | E24: 6 | F24: =IFERROR(VLOOKUP($B$3,'BLG5BM-M'!$A$14:$CZ$500,23,FALSE),"") -> 0.34 | H24: =IFERROR(VLOOKUP($B$3,'WIAG5BM-M'!$A$14:$CZ$500,13,FALSE),"") -> 0.72
B25: MA.5.G.5.2 | C25: 3 | F25: =IFERROR(VLOOKUP($B$3,'BLG5BM-M'!$A$14:$CZ$500,25,FALSE),"") -> 0.22
B26: MA.5.G.5.3 | C26: 3 | F26: =IFERROR(VLOOKUP($B$3,'BLG5BM-M'!$A$14:$CZ$500,27,FALSE),"") -> 0.61
B27: MA.5.G.5.4 | C27: 2 | F27: =IFERROR(VLOOKUP($B$3,'BLG5BM-M'!$A$14:$CZ$500,29,FALSE),"") -> 0.22
A28: All Benchmarks | C28: =SUM(C10:C27) -> 39 | D28: =SUM(D10:D27) -> 34 | E28: =SUM(E10:E27) -> 38 | F28: =IFERROR(VLOOKUP($B$3,'BLG5CC-M'!$A$14:$CZ$500,5,FALSE),"") -> 0.43 | G28: =IFERROR(VLOOKUP($B$3,'FIAG5CC-M'!$A$14:$CZ$500,5,FALSE),"") -> 0.63 | H28: =IFERROR(VLOOKUP($B$3,'WIAG5CC-M'!$A$14:$CZ$500,5,FALSE),"") -> 0.61
A44: Reporting Categories | C44: Number of Items | F44: Average % Correct
C45: BL | D45: Fall IA | E45: Winter IA | F45: BL | G45: Fall IA | H45: Winter IA
A46: 1 | B46: Number: Base Ten and Fractions | C46: =SUM(C10:C17) -> 16 | D46: =SUM(D10:D17) -> 24 | E46: =SUM(E10:E17) -> 21 | F46: =IFERROR(VLOOKUP($B$3,'BLG5CC-M'!$A$14:$AA$500,23,FALSE),"") -> 0.48 | G46: =IFERROR(VLOOKUP($B$3,'FIAG5CC-M'!$A$14:$AA$500,13,FALSE),"") -> 0.62 | H46: =IFERROR(VLOOKUP($B$3,'WIAG5CC-M'!$A$14:$AA$500,13,FALSE),"") -> 0.56
A47: 2 | B47: Expressions, Equations & Stat. | C47: =SUM(C18:C21) -> 9 | D47: =SUM(D18:D21) -> 10 | E47: =SUM(E18:E21) -> 11 | F47: =IFERROR(VLOOKUP($B$3,'BLG5CC-M'!$A$14:$AA$500,11,FALSE),"") -> 0.4 | G47: =IFERROR(VLOOKUP($B$3,'FIAG5CC-M'!$A$14:$AA$500,19,FALSE),"") -> 0.66 | H47: =IFERROR(VLOOKUP($B$3,'WIAG5CC-M'!$A$14:$AA$500,17,FALSE),"") -> 0.67
A48: 3 | B48: Geometry and Measurement | C48: =SUM(C22:C27) -> 14 | D48: =SUM(D22:D27) -> 0 | E48: =SUM(E22:E27) -> 6 | F48: =IFERROR(VLOOKUP($B$3,'BLG5CC-M'!$A$14:$AA$500,17,FALSE),"") -> 0.38 | H48: =IFERROR(VLOOKUP($B$3,'WIAG5CC-M'!$A$14:$AA$500,21,FALSE),"") -> 0.72
C49: =SUM(C45:C48) -> 39 | D49: =SUM(D45:D48) -> 34 | E49: =SUM(E45:E48) -> 38

Sheet Grade 5 MATH NGSSS
A1: Click here to return to the school and subject selection sheet
A2: Next Generation Sunshine State Standards Grade 5 Mathematics Benchmarks Assessed by the FCAT 2.0
A3: Reporting Categories | B3: Benchmarks | C3: Description
A4: Number: Base Ten & Fractions | B4: MA.5.A.1.1 | C4: Describe the process of finding quotients involving multi-digit dividends using models, place value, properties, and the relationship of division to multiplication.
A5: Number: Base Ten & Fractions | B5: MA.5.A.1.4 | C5: Divide multi-digit whole numbers fluently, including solving real-world problems, demonstrating understanding of the standard algorithm and checking the reasonableness of results.
A6: Number: Base Ten & Fractions | B6: MA.5.A.2.1 | C6: Represent addition and subtraction of decimals and fractions with like and unlike denominators using models, place value, or properties.
A7: Number: Base Ten & Fractions | B7: MA.5.A.2.2 | C7: Add and subtract fractions and decimals fluently, and verify the reasonableness of results, including in problem situations.
A8: Number: Base Ten & Fractions | B8: MA.5.A.2.4 | C8: Determine the prime factorization of numbers.
A9: Geometry & Measurement | B9: MA.5.G.3.1 | C9: Analyze and compare the properties of two-dimensional figures and three-dimensional solids (polyhedra), including the number of edges, faces, vertices, and types of faces.
A10: Geometry & Measurement | B10: MA.5.G.3.2 | C10: Describe, define, and determine surface area and volume of prisms by using appropriate units and selecting strategies and tools.
A11: Expressions, Equations, & Stat. | B11: MA.5.A.4.1 | C11: Use the properties of equality to solve numerical and real world situations.
A12: Geometry & Measurement | B12: MA.5.G.5.1 | C12: Identify and plot ordered pairs on the first quadrant of the coordinate plane.
A13: Geometry & Measurement | B13: MA.5.G.5.2 | C13: Compare, contrast, and convert units of measure within the same dimension (length, mass, or time) to solve problems.
A14: Geometry & Measurement | B14: MA.5.G.5.3 | C14: Solve problems requiring attention to approximation, selection of appropriate measuring tools, and precision of measurement.
A15: Geometry & Measurement | B15: MA.5.G.5.4 | C15: Derive and apply formulas for areas of parallelograms, triangles, and trapezoids from the area of a rectangle.
A16: Expressions, Equations, & Stat. | B16: MA.5.A.6.2 | C16: Use the order of operations to simplify expressions which include exponents and parentheses.
A17: Number: Base Ten & Fractions | B17: MA.5.A.6.3 | C17: Describe real-world situations using positive and negative numbers.
A18: Number: Base Ten & Fractions | B18: MA.5.A.6.4 | C18: Compare, order, and graph integers, including integers shown on a number line.
A19: Number: Base Ten & Fractions | B19: MA.5.A.6.5 | C19: Solve non-routine problems using various strategies including “solving a simpler problem” and “guess, check, and revise”.
A20: Expressions, Equations, & Stat. | B20: MA.5.S.7.1 | C20: Construct and analyze line graphs and double bar graphs.
A21: Expressions, Equations, & Stat. | B21: MA.5.S.7.2 | C21: Differentiate between continuous and discrete data, and determine ways to represent those using graphs and diagrams.

Sheet Grade 5 Reading
A1: Direction: Click on "School Name" below then click on arrow key on the right to select a school. To see benchmark description, move the mouse over the benchmark code.
A2: Click here to return to the school and subject selection sheet
B3: =VALUE('Select School'!B3) -> 9999 | U3: =TEXT(B3,"0000") -> 9999
A4: 2012-13 Grade 5 Reading Benchmark Analysis Report
A5: Baseline, Fall Interim Assessment (Fall IA), and Winter Interim Assessments (Winter IA)
A6: =TEXT($B$3,"0000")&"-"&VLOOKUP(B3,SchList!$A$2:$B$499,2,FALSE) -> 9999-District
A7: Reporting Categories | B7: Bench-marks | C7: No. of Items | F7: Average % Correct
C8: Base- line | D8: Fall IA | E8: Winter IA | F8: Base- line | G8: Fall IA | H8: Winter IA
B9: No. of Tested | F9: =IFERROR(VLOOKUP($B$3,'BLG5CC-R'!$A$14:$BZ$500,3,FALSE),"") -> 24193 | G9: =IFERROR(VLOOKUP($B$3,'FIAG5CC-R'!$A$14:$BZ$500,3,FALSE),"") -> 24206 | H9: =IFERROR(VLOOKUP($B$3,'WIAG5CC-R'!$A$14:$BZ$500,3,FALSE),"") -> 24698
B10: LA.5.1.6.3 | C10: 1 | D10: 4 | E10: 3 | F10: =IFERROR(VLOOKUP($B$3,'BLG5BM-R'!$A$14:$CZ$500,7,FALSE),"") -> 0.65 | G10: =IFERROR(VLOOKUP($B$3,'FIAG5BM-R'!$A$14:$CZ$500,7,FALSE),"") -> 0.61 | H10: =IFERROR(VLOOKUP($B$3,'WIAG5BM-R'!$A$14:$CZ$500,7,FALSE),"") -> 0.84
B11: LA.5.1.6.7 | C11: 2 | D11: 4 | E11: 4 | F11: =IFERROR(VLOOKUP($B$3,'BLG5BM-R'!$A$14:$CZ$500,9,FALSE),"") -> 0.81 | G11: =IFERROR(VLOOKUP($B$3,'FIAG5BM-R'!$A$14:$CZ$500,9,FALSE),"") -> 0.62 | H11: =IFERROR(VLOOKUP($B$3,'WIAG5BM-R'!$A$14:$CZ$500,9,FALSE),"") -> 0.68
B12: LA.5.1.6.8 | C12: 2 | D12: 3 | E12: 4 | F12: =IFERROR(VLOOKUP($B$3,'BLG5BM-R'!$A$14:$CZ$500,11,FALSE),"") -> 0.51 | G12: =IFERROR(VLOOKUP($B$3,'FIAG5BM-R'!$A$14:$CZ$500,11,FALSE),"") -> 0.55 | H12: =IFERROR(VLOOKUP($B$3,'WIAG5BM-R'!$A$14:$CZ$500,11,FALSE),"") -> 0.78
B13: LA.5.1.6.9 | C13: 2 | D13: 4 | E13: 4 | F13: =IFERROR(VLOOKUP($B$3,'BLG5BM-R'!$A$14:$CZ$500,13,FALSE),"") -> 0.67 | G13: =IFERROR(VLOOKUP($B$3,'FIAG5BM-R'!$A$14:$CZ$500,13,FALSE),"") -> 0.68 | H13: =IFERROR(VLOOKUP($B$3,'WIAG5BM-R'!$A$14:$CZ$500,13,FALSE),"") -> 0.62
B14: LA.5.1.7.2 | C14: 6 | D14: 4 | E14: 4 | F14: =IFERROR(VLOOKUP($B$3,'BLG5BM-R'!$A$14:$CZ$500,15,FALSE),"") -> 0.59 | G14: =IFERROR(VLOOKUP($B$3,'FIAG5BM-R'!$A$14:$CZ$500,15,FALSE),"") -> 0.76 | H14: =IFERROR(VLOOKUP($B$3,'WIAG5BM-R'!$A$14:$CZ$500,15,FALSE),"") -> 0.55
B15: LA.5.1.7.3 | C15: 5 | D15: 4 | E15: 5 | F15: =IFERROR(VLOOKUP($B$3,'BLG5BM-R'!$A$14:$CZ$500,17,FALSE),"") -> 0.68 | G15: =IFERROR(VLOOKUP($B$3,'FIAG5BM-R'!$A$14:$CZ$500,17,FALSE),"") -> 0.78 | H15: =IFERROR(VLOOKUP($B$3,'WIAG5BM-R'!$A$14:$CZ$500,17,FALSE),"") -> 0.74
B16: LA.5.1.7.4 | C16: 4 | D16: 4 | E16: 4 | F16: =IFERROR(VLOOKUP($B$3,'BLG5BM-R'!$A$14:$CZ$500,19,FALSE),"") -> 0.67 | G16: =IFERROR(VLOOKUP($B$3,'FIAG5BM-R'!$A$14:$CZ$500,19,FALSE),"") -> 0.6 | H16: =IFERROR(VLOOKUP($B$3,'WIAG5BM-R'!$A$14:$CZ$500,19,FALSE),"") -> 0.76
B17: LA.5.1.7.5 | C17: 2 | D17: 4 | E17: 4 | F17: =IFERROR(VLOOKUP($B$3,'BLG5BM-R'!$A$14:$CZ$500,21,FALSE),"") -> 0.5 | G17: =IFERROR(VLOOKUP($B$3,'FIAG5BM-R'!$A$14:$CZ$500,21,FALSE),"") -> 0.69 | H17: =IFERROR(VLOOKUP($B$3,'WIAG5BM-R'!$A$14:$CZ$500,21,FALSE),"") -> 0.62
B18: LA.5.1.7.6 | C18: 2 | D18: 4 | E18: 3 | F18: =IFERROR(VLOOKUP($B$3,'BLG5BM-R'!$A$14:$CZ$500,23,FALSE),"") -> 0.63 | G18: =IFERROR(VLOOKUP($B$3,'FIAG5BM-R'!$A$14:$CZ$500,23,FALSE),"") -> 0.67 | H18: =IFERROR(VLOOKUP($B$3,'WIAG5BM-R'!$A$14:$CZ$500,23,FALSE),"") -> 0.66
B19: LA.5.1.7.7 | C19: 4 | D19: 4 | E19: 5 | F19: =IFERROR(VLOOKUP($B$3,'BLG5BM-R'!$A$14:$CZ$500,25,FALSE),"") -> 0.66 | G19: =IFERROR(VLOOKUP($B$3,'FIAG5BM-R'!$A$14:$CZ$500,25,FALSE),"") -> 0.65 | H19: =IFERROR(VLOOKUP($B$3,'WIAG5BM-R'!$A$14:$CZ$500,25,FALSE),"") -> 0.61
B20: LA.5.2.1.2 | C20: 5 | D20: 4 | E20: 4 | F20: =IFERROR(VLOOKUP($B$3,'BLG5BM-R'!$A$14:$CZ$500,27,FALSE),"") -> 0.58 | G20: =IFERROR(VLOOKUP($B$3,'FIAG5BM-R'!$A$14:$CZ$500,27,FALSE),"") -> 0.6 | H20: =IFERROR(VLOOKUP($B$3,'WIAG5BM-R'!$A$14:$CZ$500,27,FALSE),"") -> 0.61
B21: LA.5.2.1.7 | C21: 2 | D21: 3 | E21: 3 | F21: =IFERROR(VLOOKUP($B$3,'BLG5BM-R'!$A$14:$CZ$500,29,FALSE),"") -> 0.52 | G21: =IFERROR(VLOOKUP($B$3,'FIAG5BM-R'!$A$14:$CZ$500,29,FALSE),"") -> 0.59 | H21: =IFERROR(VLOOKUP($B$3,'WIAG5BM-R'!$A$14:$CZ$500,29,FALSE),"") -> 0.47
B22: LA.5.2.2.1 | C22: 1 | D22: 4 | E22: 4 | F22: =IFERROR(VLOOKUP($B$3,'BLG5BM-R'!$A$14:$CZ$500,31,FALSE),"") -> 0.52 | G22: =IFERROR(VLOOKUP($B$3,'FIAG5BM-R'!$A$14:$CZ$500,31,FALSE),"") -> 0.56 | H22: =IFERROR(VLOOKUP($B$3,'WIAG5BM-R'!$A$14:$CZ$500,31,FALSE),"") -> 0.71
B23: LA.5.6.1.1 | C23: 2 | D23: 4 | E23: 4 | F23: =IFERROR(VLOOKUP($B$3,'BLG5BM-R'!$A$14:$CZ$500,33,FALSE),"") -> 0.71 | G23: =IFERROR(VLOOKUP($B$3,'FIAG5BM-R'!$A$14:$CZ$500,33,FALSE),"") -> 0.68 | H23: =IFERROR(VLOOKUP($B$3,'WIAG5BM-R'!$A$14:$CZ$500,33,FALSE),"") -> 0.5
B24: LA.5.6.2.2 | C24: 3 | D24: 2 | E24: 4 | F24: =IFERROR(VLOOKUP($B$3,'BLG5BM-R'!$A$14:$CZ$500,35,FALSE),"") -> 0.58 | G24: =IFERROR(VLOOKUP($B$3,'FIAG5BM-R'!$A$14:$CZ$500,35,FALSE),"") -> 0.35 | H24: =IFERROR(VLOOKUP($B$3,'WIAG5BM-R'!$A$14:$CZ$500,35,FALSE),"") -> 0.6
A25: All Benchmarks | C25: =SUM(C10:C24) -> 43 | D25: =SUM(D10:D24) -> 56 | E25: =SUM(E10:E24) -> 59 | F25: =IFERROR(VLOOKUP($B$3,'BLG5CC-R'!$A$14:$CZ$500,5,FALSE),"") -> 0.62 | G25: =IFERROR(VLOOKUP($B$3,'FIAG5CC-R'!$A$14:$CZ$500,5,FALSE),"") -> 0.64 | H25: =IFERROR(VLOOKUP($B$3,'WIAG5CC-R'!$A$14:$CZ$500,5,FALSE),"") -> 0.65
A41: Reporting Categories | C41: Number of Items | F41: Average % Correct
C42: BL | D42: Fall IA | E42: Winter IA | F42: BL | G42: Fall IA | H42: Winter IA
A43: 1 | B43: Vocabulary | C43: =SUM(C10:C13) -> 7 | D43: =SUM(D10:D13) -> 15 | E43: =SUM(E10:E13) -> 15 | F43: =IFERROR(VLOOKUP($B$3,'BLG5CC-R'!$A$14:$BZ$500,11,FALSE),"") -> 0.66 | G43: =IFERROR(VLOOKUP($B$3,'FIAG5CC-R'!$A$14:$BZ$500,13,FALSE),"") -> 0.62 | H43: =IFERROR(VLOOKUP($B$3,'WIAG5CC-R'!$A$14:$BZ$500,13,FALSE),"") -> 0.72
A44: 2 | B44: Reading Application | C44: =SUM(C14:C19) -> 23 | D44: =SUM(D14:D19) -> 24 | E44: 25 | F44: =IFERROR(VLOOKUP($B$3,'BLG5CC-R'!$A$14:$BZ$500,17,FALSE),"") -> 0.63 | G44: =IFERROR(VLOOKUP($B$3,'FIAG5CC-R'!$A$14:$BZ$500,17,FALSE),"") -> 0.69 | H44: =IFERROR(VLOOKUP($B$3,'WIAG5CC-R'!$A$14:$BZ$500,17,FALSE),"") -> 0.66
A45: 3 | B45: Literary Analysis-Fiction/NonFiction | C45: =SUM(C20:C22) -> 8 | D45: =SUM(D20:D22) -> 11 | E45: =SUM(E20:E22) -> 11 | F45: =IFERROR(VLOOKUP($B$3,'BLG5CC-R'!$A$14:$BZ$500,23,FALSE),"") -> 0.56 | G45: =IFERROR(VLOOKUP($B$3,'FIAG5CC-R'!$A$14:$BZ$500,21,FALSE),"") -> 0.59 | H45: =IFERROR(VLOOKUP($B$3,'WIAG5CC-R'!$A$14:$BZ$500,21,FALSE),"") -> 0.61
A46: 4 | B46: Informational Text/Research Process | C46: =SUM(C23:C24) -> 5 | D46: =SUM(D23:D24) -> 6 | E46: =SUM(E23:E24) -> 8 | F46: =IFERROR(VLOOKUP($B$3,'BLG5CC-R'!$A$14:$BZ$500,29,FALSE),"") -> 0.63 | G46: =IFERROR(VLOOKUP($B$3,'FIAG5CC-R'!$A$14:$BZ$500,25,FALSE),"") -> 0.57 | H46: =IFERROR(VLOOKUP($B$3,'WIAG5CC-R'!$A$14:$BZ$500,25,FALSE),"") -> 0.55
C47: =SUM(C43:C46) -> 43 | D47: =SUM(D43:D46) -> 56 | E47: =SUM(E43:E46) -> 59

Sheet Grade 5 Reading NGSSS
A1: Click here to return to the school and subject selection sheet
A2: Next Generation Sunshine State Standards Grade 5 Reading Benchmarks Assessed by the FCAT 2.0
A3: Reporting Categories | B3: Benchmarks | C3: Description
A4: Vocabulary | B4: LA.5.1.6.3 | C4: The student will use context clues to determine meanings of unfamiliar words.
A5: Vocabulary | B5: LA.5.1.6.7 | C5: The student will use meaning of familiar base words and affixes to determine meanings of unfamiliar complex words.
A6: Vocabulary | B6: LA.5.1.6.8 | C6: The student will use knowledge of antonyms, synonyms, homophones, and homographs to determine meanings of words.
A7: Vocabulary | B7: LA.5.1.6.9 | C7: The student will determine the correct meaning of words with multiple meanings in context.
A8: Reading Application | B8: LA.5.1.7.2 | C8: The student will identify the author's purpose (e.g., to persuade, inform, entertain, explain) and how an author's perspective influences text.
A9: Reading Application | B9: LA.5.1.7.3 | C9: The student will determine the main idea or essential message in grade-level text through inferring, paraphrasing, summarizing, and identifying relevant details.
A10: Reading Application | B10: LA.5.1.7.4 | C10: The student will identify cause-and-effect relationships in text.
A11: Reading Application | B11: LA.5.1.7.5 | C11: The student will identify the text structure an author uses (e.g., comparison/contrast, cause/effect, sequence of events) and explain how it impacts meaning in text.
A12: Reading Application | B12: LA.5.1.7.6 | C12: The student will identify themes or topics across a variety of fiction and nonfiction selections.
A13: Reading Application | B13: LA.5.1.7.7 | C13: The student will compare and contrast elements in multiple texts.
A14: Literary Analysis- Fiction/Nonfiction | B14: LA.5.2.1.2 | C14: The student will locate and analyze the elements of plot structure, including exposition, setting, character development, rising/falling action, problem/resolution, and theme in a variety of fiction.
A15: Literary Analysis- Fiction/Nonfiction | B15: LA.5.2.1.7 | C15: The student will identify and explain an author's use of descriptive, idiomatic, and figurative language (e.g., personification, similes, metaphors, symbolism), and examine how it is used to describe people, feelings, and objects.
A16: Literary Analysis- Fiction/Nonfiction | B16: LA.5.2.2.1 | C16: The student will locate, explain, and use information from text features (e.g., table of contents, glossary, index, transition words/phrases, headings, subheadings, charts, graphs, illustrations).
A17: Informational Text/Research Process | B17: LA.5.6.1.1 | C17: The student will read and interpret informational text and organize the information (e.g., use outlines, timelines, and graphic organizers) from multiple sources for a variety of purposes (e.g., multi-step directions, problem solving, performing a task, supporting opinions, predictions, and conclusions).
A18: Informational Text/Research Process | B18: LA.5.6.2.2 | C18: The student will read and record information systematically, evaluating the validity and reliability of information in text by examining several sources of information.

Sheet Grade 5 Science
A1: Direction: Click on "School Name" below then click on arrow key on the right to select a school. To see benchmark description, move the mouse over the benchmark code.
A2: Click here to return to the school and subject selection sheet
B3: =VALUE('Select School'!B3) -> 9999 | U3: =TEXT(B3,"0000") -> 9999
A4: 2012-13 Grade 5 Science Benchmark Analysis Report
A5: Baseline, Fall Interim Assessment (Fall IA), and Winter Interim Assessments (Winter IA)
A6: =TEXT($B$3,"0000")&"-"&VLOOKUP(B3,SchList!$A$2:$B$499,2,FALSE) -> 9999-District
A7: Reporting Categories | B7: Bench-marks | C7: No. of Items | F7: Average % Correct
C8: Base- line | D8: Fall IA | E8: Winter IA | F8: Base- line | G8: Fall IA | H8: Winter IA
B9: No. of Tested | F9: =IFERROR(VLOOKUP($B$3,'BLG5CC-S'!$A$14:$BZ$500,3,FALSE),"") -> 24259 | G9: =IFERROR(VLOOKUP($B$3,'FIAG5CC-S'!$A$14:$BR$500,3,FALSE),"") -> 24032 | H9: =IFERROR(VLOOKUP($B$3,'WIAG5CC-S'!$A$14:$BZ$500,3,FALSE),"") -> 24415
B10: SC.5.N.1.1 | C10: 3 | D10: 3 | E10: 3 | F10: =IFERROR(VLOOKUP($B$3,'BLG5BM-S'!$A$14:$FZ$500,21,FALSE),"") -> 0.32 | G10: =IFERROR(VLOOKUP($B$3,'FIAG5BM-S'!$A$14:$FZ$500,21,FALSE),"") -> 0.38 | H10: =IFERROR(VLOOKUP($B$3,'WIAG5BM-S'!$A$14:$FZ$500,21,FALSE),"") -> 0.56
B11: SC.5.N.2.1 | C11: 3 | D11: 3 | E11: 3 | F11: =IFERROR(VLOOKUP($B$3,'BLG5BM-S'!$A$14:$FZ$500,23,FALSE),"") -> 0.35 | G11: =IFERROR(VLOOKUP($B$3,'FIAG5BM-S'!$A$14:$FZ$500,23,FALSE),"") -> 0.38 | H11: =IFERROR(VLOOKUP($B$3,'WIAG5BM-S'!$A$14:$FZ$500,23,FALSE),"") -> 0.43
B12: SC.5.N.2.2 | C12: 2 | D12: 3 | E12: 3 | F12: =IFERROR(VLOOKUP($B$3,'BLG5BM-S'!$A$14:$FZ$500,25,FALSE),"") -> 0.5 | G12: =IFERROR(VLOOKUP($B$3,'FIAG5BM-S'!$A$14:$FZ$500,25,FALSE),"") -> 0.5 | H12: =IFERROR(VLOOKUP($B$3,'WIAG5BM-S'!$A$14:$FZ$500,25,FALSE),"") -> 0.43
B13: SC.4.E.5.4 | C13: 2 | D13: 2 | E13: 2 | F13: =IFERROR(VLOOKUP($B$3,'BLG5BM-S'!$A$14:$FZ$500,9,FALSE),"") -> 0.42 | G13: =IFERROR(VLOOKUP($B$3,'FIAG5BM-S'!$A$14:$FZ$500,9,FALSE),"") -> 0.36 | H13: =IFERROR(VLOOKUP($B$3,'WIAG5BM-S'!$A$14:$FZ$500,9,FALSE),"") -> 0.71
B14: SC.4.E.6.2 | C14: 2 | D14: 2 | E14: 2 | F14: =IFERROR(VLOOKUP($B$3,'BLG5BM-S'!$A$14:$FZ$500,11,FALSE),"") -> 0.3 | G14: =IFERROR(VLOOKUP($B$3,'FIAG5BM-S'!$A$14:$FZ$500,11,FALSE),"") -> 0.33 | H14: =IFERROR(VLOOKUP($B$3,'WIAG5BM-S'!$A$14:$FZ$500,11,FALSE),"") -> 0.41
B15: SC.4.E.6.3 | C15: 2 | D15: 2 | E15: 2 | F15: =IFERROR(VLOOKUP($B$3,'BLG5BM-S'!$A$14:$FZ$500,13,FALSE),"") -> 0.5 | G15: =IFERROR(VLOOKUP($B$3,'FIAG5BM-S'!$A$14:$FZ$500,13,FALSE),"") -> 0.41 | H15: =IFERROR(VLOOKUP($B$3,'WIAG5BM-S'!$A$14:$FZ$500,13,FALSE),"") -> 0.44
B16: SC.4.E.6.4 | C16: 2 | D16: 2 | E16: 2 | F16: =IFERROR(VLOOKUP($B$3,'BLG5BM-S'!$A$14:$FZ$500,15,FALSE),"") -> 0.41 | G16: =IFERROR(VLOOKUP($B$3,'FIAG5BM-S'!$A$14:$FZ$500,15,FALSE),"") -> 0.38 | H16: =IFERROR(VLOOKUP($B$3,'WIAG5BM-S'!$A$14:$FZ$500,15,FALSE),"") -> 0.41
B17: SC.5.E.5.1 | C17: 2 | D17: 3 | E17: 3 | F17: =IFERROR(VLOOKUP($B$3,'BLG5BM-S'!$A$14:$FZ$500,27,FALSE),"") -> 0.6 | G17: =IFERROR(VLOOKUP($B$3,'FIAG5BM-S'!$A$14:$FZ$500,27,FALSE),"") -> 0.46 | H17: =IFERROR(VLOOKUP($B$3,'WIAG5BM-S'!$A$14:$FZ$500,27,FALSE),"") -> 0.71
B18: SC.5.E.5.3 | C18: 3 | D18: 3 | E18: 3 | F18: =IFERROR(VLOOKUP($B$3,'BLG5BM-S'!$A$14:$FZ$500,29,FALSE),"") -> 0.56 | G18: =IFERROR(VLOOKUP($B$3,'FIAG5BM-S'!$A$14:$FZ$500,29,FALSE),"") -> 0.51 | H18: =IFERROR(VLOOKUP($B$3,'WIAG5BM-S'!$A$14:$FZ$500,29,FALSE),"") -> 0.69
B19: SC.5.E.7.1 | C19: 3 | D19: 3 | E19: 3 | F19: =IFERROR(VLOOKUP($B$3,'BLG5BM-S'!$A$14:$FZ$500,31,FALSE),"") -> 0.37 | G19: =IFERROR(VLOOKUP($B$3,'FIAG5BM-S'!$A$14:$FZ$500,31,FALSE),"") -> 0.56 | H19: =IFERROR(VLOOKUP($B$3,'WIAG5BM-S'!$A$14:$FZ$500,31,FALSE),"") -> 0.56
B20: SC.5.E.7.3 | C20: 3 | D20: 3 | E20: 3 | F20: =IFERROR(VLOOKUP($B$3,'BLG5BM-S'!$A$14:$FZ$500,33,FALSE),"") -> 0.42 | G20: =IFERROR(VLOOKUP($B$3,'FIAG5BM-S'!$A$14:$FZ$500,33,FALSE),"") -> 0.56 | H20: =IFERROR(VLOOKUP($B$3,'WIAG5BM-S'!$A$14:$FZ$500,33,FALSE),"") -> 0.53
B21: SC.5.P.8.1 | C21: 3 | D21: 3 | E21: 3 | F21: =IFERROR(VLOOKUP($B$3,'BLG5BM-S'!$A$14:$FZ$500,35,FALSE),"") -> 0.56 | G21: =IFERROR(VLOOKUP($B$3,'FIAG5BM-S'!$A$14:$FZ$500,35,FALSE),"") -> 0.37 | H21: =IFERROR(VLOOKUP($B$3,'WIAG5BM-S'!$A$14:$FZ$500,35,FALSE),"") -> 0.59
B22: SC.5.P.8.3 | C22: 3 | D22: 3 | E22: 3 | F22: =IFERROR(VLOOKUP($B$3,'BLG5BM-S'!$A$14:$FZ$500,37,FALSE),"") -> 0.55 | G22: =IFERROR(VLOOKUP($B$3,'FIAG5BM-S'!$A$14:$FZ$500,37,FALSE),"") -> 0.7 | H22: =IFERROR(VLOOKUP($B$3,'WIAG5BM-S'!$A$14:$FZ$500,37,FALSE),"") -> 0.56
B23: SC.5.P.9.1 | C23: 3 | D23: 3 | E23: 3 | F23: =IFERROR(VLOOKUP($B$3,'BLG5BM-S'!$A$14:$FZ$500,39,FALSE),"") -> 0.44 | G23: =IFERROR(VLOOKUP($B$3,'FIAG5BM-S'!$A$14:$FZ$500,39,FALSE),"") -> 0.45 | H23: =IFERROR(VLOOKUP($B$3,'WIAG5BM-S'!$A$14:$FZ$500,39,FALSE),"") -> 0.55
B24: SC.5.P.10.1 | C24: 3 | D24: 3 | E24: 3 | F24: =IFERROR(VLOOKUP($B$3,'BLG5BM-S'!$A$14:$FZ$500,41,FALSE),"") -> 0.76 | G24: =IFERROR(VLOOKUP($B$3,'FIAG5BM-S'!$A$14:$FZ$500,41,FALSE),"") -> 0.74 | H24: =IFERROR(VLOOKUP($B$3,'WIAG5BM-S'!$A$14:$FZ$500,41,FALSE),"") -> 0.49
B25: SC.5.P.10.2 | C25: 3 | D25: 3 | E25: 3 | F25: =IFERROR(VLOOKUP($B$3,'BLG5BM-S'!$A$14:$FZ$500,43,FALSE),"") -> 0.52 | G25: =IFERROR(VLOOKUP($B$3,'FIAG5BM-S'!$A$14:$FZ$500,43,FALSE),"") -> 0.59 | H25: =IFERROR(VLOOKUP($B$3,'WIAG5BM-S'!$A$14:$FZ$500,43,FALSE),"") -> 0.42
B26: SC.5.P.10.4 | C26: 3 | D26: 3 | E26: 3 | F26: =IFERROR(VLOOKUP($B$3,'BLG5BM-S'!$A$14:$FZ$500,45,FALSE),"") -> 0.47 | G26: =IFERROR(VLOOKUP($B$3,'FIAG5BM-S'!$A$14:$FZ$500,45,FALSE),"") -> 0.38 | H26: =IFERROR(VLOOKUP($B$3,'WIAG5BM-S'!$A$14:$FZ$500,45,FALSE),"") -> 0.72
B27: SC.5.P.13.1 | C27: 3 | D27: 3 | E27: 3 | F27: =IFERROR(VLOOKUP($B$3,'BLG5BM-S'!$A$14:$FZ$500,47,FALSE),"") -> 0.48 | G27: =IFERROR(VLOOKUP($B$3,'FIAG5BM-S'!$A$14:$FZ$500,47,FALSE),"") -> 0.53 | H27: =IFERROR(VLOOKUP($B$3,'WIAG5BM-S'!$A$14:$FZ$500,47,FALSE),"") -> 0.61
B28: SC.5.P.13.2 | C28: 3 | D28: 3 | E28: 3 | F28: =IFERROR(VLOOKUP($B$3,'BLG5BM-S'!$A$14:$FZ$500,49,FALSE),"") -> 0.46 | G28: =IFERROR(VLOOKUP($B$3,'FIAG5BM-S'!$A$14:$FZ$500,49,FALSE),"") -> 0.54 | H28: =IFERROR(VLOOKUP($B$3,'WIAG5BM-S'!$A$14:$FZ$500,49,FALSE),"") -> 0.51
B29: SC.3.L.14.1 | C29: 2 | D29: 1 | E29: 2 | F29: =IFERROR(VLOOKUP($B$3,'BLG5BM-S'!$A$14:$FZ$500,7,FALSE),"") -> 0.37 | G29: =IFERROR(VLOOKUP($B$3,'FIAG5BM-S'!$A$14:$FZ$500,7,FALSE),"") -> 0.59 | H29: =IFERROR(VLOOKUP($B$3,'WIAG5BM-S'!$A$14:$FZ$500,7,FALSE),"") -> 0.48
B30: SC.4.L.16.4 | C30: 2 | D30: 2 | E30: 2 | F30: =IFERROR(VLOOKUP($B$3,'BLG5BM-S'!$A$14:$FZ$500,17,FALSE),"") -> 0.46 | G30: =IFERROR(VLOOKUP($B$3,'FIAG5BM-S'!$A$14:$FZ$500,17,FALSE),"") -> 0.62 | H30: =IFERROR(VLOOKUP($B$3,'WIAG5BM-S'!$A$14:$FZ$500,17,FALSE),"") -> 0.37
B31: SC.4.L.17.3 | C31: 2 | D31: 2 | E31: 2 | F31: =IFERROR(VLOOKUP($B$3,'BLG5BM-S'!$A$14:$FZ$500,19,FALSE),"") -> 0.52 | G31: =IFERROR(VLOOKUP($B$3,'FIAG5BM-S'!$A$14:$FZ$500,19,FALSE),"") -> 0.65 | H31: =IFERROR(VLOOKUP($B$3,'WIAG5BM-S'!$A$14:$FZ$500,19,FALSE),"") -> 0.47
B32: SC.5.L.14.1 | C32: 3 | D32: 4 | E32: 3 | F32: =IFERROR(VLOOKUP($B$3,'BLG5BM-S'!$A$14:$FZ$500,51,FALSE),"") -> 0.55 | G32: =IFERROR(VLOOKUP($B$3,'FIAG5BM-S'!$A$14:$FZ$500,51,FALSE),"") -> 0.63 | H32: =IFERROR(VLOOKUP($B$3,'WIAG5BM-S'!$A$14:$FZ$500,51,FALSE),"") -> 0.48
B33: SC.5.L.14.2 | C33: 3 | D33: 3 | E33: 3 | F33: =IFERROR(VLOOKUP($B$3,'BLG5BM-S'!$A$14:$FZ$500,53,FALSE),"") -> 0.44 | G33: =IFERROR(VLOOKUP($B$3,'FIAG5BM-S'!$A$14:$FZ$500,53,FALSE),"") -> 0.38 | H33: =IFERROR(VLOOKUP($B$3,'WIAG5BM-S'!$A$14:$FZ$500,53,FALSE),"") -> 0.54
B34: SC.5.L.17.1 | C34: 3 | D34: 3 | E34: 3 | F34: =IFERROR(VLOOKUP($B$3,'BLG5BM-S'!$A$14:$FZ$500,55,FALSE),"") -> 0.48 | G34: =IFERROR(VLOOKUP($B$3,'FIAG5BM-S'!$A$14:$FZ$500,55,FALSE),"") -> 0.61 | H34: =IFERROR(VLOOKUP($B$3,'WIAG5BM-S'!$A$14:$FZ$500,55,FALSE),"") -> 0.53
A35: All Benchmarks | C35: =SUM(C10:C34) -> 66 | D35: =SUM(D10:D34) -> 68 | E35: =SUM(E10:E34) -> 68 | F35: =IFERROR(VLOOKUP($B$3,'BLG5CC-S'!$A$14:$FZ$500,5,FALSE),"") -> 0.47 | G35: =IFERROR(VLOOKUP($B$3,'FIAG5CC-S'!$A$14:$FR$500,5,FALSE),"") -> 0.51 | H35: =IFERROR(VLOOKUP($B$3,'WIAG5CC-S'!$A$14:$FZ$500,5,FALSE),"") -> 0.53
A36: Q1 BM Shaded in Blue | C36: =SUM(C10:C12,C21:C23,C27:C28) -> 23 | D36: =SUM(D10:D12,D21:D23,D27:D28) -> 24 | E36: 24 | F36: =IFERROR(VLOOKUP($B$3,'BLG5BM-S'!$A$14:$FZ$500,56,FALSE),"") -> 0.4565217391 | G36: =IFERROR(VLOOKUP($B$3,'FIAG5CC-S'!$A$14:$FR$500,29,FALSE),"") -> 0.48 | H36: =IFERROR(VLOOKUP($B$3,'WIAG5BM-S'!$A$14:$FZ$500,56,FALSE),"") -> 0.5333333313
A37: Q2 BM Shaded in Green | C37: =SUM(C10:C13,C17:C20,C24:C26) -> 30 | D37: 32 | E37: =SUM(E10:E13,E17:E20,E24:E26) -> 32 | F37: =IFERROR(VLOOKUP($B$3,'BLG5BM-S'!$A$14:$FZ$500,57,FALSE),"") -> 0.476666671 | G37: =IFERROR(VLOOKUP($B$3,'FIAG5BM-S'!$A$14:$FZ$500,59,FALSE),"") -> 0.5000000056 | H37: =IFERROR(VLOOKUP($B$3,'WIAG5CC-S'!$A$14:$FZ$500,29,FALSE),"") -> 0.56
A53: Reporting Categories | C53: Number of Items | F53: Average % Correct
C54: BL | D54: Fall IA | E54: Winter IA | F54: BL | G54: Fall IA | H54: Winter IA
A55: 1 | B55: Nature of Science | C55: =SUM(C10:C12) -> 8 | D55: =SUM(D10:D12) -> 9 | E55: =SUM(E10:E12) -> 9 | F55: =IFERROR(VLOOKUP($B$3,'BLG5CC-S'!$A$14:$BZ$500,23,FALSE),"") -> 0.38 | G55: =IFERROR(VLOOKUP($B$3,'FIAG5CC-S'!$A$14:$BR$500,13,FALSE),"") -> 0.42 | H55: =IFERROR(VLOOKUP($B$3,'WIAG5CC-S'!$A$14:$BZ$500,13,FALSE),"") -> 0.47
A56: 2 | B56: Earth & Space Science | C56: =SUM(C13:C20) -> 19 | D56: =SUM(D13:D20) -> 20 | E56: 20 | F56: =IFERROR(VLOOKUP($B$3,'BLG5CC-S'!$A$14:$BZ$500,11,FALSE),"") -> 0.45 | G56: =IFERROR(VLOOKUP($B$3,'FIAG5CC-S'!$A$14:$BR$500,17,FALSE),"") -> 0.46 | H56: =IFERROR(VLOOKUP($B$3,'WIAG5CC-S'!$A$14:$BZ$500,17,FALSE),"") -> 0.57
A57: 3 | B57: Physical Science | C57: =SUM(C21:C28) -> 24 | D57: =SUM(D21:D28) -> 24 | E57: =SUM(E21:E32) -> 33 | F57: =IFERROR(VLOOKUP($B$3,'BLG5CC-S'!$A$14:$BZ$500,29,FALSE),"") -> 0.53 | G57: =IFERROR(VLOOKUP($B$3,'FIAG5CC-S'!$A$14:$BR$500,21,FALSE),"") -> 0.54 | H57: =IFERROR(VLOOKUP($B$3,'WIAG5CC-S'!$A$14:$BZ$500,21,FALSE),"") -> 0.56
A58: 4 | B58: Life Science | C58: =SUM(C29:C34) -> 15 | D58: =SUM(D29:D34) -> 15 | E58: =SUM(E33:E34) -> 6 | F58: =IFERROR(VLOOKUP($B$3,'BLG5CC-S'!$A$14:$BZ$500,17,FALSE),"") -> 0.47 | G58: =IFERROR(VLOOKUP($B$3,'FIAG5CC-S'!$A$14:$BR$500,25,FALSE),"") -> 0.57 | H58: =IFERROR(VLOOKUP($B$3,'WIAG5CC-S'!$A$14:$BZ$500,25,FALSE),"") -> 0.49
C59: =SUM(C55:C58) -> 66 | D59: =SUM(D55:D58) -> 68 | E59: =SUM(E55:E58) -> 68

Sheet Grade 5 SCIENCE NGSSS
A1: Click here to return to the school and subject selection sheet
A2: Next Generation Sunshine State Standards Grade 5 Science Benchmarks Assessed by the FCAT 2.0
A3: Reporting Categories | B3: Benchmarks | C3: Description
A4: Earth & Space Science | B4: =LEFT(Table1_6[[#This Row],[Description]],10) -> SC.3.E.5.1 | C4: SC.3.E.5.1 Explain that stars can be different; some are smaller, some are larger, and some appear brighter than others; all except the Sun are so far away that they look like points of light.
A5: Earth & Space Science | B5: =TRIM(LEFT(Table1_6[[#This Row],[Description]],11)) -> SC.3.E.5.2 | C5: SC.3.E.5.2 Identify the Sun as a star that emits energy; some of it in the form of light.
A6: Earth & Space Science | B6: =TRIM(LEFT(Table1_6[[#This Row],[Description]],11)) -> SC.3.E.5.3 | C6: SC.3.E.5.3 Recognize that the Sun appears large and bright because it is the closest star to Earth.
A7: Physical Science | B7: =TRIM(LEFT(Table1_6[[#This Row],[Description]],11)) -> SC.3.E.5.4 | C7: SC.3.E.5.4 Explore the Law of Gravity by demonstrating that gravity is a force that can be overcome.
A8: Physical Science | B8: =TRIM(LEFT(Table1_6[[#This Row],[Description]],11)) -> SC.3.E.6.1 | C8: SC.3.E.6.1 Demonstrate that radiant energy from the Sun can heat objects and when the Sun is not present, heat may be lost.
A9: Life Science | B9: =TRIM(LEFT(Table1_6[[#This Row],[Description]],11)) -> SC.3.L.14.1 | C9: SC.3.L.14.1 Describe structures in plants and their roles in food production, support, water and nutrient transport, and reproduction.
A10: Life Science | B10: =TRIM(LEFT(Table1_6[[#This Row],[Description]],11)) -> SC.3.L.14.2 | C10: SC.3.L.14.2 Investigate and describe how plants respond to stimuli (heat, light, gravity), such as the way plant stems grow toward light and their roots grow downward in response to gravity.
A11: Life Science | B11: =TRIM(LEFT(Table1_6[[#This Row],[Description]],11)) -> SC.3.L.15.1 | C11: SC.3.L.15.1 Classify animals into major groups (mammals, birds, reptiles, amphibians, fish, arthropods, vertebrates and invertebrates, those having live births and those which lay eggs) according to their physical characteristics and behaviors.
A12: Life Science | B12: =TRIM(LEFT(Table1_6[[#This Row],[Description]],11)) -> SC.3.L.15.2 | C12: SC.3.L.15.2 Classify flowering and nonflowering plants into major groups such as those that produce seeds, or those like ferns and mosses that produce spores, according to their physical characteristics.
A13: Life Science | B13: =TRIM(LEFT(Table1_6[[#This Row],[Description]],11)) -> SC.3.L.17.1 | C13: SC.3.L.17.1 Describe how animals and plants respond to changing seasons.
A14: Life Science | B14: =TRIM(LEFT(Table1_6[[#This Row],[Description]],11)) -> SC.3.L.17.2 | C14: SC.3.L.17.2 Recognize that plants use energy from the Sun, air, and water to make their own food.
A15: Nature of Science | B15: =TRIM(LEFT(Table1_6[[#This Row],[Description]],11)) -> SC.3.N.1.1 | C15: SC.3.N.1.1 Raise questions about the natural world, investigate them individually and in teams through free exploration and systematic investigations, and generate appropriate explanations based on those explorations.
A16: Nature of Science | B16: =TRIM(LEFT(Table1_6[[#This Row],[Description]],11)) -> SC.3.N.1.2 | C16: SC.3.N.1.2 Compare the observations made by different groups using the same tools and seek reasons to explain the differences across groups.
A17: Nature of Science | B17: =TRIM(LEFT(Table1_6[[#This Row],[Description]],11)) -> SC.3.N.1.5 | C17: SC.3.N.1.5 Recognize that scientists question, discuss, and check each others’ evidence and explanations.
A18: Nature of Science | B18: =TRIM(LEFT(Table1_6[[#This Row],[Description]],11)) -> SC.3.N.1.7 | C18: SC.3.N.1.7 Explain that empirical evidence is information, such as observations or measurements, that is used to help validate explanations of natural phenomena.
A19: Physical Science | B19: =TRIM(LEFT(Table1_6[[#This Row],[Description]],11)) -> SC.3.P.10.1 | C19: SC.3.P.10.1 Identify some basic forms of energy such as light, heat, sound, electrical, and mechanical.
A20: Physical Science | B20: =TRIM(LEFT(Table1_6[[#This Row],[Description]],11)) -> SC.3.P.10.3 | C20: SC.3.P.10.3 Demonstrate that light travels in a straight line until it strikes an object or travels from one medium to another.
A21: Physical Science | B21: =TRIM(LEFT(Table1_6[[#This Row],[Description]],11)) -> SC.3.P.10.4 | C21: SC.3.P.10.4 Demonstrate that light can be reflected, refracted, and absorbed.
A22: Physical Science | B22: =TRIM(LEFT(Table1_6[[#This Row],[Description]],11)) -> SC.3.P.10.2 | C22: SC.3.P.10.2 Recognize that energy has the ability to cause motion or create change.
A23: Physical Science | B23: =TRIM(LEFT(Table1_6[[#This Row],[Description]],11)) -> SC.3.P.11.1 | C23: SC.3.P.11.1 Investigate, observe, and explain that things that give off light often also give off heat.
A24: Physical Science | B24: =TRIM(LEFT(Table1_6[[#This Row],[Description]],11)) -> SC.3.P.11.2 | C24: SC.3.P.11.2 Investigate, observe, and explain that heat is produced when one object rubs against another, such as rubbing one’s hands together.
A25: Physical Science | B25: =TRIM(LEFT(Table1_6[[#This Row],[Description]],11)) -> SC.3.P.8.1 | C25: SC.3.P.8.1 Measure and compare temperatures of various samples of solids and liquids.
A26: Physical Science | B26: =TRIM(LEFT(Table1_6[[#This Row],[Description]],11)) -> SC.3.P.8.2 | C26: SC.3.P.8.2 Measure and compare the mass and volume of solids and liquids.
A27: Physical Science | B27: =TRIM(LEFT(Table1_6[[#This Row],[Description]],11)) -> SC.3.P.8.3 | C27: SC.3.P.8.3 Compare materials and objects according to properties such as size, shape, color, texture, and hardness.
A28: Physical Science | B28: =TRIM(LEFT(Table1_6[[#This Row],[Description]],11)) -> SC.3.P.9.1 | C28: SC.3.P.9.1 Describe the changes water undergoes when it changes state through heating and cooling by using familiar scientific terms such as melting, freezing, boiling, evaporation, and condensation.
A29: Earth & Space Science | B29: =TRIM(LEFT(Table1_6[[#This Row],[Description]],11)) -> SC.4.E.5.1 | C29: SC.4.E.5.1 Observe that the patterns of stars in the sky stay the same although they appear to shift across the sky nightly, and different stars can be seen in different seasons.
A30: Earth & Space Science | B30: =TRIM(LEFT(Table1_6[[#This Row],[Description]],11)) -> SC.4.E.5.2 | C30: SC.4.E.5.2 Describe the changes in the observable shape of the moon over the course of about a month.
A31: Earth & Space Science | B31: =TRIM(LEFT(Table1_6[[#This Row],[Description]],11)) -> SC.4.E.5.3 | C31: SC.4.E.5.3 Recognize that Earth revolves around the Sun in a year and rotates on its axis in a 24-hour day.
A32: Earth & Space Science | B32: =TRIM(LEFT(Table1_6[[#This Row],[Description]],11)) -> SC.4.E.5.4 | C32: SC.4.E.5.4 Relate that the rotation of Earth (day and night) and apparent movements of the Sun, Moon, and stars are connected. (Also assesses SC.4.E.5.1, SC.4.E.5.2, and SC.4.E.5.3.)
A33: Earth & Space Science | B33: =TRIM(LEFT(Table1_6[[#This Row],[Description]],11)) -> SC.4.E.6.1 | C33: SC.4.E.6.1 Identify the three categories of rocks: igneous, (formed from molten rock); sedimentary (pieces of other rocks and fossilized organisms); and metamorphic (formed from heat and pressure).
A34: Earth & Space Science | B34: =TRIM(LEFT(Table1_6[[#This Row],[Description]],11)) -> SC.4.E.6.2 | C34: SC.4.E.6.2 Identify the physical properties of common earth-forming minerals, including hardness, color, luster, cleavage, and streak color, and recognize the role of minerals in the formation of rocks.
A35: Earth & Space Science | B35: =TRIM(LEFT(Table1_6[[#This Row],[Description]],11)) -> SC.4.E.6.3 | C35: SC.4.E.6.3 Recognize that humans need resources found on Earth and that these are either renewable or nonrenewable.
A36: Earth & Space Science | B36: =TRIM(LEFT(Table1_6[[#This Row],[Description]],11)) -> SC.4.E.6.4 | C36: SC.4.E.6.4 Describe the basic differences between physical weathering (breaking down of rock by wind, water, ice, temperature change, and plants) and erosion (movement of rock by gravity, wind, water, and ice).
A37: Earth & Space Science | B37: =TRIM(LEFT(Table1_6[[#This Row],[Description]],11)) -> SC.4.E.6.6 | C37: SC.4.E.6.6 Identify resources available in Florida (water, phosphate, oil, limestone, silicon, wind, and solar energy).
A38: Life Science | B38: =TRIM(LEFT(Table1_6[[#This Row],[Description]],11)) -> SC.4.L.16.1 | C38: SC.4.L.16.1 Identify processes of sexual reproduction in flowering plants, including pollination, fertilization (seed production), seed dispersal, and germination.
A39: Life Science | B39: =TRIM(LEFT(Table1_6[[#This Row],[Description]],11)) -> SC.4.L.16.4 | C39: SC.4.L.16.4 Compare and contrast the major stages in the life cycles of Florida plants and animals, such as those that undergo incomplete and complete metamorphosis, and flowering and nonflowering seed-bearing plants.
A40: Life Science | B40: =TRIM(LEFT(Table1_6[[#This Row],[Description]],11)) -> SC.4.L.16.2 | C40: SC.4.L.16.2 Explain that although characteristics of plants and animals are inherited, some characteristics can be affected by the environment.
A41: Life Science | B41: =TRIM(LEFT(Table1_6[[#This Row],[Description]],11)) -> SC.4.L.16.3 | C41: SC.4.L.16.3 Recognize that animal behaviors may be shaped by heredity and learning.
A42: Life Science | B42: =TRIM(LEFT(Table1_6[[#This Row],[Description]],11)) -> SC.4.L.17.1 | C42: SC.4.L.17.1 Compare the seasonal changes in Florida plants and animals to those in other regions of the country.
A43: Life Science | B43: =TRIM(LEFT(Table1_6[[#This Row],[Description]],11)) -> SC.4.L.17.4 | C43: SC.4.L.17.4 Recognize ways plants and animals, including humans, can impact the environment.
A44: Life Science | B44: =TRIM(LEFT(Table1_6[[#This Row],[Description]],11)) -> SC.4.L.17.3 | C44: SC.4.L.17.3 Trace the flow of energy from the Sun as it is transferred along the food chain through the producers to the consumers.
A45: Life Science | B45: =TRIM(LEFT(Table1_6[[#This Row],[Description]],11)) -> SC.4.L.17.2 | C45: SC.4.L.17.2 Explain that animals, including humans, cannot make their own food and that when animals eat plants or other animals, the energy stored in the food source is passed to them.
A46: Nature of Science | B46: =TRIM(LEFT(Table1_6[[#This Row],[Description]],11)) -> SC.4.N.1.1 | C46: SC.4.N.1.1 Raise questions about the natural world, use appropriate reference materials that support understanding to obtain information (identifying the source), conduct both individual and team investigations through free exploration and systematic investigations, and generate appropriate explanations based on those explorations.
A47: Nature of Science | B47: =TRIM(LEFT(Table1_6[[#This Row],[Description]],11)) -> SC.4.N.1.2 | C47: SC.4.N.1.2 Compare the observations made by different groups using multiple tools and seek reasons to explain the differences across groups.
A48: Nature of Science | B48: =TRIM(LEFT(Table1_6[[#This Row],[Description]],11)) -> SC.4.N.1.3 | C48: SC.4.N.1.3 Explain that science does not always follow a rigidly defined method (“the scientific method”) but that science does involve the use of observations and empirical evidence.
A49: Nature of Science | B49: =TRIM(LEFT(Table1_6[[#This Row],[Description]],11)) -> SC.4.N.1.5 | C49: SC.4.N.1.5 Compare the methods and results of investigations done by other classmates.
A50: Nature of Science | B50: =TRIM(LEFT(Table1_6[[#This Row],[Description]],11)) -> SC.4.N.1.6 | C50: SC.4.N.1.6 Keep records that describe observations made, carefully distinguishing actual observations from ideas and inferences about the observations.
A51: Nature of Science | B51: =TRIM(LEFT(Table1_6[[#This Row],[Description]],11)) -> SC.4.N.1.7 | C51: SC.4.N.1.7 Recognize and explain that scientists base their explanations on evidence.
A52: Physical Science | B52: =TRIM(LEFT(Table1_6[[#This Row],[Description]],11)) -> SC.4.P.10.1 | C52: SC.4.P.10.1 Observe and describe some basic forms of energy, including light, heat, sound, electrical, and the energy of motion.
A53: Physical Science | B53: =TRIM(LEFT(Table1_6[[#This Row],[Description]],11)) -> SC.4.P.10.3 | C53: SC.4.P.10.3 Investigate and explain that sound is produced by vibrating objects and that pitch depends on how fast or slow the object vibrates.
A54: Physical Science | B54: =TRIM(LEFT(Table1_6[[#This Row],[Description]],11)) -> SC.4.P.10.2 | C54: SC.4.P.10.2 Investigate and describe that energy has the ability to cause motion or create change.
A55: Physical Science | B55: =TRIM(LEFT(Table1_6[[#This Row],[Description]],11)) -> SC.4.P.10.4 | C55: SC.4.P.10.4 Describe how moving water and air are sources of energy and can be used to move things.
A56: Physical Science | B56: =TRIM(LEFT(Table1_6[[#This Row],[Description]],11)) -> SC.4.P.11.1 | C56: SC.4.P.11.1 Recognize that heat flows from a hot object to a cold object and that heat flow may cause materials to change temperature.
A57: Physical Science | B57: =TRIM(LEFT(Table1_6[[#This Row],[Description]],11)) -> SC.4.P.11.2 | C57: SC.4.P.11.2 Identify common materials that conduct heat well or poorly.
A58: Physical Science | B58: =TRIM(LEFT(Table1_6[[#This Row],[Description]],11)) -> SC.4.P.12.1 | C58: SC.4.P.12.1 Recognize that an object in motion always changes its position and may change its direction.
A59: Physical Science | B59: =TRIM(LEFT(Table1_6[[#This Row],[Description]],11)) -> SC.4.P.12.2 | C59: SC.4.P.12.2 Investigate and describe that the speed of an object is determined by the distance it travels in a unit of time and that objects can move at different speeds.
A60: Physical Science | B60: =TRIM(LEFT(Table1_6[[#This Row],[Description]],11)) -> SC.4.P.8.1 | C60: SC.4.P.8.1 Measure and compare objects and materials based on their physical properties including: mass, shape, volume, color, hardness, texture, odor, taste, attraction to magnets.
A61: Physical Science | B61: =TRIM(LEFT(Table1_6[[#This Row],[Description]],11)) -> SC.4.P.8.4 | C61: SC.4.P.8.4 Investigate and describe that magnets can attract magnetic materials and attract and repel other magnets.
A62: Physical Science | B62: =TRIM(LEFT(Table1_6[[#This Row],[Description]],11)) -> SC.4.P.9.1 | C62: SC.4.P.9.1 Identify some familiar changes in materials that result in other materials with different characteristics, such as decaying animal or plant matter, burning, rusting, and cooking.
A63: Earth & Space Science | B63: =TRIM(LEFT(Table1_6[[#This Row],[Description]],11)) -> SC.5.E.5.1 | C63: SC.5.E.5.1 Recognize that a galaxy consists of gas, dust, and many stars, including any objects orbiting the stars. Identify our home galaxy as the Milky Way. (Also assesses SC.3.E.5.1, SC.3.E.5.2, and SC.3.E.5.3.)
A64: Earth & Space Science | B64: =TRIM(LEFT(Table1_6[[#This Row],[Description]],11)) -> SC.5.E.5.2 | C64: SC.5.E.5.2 Recognize the major common characteristics of all planets and compare/contrast the properties of inner and outer planets.
A65: Earth & Space Science | B65: =TRIM(LEFT(Table1_6[[#This Row],[Description]],11)) -> SC.5.E.5.3 | C65: SC.5.E.5.3 Distinguish among the following objects of the Solar System — Sun, planets, moons, asteroids, comets — and identify Earth’s position in it. (Also assesses SC.5.E.5.2.)
A66: Earth & Space Science | B66: =TRIM(LEFT(Table1_6[[#This Row],[Description]],11)) -> SC.5.E.7.1 | C66: SC.5.E.7.1 Create a model to explain the parts of the water cycle. Water can be a gas, a liquid, or a solid and can go back and forth from one state to another. (Also assesses SC.5.E.7.2.)
A67: Earth & Space Science | B67: =TRIM(LEFT(Table1_6[[#This Row],[Description]],11)) -> SC.5.E.7.2 | C67: SC.5.E.7.2 Recognize that the ocean is an integral part of the water cycle and is connected to all of Earth’s water reservoirs via evaporation and precipitation processes.
A68: Earth & Space Science | B68: =TRIM(LEFT(Table1_6[[#This Row],[Description]],11)) -> SC.5.E.7.3 | C68: SC.5.E.7.3 Recognize how air temperature, barometric pressure, humidity, wind speed and direction, and precipitation determine the weather in a particular place and time. (Also assesses SC.5.E.7.4, SC.5.E.7.5, and SC.5.E.7.6.)
A69: Earth & Space Science | B69: =TRIM(LEFT(Table1_6[[#This Row],[Description]],11)) -> SC.5.E.7.4 | C69: SC.5.E.7.4 Distinguish among the various forms of precipitation (rain, snow, sleet, and hail), making connections to the weather in a particular place and time.
A70: Earth & Space Science | B70: =TRIM(LEFT(Table1_6[[#This Row],[Description]],11)) -> SC.5.E.7.5 | C70: SC.5.E.7.5 Recognize that some of the weather-related differences, such as temperature and humidity, are found among different environments, such as swamps, deserts, and mountains.
A71: Earth & Space Science | B71: =TRIM(LEFT(Table1_6[[#This Row],[Description]],11)) -> SC.5.E.7.6 | C71: SC.5.E.7.6 Describe characteristics (temperature and precipitation) of different climate zones as they relate to latitude, elevation, and proximity to bodies of water.
A72: Life Science | B72: =TRIM(LEFT(Table1_6[[#This Row],[Description]],11)) -> SC.5.L.14.1 | C72: SC.5.L.14.1 Identify the organs in the human body and describe their functions, including the skin, brain, heart, lungs, stomach, liver, intestines, pancreas, muscles and skeleton, reproductive organs, kidneys, bladder, and sensory organs.
A73: Life Science | B73: =TRIM(LEFT(Table1_6[[#This Row],[Description]],11)) -> SC.5.L.14.2 | C73: SC.5.L.14.2 Compare and contrast the function of organs and other physical structures of plants and animals, including humans, for example: some animals have skeletons for support — some with internal skeletons others with exoskeletons — while some plants have stems for support.
A74: Life Science | B74: =TRIM(LEFT(Table1_6[[#This Row],[Description]],11)) -> SC.5.L.15.1 | C74: SC.5.L.15.1 Describe how, when the environment changes, differences between individuals allow some plants and animals to survive and reproduce while others die or move to new locations.
A75: Life Science | B75: =TRIM(LEFT(Table1_6[[#This Row],[Description]],11)) -> SC.5.L.17.1 | C75: SC.5.L.17.1 Compare and contrast adaptations displayed by animals and plants that enable them to survive in different environments such as life cycles variations, animal behaviors and physical characteristics.
A76: Nature of Science | B76: =TRIM(LEFT(Table1_6[[#This Row],[Description]],11)) -> SC.5.N.1.1 | C76: SC.5.N.1.1 Define a problem, use appropriate reference materials to support scientific understanding, plan and carry out scientific investigations of various types such as: systematic observations, experiments requiring the identification of variables, collecting and organizing data, interpreting data in charts, tables, and graphics, analyze information, make predictions, and defend conclusions.
A77: Nature of Science | B77: =TRIM(LEFT(Table1_6[[#This Row],[Description]],11)) -> SC.5.N.1.2 | C77: SC.5.N.1.2 Explain the difference between an experiment and other types of scientific investigation.
A78: Nature of Science | B78: =TRIM(LEFT(Table1_6[[#This Row],[Description]],11)) -> SC.5.N.1.3 | C78: SC.5.N.1.3 Recognize and explain the need for repeated experimental trials.
A79: Nature of Science | B79: =TRIM(LEFT(Table1_6[[#This Row],[Description]],11)) -> SC.5.N.1.4 | C79: SC.5.N.1.4 Identify a control group and explain its importance in an experiment.
A80: Nature of Science | B80: =TRIM(LEFT(Table1_6[[#This Row],[Description]],11)) -> SC.5.N.1.5 | C80: SC.5.N.1.5 Recognize and explain that authentic scientific investigation frequently does not parallel the steps of “the scientific method.”
A81: Nature of Science | B81: =TRIM(LEFT(Table1_6[[#This Row],[Description]],11)) -> SC.5.N.1.6 | C81: SC.5.N.1.6 Recognize and explain the difference between personal opinion/interpretation and verified observation.
A82: Nature of Science | B82: =TRIM(LEFT(Table1_6[[#This Row],[Description]],11)) -> SC.5.N.2.1 | C82: SC.5.N.2.1 Recognize and explain that science is grounded in empirical observations that are testable; explanation must always be linked with evidence.
A83: Nature of Science | B83: =TRIM(LEFT(Table1_6[[#This Row],[Description]],11)) -> SC.5.N.2.2 | C83: SC.5.N.2.2 Recognize and explain that when scientific investigations are carried out, the evidence produced by those investigations should be replicable by others.
A84: Physical Science | B84: =TRIM(LEFT(Table1_6[[#This Row],[Description]],11)) -> SC.5.P.10.1 | C84: SC.5.P.10.1 Investigate and describe some basic forms of energy, including light, heat, sound, electrical, chemical, and mechanical. (Also assesses SC.3.P.10.1, SC.3.P.10.3, SC.3.P.10.4, SC.3.P.11.1, SC.3.P.11.2, SC.4.P.10.1, and SC.4.P.10.3.)
A85: Physical Science | B85: =TRIM(LEFT(Table1_6[[#This Row],[Description]],11)) -> SC.5.P.10.2 | C85: SC.5.P.10.2 Investigate and explain that energy has the ability to cause motion or create change. (Also assesses SC.3.P.10.2, SC.4.P.10.2, and SC.4.P.10.4.)
A86: Physical Science | B86: =TRIM(LEFT(Table1_6[[#This Row],[Description]],11)) -> SC.5.P.10.4 | C86: SC.5.P.10.4 Investigate and explain that electrical energy can be transformed into heat, light, and sound energy, as well as the energy of motion. (Also assesses SC.3.E.6.1, SC.4.P.11.1, SC.4.P.11.2, SC.5.P.10.3, SC.5.P.11.1, and SC.5.P.11.2.)
A87: Physical Science | B87: =TRIM(LEFT(Table1_6[[#This Row],[Description]],11)) -> SC.5.P.10.3 | C87: SC.5.P.10.3 Investigate and explain that an electrically-charged object can attract an uncharged object and can either attract or repel another charged object without any contact between the objects.
A88: Physical Science | B88: =TRIM(LEFT(Table1_6[[#This Row],[Description]],11)) -> SC.5.P.11.1 | C88: SC.5.P.11.1 Investigate and illustrate the fact that the flow of electricity requires a closed circuit (a complete loop).
A89: Physical Science | B89: =TRIM(LEFT(Table1_6[[#This Row],[Description]],11)) -> SC.5.P.11.2 | C89: SC.5.P.11.2 Identify and classify materials that conduct electricity and materials that do not.
A90: Physical Science | B90: =TRIM(LEFT(Table1_6[[#This Row],[Description]],11)) -> SC.5.P.13.1 | C90: SC.5.P.13.1 Identify familiar forces that cause objects to move, such as pushes or pulls, including gravity acting on falling objects. (Also assesses SC.3.E.5.4 and SC.4.P.8.4.)
A91: Physical Science | B91: =TRIM(LEFT(Table1_6[[#This Row],[Description]],11)) -> SC.5.P.13.2 | C91: SC.5.P.13.2 Investigate and describe that the greater the force applied to it, the greater the change in motion of a given object. (Also assesses SC.4.P.12.1, SC.4.P.12.2, SC.5.P.13.3, and SC.5.P.13.4.)
A92: Physical Science | B92: =TRIM(LEFT(Table1_6[[#This Row],[Description]],11)) -> SC.5.P.13.3 | C92: SC.5.P.13.3 Investigate and describe that the more mass an object has, the less effect a given force will have on the object’s motion.
A93: Physical Science | B93: =TRIM(LEFT(Table1_6[[#This Row],[Description]],11)) -> SC.5.P.13.4 | C93: SC.5.P.13.4 Investigate and explain that when a force is applied to an object but it does not move, it is because another opposing force is being applied by something in the environment so that the forces are balanced.
A94: Physical Science | B94: =TRIM(LEFT(Table1_6[[#This Row],[Description]],11)) -> SC.5.P.8.1 | C94: SC.5.P.8.1 Compare and contrast the basic properties of solids, liquids, and gases, such as mass, volume, color, texture, and temperature. (Also assesses SC.3.P.8.1, SC.3.P.8.2, SC.3.P.8.3, and SC.4.P.8.1.)
A95: Physical Science | B95: =TRIM(LEFT(Table1_6[[#This Row],[Description]],11)) -> SC.5.P.8.2 | C95: SC.5.P.8.2 Investigate and identify materials that will dissolve in water and those that will not and identify the conditions that will speed up or slow down the dissolving process.
A96: Physical Science | B96: =TRIM(LEFT(Table1_6[[#This Row],[Description]],11)) -> SC.5.P.8.3 | C96: SC.5.P.8.3 Demonstrate and explain that mixtures of solids can be separated based on observable properties of their parts such as particle size, shape, color, and magnetic attraction. (Also assesses SC.5.P.8.2.)
A97: Physical Science | B97: =TRIM(LEFT(Table1_6[[#This Row],[Description]],11)) -> SC.5.P.9.1 | C97: SC.5.P.9.1 Investigate and describe that many physical and chemical changes are affected by temperature. (Also assesses SC.3.P.9.1 and SC.4.P.9.1.)

Sheet BLG3BM-R (hidden)
B1: R-G03-BM-SCHL-ALL
B3: Description: | C3: Reading benchmark G03 all
B4: Student Selection: | C4: All Schools | 2012-2013 Fall, 2012-2013 School Year
B5: Group By Data: | C5: School
B6: Assessments: | C6: Baseline 2012 - Grade 3 Reading AUGUST 2012
B7: Scores: | C7: Overall Avg Raw Score, Overall Avg % Correct, Standards Avg Raw Score, Standards Avg % Correct
B8: Author Name: | C8: Yuwadee Wongbundhit
A9: =COLUMN() -> 1 | B9: =COLUMN() -> 2 | C9: =COLUMN() -> 3 | D9: =COLUMN() -> 4 | E9: =COLUMN() -> 5 | F9: =COLUMN() -> 6 | G9: =COLUMN() -> 7 | H9: =COLUMN() -> 8 | I9: =COLUMN() -> 9 | J9: =COLUMN() -> 10 | K9: =COLUMN() -> 11 | L9: =COLUMN() -> 12 | M9: =COLUMN() -> 13 | N9: =COLUMN() -> 14 | O9: =COLUMN() -> 15 | P9: =COLUMN() -> 16 | Q9: =COLUMN() -> 17 | R9: =COLUMN() -> 18 | S9: =COLUMN() -> 19 | T9: =COLUMN() -> 20 | U9: =COLUMN() -> 21 | V9: =COLUMN() -> 22 | W9: =COLUMN() -> 23 | X9: =COLUMN() -> 24 | Y9: =COLUMN() -> 25 | Z9: =COLUMN() -> 26 | AA9: =COLUMN() -> 27 | AB9: =COLUMN() -> 28 | AC9: =COLUMN() -> 29 | AD9: =COLUMN() -> 30 | AE9: =COLUMN() -> 31
B10: Total Row(s): 270 Generated on Sep-22-2012 by Yuwadee Wongbundhit | C10: Baseline 2012 - Grade 3 Reading AUGUST 2012
C11: Total # students | D11: Overall (31 pts max) | F11: LA.3.1--LA.3.1.6: Benchmark LA.3.1.6.3 | H11: LA.3.1--LA.3.1.6: Benchmark LA.3.1.6.7 | J11: LA.3.1--LA.3.1.6: Benchmark LA.3.1.6.8 | L11: LA.3.1--LA.3.1.6: Benchmark LA.3.1.6.9 | N11: LA.3.1--LA.3.1.7: Benchmark LA.3.1.7.2 | P11: LA.3.1--LA.3.1.7: Benchmark LA.3.1.7.3 | R11: LA.3.1--LA.3.1.7: Benchmark LA.3.1.7.4 | T11: LA.3.1--LA.3.1.7: Benchmark LA.3.1.7.5 | V11: LA.3.1--LA.3.1.7: Benchmark LA.3.1.7.6 | X11: LA.3.1--LA.3.1.7: Benchmark LA.3.1.7.7 | Z11: LA.3.2--LA.3.2.1: Benchmark LA.3.2.1.2 | AB11: LA.3.2--LA.3.2.1: Benchmark LA.3.2.1.7 | AD11: LA.3.6--LA.3.6.1: Benchmark LA.3.6.1.1
D12: Avg Raw Score | E12: Avg % Correct | F12: Avg Raw Score | G12: Avg % Correct | H12: Avg Raw Score | I12: Avg % Correct | J12: Avg Raw Score | K12: Avg % Correct | L12: Avg Raw Score | M12: Avg % Correct | N12: Avg Raw Score | O12: Avg % Correct | P12: Avg Raw Score | Q12: Avg % Correct | R12: Avg Raw Score | S12: Avg % Correct | T12: Avg Raw Score | U12: Avg % Correct | V12: Avg Raw Score | W12: Avg % Correct | X12: Avg Raw Score | Y12: Avg % Correct | Z12: Avg Raw Score | AA12: Avg % Correct | AB12: Avg Raw Score | AC12: Avg % Correct | AD12: Avg Raw Score | AE12: Avg % Correct
B13: School Name
A14: =IFERROR(VALUE(LEFT(B14,4)),"") -> 41 | B14: 0041 Air Base Elementary | C14: 111 | D14: 20.20000076 | E14: 0.65 | F14: 1.399999976 | G14: 0.71 | H14: 0.6000000238 | I14: 0.62 | J14: 1.399999976 | K14: 0.72 | L14: 0.8999999762 | M14: 0.87 | N14: 1.5 | O14: 0.76 | P14: 2.700000048 | Q14: 0.68 | R14: 1.299999952 | S14: 0.66 | T14: 0.5 | U14: 0.55 | V14: 1.399999976 | W14: 0.68 | X14: 3.599999905 | Y14: 0.6 | Z14: 3.200000048 | AA14: 0.64 | AB14: 0.6000000238 | AC14: 0.57 | AD14: 1 | AE14: 0.5
A15: =IFERROR(VALUE(LEFT(B15,4)),"") -> 70 | B15: 0070 Coral Reef Montessori Academy | C15: 57 | D15: 19.20000076 | E15: 0.62 | F15: 1.5 | G15: 0.77 | H15: 0.5 | I15: 0.54 | J15: 1.100000024 | K15: 0.55 | L15: 0.8000000119 | M15: 0.82 | N15: 1.399999976 | O15: 0.72 | P15: 2.5 | Q15: 0.63 | R15: 1.399999976 | S15: 0.68 | T15: 0.400000006 | U15: 0.42 | V15: 1.5 | W15: 0.75 | X15: 3.200000048 | Y15: 0.53 | Z15: 3.299999952 | AA15: 0.66 | AB15: 0.6000000238 | AC15: 0.56 | AD15: 0.8999999762 | AE15: 0.46
A16: 71 | B16: 0071 Eugenia B. Thomas K-8 | C16: 191 | D16: 16.79999924 | E16: 0.54 | F16: 1.200000048 | G16: 0.58 | H16: 0.5 | I16: 0.5 | J16: 1.100000024 | K16: 0.56 | L16: 0.6999999881 | M16: 0.71 | N16: 1.299999952 | O16: 0.65 | P16: 2.200000048 | Q16: 0.54 | R16: 1.200000048 | S16: 0.59 | T16: 0.5 | U16: 0.47 | V16: 1.200000048 | W16: 0.58 | X16: 3.099999905 | Y16: 0.52 | Z16: 2.700000048 | AA16: 0.53 | AB16: 0.5 | AC16: 0.46 | AD16: 0.8000000119 | AE16: 0.39
A17: 72 | B17: 0072 Summerville Charter School | C17: 85 | D17: 17.60000038 | E17: 0.57 | F17: 1.299999952 | G17: 0.65 | H17: 0.400000006 | I17: 0.44 | J17: 1.200000048 | K17: 0.61 | L17: 0.8000000119 | M17: 0.81 | N17: 1.399999976 | O17: 0.68 | P17: 2.299999952 | Q17: 0.59 | R17: 1.100000024 | S17: 0.55 | T17: 0.400000006 | U17: 0.39 | V17: 1.200000048 | W17: 0.59 | X17: 3.200000048 | Y17: 0.54 | Z17: 2.900000095 | AA17: 0.57 | AB17: 0.5 | AC17: 0.52 | AD17: 0.8000000119 | AE17: 0.42
A18: 73 | B18: 0073 Mandarin Lakes K-8 Center | C18: 145 | D18: 14.19999981 | E18: 0.46 | F18: 1.200000048 | G18: 0.61 | H18: 0.3000000119 | I18: 0.32 | J18: 0.8000000119 | K18: 0.42 | L18: 0.6999999881 | M18: 0.72 | N18: 1 | O18: 0.51 | P18: 1.899999976 | Q18: 0.47 | R18: 1 | S18: 0.48 | T18: 0.400000006 | U18: 0.4 | V18: 0.8999999762 | W18: 0.45 | X18: 2.599999905 | Y18: 0.44 | Z18: 2.299999952 | AA18: 0.46 | AB18: 0.400000006 | AC18: 0.37 | AD18: 0.6000000238 | AE18: 0.3
A19: 81 | B19: 0081 Lenora B. Smith Elementary | C19: 76 | D19: 14.80000019 | E19: 0.48 | F19: 1.200000048 | G19: 0.59 | H19: 0.400000006 | I19: 0.43 | J19: 0.6999999881 | K19: 0.33 | L19: 0.8000000119 | M19: 0.75 | N19: 1.200000048 | O19: 0.6 | P19: 2.200000048 | Q19: 0.54 | R19: 1.100000024 | S19: 0.53 | T19: 0.400000006 | U19: 0.38 | V19: 0.8999999762 | W19: 0.45 | X19: 2.700000048 | Y19: 0.45 | Z19: 2.200000048 | AA19: 0.44 | AB19: 0.400000006 | AC19: 0.41 | AD19: 0.8000000119 | AE19: 0.41
A20: 91 | B20: 0091 Bob Graham Education Center | C20: 188 | D20: 18.70000076 | E20: 0.6 | F20: 1.399999976 | G20: 0.72 | H20: 0.5 | I20: 0.55 | J20: 1.299999952 | K20: 0.66 | L20: 0.8000000119 | M20: 0.79 | N20: 1.399999976 | O20: 0.7 | P20: 2.400000095 | Q20: 0.61 | R20: 1.299999952 | S20: 0.65 | T20: 0.400000006 | U20: 0.39 | V20: 1.299999952 | W20: 0.65 | X20: 3.299999952 | Y20: 0.56 | Z20: 3.099999905 | AA20: 0.61 | AB20: 0.6000000238 | AC20: 0.58 | AD20: 0.8000000119 | AE20: 0.4
A21: 92 | B21: 0092 Sunny Isles Beach Community School K-8 | C21: 216 | D21: 20.20000076 | E21: 0.65 | F21: 1.600000024 | G21: 0.78 | H21: 0.6000000238 | I21: 0.63 | J21: 1.399999976 | K21: 0.72 | L21: 0.8000000119 | M21: 0.84 | N21: 1.399999976 | O21: 0.69 | P21: 2.599999905 | Q21: 0.65 | R21: 1.299999952 | S21: 0.64 | T21: 0.5 | U21: 0.48 | V21: 1.399999976 | W21: 0.68 | X21: 3.700000048 | Y21: 0.61 | Z21: 3.299999952 | AA21: 0.67 | AB21: 0.6999999881 | AC21: 0.67 | AD21: 1 | AE21: 0.49
A22: 100 | B22: 0100 Mater Academy Charter | C22: 125 | D22: 19 | E22: 0.61 | F22: 1.5 | G22: 0.74 | H22: 0.6000000238 | I22: 0.64 | J22: 1.299999952 | K22: 0.67 | L22: 0.8000000119 | M22: 0.85 | N22: 1.399999976 | O22: 0.72 | P22: 2.5 | Q22: 0.62 | R22: 1.299999952 | S22: 0.64 | T22: 0.400000006 | U22: 0.45 | V22: 1.299999952 | W22: 0.65 | X22: 3.299999952 | Y22: 0.54 | Z22: 3.099999905 | AA22: 0.61 | AB22: 0.5 | AC22: 0.54 | AD22: 0.8999999762 | AE22: 0.43
A23: 101 | B23: 0101 Arcola Lake Elementary School | C23: 65 | D23: 13.39999962 | E23: 0.43 | F23: 1 | G23: 0.5 | H23: 0.3000000119 | I23: 0.31 | J23: 0.8999999762 | K23: 0.43 | L23: 0.6000000238 | M23: 0.62 | N23: 1 | O23: 0.52 | P23: 2.099999905 | Q23: 0.52 | R23: 1 | S23: 0.51 | T23: 0.3000000119 | U23: 0.34 | V23: 0.8000000119 | W23: 0.42 | X23: 2.299999952 | Y23: 0.38 | Z23: 2.200000048 | AA23: 0.44 | AB23: 0.3000000119 | AC23: 0.29 | AD23: 0.6000000238 | AE23: 0.29
A24: 102 | B24: 0102 Miami Community Charter School | C24: 84 | D24: 14.5 | E24: 0.47 | F24: 1.200000048 | G24: 0.6 | H24: 0.5 | I24: 0.46 | J24: 1 | K24: 0.48 | L24: 0.6000000238 | M24: 0.61 | N24: 1.299999952 | O24: 0.63 | P24: 1.799999952 | Q24: 0.45 | R24: 1 | S24: 0.52 | T24: 0.3000000119 | U24: 0.29 | V24: 1 | W24: 0.49 | X24: 2.5 | Y24: 0.42 | Z24: 2.400000095 | AA24: 0.48 | AB24: 0.3000000119 | AC24: 0.33 | AD24: 0.6000000238 | AE24: 0.32
A25: 111 | B25: 0111 Maya Angelou Elementary School | C25: 88 | D25: 14.10000038 | E25: 0.45 | F25: 1.100000024 | G25: 0.56 | H25: 0.400000006 | I25: 0.36 | J25: 0.8000000119 | K25: 0.41 | L25: 0.6000000238 | M25: 0.65 | N25: 1.100000024 | O25: 0.54 | P25: 2.099999905 | Q25: 0.51 | R25: 1 | S25: 0.48 | T25: 0.400000006 | U25: 0.35 | V25: 1 | W25: 0.51 | X25: 2.299999952 | Y25: 0.39 | Z25: 2.299999952 | AA25: 0.47 | AB25: 0.3000000119 | AC25: 0.33 | AD25: 0.6999999881 | AE25: 0.34
A26: 121 | B26: 0121 Auburndale Elementary Community School | C26: 119 | D26: 17.10000038 | E26: 0.55 | F26: 1.299999952 | G26: 0.66 | H26: 0.5 | I26: 0.5 | J26: 1.200000048 | K26: 0.6 | L26: 0.8000000119 | M26: 0.76 | N26: 1.299999952 | O26: 0.65 | P26: 2.299999952 | Q26: 0.57 | R26: 1.200000048 | S26: 0.59 | T26: 0.5 | U26: 0.5 | V26: 1.100000024 | W26: 0.54 | X26: 3.099999905 | Y26: 0.51 | Z26: 2.700000048 | AA26: 0.54 | AB26: 0.5 | AC26: 0.46 | AD26: 0.8000000119 | AE26: 0.39
A27: 122 | B27: 0122 Dr. Rolando Espinosa K-8 Center | C27: 166 | D27: 16.60000038 | E27: 0.53 | F27: 1.200000048 | G27: 0.58 | H27: 0.5 | I27: 0.49 | J27: 1.200000048 | K27: 0.59 | L27: 0.6999999881 | M27: 0.73 | N27: 1.299999952 | O27: 0.66 | P27: 2.299999952 | Q27: 0.57 | R27: 1.100000024 | S27: 0.57 | T27: 0.400000006 | U27: 0.45 | V27: 1.100000024 | W27: 0.55 | X27: 2.900000095 | Y27: 0.49 | Z27: 2.599999905 | AA27: 0.52 | AB27: 0.5 | AC27: 0.45 | AD27: 0.6999999881 | AE27: 0.36
A28: 125 | B28: 0125 Norma Butler Bossard Elementary | C28: 228 | D28: 20.39999962 | E28: 0.66 | F28: 1.600000024 | G28: 0.79 | H28: 0.6000000238 | I28: 0.64 | J28: 1.399999976 | K28: 0.72 | L28: 0.8999999762 | M28: 0.87 | N28: 1.399999976 | O28: 0.72 | P28: 2.700000048 | Q28: 0.67 | R28: 1.299999952 | S28: 0.67 | T28: 0.5 | U28: 0.55 | V28: 1.299999952 | W28: 0.67 | X28: 3.599999905 | Y28: 0.6 | Z28: 3.400000095 | AA28: 0.68 | AB28: 0.6000000238 | AC28: 0.64 | AD28: 0.8999999762 | AE28: 0.45
A29: 161 | B29: 0161 Avocado Elementary | C29: 139 | D29: 14.39999962 | E29: 0.46 | F29: 1.100000024 | G29: 0.54 | H29: 0.400000006 | I29: 0.4 | J29: 0.8999999762 | K29: 0.45 | L29: 0.6000000238 | M29: 0.61 | N29: 1.200000048 | O29: 0.6 | P29: 1.899999976 | Q29: 0.49 | R29: 1.100000024 | S29: 0.55 | T29: 0.400000006 | U29: 0.45 | V29: 1.100000024 | W29: 0.53 | X29: 2.5 | Y29: 0.41 | Z29: 2.299999952 | AA29: 0.46 | AB29: 0.3000000119 | AC29: 0.35 | AD29: 0.5 | AE29: 0.27
A30: 201 | B30: 0201 Banyan Elementary | C30: 35 | D30: 19.79999924 | E30: 0.64 | F30: 1.5 | G30: 0.77 | H30: 0.5 | I30: 0.54 | J30: 1.399999976 | K30: 0.7 | L30: 0.8000000119 | M30: 0.83 | N30: 1.5 | O30: 0.74 | P30: 2.700000048 | Q30: 0.66 | R30: 1.299999952 | S30: 0.64 | T30: 0.5 | U30: 0.51 | V30: 1.299999952 | W30: 0.64 | X30: 3.5 | Y30: 0.58 | Z30: 3.299999952 | AA30: 0.66 | AB30: 0.6000000238 | AC30: 0.63 | AD30: 0.8999999762 | AE30: 0.43
A31: 211 | B31: 0211 Dr. Manuel C. Barreiro Elementary | C31: 126 | D31: 20.70000076 | E31: 0.67 | F31: 1.5 | G31: 0.77 | H31: 0.6000000238 | I31: 0.63 | J31: 1.5 | K31: 0.75 | L31: 0.8999999762 | M31: 0.9 | N31: 1.5 | O31: 0.73 | P31: 2.599999905 | Q31: 0.65 | R31: 1.299999952 | S31: 0.63 | T31: 0.5 | U31: 0.48 | V31: 1.399999976 | W31: 0.68 | X31: 3.799999952 | Y31: 0.63 | Z31: 3.400000095 | AA31: 0.67 | AB31: 0.6999999881 | AC31: 0.75 | AD31: 1 | AE31: 0.51
A32: 231 | B32: 0231 Aventura Waterways K-8 | C32: 198 | D32: 19.39999962 | E32: 0.63 | F32: 1.399999976 | G32: 0.71 | H32: 0.6000000238 | I32: 0.61 | J32: 1.399999976 | K32: 0.69 | L32: 0.8000000119 | M32: 0.83 | N32: 1.5 | O32: 0.74 | P32: 2.5 | Q32: 0.63 | R32: 1.299999952 | S32: 0.64 | T32: 0.5 | U32: 0.49 | V32: 1.299999952 | W32: 0.64 | X32: 3.5 | Y32: 0.58 | Z32: 3.099999905 | AA32: 0.62 | AB32: 0.6000000238 | AC32: 0.6 | AD32: 0.8999999762 | AE32: 0.47
A33: 241 | B33: 0241 Ruth K. Broad/Bay Harbor K-8 | C33: 143 | D33: 20.10000038 | E33: 0.65 | F33: 1.5 | G33: 0.73 | H33: 0.6000000238 | I33: 0.59 | J33: 1.5 | K33: 0.74 | L33: 0.8000000119 | M33: 0.84 | N33: 1.399999976 | O33: 0.71 | P33: 2.599999905 | Q33: 0.66 | R33: 1.299999952 | S33: 0.67 | T33: 0.5 | U33: 0.51 | V33: 1.299999952 | W33: 0.66 | X33: 3.700000048 | Y33: 0.62 | Z33: 3.200000048 | AA33: 0.64 | AB33: 0.6999999881 | AC33: 0.69 | AD33: 0.8999999762 | AE33: 0.47
A34: 251 | B34: 0251 Ethel Koger Beckham Elementary | C34: 117 | D34: 19.70000076 | E34: 0.64 | F34: 1.5 | G34: 0.74 | H34: 0.5 | I34: 0.52 | J34: 1.399999976 | K34: 0.7 | L34: 0.8000000119 | M34: 0.79 | N34: 1.5 | O34: 0.75 | P34: 2.599999905 | Q34: 0.65 | R34: 1.299999952 | S34: 0.66 | T34: 0.5 | U34: 0.47 | V34: 1.299999952 | W34: 0.63 | X34: 3.599999905 | Y34: 0.61 | Z34: 3.099999905 | AA34: 0.62 | AB34: 0.6000000238 | AC34: 0.58 | AD34: 1 | AE34: 0.49
A35: 261 | B35: 0261 Bel-Aire Elementary | C35: 74 | D35: 16 | E35: 0.52 | F35: 1.200000048 | G35: 0.62 | H35: 0.400000006 | I35: 0.35 | J35: 1.100000024 | K35: 0.56 | L35: 0.8000000119 | M35: 0.77 | N35: 1.200000048 | O35: 0.61 | P35: 2 | Q35: 0.51 | R35: 1 | S35: 0.49 | T35: 0.400000006 | U35: 0.35 | V35: 1.100000024 | W35: 0.56 | X35: 3 | Y35: 0.5 | Z35: 2.400000095 | AA35: 0.48 | AB35: 0.6000000238 | AC35: 0.58 | AD35: 0.8000000119 | AE35: 0.38
A36: 271 | B36: 0271 Bent Tree Elementary | C36: 74 | D36: 16.39999962 | E36: 0.53 | F36: 1.399999976 | G36: 0.69 | H36: 0.400000006 | I36: 0.45 | J36: 1.100000024 | K36: 0.54 | L36: 0.6999999881 | M36: 0.73 | N36: 1.399999976 | O36: 0.72 | P36: 1.899999976 | Q36: 0.47 | R36: 1.200000048 | S36: 0.61 | T36: 0.5 | U36: 0.47 | V36: 1.299999952 | W36: 0.63 | X36: 2.799999952 | Y36: 0.47 | Z36: 2.599999905 | AA36: 0.52 | AB36: 0.400000006 | AC36: 0.39 | AD36: 0.6999999881 | AE36: 0.36
A37: 311 | B37: 0311 Goulds Elementary | C37: 78 | D37: 15.69999981 | E37: 0.5 | F37: 1.299999952 | G37: 0.65 | H37: 0.400000006 | I37: 0.44 | J37: 1 | K37: 0.49 | L37: 0.8999999762 | M37: 0.87 | N37: 1.200000048 | O37: 0.6 | P37: 1.899999976 | Q37: 0.47 | R37: 1.100000024 | S37: 0.53 | T37: 0.400000006 | U37: 0.42 | V37: 1.100000024 | W37: 0.53 | X37: 2.599999905 | Y37: 0.43 | Z37: 2.599999905 | AA37: 0.52 | AB37: 0.400000006 | AC37: 0.42 | AD37: 0.8000000119 | AE37: 0.42
A38: 312 | B38: 0312 Mater Gardens Academy | C38: 104 | D38: 19.79999924 | E38: 0.64 | F38: 1.5 | G38: 0.75 | H38: 0.6000000238 | I38: 0.63 | J38: 1.5 | K38: 0.75 | L38: 0.8999999762 | M38: 0.87 | N38: 1.5 | O38: 0.74 | P38: 2.400000095 | Q38: 0.6 | R38: 1.200000048 | S38: 0.6 | T38: 0.400000006 | U38: 0.44 | V38: 1.299999952 | W38: 0.64 | X38: 3.599999905 | Y38: 0.6 | Z38: 3.400000095 | AA38: 0.68 | AB38: 0.6999999881 | AC38: 0.68 | AD38: 0.8999999762 | AE38: 0.45
A39: 321 | B39: 0321 Biscayne Elementary | C39: 117 | D39: 13.89999962 | E39: 0.45 | F39: 1.100000024 | G39: 0.56 | H39: 0.3000000119 | I39: 0.33 | J39: 0.8000000119 | K39: 0.4 | L39: 0.6000000238 | M39: 0.61 | N39: 1.299999952 | O39: 0.65 | P39: 1.799999952 | Q39: 0.45 | R39: 1 | S39: 0.51 | T39: 0.400000006 | U39: 0.39 | V39: 1 | W39: 0.49 | X39: 2.400000095 | Y39: 0.4 | Z39: 2.299999952 | AA39: 0.46 | AB39: 0.3000000119 | AC39: 0.32 | AD39: 0.6000000238 | AE39: 0.29
A40: 332 | B40: 0332 Somerset Silver Palms K-8 | C40: 66 | D40: 15.80000019 | E40: 0.51 | F40: 1.299999952 | G40: 0.63 | H40: 0.3000000119 | I40: 0.29 | J40: 1.100000024 | K40: 0.57 | L40: 0.6999999881 | M40: 0.71 | N40: 1.299999952 | O40: 0.65 | P40: 2.099999905 | Q40: 0.53 | R40: 1.100000024 | S40: 0.57 | T40: 0.3000000119 | U40: 0.3 | V40: 1.100000024 | W40: 0.55 | X40: 2.5 | Y40: 0.41 | Z40: 2.799999952 | AA40: 0.55 | AB40: 0.5 | AC40: 0.5 | AD40: 0.6999999881 | AE40: 0.36
A41: 339 | B41: 0339 Somerset Academy (Country Palms) | C41: 60 | D41: 17.39999962 | E41: 0.56 | F41: 1.5 | G41: 0.73 | H41: 0.5 | I41: 0.5 | J41: 1.200000048 | K41: 0.57 | L41: 0.8000000119 | M41: 0.8 | N41: 1.399999976 | O41: 0.69 | P41: 2.299999952 | Q41: 0.57 | R41: 1 | S41: 0.51 | T41: 0.3000000119 | U41: 0.33 | V41: 1.200000048 | W41: 0.6 | X41: 3.099999905 | Y41: 0.51 | Z41: 2.799999952 | AA41: 0.56 | AB41: 0.400000006 | AC41: 0.43 | AD41: 1 | AE41: 0.5
A42: 341 | B42: 0341 Archcreek Elementary | C42: 94 | D42: 15.30000019 | E42: 0.49 | F42: 1.200000048 | G42: 0.61 | H42: 0.400000006 | I42: 0.43 | J42: 1 | K42: 0.49 | L42: 0.6999999881 | M42: 0.74 | N42: 1.299999952 | O42: 0.64 | P42: 2 | Q42: 0.49 | R42: 1 | S42: 0.48 | T42: 0.400000006 | U42: 0.45 | V42: 1.100000024 | W42: 0.53 | X42: 2.599999905 | Y42: 0.44 | Z42: 2.5 | AA42: 0.5 | AB42: 0.400000006 | AC42: 0.44 | AD42: 0.6000000238 | AE42: 0.31
A43: 342 | B43: 0342 Pinecrest Academy (South Campus) | C43: 124 | D43: 20.5 | E43: 0.66 | F43: 1.5 | G43: 0.77 | H43: 0.6000000238 | I43: 0.63 | J43: 1.600000024 | K43: 0.8 | L43: 0.8999999762 | M43: 0.86 | N43: 1.5 | O43: 0.76 | P43: 2.5 | Q43: 0.63 | R43: 1.200000048 | S43: 0.6 | T43: 0.5 | U43: 0.48 | V43: 1.399999976 | W43: 0.69 | X43: 3.799999952 | Y43: 0.63 | Z43: 3.400000095 | AA43: 0.68 | AB43: 0.6999999881 | AC43: 0.7 | AD43: 0.8999999762 | AE43: 0.46
A44: 361 | B44: 0361 Biscayne Gardens Elementary | C44: 88 | D44: 15.80000019 | E44: 0.51 | F44: 1.299999952 | G44: 0.65 | H44: 0.5 | I44: 0.48 | J44: 1 | K44: 0.51 | L44: 0.8000000119 | M44: 0.83 | N44: 1.299999952 | O44: 0.63 | P44: 2.200000048 | Q44: 0.54 | R44: 1 | S44: 0.51 | T44: 0.400000006 | U44: 0.42 | V44: 1 | W44: 0.48 | X44: 2.599999905 | Y44: 0.44 | Z44: 2.599999905 | AA44: 0.51 | AB44: 0.400000006 | AC44: 0.36 | AD44: 0.8000000119 | AE44: 0.39
A45: 400 | B45: 0400 Renaissance Elementary Charter School | C45: 1 | D45: 7 | E45: 0.23 | F45: 0 | G45: 0 | H45: 1 | I45: 1 | J45: 0 | K45: 0 | L45: 0 | M45: 0 | N45: 0 | O45: 0 | P45: 0 | Q45: 0 | R45: 0 | S45: 0 | T45: 0 | U45: 0 | V45: 0 | W45: 0 | X45: 3 | Y45: 0.5 | Z45: 3 | AA45: 0.6 | AB45: 0 | AC45: 0 | AD45: 0 | AE45: 0
A46: 401 | B46: 0401 Van E. Blanton Elementary | C46: 100 | D46: 15.19999981 | E46: 0.49 | F46: 1.299999952 | G46: 0.65 | H46: 0.5 | I46: 0.52 | J46: 0.8999999762 | K46: 0.46 | L46: 0.8000000119 | M46: 0.78 | N46: 1.200000048 | O46: 0.6 | P46: 2.200000048 | Q46: 0.56 | R46: 1 | S46: 0.49 | T46: 0.400000006 | U46: 0.42 | V46: 1 | W46: 0.5 | X46: 2.5 | Y46: 0.41 | Z46: 2.299999952 | AA46: 0.45 | AB46: 0.400000006 | AC46: 0.35 | AD46: 0.8000000119 | AE46: 0.38
A47: 410 | B47: 0410 Academir Charter School West | C47: 113 | D47: 18.79999924 | E47: 0.61 | F47: 1.5 | G47: 0.74 | H47: 0.5 | I47: 0.46 | J47: 1.299999952 | K47: 0.67 | L47: 0.8999999762 | M47: 0.87 | N47: 1.5 | O47: 0.73 | P47: 2.400000095 | Q47: 0.59 | R47: 1.299999952 | S47: 0.65 | T47: 0.400000006 | U47: 0.43 | V47: 1.299999952 | W47: 0.63 | X47: 3.299999952 | Y47: 0.56 | Z47: 3.099999905 | AA47: 0.62 | AB47: 0.6000000238 | AC47: 0.56 | AD47: 0.8999999762 | AE47: 0.43
A48: 441 | B48: 0441 Blue Lakes Elementary | C48: 75 | D48: 17.79999924 | E48: 0.57 | F48: 1.399999976 | G48: 0.69 | H48: 0.5 | I48: 0.51 | J48: 1.299999952 | K48: 0.63 | L48: 0.8000000119 | M48: 0.81 | N48: 1.399999976 | O48: 0.69 | P48: 2.299999952 | Q48: 0.56 | R48: 1.200000048 | S48: 0.61 | T48: 0.5 | U48: 0.45 | V48: 1.200000048 | W48: 0.6 | X48: 3 | Y48: 0.5 | Z48: 2.799999952 | AA48: 0.57 | AB48: 0.5 | AC48: 0.53 | AD48: 0.8999999762 | AE48: 0.44
A49: 451 | B49: 0451 Doolin /Ashe K-8 Academy | C49: 123 | D49: 18.79999924 | E49: 0.61 | F49: 1.600000024 | G49: 0.79 | H49: 0.6000000238 | I49: 0.62 | J49: 1.299999952 | K49: 0.65 | L49: 0.8000000119 | M49: 0.81 | N49: 1.399999976 | O49: 0.7 | P49: 2.5 | Q49: 0.62 | R49: 1.299999952 | S49: 0.64 | T49: 0.400000006 | U49: 0.38 | V49: 1.299999952 | W49: 0.63 | X49: 3.299999952 | Y49: 0.56 | Z49: 2.799999952 | AA49: 0.57 | AB49: 0.6000000238 | AC49: 0.55 | AD49: 1 | AE49: 0.48
A50: 461 | B50: 0461 Brentwood Elementary | C50: 136 | D50: 15.10000038 | E50: 0.49 | F50: 1.299999952 | G50: 0.67 | H50: 0.5 | I50: 0.46 | J50: 0.8999999762 | K50: 0.43 | L50: 0.6999999881 | M50: 0.65 | N50: 1.299999952 | O50: 0.65 | P50: 2.299999952 | Q50: 0.57 | R50: 1.100000024 | S50: 0.53 | T50: 0.400000006 | U50: 0.38 | V50: 1 | W50: 0.5 | X50: 2.5 | Y50: 0.42 | Z50: 2.400000095 | AA50: 0.48 | AB50: 0.3000000119 | AC50: 0.34 | AD50: 0.6000000238 | AE50: 0.28
A51: 481 | B51: 0481 James H. Bright Elementary | C51: 123 | D51: 14.60000038 | E51: 0.47 | F51: 1.100000024 | G51: 0.53 | H51: 0.5 | I51: 0.5 | J51: 1 | K51: 0.48 | L51: 0.6000000238 | M51: 0.63 | N51: 1.200000048 | O51: 0.59 | P51: 1.899999976 | Q51: 0.48 | R51: 1.100000024 | S51: 0.54 | T51: 0.400000006 | U51: 0.36 | V51: 1 | W51: 0.48 | X51: 2.599999905 | Y51: 0.44 | Z51: 2.299999952 | AA51: 0.47 | AB51: 0.3000000119 | AC51: 0.33 | AD51: 0.6999999881 | AE51: 0.33
A52: 510 | B52: 0510 Archimedean Academy Charter | C52: 73 | D52: 20.20000076 | E52: 0.65 | F52: 1.399999976 | G52: 0.71 | H52: 0.6999999881 | I52: 0.66 | J52: 1.399999976 | K52: 0.71 | L52: 0.8000000119 | M52: 0.82 | N52: 1.399999976 | O52: 0.72 | P52: 2.700000048 | Q52: 0.66 | R52: 1.399999976 | S52: 0.7 | T52: 0.5 | U52: 0.55 | V52: 1.399999976 | W52: 0.72 | X52: 3.599999905 | Y52: 0.59 | Z52: 3.299999952 | AA52: 0.65 | AB52: 0.6999999881 | AC52: 0.67 | AD52: 0.8999999762 | AE52: 0.47
A53: 520 | B53: 0520 Somerset Academy | C53: 98 | D53: 20 | E53: 0.65 | F53: 1.5 | G53: 0.76 | H53: 0.6999999881 | I53: 0.72 | J53: 1.399999976 | K53: 0.7 | L53: 0.8000000119 | M53: 0.85 | N53: 1.5 | O53: 0.76 | P53: 2.5 | Q53: 0.62 | R53: 1.399999976 | S53: 0.68 | T53: 0.5 | U53: 0.53 | V53: 1.299999952 | W53: 0.63 | X53: 3.700000048 | Y53: 0.62 | Z53: 3.099999905 | AA53: 0.63 | AB53: 0.6000000238 | AC53: 0.61 | AD53: 0.8999999762 | AE53: 0.45
A54: 521 | B54: 0521 Broadmoor Elementary | C54: 62 | D54: 14.60000038 | E54: 0.47 | F54: 1.200000048 | G54: 0.61 | H54: 0.400000006 | I54: 0.4 | J54: 1 | K54: 0.48 | L54: 0.8000000119 | M54: 0.76 | N54: 1.100000024 | O54: 0.55 | P54: 1.899999976 | Q54: 0.48 | R54: 0.8999999762 | S54: 0.47 | T54: 0.400000006 | U54: 0.42 | V54: 0.8999999762 | W54: 0.44 | X54: 2.5 | Y54: 0.42 | Z54: 2.5 | AA54: 0.49 | AB54: 0.400000006 | AC54: 0.35 | AD54: 0.6999999881 | AE54: 0.36
A55: 561 | B55: 0561 William J. Bryan Elementary | C55: 127 | D55: 14.19999981 | E55: 0.46 | F55: 1.200000048 | G55: 0.59 | H55: 0.400000006 | I55: 0.42 | J55: 1 | K55: 0.48 | L55: 0.6999999881 | M55: 0.72 | N55: 1.100000024 | O55: 0.56 | P55: 1.899999976 | Q55: 0.48 | R55: 1 | S55: 0.48 | T55: 0.3000000119 | U55: 0.29 | V55: 1 | W55: 0.48 | X55: 2.200000048 | Y55: 0.37 | Z55: 2.400000095 | AA55: 0.48 | AB55: 0.400000006 | AC55: 0.4 | AD55: 0.6999999881 | AE55: 0.34
A56: 600 | B56: 0600 Pinecrest Preparatory Academy Charter | C56: 121 | D56: 22.29999924 | E56: 0.72 | F56: 1.700000048 | G56: 0.83 | H56: 0.8000000119 | I56: 0.75 | J56: 1.600000024 | K56: 0.81 | L56: 0.8999999762 | M56: 0.9 | N56: 1.600000024 | O56: 0.79 | P56: 2.900000095 | Q56: 0.72 | R56: 1.399999976 | S56: 0.7 | T56: 0.6000000238 | U56: 0.59 | V56: 1.399999976 | W56: 0.71 | X56: 4.199999809 | Y56: 0.71 | Z56: 3.5 | AA56: 0.7 | AB56: 0.6999999881 | AC56: 0.74 | AD56: 1.100000024 | AE56: 0.54
A57: 641 | B57: 0641 Bunche Park Elementary | C57: 37 | D57: 14.89999962 | E57: 0.48 | F57: 1.200000048 | G57: 0.62 | H57: 0.400000006 | I57: 0.35 | J57: 0.8000000119 | K57: 0.39 | L57: 0.8000000119 | M57: 0.78 | N57: 1.200000048 | O57: 0.58 | P57: 1.899999976 | Q57: 0.48 | R57: 1 | S57: 0.51 | T57: 0.5 | U57: 0.46 | V57: 1.100000024 | W57: 0.55 | X57: 2.5 | Y57: 0.41 | Z57: 2.5 | AA57: 0.51 | AB57: 0.5 | AC57: 0.51 | AD57: 0.5 | AE57: 0.26
A58: 651 | B58: 0651 Campbell Drive Elementary | C58: 94 | D58: 14.60000038 | E58: 0.47 | F58: 1.200000048 | G58: 0.59 | H58: 0.400000006 | I58: 0.41 | J58: 0.8999999762 | K58: 0.45 | L58: 0.6999999881 | M58: 0.73 | N58: 1.200000048 | O58: 0.59 | P58: 2.099999905 | Q58: 0.51 | R58: 1 | S58: 0.49 | T58: 0.400000006 | U58: 0.39 | V58: 1 | W58: 0.49 | X58: 2.400000095 | Y58: 0.4 | Z58: 2.299999952 | AA58: 0.46 | AB58: 0.400000006 | AC58: 0.37 | AD58: 0.8000000119 | AE58: 0.39
A59: 661 | B59: 0661 Caribbean Elementary | C59: 97 | D59: 14.39999962 | E59: 0.46 | F59: 1.200000048 | G59: 0.58 | H59: 0.400000006 | I59: 0.36 | J59: 0.8000000119 | K59: 0.41 | L59: 0.6000000238 | M59: 0.64 | N59: 1.100000024 | O59: 0.56 | P59: 2 | Q59: 0.49 | R59: 1 | S59: 0.48 | T59: 0.3000000119 | U59: 0.27 | V59: 0.8999999762 | W59: 0.47 | X59: 2.599999905 | Y59: 0.44 | Z59: 2.400000095 | AA59: 0.48 | AB59: 0.400000006 | AC59: 0.37 | AD59: 0.6999999881 | AE59: 0.35
A60: 671 | B60: 0671 Calusa Elementary School | C60: 140 | D60: 19.39999962 | E60: 0.63 | F60: 1.5 | G60: 0.76 | H60: 0.6000000238 | I60: 0.63 | J60: 1.399999976 | K60: 0.69 | L60: 0.8000000119 | M60: 0.81 | N60: 1.5 | O60: 0.74 | P60: 2.400000095 | Q60: 0.59 | R60: 1.399999976 | S60: 0.68 | T60: 0.400000006 | U60: 0.44 | V60: 1.299999952 | W60: 0.63 | X60: 3.599999905 | Y60: 0.6 | Z60: 3 | AA60: 0.6 | AB60: 0.6999999881 | AC60: 0.68 | AD60: 0.8999999762 | AE60: 0.46
A61: 681 | B61: 0681 Carol City Elementary School | C61: 96 | D61: 13.80000019 | E61: 0.45 | F61: 1.100000024 | G61: 0.53 | H61: 0.400000006 | I61: 0.38 | J61: 0.8999999762 | K61: 0.47 | L61: 0.6999999881 | M61: 0.7 | N61: 1.200000048 | O61: 0.58 | P61: 1.899999976 | Q61: 0.48 | R61: 1 | S61: 0.48 | T61: 0.3000000119 | U61: 0.3 | V61: 0.8999999762 | W61: 0.47 | X61: 2.400000095 | Y61: 0.4 | Z61: 2 | AA61: 0.41 | AB61: 0.400000006 | AC61: 0.38 | AD61: 0.6000000238 | AE61: 0.3
A62: 721 | B62: 0721 George Washington Carver Elementary | C62: 83 | D62: 18.70000076 | E62: 0.6 | F62: 1.600000024 | G62: 0.8 | H62: 0.5 | I62: 0.53 | J62: 1.299999952 | K62: 0.66 | L62: 0.8000000119 | M62: 0.83 | N62: 1.299999952 | O62: 0.66 | P62: 2.5 | Q62: 0.63 | R62: 1.200000048 | S62: 0.6 | T62: 0.5 | U62: 0.54 | V62: 1.200000048 | W62: 0.6 | X62: 3.299999952 | Y62: 0.56 | Z62: 3 | AA62: 0.59 | AB62: 0.5 | AC62: 0.48 | AD62: 0.8999999762 | AE62: 0.45
A63: 761 | B63: 0761 Fienberg Fisher K-8 Center | C63: 81 | D63: 14.89999962 | E63: 0.48 | F63: 1.100000024 | G63: 0.56 | H63: 0.400000006 | I63: 0.37 | J63: 1 | K63: 0.48 | L63: 0.6999999881 | M63: 0.65 | N63: 1.200000048 | O63: 0.58 | P63: 1.899999976 | Q63: 0.47 | R63: 1.100000024 | S63: 0.54 | T63: 0.400000006 | U63: 0.38 | V63: 1.100000024 | W63: 0.57 | X63: 2.5 | Y63: 0.42 | Z63: 2.5 | AA63: 0.49 | AB63: 0.400000006 | AC63: 0.37 | AD63: 0.8000000119 | AE63: 0.39
A64: 771 | B64: 0771 Dr William A. Chapman Elementary | C64: 62 | D64: 16.20000076 | E64: 0.52 | F64: 1.200000048 | G64: 0.62 | H64: 0.400000006 | I64: 0.44 | J64: 1 | K64: 0.49 | L64: 0.6999999881 | M64: 0.74 | N64: 1.299999952 | O64: 0.63 | P64: 2.299999952 | Q64: 0.57 | R64: 1.100000024 | S64: 0.56 | T64: 0.5 | U64: 0.48 | V64: 1.100000024 | W64: 0.56 | X64: 2.799999952 | Y64: 0.47 | Z64: 2.5 | AA64: 0.51 | AB64: 0.5 | AC64: 0.5 | AD64: 0.6999999881 | AE64: 0.34
A65: 801 | B65: 0801 Citrus Grove Elementary | C65: 130 | D65: 15.30000019 | E65: 0.49 | F65: 1.299999952 | G65: 0.65 | H65: 0.400000006 | I65: 0.42 | J65: 1 | K65: 0.49 | L65: 0.6999999881 | M65: 0.75 | N65: 1.200000048 | O65: 0.59 | P65: 2 | Q65: 0.51 | R65: 1 | S65: 0.52 | T65: 0.3000000119 | U65: 0.32 | V65: 0.8999999762 | W65: 0.46 | X65: 2.599999905 | Y65: 0.43 | Z65: 2.599999905 | AA65: 0.53 | AB65: 0.5 | AC65: 0.45 | AD65: 0.6999999881 | AE65: 0.35
A66: 831 | B66: 0831 Claude Pepper Elementary | C66: 121 | D66: 17.89999962 | E66: 0.58 | F66: 1.299999952 | G66: 0.64 | H66: 0.5 | I66: 0.46 | J66: 1.200000048 | K66: 0.58 | L66: 0.8000000119 | M66: 0.79 | N66: 1.399999976 | O66: 0.69 | P66: 2.5 | Q66: 0.62 | R66: 1.200000048 | S66: 0.58 | T66: 0.400000006 | U66: 0.4 | V66: 1.200000048 | W66: 0.6 | X66: 3.200000048 | Y66: 0.53 | Z66: 3 | AA66: 0.6 | AB66: 0.5 | AC66: 0.55 | AD66: 0.8999999762 | AE66: 0.45
A67: 841 | B67: 0841 Coconut Grove Elementary School | C67: 53 | D67: 17.10000038 | E67: 0.55 | F67: 1.299999952 | G67: 0.63 | H67: 0.5 | I67: 0.47 | J67: 1.200000048 | K67: 0.62 | L67: 0.6999999881 | M67: 0.72 | N67: 1.100000024 | O67: 0.56 | P67: 2.299999952 | Q67: 0.57 | R67: 1.100000024 | S67: 0.55 | T67: 0.400000006 | U67: 0.43 | V67: 1.200000048 | W67: 0.62 | X67: 3.099999905 | Y67: 0.52 | Z67: 2.599999905 | AA67: 0.52 | AB67: 0.6000000238 | AC67: 0.64 | AD67: 0.8000000119 | AE67: 0.42
A68: 861 | B68: 0861 Colonial Drive Elementary | C68: 45 | D68: 18 | E68: 0.58 | F68: 1.5 | G68: 0.76 | H68: 0.6999999881 | I68: 0.69 | J68: 1.399999976 | K68: 0.68 | L68: 0.8000000119 | M68: 0.8 | N68: 1.299999952 | O68: 0.63 | P68: 2.299999952 | Q68: 0.57 | R68: 1.200000048 | S68: 0.59 | T68: 0.5 | U68: 0.53 | V68: 1.100000024 | W68: 0.56 | X68: 3.200000048 | Y68: 0.54 | Z68: 2.900000095 | AA68: 0.58 | AB68: 0.400000006 | AC68: 0.42 | AD68: 0.8000000119 | AE68: 0.4
A69: 881 | B69: 0881 Comstock Elementary School | C69: 88 | D69: 13.89999962 | E69: 0.45 | F69: 1 | G69: 0.52 | H69: 0.400000006 | I69: 0.42 | J69: 0.8999999762 | K69: 0.44 | L69: 0.6999999881 | M69: 0.66 | N69: 1.100000024 | O69: 0.55 | P69: 2.099999905 | Q69: 0.51 | R69: 1 | S69: 0.49 | T69: 0.3000000119 | U69: 0.32 | V69: 0.8000000119 | W69: 0.42 | X69: 2.299999952 | Y69: 0.39 | Z69: 2.200000048 | AA69: 0.44 | AB69: 0.400000006 | AC69: 0.4 | AD69: 0.6999999881 | AE69: 0.36
A70: 950 | B70: 0950 Aventura City Of Excellence School | C70: 104 | D70: 20.79999924 | E70: 0.67 | F70: 1.700000048 | G70: 0.85 | H70: 0.6999999881 | I70: 0.65 | J70: 1.399999976 | K70: 0.71 | L70: 0.8999999762 | M70: 0.88 | N70: 1.5 | O70: 0.75 | P70: 2.5 | Q70: 0.63 | R70: 1.299999952 | S70: 0.65 | T70: 0.6000000238 | U70: 0.56 | V70: 1.5 | W70: 0.74 | X70: 3.799999952 | Y70: 0.63 | Z70: 3.400000095 | AA70: 0.68 | AB70: 0.6999999881 | AC70: 0.66 | AD70: 0.8999999762 | AE70: 0.47
A71: 961 | B71: 0961 Coral Gables Elementary | C71: 94 | D71: 19.29999924 | E71: 0.62 | F71: 1.5 | G71: 0.74 | H71: 0.6000000238 | I71: 0.62 | J71: 1.399999976 | K71: 0.68 | L71: 0.8000000119 | M71: 0.84 | N71: 1.600000024 | O71: 0.8 | P71: 2.400000095 | Q71: 0.59 | R71: 1.299999952 | S71: 0.65 | T71: 0.400000006 | U71: 0.44 | V71: 1.5 | W71: 0.74 | X71: 3.400000095 | Y71: 0.57 | Z71: 3 | AA71: 0.6 | AB71: 0.6000000238 | AC71: 0.61 | AD71: 0.8999999762 | AE71: 0.44
A72: 1001 | B72: 1001 Coral Park Elementary | C72: 151 | D72: 19.89999962 | E72: 0.64 | F72: 1.399999976 | G72: 0.71 | H72: 0.6999999881 | I72: 0.68 | J72: 1.5 | K72: 0.76 | L72: 0.8999999762 | M72: 0.86 | N72: 1.5 | O72: 0.76 | P72: 2.5 | Q72: 0.61 | R72: 1.299999952 | S72: 0.64 | T72: 0.5 | U72: 0.52 | V72: 1.299999952 | W72: 0.67 | X72: 3.5 | Y72: 0.58 | Z72: 3.200000048 | AA72: 0.64 | AB72: 0.6000000238 | AC72: 0.62 | AD72: 0.8999999762 | AE72: 0.46
A73: 1010 | B73: 1010 The Charter School At Waterstone | C73: 153 | D73: 19 | E73: 0.61 | F73: 1.5 | G73: 0.76 | H73: 0.6000000238 | I73: 0.59 | J73: 1.299999952 | K73: 0.66 | L73: 0.8999999762 | M73: 0.86 | N73: 1.5 | O73: 0.75 | P73: 2.400000095 | Q73: 0.59 | R73: 1.200000048 | S73: 0.58 | T73: 0.5 | U73: 0.52 | V73: 1.299999952 | W73: 0.63 | X73: 3.299999952 | Y73: 0.55 | Z73: 3.099999905 | AA73: 0.61 | AB73: 0.6000000238 | AC73: 0.61 | AD73: 0.8000000119 | AE73: 0.42
A74: 1014 | B74: 1014 Advanced Learning Charter | C74: 66 | D74: 19.70000076 | E74: 0.63 | F74: 1.5 | G74: 0.77 | H74: 0.6000000238 | I74: 0.56 | J74: 1.299999952 | K74: 0.64 | L74: 0.8999999762 | M74: 0.92 | N74: 1.700000048 | O74: 0.83 | P74: 2.5 | Q74: 0.62 | R74: 1.200000048 | S74: 0.61 | T74: 0.400000006 | U74: 0.42 | V74: 1.299999952 | W74: 0.64 | X74: 3.5 | Y74: 0.59 | Z74: 3.099999905 | AA74: 0.63 | AB74: 0.5 | AC74: 0.52 | AD74: 1.100000024 | AE74: 0.55
A75: 1017 | B75: 1017 Mater Academy of International Studies | C75: 85 | D75: 19.10000038 | E75: 0.62 | F75: 1.5 | G75: 0.76 | H75: 0.6000000238 | I75: 0.55 | J75: 1.399999976 | K75: 0.68 | L75: 0.8999999762 | M75: 0.86 | N75: 1.399999976 | O75: 0.72 | P75: 2.5 | Q75: 0.62 | R75: 1.299999952 | S75: 0.64 | T75: 0.400000006 | U75: 0.45 | V75: 1.299999952 | W75: 0.64 | X75: 3.400000095 | Y75: 0.57 | Z75: 3.099999905 | AA75: 0.62 | AB75: 0.6000000238 | AC75: 0.6 | AD75: 0.8000000119 | AE75: 0.39
A76: 1020 | B76: 1020 Youth Co-op Charter School | C76: 52 | D76: 19.60000038 | E76: 0.63 | F76: 1.5 | G76: 0.73 | H76: 0.6000000238 | I76: 0.6 | J76: 1.399999976 | K76: 0.68 | L76: 0.8999999762 | M76: 0.94 | N76: 1.299999952 | O76: 0.67 | P76: 2.5 | Q76: 0.62 | R76: 1.299999952 | S76: 0.63 | T76: 0.5 | U76: 0.48 | V76: 1.299999952 | W76: 0.67 | X76: 3.5 | Y76: 0.58 | Z76: 3.400000095 | AA76: 0.68 | AB76: 0.6000000238 | AC76: 0.63 | AD76: 0.8000000119 | AE76: 0.41
A77: 1041 | B77: 1041 Coral Reef Elementary | C77: 131 | D77: 21.39999962 | E77: 0.69 | F77: 1.5 | G77: 0.77 | H77: 0.6999999881 | I77: 0.75 | J77: 1.399999976 | K77: 0.69 | L77: 0.8999999762 | M77: 0.9 | N77: 1.5 | O77: 0.76 | P77: 2.799999952 | Q77: 0.69 | R77: 1.5 | S77: 0.73 | T77: 0.5 | U77: 0.53 | V77: 1.5 | W77: 0.73 | X77: 3.900000095 | Y77: 0.65 | Z77: 3.5 | AA77: 0.7 | AB77: 0.6999999881 | AC77: 0.73 | AD77: 1 | AE77: 0.5
A78: 1081 | B78: 1081 Coral Terrace Elementary | C78: 75 | D78: 16.60000038 | E78: 0.53 | F78: 1.200000048 | G78: 0.61 | H78: 0.5 | I78: 0.51 | J78: 1.200000048 | K78: 0.6 | L78: 0.6999999881 | M78: 0.71 | N78: 1.299999952 | O78: 0.63 | P78: 2.200000048 | Q78: 0.54 | R78: 1 | S78: 0.52 | T78: 0.400000006 | U78: 0.4 | V78: 1.100000024 | W78: 0.57 | X78: 2.900000095 | Y78: 0.48 | Z78: 2.700000048 | AA78: 0.54 | AB78: 0.5 | AC78: 0.49 | AD78: 0.8999999762 | AE78: 0.44
A79: =IFERROR(VALUE(LEFT(B79,4)),"") -> 1121 | B79: 1121 Coral Way K-8 Center | C79: 169 | D79: 16.79999924 | E79: 0.54 | F79: 1.399999976 | G79: 0.68 | H79: 0.400000006 | I79: 0.37 | J79: 1.100000024 | K79: 0.57 | L79: 0.6999999881 | M79: 0.73 | N79: 1.299999952 | O79: 0.65 | P79: 2.099999905 | Q79: 0.53 | R79: 1.200000048 | S79: 0.6 | T79: 0.400000006 | U79: 0.4 | V79: 1.100000024 | W79: 0.57 | X79: 3 | Y79: 0.5 | Z79: 2.700000048 | AA79: 0.54 | AB79: 0.5 | AC79: 0.52 | AD79: 0.8000000119 | AE79: 0.41
A80: 1161 | B80: 1161 Crestview Elementary | C80: 90 | D80: 16.10000038 | E80: 0.52 | F80: 1.100000024 | G80: 0.57 | H80: 0.5 | I80: 0.53 | J80: 1 | K80: 0.51 | L80: 0.8000000119 | M80: 0.78 | N80: 1.299999952 | O80: 0.64 | P80: 2.299999952 | Q80: 0.58 | R80: 1.200000048 | S80: 0.6 | T80: 0.3000000119 | U80: 0.34 | V80: 1.100000024 | W80: 0.56 | X80: 2.900000095 | Y80: 0.48 | Z80: 2.400000095 | AA80: 0.48 | AB80: 0.400000006 | AC80: 0.36 | AD80: 0.6999999881 | AE80: 0.34
A81: 1241 | B81: 1241 Cutler Ridge Elementary | C81: 159 | D81: 17.79999924 | E81: 0.58 | F81: 1.399999976 | G81: 0.69 | H81: 0.5 | I81: 0.53 | J81: 1.100000024 | K81: 0.55 | L81: 0.8000000119 | M81: 0.79 | N81: 1.299999952 | O81: 0.67 | P81: 2.299999952 | Q81: 0.58 | R81: 1.200000048 | S81: 0.6 | T81: 0.400000006 | U81: 0.45 | V81: 1.200000048 | W81: 0.6 | X81: 3.200000048 | Y81: 0.53 | Z81: 2.900000095 | AA81: 0.58 | AB81: 0.5 | AC81: 0.52 | AD81: 0.8999999762 | AE81: 0.46
A82: 1281 | B82: 1281 Cypress Elementary | C82: 47 | D82: 18 | E82: 0.58 | F82: 1.399999976 | G82: 0.69 | H82: 0.5 | I82: 0.47 | J82: 1.299999952 | K82: 0.66 | L82: 0.8999999762 | M82: 0.89 | N82: 1.299999952 | O82: 0.63 | P82: 2.099999905 | Q82: 0.53 | R82: 1.100000024 | S82: 0.53 | T82: 0.5 | U82: 0.51 | V82: 1.200000048 | W82: 0.6 | X82: 3 | Y82: 0.5 | Z82: 3.5 | AA82: 0.7 | AB82: 0.6000000238 | AC82: 0.57 | AD82: 0.6999999881 | AE82: 0.37
A83: 1331 | B83: 1331 Devon Aire K-8 Center | C83: 156 | D83: 19.89999962 | E83: 0.64 | F83: 1.5 | G83: 0.75 | H83: 0.6000000238 | I83: 0.63 | J83: 1.5 | K83: 0.73 | L83: 0.8999999762 | M83: 0.88 | N83: 1.600000024 | O83: 0.8 | P83: 2.5 | Q83: 0.63 | R83: 1.399999976 | S83: 0.69 | T83: 0.400000006 | U83: 0.41 | V83: 1.299999952 | W83: 0.66 | X83: 3.400000095 | Y83: 0.56 | Z83: 3.200000048 | AA83: 0.64 | AB83: 0.6000000238 | AC83: 0.62 | AD83: 1.100000024 | AE83: 0.53
A84: 1361 | B84: 1361 Frederick Douglass Elementary | C84: 62 | D84: 11.30000019 | E84: 0.36 | F84: 0.8999999762 | G84: 0.43 | H84: 0.3000000119 | I84: 0.27 | J84: 0.6000000238 | K84: 0.3 | L84: 0.5 | M84: 0.53 | N84: 0.8999999762 | O84: 0.45 | P84: 1.600000024 | Q84: 0.4 | R84: 0.8000000119 | S84: 0.38 | T84: 0.3000000119 | U84: 0.34 | V84: 0.6999999881 | W84: 0.35 | X84: 2.099999905 | Y84: 0.34 | Z84: 1.700000048 | AA84: 0.35 | AB84: 0.3000000119 | AC84: 0.27 | AD84: 0.6000000238 | AE84: 0.32
A85: 1371 | B85: 1371 Marjory Stoneman Douglas Elementary | C85: 157 | D85: 18.10000038 | E85: 0.58 | F85: 1.299999952 | G85: 0.66 | H85: 0.5 | I85: 0.47 | J85: 1.200000048 | K85: 0.61 | L85: 0.8000000119 | M85: 0.82 | N85: 1.200000048 | O85: 0.62 | P85: 2.5 | Q85: 0.63 | R85: 1.299999952 | S85: 0.64 | T85: 0.400000006 | U85: 0.43 | V85: 1.200000048 | W85: 0.6 | X85: 3.299999952 | Y85: 0.55 | Z85: 2.900000095 | AA85: 0.59 | AB85: 0.5 | AC85: 0.47 | AD85: 0.8999999762 | AE85: 0.44
A86: 1401 | B86: 1401 Charles R. Drew Elementary | C86: 36 | D86: 12.39999962 | E86: 0.4 | F86: 1.200000048 | G86: 0.58 | H86: 0.200000003 | I86: 0.22 | J86: 0.6999999881 | K86: 0.36 | L86: 0.6000000238 | M86: 0.61 | N86: 1 | O86: 0.51 | P86: 1.5 | Q86: 0.37 | R86: 0.8000000119 | S86: 0.4 | T86: 0.400000006 | U86: 0.36 | V86: 0.8999999762 | W86: 0.43 | X86: 2 | Y86: 0.34 | Z86: 2.099999905 | AA86: 0.41 | AB86: 0.3000000119 | AC86: 0.33 | AD86: 0.8000000119 | AE86: 0.38
A87: 1441 | B87: 1441 Paul Lawrence Dunbar Elementary | C87: 59 | D87: 12.69999981 | E87: 0.41 | F87: 1.100000024 | G87: 0.53 | H87: 0.400000006 | I87: 0.37 | J87: 0.8000000119 | K87: 0.38 | L87: 0.6000000238 | M87: 0.61 | N87: 0.8999999762 | O87: 0.43 | P87: 1.700000048 | Q87: 0.43 | R87: 0.8999999762 | S87: 0.43 | T87: 0.400000006 | U87: 0.42 | V87: 0.8999999762 | W87: 0.43 | X87: 2.400000095 | Y87: 0.41 | Z87: 1.899999976 | AA87: 0.39 | AB87: 0.3000000119 | AC87: 0.27 | AD87: 0.5 | AE87: 0.25
A88: 1481 | B88: 1481 John G. Dupuis | C88: 96 | D88: 17.89999962 | E88: 0.58 | F88: 1.5 | G88: 0.73 | H88: 0.6000000238 | I88: 0.59 | J88: 1.299999952 | K88: 0.65 | L88: 0.8000000119 | M88: 0.82 | N88: 1.200000048 | O88: 0.61 | P88: 2.299999952 | Q88: 0.58 | R88: 1.100000024 | S88: 0.55 | T88: 0.5 | U88: 0.48 | V88: 1 | W88: 0.52 | X88: 3.200000048 | Y88: 0.53 | Z88: 3 | AA88: 0.6 | AB88: 0.5 | AC88: 0.53 | AD88: 0.8000000119 | AE88: 0.41
A89: 1521 | B89: 1521 Amelia Earhart Elementary | C89: 78 | D89: 17 | E89: 0.55 | F89: 1.100000024 | G89: 0.56 | H89: 0.6000000238 | I89: 0.6 | J89: 1 | K89: 0.51 | L89: 0.6999999881 | M89: 0.69 | N89: 1.299999952 | O89: 0.65 | P89: 2.400000095 | Q89: 0.59 | R89: 1.200000048 | S89: 0.6 | T89: 0.400000006 | U89: 0.37 | V89: 1 | W89: 0.51 | X89: 3 | Y89: 0.5 | Z89: 2.799999952 | AA89: 0.56 | AB89: 0.5 | AC89: 0.51 | AD89: 1 | AE89: 0.48
A90: 1561 | B90: 1561 Earlington Heights Elementary | C90: 68 | D90: 13.19999981 | E90: 0.43 | F90: 1.100000024 | G90: 0.57 | H90: 0.3000000119 | I90: 0.26 | J90: 0.8000000119 | K90: 0.38 | L90: 0.6000000238 | M90: 0.63 | N90: 1.100000024 | O90: 0.56 | P90: 1.799999952 | Q90: 0.44 | R90: 0.8999999762 | S90: 0.47 | T90: 0.3000000119 | U90: 0.26 | V90: 1 | W90: 0.49 | X90: 2.200000048 | Y90: 0.36 | Z90: 2.200000048 | AA90: 0.44 | AB90: 0.3000000119 | AC90: 0.32 | AD90: 0.6999999881 | AE90: 0.34
A91: 1601 | B91: 1601 Edison Park Elementary | C91: 57 | D91: 14.80000019 | E91: 0.48 | F91: 1.200000048 | G91: 0.58 | H91: 0.400000006 | I91: 0.4 | J91: 0.8999999762 | K91: 0.43 | L91: 0.8000000119 | M91: 0.77 | N91: 1.100000024 | O91: 0.53 | P91: 2.099999905 | Q91: 0.54 | R91: 1 | S91: 0.51 | T91: 0.400000006 | U91: 0.44 | V91: 1 | W91: 0.48 | X91: 2.299999952 | Y91: 0.39 | Z91: 2.400000095 | AA91: 0.48 | AB91: 0.5 | AC91: 0.49 | AD91: 0.6999999881 | AE91: 0.37
A92: 1641 | B92: 1641 Emerson Elementary | C92: 80 | D92: 17.39999962 | E92: 0.56 | F92: 1.299999952 | G92: 0.67 | H92: 0.5 | I92: 0.54 | J92: 1.299999952 | K92: 0.63 | L92: 0.8000000119 | M92: 0.79 | N92: 1.299999952 | O92: 0.65 | P92: 2.299999952 | Q92: 0.58 | R92: 1.100000024 | S92: 0.56 | T92: 0.400000006 | U92: 0.4 | V92: 1 | W92: 0.52 | X92: 3 | Y92: 0.49 | Z92: 2.799999952 | AA92: 0.56 | AB92: 0.6000000238 | AC92: 0.55 | AD92: 1 | AE92: 0.48
A93: 1681 | B93: 1681 Lillie C. Evans Elementary | C93: 43 | D93: 14 | E93: 0.45 | F93: 1.100000024 | G93: 0.56 | H93: 0.5 | I93: 0.49 | J93: 0.8000000119 | K93: 0.38 | L93: 0.6000000238 | M93: 0.6 | N93: 1.200000048 | O93: 0.6 | P93: 2 | Q93: 0.49 | R93: 1 | S93: 0.49 | T93: 0.400000006 | U93: 0.42 | V93: 0.8999999762 | W93: 0.47 | X93: 2.400000095 | Y93: 0.41 | Z93: 1.899999976 | AA93: 0.39 | AB93: 0.400000006 | AC93: 0.37 | AD93: 0.8000000119 | AE93: 0.38
A94: 1691 | B94: 1691 Christina Eve Elementary | C94: 96 | D94: 19.60000038 | E94: 0.63 | F94: 1.5 | G94: 0.73 | H94: 0.6000000238 | I94: 0.6 | J94: 1.299999952 | K94: 0.67 | L94: 0.8000000119 | M94: 0.84 | N94: 1.5 | O94: 0.73 | P94: 2.5 | Q94: 0.63 | R94: 1.299999952 | S94: 0.67 | T94: 0.6000000238 | U94: 0.55 | V94: 1.200000048 | W94: 0.61 | X94: 3.700000048 | Y94: 0.61 | Z94: 3.099999905 | AA94: 0.61 | AB94: 0.6999999881 | AC94: 0.69 | AD94: 0.8999999762 | AE94: 0.43
A95: 1721 | B95: 1721 Everglades K-8 Center | C95: 101 | D95: 19.79999924 | E95: 0.64 | F95: 1.5 | G95: 0.75 | H95: 0.6000000238 | I95: 0.58 | J95: 1.399999976 | K95: 0.71 | L95: 0.8999999762 | M95: 0.86 | N95: 1.5 | O95: 0.76 | P95: 2.5 | Q95: 0.62 | R95: 1.299999952 | S95: 0.65 | T95: 0.5 | U95: 0.46 | V95: 1.299999952 | W95: 0.64 | X95: 3.5 | Y95: 0.58 | Z95: 3.200000048 | AA95: 0.65 | AB95: 0.6000000238 | AC95: 0.61 | AD95: 1 | AE95: 0.52
A96: 1761 | B96: 1761 David Fairchild Elementary | C96: 111 | D96: 19.79999924 | E96: 0.64 | F96: 1.5 | G96: 0.76 | H96: 0.6000000238 | I96: 0.6 | J96: 1.399999976 | K96: 0.68 | L96: 0.8000000119 | M96: 0.83 | N96: 1.5 | O96: 0.77 | P96: 2.5 | Q96: 0.62 | R96: 1.399999976 | S96: 0.68 | T96: 0.5 | U96: 0.5 | V96: 1.299999952 | W96: 0.66 | X96: 3.5 | Y96: 0.59 | Z96: 3.200000048 | AA96: 0.65 | AB96: 0.6000000238 | AC96: 0.65 | AD96: 0.8999999762 | AE96: 0.46
A97: 1801 | B97: 1801 Fairlawn Elementary | C97: 100 | D97: 17.89999962 | E97: 0.58 | F97: 1.299999952 | G97: 0.64 | H97: 0.5 | I97: 0.54 | J97: 1.200000048 | K97: 0.57 | L97: 0.8000000119 | M97: 0.82 | N97: 1.399999976 | O97: 0.7 | P97: 2.299999952 | Q97: 0.57 | R97: 1.200000048 | S97: 0.58 | T97: 0.5 | U97: 0.5 | V97: 1.200000048 | W97: 0.62 | X97: 3.200000048 | Y97: 0.53 | Z97: 2.799999952 | AA97: 0.57 | AB97: 0.5 | AC97: 0.5 | AD97: 1 | AE97: 0.51
A98: 1811 | B98: 1811 Dante B. Fascell Elementary | C98: 81 | D98: 18 | E98: 0.58 | F98: 1.299999952 | G98: 0.66 | H98: 0.6000000238 | I98: 0.58 | J98: 1.200000048 | K98: 0.59 | L98: 0.8999999762 | M98: 0.88 | N98: 1.5 | O98: 0.73 | P98: 2.400000095 | Q98: 0.61 | R98: 1.100000024 | S98: 0.56 | T98: 0.5 | U98: 0.48 | V98: 1.299999952 | W98: 0.65 | X98: 3.099999905 | Y98: 0.51 | Z98: 2.900000095 | AA98: 0.57 | AB98: 0.5 | AC98: 0.47 | AD98: 0.8999999762 | AE98: 0.44
A99: 1841 | B99: 1841 Flagami Elementary | C99: 67 | D99: 17.5 | E99: 0.56 | F99: 1.399999976 | G99: 0.72 | H99: 0.5 | I99: 0.48 | J99: 1 | K99: 0.51 | L99: 0.8000000119 | M99: 0.79 | N99: 1.399999976 | O99: 0.69 | P99: 2.299999952 | Q99: 0.59 | R99: 1.100000024 | S99: 0.57 | T99: 0.3000000119 | U99: 0.34 | V99: 1.200000048 | W99: 0.59 | X99: 3.400000095 | Y99: 0.56 | Z99: 2.599999905 | AA99: 0.51 | AB99: 0.6000000238 | AC99: 0.55 | AD99: 0.8999999762 | AE99: 0.44
A100: 1881 | B100: 1881 Henry M. Flagler Elementary | C100: 117 | D100: 15.80000019 | E100: 0.51 | F100: 1.200000048 | G100: 0.58 | H100: 0.400000006 | I100: 0.42 | J100: 1 | K100: 0.5 | L100: 0.6000000238 | M100: 0.65 | N100: 1.299999952 | O100: 0.66 | P100: 2 | Q100: 0.51 | R100: 1.100000024 | S100: 0.54 | T100: 0.5 | U100: 0.45 | V100: 1.100000024 | W100: 0.57 | X100: 2.900000095 | Y100: 0.49 | Z100: 2.400000095 | AA100: 0.48 | AB100: 0.400000006 | AC100: 0.39 | AD100: 0.8000000119 | AE100: 0.38
A101: 1921 | B101: 1921 Flamingo Elementary | C101: 146 | D101: 14.69999981 | E101: 0.47 | F101: 1.200000048 | G101: 0.59 | H101: 0.400000006 | I101: 0.4 | J101: 0.8999999762 | K101: 0.47 | L101: 0.8000000119 | M101: 0.76 | N101: 1.200000048 | O101: 0.58 | P101: 1.799999952 | Q101: 0.45 | R101: 1 | S101: 0.48 | T101: 0.400000006 | U101: 0.36 | V101: 1 | W101: 0.52 | X101: 2.700000048 | Y101: 0.45 | Z101: 2.299999952 | AA101: 0.46 | AB101: 0.400000006 | AC101: 0.38 | AD101: 0.6999999881 | AE101: 0.35
A102: 2001 | B102: 2001 Florida City Elementary | C102: 93 | D102: 14 | E102: 0.45 | F102: 1.200000048 | G102: 0.62 | H102: 0.3000000119 | I102: 0.33 | J102: 0.8999999762 | K102: 0.46 | L102: 0.8000000119 | M102: 0.76 | N102: 1.100000024 | O102: 0.57 | P102: 1.799999952 | Q102: 0.45 | R102: 0.8000000119 | S102: 0.42 | T102: 0.3000000119 | U102: 0.27 | V102: 1.100000024 | W102: 0.53 | X102: 2.5 | Y102: 0.42 | Z102: 2.200000048 | AA102: 0.43 | AB102: 0.3000000119 | AC102: 0.3 | AD102: 0.6000000238 | AE102: 0.31
A103: 2003 | B103: 2003 Bridgepoint Academy | C103: 53 | D103: 21.60000038 | E103: 0.7 | F103: 1.600000024 | G103: 0.78 | H103: 0.6999999881 | I103: 0.68 | J103: 1.5 | K103: 0.73 | L103: 0.8999999762 | M103: 0.91 | N103: 1.600000024 | O103: 0.79 | P103: 2.599999905 | Q103: 0.65 | R103: 1.5 | S103: 0.75 | T103: 0.5 | U103: 0.49 | V103: 1.299999952 | W103: 0.67 | X103: 4.099999905 | Y103: 0.68 | Z103: 3.599999905 | AA103: 0.71 | AB103: 0.6999999881 | AC103: 0.72 | AD103: 1.200000048 | AE103: 0.58
A104: 2006 | B104: 2006 Richard Allen Leadership Academy | C104: 17 | D104: 15.30000019 | E104: 0.49 | F104: 1.200000048 | G104: 0.59 | H104: 0.400000006 | I104: 0.41 | J104: 1 | K104: 0.5 | L104: 0.6999999881 | M104: 0.71 | N104: 1.100000024 | O104: 0.53 | P104: 1.899999976 | Q104: 0.49 | R104: 1.100000024 | S104: 0.56 | T104: 0.400000006 | U104: 0.35 | V104: 1.100000024 | W104: 0.53 | X104: 2.799999952 | Y104: 0.46 | Z104: 2.400000095 | AA104: 0.48 | AB104: 0.5 | AC104: 0.47 | AD104: 0.8000000119 | AE104: 0.41
A105: 2007 | B105: 2007 Somerset Academy Elementary (South Miami) | C105: 98 | D105: 21.60000038 | E105: 0.7 | F105: 1.700000048 | G105: 0.83 | H105: 0.6999999881 | I105: 0.74 | J105: 1.600000024 | K105: 0.8 | L105: 0.8999999762 | M105: 0.9 | N105: 1.600000024 | O105: 0.82 | P105: 2.799999952 | Q105: 0.69 | R105: 1.299999952 | S105: 0.63 | T105: 0.6000000238 | U105: 0.56 | V105: 1.399999976 | W105: 0.68 | X105: 4 | Y105: 0.67 | Z105: 3.400000095 | AA105: 0.68 | AB105: 0.6999999881 | AC105: 0.7 | AD105: 1 | AE105: 0.48
A106: 2012 | B106: 2012 Somerset Arts Academy | C106: 49 | D106: 18.70000076 | E106: 0.6 | F106: 1.5 | G106: 0.73 | H106: 0.5 | I106: 0.49 | J106: 1.299999952 | K106: 0.63 | L106: 0.8000000119 | M106: 0.82 | N106: 1.5 | O106: 0.77 | P106: 2.5 | Q106: 0.62 | R106: 1.299999952 | S106: 0.66 | T106: 0.400000006 | U106: 0.45 | V106: 1.200000048 | W106: 0.58 | X106: 3.299999952 | Y106: 0.55 | Z106: 2.799999952 | AA106: 0.57 | AB106: 0.6000000238 | AC106: 0.59 | AD106: 0.8999999762 | AE106: 0.47
A107: 2013 | B107: 2013 Bridgepoint Academy Greater Miami | C107: 23 | D107: 16.70000076 | E107: 0.54 | F107: 1.200000048 | G107: 0.59 | H107: 0.3000000119 | I107: 0.26 | J107: 1.200000048 | K107: 0.61 | L107: 0.8000000119 | M107: 0.83 | N107: 1.5 | O107: 0.74 | P107: 1.899999976 | Q107: 0.48 | R107: 1 | S107: 0.5 | T107: 0.3000000119 | U107: 0.3 | V107: 1.100000024 | W107: 0.54 | X107: 3 | Y107: 0.5 | Z107: 3 | AA107: 0.59 | AB107: 0.5 | AC107: 0.52 | AD107: 1 | AE107: 0.48
A108: 2021 | B108: 2021 Gloria Floyd Elementary | C108: 92 | D108: 17.60000038 | E108: 0.57 | F108: 1.399999976 | G108: 0.7 | H108: 0.400000006 | I108: 0.43 | J108: 1.200000048 | K108: 0.61 | L108: 0.8000000119 | M108: 0.79 | N108: 1.399999976 | O108: 0.71 | P108: 2.299999952 | Q108: 0.58 | R108: 1.200000048 | S108: 0.58 | T108: 0.400000006 | U108: 0.4 | V108: 1.100000024 | W108: 0.57 | X108: 3.099999905 | Y108: 0.51 | Z108: 3 | AA108: 0.59 | AB108: 0.5 | AC108: 0.51 | AD108: 0.8000000119 | AE108: 0.39
A109: 2041 | B109: 2041 Benjamin Franklin Elementary School | C109: 67 | D109: 16.70000076 | E109: 0.54 | F109: 1.299999952 | G109: 0.66 | H109: 0.5 | I109: 0.48 | J109: 1 | K109: 0.52 | L109: 0.6999999881 | M109: 0.73 | N109: 1.399999976 | O109: 0.68 | P109: 2.200000048 | Q109: 0.55 | R109: 1.100000024 | S109: 0.57 | T109: 0.400000006 | U109: 0.45 | V109: 1 | W109: 0.52 | X109: 3.099999905 | Y109: 0.51 | Z109: 2.700000048 | AA109: 0.54 | AB109: 0.400000006 | AC109: 0.37 | AD109: 0.8000000119 | AE109: 0.39
A110: 2060 | B110: 2060 Theodore R. And Thelma A. Gibson Charter | C110: 19 | D110: 10.89999962 | E110: 0.35 | F110: 1 | G110: 0.5 | H110: 0.200000003 | I110: 0.16 | J110: 0.5 | K110: 0.24 | L110: 0.6000000238 | M110: 0.63 | N110: 1.100000024 | O110: 0.53 | P110: 1.5 | Q110: 0.37 | R110: 0.6000000238 | S110: 0.29 | T110: 0.3000000119 | U110: 0.26 | V110: 0.6000000238 | W110: 0.32 | X110: 1.700000048 | Y110: 0.29 | Z110: 2 | AA110: 0.4 | AB110: 0.200000003 | AC110: 0.21 | AD110: 0.6999999881 | AE110: 0.37
A111: 2081 | B111: 2081 Fulford Elementary | C111: 79 | D111: 15.60000038 | E111: 0.5 | F111: 1.200000048 | G111: 0.58 | H111: 0.5 | I111: 0.52 | J111: 1 | K111: 0.52 | L111: 0.8000000119 | M111: 0.76 | N111: 1.200000048 | O111: 0.62 | P111: 2.099999905 | Q111: 0.53 | R111: 1 | S111: 0.51 | T111: 0.400000006 | U111: 0.43 | V111: 1.100000024 | W111: 0.53 | X111: 2.700000048 | Y111: 0.45 | Z111: 2.5 | AA111: 0.49 | AB111: 0.3000000119 | AC111: 0.34 | AD111: 0.8000000119 | AE111: 0.38
A112: 2111 | B112: 2111 Hialeah Gardens Elementary | C112: 130 | D112: 18.29999924 | E112: 0.59 | F112: 1.399999976 | G112: 0.68 | H112: 0.6000000238 | I112: 0.56 | J112: 1.200000048 | K112: 0.6 | L112: 0.8000000119 | M112: 0.77 | N112: 1.399999976 | O112: 0.71 | P112: 2.5 | Q112: 0.63 | R112: 1.200000048 | S112: 0.6 | T112: 0.5 | U112: 0.52 | V112: 1.200000048 | W112: 0.61 | X112: 3.200000048 | Y112: 0.53 | Z112: 2.900000095 | AA112: 0.58 | AB112: 0.6000000238 | AC112: 0.56 | AD112: 0.8999999762 | AE112: 0.44
A113: 2151 | B113: 2151 Jack D. Gordon Elementary | C113: 176 | D113: 18.70000076 | E113: 0.6 | F113: 1.399999976 | G113: 0.7 | H113: 0.5 | I113: 0.52 | J113: 1.299999952 | K113: 0.65 | L113: 0.8000000119 | M113: 0.81 | N113: 1.5 | O113: 0.74 | P113: 2.5 | Q113: 0.62 | R113: 1.200000048 | S113: 0.62 | T113: 0.6000000238 | U113: 0.55 | V113: 1.200000048 | W113: 0.61 | X113: 3.299999952 | Y113: 0.55 | Z113: 3 | AA113: 0.61 | AB113: 0.5 | AC113: 0.52 | AD113: 0.8999999762 | AE113: 0.44
A114: 2161 | B114: 2161 Golden Glades Elementary | C114: 46 | D114: 13.5 | E114: 0.44 | F114: 1.200000048 | G114: 0.61 | H114: 0.3000000119 | I114: 0.35 | J114: 1.100000024 | K114: 0.55 | L114: 0.6999999881 | M114: 0.65 | N114: 1 | O114: 0.51 | P114: 1.700000048 | Q114: 0.43 | R114: 0.8999999762 | S114: 0.47 | T114: 0.3000000119 | U114: 0.26 | V114: 0.8000000119 | W114: 0.38 | X114: 2.400000095 | Y114: 0.41 | Z114: 2 | AA114: 0.39 | AB114: 0.400000006 | AC114: 0.43 | AD114: 0.6999999881 | AE114: 0.33
A115: 2181 | B115: 2181 Joella C. Good Elementary | C115: 152 | D115: 17.29999924 | E115: 0.56 | F115: 1.299999952 | G115: 0.66 | H115: 0.5 | I115: 0.53 | J115: 1.200000048 | K115: 0.61 | L115: 0.8000000119 | M115: 0.82 | N115: 1.399999976 | O115: 0.68 | P115: 2.299999952 | Q115: 0.56 | R115: 1.200000048 | S115: 0.6 | T115: 0.3000000119 | U115: 0.35 | V115: 1.100000024 | W115: 0.54 | X115: 3 | Y115: 0.51 | Z115: 2.799999952 | AA115: 0.57 | AB115: 0.5 | AC115: 0.47 | AD115: 0.8000000119 | AE115: 0.42
A116: 2191 | B116: 2191 Spanish Lake Elementary | C116: 304 | D116: 16.89999962 | E116: 0.54 | F116: 1.299999952 | G116: 0.66 | H116: 0.5 | I116: 0.49 | J116: 1.200000048 | K116: 0.6 | L116: 0.8000000119 | M116: 0.75 | N116: 1.299999952 | O116: 0.66 | P116: 2.299999952 | Q116: 0.58 | R116: 1.100000024 | S116: 0.55 | T116: 0.400000006 | U116: 0.41 | V116: 1.100000024 | W116: 0.54 | X116: 3 | Y116: 0.5 | Z116: 2.700000048 | AA116: 0.53 | AB116: 0.5 | AC116: 0.47 | AD116: 0.8000000119 | AE116: 0.4
A117: 2241 | B117: 2241 Gratigny Elementary | C117: 110 | D117: 13.69999981 | E117: 0.44 | F117: 1.100000024 | G117: 0.55 | H117: 0.400000006 | I117: 0.35 | J117: 0.8000000119 | K117: 0.39 | L117: 0.6000000238 | M117: 0.65 | N117: 1.100000024 | O117: 0.55 | P117: 1.899999976 | Q117: 0.48 | R117: 1.100000024 | S117: 0.53 | T117: 0.400000006 | U117: 0.41 | V117: 0.8999999762 | W117: 0.43 | X117: 2.299999952 | Y117: 0.38 | Z117: 2.200000048 | AA117: 0.43 | AB117: 0.400000006 | AC117: 0.38 | AD117: 0.6999999881 | AE117: 0.33
A118: 2261 | B118: 2261 Greenglade Elementary | C118: 82 | D118: 17.5 | E118: 0.57 | F118: 1.399999976 | G118: 0.7 | H118: 0.5 | I118: 0.52 | J118: 1.200000048 | K118: 0.6 | L118: 0.8000000119 | M118: 0.79 | N118: 1.5 | O118: 0.73 | P118: 2.200000048 | Q118: 0.56 | R118: 1.299999952 | S118: 0.63 | T118: 0.400000006 | U118: 0.4 | V118: 1.100000024 | W118: 0.55 | X118: 3 | Y118: 0.49 | Z118: 2.799999952 | AA118: 0.57 | AB118: 0.5 | AC118: 0.5 | AD118: 0.8000000119 | AE118: 0.42
A119: 2281 | B119: 2281 Greynolds Park Elementary | C119: 132 | D119: 16.10000038 | E119: 0.52 | F119: 1.299999952 | G119: 0.64 | H119: 0.6000000238 | I119: 0.55 | J119: 1.200000048 | K119: 0.58 | L119: 0.6999999881 | M119: 0.67 | N119: 1.299999952 | O119: 0.67 | P119: 2 | Q119: 0.5 | R119: 1.100000024 | S119: 0.53 | T119: 0.400000006 | U119: 0.37 | V119: 1.100000024 | W119: 0.54 | X119: 2.799999952 | Y119: 0.46 | Z119: 2.599999905 | AA119: 0.52 | AB119: 0.5 | AC119: 0.49 | AD119: 0.6999999881 | AE119: 0.36
A120: 2321 | B120: 2321 Gulfstream Elementary | C120: 65 | D120: 17.20000076 | E120: 0.55 | F120: 1.399999976 | G120: 0.72 | H120: 0.400000006 | I120: 0.4 | J120: 1.200000048 | K120: 0.62 | L120: 0.8999999762 | M120: 0.86 | N120: 1.299999952 | O120: 0.65 | P120: 2.200000048 | Q120: 0.56 | R120: 1 | S120: 0.52 | T120: 0.5 | U120: 0.48 | V120: 1.200000048 | W120: 0.58 | X120: 3.099999905 | Y120: 0.51 | Z120: 2.700000048 | AA120: 0.54 | AB120: 0.5 | AC120: 0.51 | AD120: 0.8000000119 | AE120: 0.38
A121: 2331 | B121: 2331 Charles R. Hadley Elementary | C121: 140 | D121: 17.79999924 | E121: 0.57 | F121: 1.299999952 | G121: 0.63 | H121: 0.5 | I121: 0.51 | J121: 1.200000048 | K121: 0.6 | L121: 0.8000000119 | M121: 0.79 | N121: 1.5 | O121: 0.73 | P121: 2.400000095 | Q121: 0.61 | R121: 1.200000048 | S121: 0.62 | T121: 0.5 | U121: 0.45 | V121: 1.200000048 | W121: 0.61 | X121: 3.099999905 | Y121: 0.51 | Z121: 2.799999952 | AA121: 0.56 | AB121: 0.5 | AC121: 0.47 | AD121: 0.8999999762 | AE121: 0.45
A122: 2341 | B122: 2341 Joe Hall Elementary | C122: 91 | D122: 18.39999962 | E122: 0.59 | F122: 1.399999976 | G122: 0.69 | H122: 0.5 | I122: 0.53 | J122: 1.299999952 | K122: 0.66 | L122: 0.8000000119 | M122: 0.76 | N122: 1.5 | O122: 0.75 | P122: 2.400000095 | Q122: 0.61 | R122: 1.200000048 | S122: 0.6 | T122: 0.400000006 | U122: 0.43 | V122: 1.200000048 | W122: 0.62 | X122: 3 | Y122: 0.51 | Z122: 3 | AA122: 0.61 | AB122: 0.6000000238 | AC122: 0.64 | AD122: 0.8999999762 | AE122: 0.46
A123: 2351 | B123: 2351 Eneida Massas Hartner Elementary | C123: 88 | D123: 16.5 | E123: 0.53 | F123: 1.200000048 | G123: 0.61 | H123: 0.5 | I123: 0.5 | J123: 1 | K123: 0.51 | L123: 0.6999999881 | M123: 0.74 | N123: 1.299999952 | O123: 0.63 | P123: 2.299999952 | Q123: 0.59 | R123: 1 | S123: 0.5 | T123: 0.400000006 | U123: 0.36 | V123: 1.100000024 | W123: 0.57 | X123: 2.900000095 | Y123: 0.48 | Z123: 2.799999952 | AA123: 0.57 | AB123: 0.3000000119 | AC123: 0.33 | AD123: 0.8000000119 | AE123: 0.42
A124: 2361 | B124: 2361 Hialeah Elementary | C124: 107 | D124: 15.60000038 | E124: 0.5 | F124: 1.100000024 | G124: 0.57 | H124: 0.400000006 | I124: 0.42 | J124: 1 | K124: 0.5 | L124: 0.8000000119 | M124: 0.8 | N124: 1.100000024 | O124: 0.55 | P124: 2.200000048 | Q124: 0.56 | R124: 1 | S124: 0.5 | T124: 0.400000006 | U124: 0.43 | V124: 1 | W124: 0.49 | X124: 2.799999952 | Y124: 0.46 | Z124: 2.5 | AA124: 0.5 | AB124: 0.5 | AC124: 0.48 | AD124: 0.6999999881 | AE124: 0.37
A125: 2371 | B125: 2371 West Hialeah Gardens Elementary School | C125: 211 | D125: 16.39999962 | E125: 0.53 | F125: 1.299999952 | G125: 0.63 | H125: 0.400000006 | I125: 0.4 | J125: 1.100000024 | K125: 0.54 | L125: 0.8000000119 | M125: 0.76 | N125: 1.399999976 | O125: 0.71 | P125: 2.200000048 | Q125: 0.54 | R125: 1.100000024 | S125: 0.54 | T125: 0.400000006 | U125: 0.36 | V125: 1.200000048 | W125: 0.59 | X125: 3 | Y125: 0.49 | Z125: 2.599999905 | AA125: 0.52 | AB125: 0.400000006 | AC125: 0.42 | AD125: 0.6999999881 | AE125: 0.35
A126: 2401 | B126: 2401 Hibiscus Elementary | C126: 88 | D126: 16.79999924 | E126: 0.54 | F126: 1.299999952 | G126: 0.64 | H126: 0.5 | I126: 0.48 | J126: 1.100000024 | K126: 0.57 | L126: 0.8000000119 | M126: 0.78 | N126: 1.399999976 | O126: 0.7 | P126: 2.299999952 | Q126: 0.57 | R126: 1.200000048 | S126: 0.59 | T126: 0.400000006 | U126: 0.39 | V126: 1 | W126: 0.52 | X126: 2.900000095 | Y126: 0.49 | Z126: 2.700000048 | AA126: 0.54 | AB126: 0.5 | AC126: 0.47 | AD126: 0.8000000119 | AE126: 0.38
A127: 2441 | B127: 2441 V.A. Boone/ Highland Oaks Elementary | C127: 137 | D127: 20 | E127: 0.65 | F127: 1.399999976 | G127: 0.7 | H127: 0.6999999881 | I127: 0.71 | J127: 1.399999976 | K127: 0.71 | L127: 0.8000000119 | M127: 0.83 | N127: 1.5 | O127: 0.76 | P127: 2.599999905 | Q127: 0.66 | R127: 1.399999976 | S127: 0.68 | T127: 0.5 | U127: 0.45 | V127: 1.299999952 | W127: 0.64 | X127: 3.599999905 | Y127: 0.59 | Z127: 3.299999952 | AA127: 0.65 | AB127: 0.6999999881 | AC127: 0.68 | AD127: 0.8999999762 | AE127: 0.46
A128: 2501 | B128: 2501 Holmes Elementary School | C128: 98 | D128: 13.60000038 | E128: 0.44 | F128: 1.200000048 | G128: 0.62 | H128: 0.400000006 | I128: 0.43 | J128: 0.8999999762 | K128: 0.43 | L128: 0.6999999881 | M128: 0.65 | N128: 1.200000048 | O128: 0.6 | P128: 2 | Q128: 0.49 | R128: 0.8999999762 | S128: 0.44 | T128: 0.3000000119 | U128: 0.29 | V128: 0.8999999762 | W128: 0.44 | X128: 2.299999952 | Y128: 0.39 | Z128: 1.899999976 | AA128: 0.38 | AB128: 0.400000006 | AC128: 0.41 | AD128: 0.6999999881 | AE128: 0.33
A129: 2511 | B129: 2511 Zora Neale Hurston Elementary | C129: 132 | D129: 18.79999924 | E129: 0.61 | F129: 1.399999976 | G129: 0.71 | H129: 0.6000000238 | I129: 0.62 | J129: 1.399999976 | K129: 0.69 | L129: 0.8000000119 | M129: 0.83 | N129: 1.399999976 | O129: 0.69 | P129: 2.5 | Q129: 0.63 | R129: 1.200000048 | S129: 0.6 | T129: 0.5 | U129: 0.52 | V129: 1.200000048 | W129: 0.61 | X129: 3.200000048 | Y129: 0.54 | Z129: 3 | AA129: 0.59 | AB129: 0.6000000238 | AC129: 0.6 | AD129: 0.8999999762 | AE129: 0.45
A130: 2521 | B130: 2521 Oliver Hoover Elementary | C130: 137 | D130: 18.60000038 | E130: 0.6 | F130: 1.399999976 | G130: 0.72 | H130: 0.5 | I130: 0.52 | J130: 1.399999976 | K130: 0.68 | L130: 0.8000000119 | M130: 0.85 | N130: 1.399999976 | O130: 0.72 | P130: 2.299999952 | Q130: 0.58 | R130: 1.200000048 | S130: 0.62 | T130: 0.5 | U130: 0.47 | V130: 1.200000048 | W130: 0.6 | X130: 3.299999952 | Y130: 0.56 | Z130: 3 | AA130: 0.6 | AB130: 0.6000000238 | AC130: 0.57 | AD130: 0.8999999762 | AE130: 0.45
A131: 2541 | B131: 2541 Howard Drive Elementary | C131: 95 | D131: 19.10000038 | E131: 0.62 | F131: 1.5 | G131: 0.73 | H131: 0.5 | I131: 0.55 | J131: 1.399999976 | K131: 0.69 | L131: 0.8000000119 | M131: 0.78 | N131: 1.399999976 | O131: 0.69 | P131: 2.400000095 | Q131: 0.6 | R131: 1.299999952 | S131: 0.63 | T131: 0.400000006 | U131: 0.43 | V131: 1.399999976 | W131: 0.68 | X131: 3.5 | Y131: 0.59 | Z131: 3.099999905 | AA131: 0.62 | AB131: 0.6000000238 | AC131: 0.61 | AD131: 0.8999999762 | AE131: 0.44
A132: 2581 | B132: 2581 Madie Ives Elementary | C132: 111 | D132: 16.39999962 | E132: 0.53 | F132: 1.399999976 | G132: 0.68 | H132: 0.5 | I132: 0.45 | J132: 1 | K132: 0.5 | L132: 0.8000000119 | M132: 0.77 | N132: 1.399999976 | O132: 0.68 | P132: 2.299999952 | Q132: 0.56 | R132: 1.100000024 | S132: 0.55 | T132: 0.400000006 | U132: 0.39 | V132: 1.100000024 | W132: 0.57 | X132: 2.799999952 | Y132: 0.47 | Z132: 2.5 | AA132: 0.49 | AB132: 0.5 | AC132: 0.5 | AD132: 0.8000000119 | AE132: 0.41
A133: 2641 | B133: 2641 Kendale Elementary | C133: 79 | D133: 21.20000076 | E133: 0.68 | F133: 1.600000024 | G133: 0.82 | H133: 0.5 | I133: 0.54 | J133: 1.700000048 | K133: 0.83 | L133: 0.8999999762 | M133: 0.95 | N133: 1.600000024 | O133: 0.81 | P133: 2.799999952 | Q133: 0.7 | R133: 1.299999952 | S133: 0.65 | T133: 0.6000000238 | U133: 0.61 | V133: 1.399999976 | W133: 0.68 | X133: 3.599999905 | Y133: 0.6 | Z133: 3.400000095 | AA133: 0.69 | AB133: 0.6000000238 | AC133: 0.59 | AD133: 1.100000024 | AE133: 0.54
A134: 2651 | B134: 2651 Kendale Lakes Elementary | C134: 102 | D134: 17.79999924 | E134: 0.57 | F134: 1.299999952 | G134: 0.67 | H134: 0.6000000238 | I134: 0.59 | J134: 1.200000048 | K134: 0.61 | L134: 0.8000000119 | M134: 0.76 | N134: 1.299999952 | O134: 0.67 | P134: 2.400000095 | Q134: 0.6 | R134: 1.299999952 | S134: 0.66 | T134: 0.400000006 | U134: 0.43 | V134: 1.200000048 | W134: 0.62 | X134: 3.099999905 | Y134: 0.52 | Z134: 2.799999952 | AA134: 0.55 | AB134: 0.5 | AC134: 0.46 | AD134: 0.8000000119 | AE134: 0.41
A135: 2661 | B135: 2661 Kensington Park Elementary | C135: 189 | D135: 14.60000038 | E135: 0.47 | F135: 1.100000024 | G135: 0.55 | H135: 0.400000006 | I135: 0.41 | J135: 0.8999999762 | K135: 0.45 | L135: 0.6000000238 | M135: 0.62 | N135: 1.200000048 | O135: 0.58 | P135: 2 | Q135: 0.51 | R135: 1 | S135: 0.52 | T135: 0.400000006 | U135: 0.41 | V135: 1 | W135: 0.48 | X135: 2.599999905 | Y135: 0.44 | Z135: 2.299999952 | AA135: 0.46 | AB135: 0.400000006 | AC135: 0.39 | AD135: 0.6999999881 | AE135: 0.34
A136: 2701 | B136: 2701 Kenwood K-8 Center | C136: 122 | D136: 16.70000076 | E136: 0.54 | F136: 1.299999952 | G136: 0.66 | H136: 0.5 | I136: 0.45 | J136: 1.100000024 | K136: 0.55 | L136: 0.8000000119 | M136: 0.78 | N136: 1.299999952 | O136: 0.63 | P136: 2.099999905 | Q136: 0.53 | R136: 1.100000024 | S136: 0.55 | T136: 0.5 | U136: 0.5 | V136: 1.200000048 | W136: 0.59 | X136: 2.799999952 | Y136: 0.46 | Z136: 2.799999952 | AA136: 0.55 | AB136: 0.400000006 | AC136: 0.44 | AD136: 0.8999999762 | AE136: 0.43
A137: 2741 | B137: 2741 Key Biscayne K-8 Center | C137: 177 | D137: 19.5 | E137: 0.63 | F137: 1.299999952 | G137: 0.67 | H137: 0.6000000238 | I137: 0.62 | J137: 1.399999976 | K137: 0.69 | L137: 0.8000000119 | M137: 0.8 | N137: 1.5 | O137: 0.74 | P137: 2.5 | Q137: 0.61 | R137: 1.399999976 | S137: 0.68 | T137: 0.5 | U137: 0.51 | V137: 1.299999952 | W137: 0.65 | X137: 3.599999905 | Y137: 0.59 | Z137: 3.200000048 | AA137: 0.63 | AB137: 0.6000000238 | AC137: 0.6 | AD137: 1 | AE137: 0.48
A138: 2781 | B138: 2781 Kinloch Park Elementary | C138: 133 | D138: 17.10000038 | E138: 0.55 | F138: 1.200000048 | G138: 0.62 | H138: 0.6000000238 | I138: 0.61 | J138: 1.200000048 | K138: 0.59 | L138: 0.8000000119 | M138: 0.75 | N138: 1.299999952 | O138: 0.64 | P138: 2.299999952 | Q138: 0.58 | R138: 1.200000048 | S138: 0.62 | T138: 0.5 | U138: 0.53 | V138: 1.100000024 | W138: 0.53 | X138: 3.099999905 | Y138: 0.51 | Z138: 2.599999905 | AA138: 0.51 | AB138: 0.5 | AC138: 0.47 | AD138: 0.8000000119 | AE138: 0.42
A139: 2801 | B139: 2801 Lake Stevens Elementary | C139: 43 | D139: 17 | E139: 0.55 | F139: 1.399999976 | G139: 0.72 | H139: 0.400000006 | I139: 0.4 | J139: 1 | K139: 0.52 | L139: 0.8000000119 | M139: 0.77 | N139: 1.399999976 | O139: 0.69 | P139: 2.400000095 | Q139: 0.59 | R139: 1.299999952 | S139: 0.63 | T139: 0.400000006 | U139: 0.37 | V139: 1.200000048 | W139: 0.62 | X139: 2.700000048 | Y139: 0.46 | Z139: 2.700000048 | AA139: 0.54 | AB139: 0.5 | AC139: 0.49 | AD139: 0.8000000119 | AE139: 0.38
A140: 2821 | B140: 2821 Lakeview Elementary | C140: 63 | D140: 16.70000076 | E140: 0.54 | F140: 1.200000048 | G140: 0.61 | H140: 0.5 | I140: 0.52 | J140: 0.8999999762 | K140: 0.44 | L140: 0.8000000119 | M140: 0.79 | N140: 1.299999952 | O140: 0.64 | P140: 2.200000048 | Q140: 0.56 | R140: 1.299999952 | S140: 0.64 | T140: 0.400000006 | U140: 0.44 | V140: 1 | W140: 0.52 | X140: 3 | Y140: 0.5 | Z140: 2.900000095 | AA140: 0.57 | AB140: 0.400000006 | AC140: 0.43 | AD140: 0.6999999881 | AE140: 0.35
A141: 2881 | B141: 2881 Leewood K-8 Center | C141: 106 | D141: 21 | E141: 0.68 | F141: 1.600000024 | G141: 0.81 | H141: 0.6000000238 | I141: 0.64 | J141: 1.5 | K141: 0.76 | L141: 0.8000000119 | M141: 0.85 | N141: 1.600000024 | O141: 0.82 | P141: 2.599999905 | Q141: 0.65 | R141: 1.299999952 | S141: 0.67 | T141: 0.5 | U141: 0.5 | V141: 1.5 | W141: 0.77 | X141: 3.799999952 | Y141: 0.63 | Z141: 3.400000095 | AA141: 0.68 | AB141: 0.6999999881 | AC141: 0.67 | AD141: 0.8999999762 | AE141: 0.44
A142: 2891 | B142: 2891 William Lehman Elementary | C142: 95 | D142: 19.10000038 | E142: 0.62 | F142: 1.5 | G142: 0.74 | H142: 0.6999999881 | I142: 0.65 | J142: 1.399999976 | K142: 0.68 | L142: 0.8000000119 | M142: 0.8 | N142: 1.399999976 | O142: 0.71 | P142: 2.5 | Q142: 0.62 | R142: 1.299999952 | S142: 0.64 | T142: 0.5 | U142: 0.45 | V142: 1.299999952 | W142: 0.64 | X142: 3.299999952 | Y142: 0.56 | Z142: 3.099999905 | AA142: 0.61 | AB142: 0.6999999881 | AC142: 0.66 | AD142: 0.8999999762 | AE142: 0.44
A143: =IFERROR(VALUE(LEFT(B143,4)),"") -> 2901 | B143: 2901 Leisure City K-8 Center | C143: 88 | D143: 16.39999962 | E143: 0.53 | F143: 1.299999952 | G143: 0.65 | H143: 0.400000006 | I143: 0.42 | J143: 1 | K143: 0.52 | L143: 0.8000000119 | M143: 0.77 | N143: 1.299999952 | O143: 0.63 | P143: 2.099999905 | Q143: 0.53 | R143: 1.100000024 | S143: 0.57 | T143: 0.400000006 | U143: 0.43 | V143: 1 | W143: 0.48 | X143: 2.900000095 | Y143: 0.49 | Z143: 2.799999952 | AA143: 0.55 | AB143: 0.5 | AC143: 0.49 | AD143: 0.8000000119 | AE143: 0.4
A144: 2911 | B144: 2911 Linda Lentin K - 8 Center | C144: 103 | D144: 15.19999981 | E144: 0.49 | F144: 1.299999952 | G144: 0.66 | H144: 0.400000006 | I144: 0.36 | J144: 0.8999999762 | K144: 0.47 | L144: 0.6999999881 | M144: 0.72 | N144: 1.299999952 | O144: 0.63 | P144: 2.200000048 | Q144: 0.54 | R144: 1.100000024 | S144: 0.54 | T144: 0.400000006 | U144: 0.45 | V144: 1 | W144: 0.51 | X144: 2.599999905 | Y144: 0.44 | Z144: 2.200000048 | AA144: 0.43 | AB144: 0.400000006 | AC144: 0.45 | AD144: 0.6999999881 | AE144: 0.33
A145: 2941 | B145: 2941 Laura C. Saunders Elem | C145: 118 | D145: 14.69999981 | E145: 0.48 | F145: 1.299999952 | G145: 0.64 | H145: 0.400000006 | I145: 0.42 | J145: 0.8999999762 | K145: 0.46 | L145: 0.6999999881 | M145: 0.71 | N145: 1.200000048 | O145: 0.58 | P145: 2 | Q145: 0.5 | R145: 1 | S145: 0.49 | T145: 0.400000006 | U145: 0.4 | V145: 0.8999999762 | W145: 0.44 | X145: 2.400000095 | Y145: 0.4 | Z145: 2.5 | AA145: 0.51 | AB145: 0.3000000119 | AC145: 0.31 | AD145: 0.6999999881 | AE145: 0.37
A146: 2981 | B146: 2981 Liberty City Elementary School | C146: 51 | D146: 14.80000019 | E146: 0.48 | F146: 1.200000048 | G146: 0.58 | H146: 0.3000000119 | I146: 0.29 | J146: 0.6999999881 | K146: 0.35 | L146: 0.6999999881 | M146: 0.69 | N146: 1.299999952 | O146: 0.65 | P146: 2.200000048 | Q146: 0.56 | R146: 1 | S146: 0.51 | T146: 0.400000006 | U146: 0.35 | V146: 0.8999999762 | W146: 0.43 | X146: 2.599999905 | Y146: 0.43 | Z146: 2.400000095 | AA146: 0.48 | AB146: 0.3000000119 | AC146: 0.31 | AD146: 0.8000000119 | AE146: 0.42
A147: 3021 | B147: 3021 Little River Elementary School | C147: 97 | D147: 14 | E147: 0.45 | F147: 1.100000024 | G147: 0.55 | H147: 0.5 | I147: 0.46 | J147: 0.8999999762 | K147: 0.43 | L147: 0.6999999881 | M147: 0.66 | N147: 1.100000024 | O147: 0.56 | P147: 1.899999976 | Q147: 0.49 | R147: 0.8999999762 | S147: 0.44 | T147: 0.400000006 | U147: 0.36 | V147: 0.8999999762 | W147: 0.45 | X147: 2.400000095 | Y147: 0.39 | Z147: 2.299999952 | AA147: 0.46 | AB147: 0.400000006 | AC147: 0.44 | AD147: 0.6999999881 | AE147: 0.34
A148: 3024 | B148: 3024 Florida International Elementary Academy | C148: 77 | D148: 13.80000019 | E148: 0.44 | F148: 1 | G148: 0.49 | H148: 0.400000006 | I148: 0.43 | J148: 0.8999999762 | K148: 0.43 | L148: 0.5 | M148: 0.53 | N148: 1.200000048 | O148: 0.6 | P148: 2.099999905 | Q148: 0.51 | R148: 0.8999999762 | S148: 0.47 | T148: 0.3000000119 | U148: 0.32 | V148: 1 | W148: 0.49 | X148: 2.400000095 | Y148: 0.39 | Z148: 2.099999905 | AA148: 0.43 | AB148: 0.3000000119 | AC148: 0.31 | AD148: 0.6999999881 | AE148: 0.34
A149: 3025 | B149: 3025 Advantage Academy Santa Fe | C149: 25 | D149: 17.70000076 | E149: 0.57 | F149: 1.399999976 | G149: 0.7 | H149: 0.6000000238 | I149: 0.6 | J149: 1.399999976 | K149: 0.68 | L149: 0.6000000238 | M149: 0.6 | N149: 1.399999976 | O149: 0.7 | P149: 2.299999952 | Q149: 0.57 | R149: 1 | S149: 0.5 | T149: 0.400000006 | U149: 0.44 | V149: 1.200000048 | W149: 0.6 | X149: 3 | Y149: 0.51 | Z149: 2.799999952 | AA149: 0.56 | AB149: 0.6000000238 | AC149: 0.6 | AD149: 1 | AE149: 0.48
A150: 3030 | B150: 3030 Doral Academy Elementary | C150: 127 | D150: 21.10000038 | E150: 0.68 | F150: 1.600000024 | G150: 0.78 | H150: 0.6000000238 | I150: 0.64 | J150: 1.600000024 | K150: 0.78 | L150: 0.8999999762 | M150: 0.86 | N150: 1.600000024 | O150: 0.78 | P150: 2.700000048 | Q150: 0.68 | R150: 1.299999952 | S150: 0.67 | T150: 0.6000000238 | U150: 0.55 | V150: 1.299999952 | W150: 0.65 | X150: 3.799999952 | Y150: 0.63 | Z150: 3.5 | AA150: 0.71 | AB150: 0.6999999881 | AC150: 0.72 | AD150: 1 | AE150: 0.51
A151: 3034 | B151: 3034 Bridgepoint Academy Of Village Green | C151: 17 | D151: 20.10000038 | E151: 0.65 | F151: 1.5 | G151: 0.74 | H151: 0.6000000238 | I151: 0.65 | J151: 1.399999976 | K151: 0.68 | L151: 0.8999999762 | M151: 0.88 | N151: 1.5 | O151: 0.76 | P151: 2.5 | Q151: 0.63 | R151: 1.299999952 | S151: 0.65 | T151: 0.400000006 | U151: 0.35 | V151: 1.299999952 | W151: 0.65 | X151: 3.599999905 | Y151: 0.61 | Z151: 3.5 | AA151: 0.71 | AB151: 0.6000000238 | AC151: 0.59 | AD151: 1 | AE151: 0.5
A152: 3035 | B152: 3035 Ramz Academy K-5 Miami Campus | C152: 22 | D152: 15.30000019 | E152: 0.49 | F152: 1.200000048 | G152: 0.59 | H152: 0.5 | I152: 0.5 | J152: 1 | K152: 0.52 | L152: 0.8000000119 | M152: 0.77 | N152: 1.100000024 | O152: 0.57 | P152: 2.200000048 | Q152: 0.55 | R152: 1 | S152: 0.52 | T152: 0.3000000119 | U152: 0.32 | V152: 0.8000000119 | W152: 0.41 | X152: 2.400000095 | Y152: 0.4 | Z152: 2.700000048 | AA152: 0.54 | AB152: 0.3000000119 | AC152: 0.27 | AD152: 0.8999999762 | AE152: 0.45
A153: 3041 | B153: 3041 Lorah Park Elementary School | C153: 68 | D153: 15.60000038 | E153: 0.5 | F153: 1.399999976 | G153: 0.68 | H153: 0.5 | I153: 0.47 | J153: 1 | K153: 0.49 | L153: 0.6999999881 | M153: 0.72 | N153: 1.299999952 | O153: 0.64 | P153: 1.899999976 | Q153: 0.49 | R153: 1 | S153: 0.49 | T153: 0.400000006 | U153: 0.4 | V153: 1 | W153: 0.49 | X153: 2.799999952 | Y153: 0.46 | Z153: 2.5 | AA153: 0.51 | AB153: 0.400000006 | AC153: 0.43 | AD153: 0.8000000119 | AE153: 0.4
A154: 3051 | B154: 3051 Toussaint Louverture Elementary | C154: 82 | D154: 15.10000038 | E154: 0.49 | F154: 1.299999952 | G154: 0.65 | H154: 0.3000000119 | I154: 0.28 | J154: 0.8999999762 | K154: 0.43 | L154: 0.8000000119 | M154: 0.82 | N154: 1.200000048 | O154: 0.62 | P154: 2 | Q154: 0.51 | R154: 1 | S154: 0.48 | T154: 0.3000000119 | U154: 0.3 | V154: 1 | W154: 0.51 | X154: 2.599999905 | Y154: 0.43 | Z154: 2.700000048 | AA154: 0.53 | AB154: 0.400000006 | AC154: 0.35 | AD154: 0.6999999881 | AE154: 0.35
A155: 3061 | B155: 3061 Ludlam Elementary School | C155: 59 | D155: 19 | E155: 0.61 | F155: 1.399999976 | G155: 0.69 | H155: 0.6000000238 | I155: 0.61 | J155: 1.299999952 | K155: 0.64 | L155: 0.6000000238 | M155: 0.64 | N155: 1.399999976 | O155: 0.68 | P155: 2.5 | Q155: 0.62 | R155: 1.399999976 | S155: 0.71 | T155: 0.400000006 | U155: 0.39 | V155: 1.299999952 | W155: 0.64 | X155: 3.400000095 | Y155: 0.57 | Z155: 3.200000048 | AA155: 0.64 | AB155: 0.6000000238 | AC155: 0.58 | AD155: 1 | AE155: 0.49
A156: 3100 | B156: 3100 Mater Academy East Charter School | C156: 81 | D156: 19.89999962 | E156: 0.64 | F156: 1.399999976 | G156: 0.69 | H156: 0.6000000238 | I156: 0.64 | J156: 1.5 | K156: 0.74 | L156: 0.8999999762 | M156: 0.91 | N156: 1.5 | O156: 0.75 | P156: 2.700000048 | Q156: 0.68 | R156: 1.299999952 | S156: 0.64 | T156: 0.400000006 | U156: 0.4 | V156: 1.299999952 | W156: 0.64 | X156: 3.5 | Y156: 0.58 | Z156: 3.299999952 | AA156: 0.66 | AB156: 0.6000000238 | AC156: 0.57 | AD156: 1 | AE156: 0.48
A157: 3101 | B157: 3101 Frank C. Martin K-8 Center | C157: 141 | D157: 21.79999924 | E157: 0.7 | F157: 1.600000024 | G157: 0.82 | H157: 0.6999999881 | I157: 0.67 | J157: 1.5 | K157: 0.77 | L157: 0.8999999762 | M157: 0.9 | N157: 1.600000024 | O157: 0.79 | P157: 2.700000048 | Q157: 0.68 | R157: 1.5 | S157: 0.77 | T157: 0.5 | U157: 0.54 | V157: 1.399999976 | W157: 0.72 | X157: 3.900000095 | Y157: 0.64 | Z157: 3.599999905 | AA157: 0.73 | AB157: 0.8000000119 | AC157: 0.79 | AD157: 1 | AE157: 0.5
A158: 3111 | B158: 3111 Wesley Matthews Elementary School | C158: 86 | D158: 19.60000038 | E158: 0.63 | F158: 1.399999976 | G158: 0.68 | H158: 0.6000000238 | I158: 0.57 | J158: 1.399999976 | K158: 0.72 | L158: 0.8000000119 | M158: 0.83 | N158: 1.399999976 | O158: 0.72 | P158: 2.400000095 | Q158: 0.6 | R158: 1.399999976 | S158: 0.69 | T158: 0.5 | U158: 0.51 | V158: 1.299999952 | W158: 0.63 | X158: 3.599999905 | Y158: 0.6 | Z158: 3.299999952 | AA158: 0.66 | AB158: 0.5 | AC158: 0.51 | AD158: 1 | AE158: 0.48
A159: 3141 | B159: 3141 Meadowlane Elementary | C159: 179 | D159: 16 | E159: 0.52 | F159: 1.200000048 | G159: 0.58 | H159: 0.5 | I159: 0.45 | J159: 1.100000024 | K159: 0.54 | L159: 0.8000000119 | M159: 0.77 | N159: 1.299999952 | O159: 0.65 | P159: 2.200000048 | Q159: 0.54 | R159: 1.100000024 | S159: 0.54 | T159: 0.3000000119 | U159: 0.35 | V159: 1.100000024 | W159: 0.53 | X159: 2.799999952 | Y159: 0.47 | Z159: 2.599999905 | AA159: 0.52 | AB159: 0.400000006 | AC159: 0.41 | AD159: 0.6999999881 | AE159: 0.37
A160: 3181 | B160: 3181 Melrose Elementary School | C160: 92 | D160: 14.89999962 | E160: 0.48 | F160: 1.100000024 | G160: 0.57 | H160: 0.400000006 | I160: 0.4 | J160: 0.8999999762 | K160: 0.45 | L160: 0.6999999881 | M160: 0.71 | N160: 1.200000048 | O160: 0.62 | P160: 2.200000048 | Q160: 0.55 | R160: 1 | S160: 0.49 | T160: 0.400000006 | U160: 0.38 | V160: 0.8999999762 | W160: 0.46 | X160: 2.400000095 | Y160: 0.4 | Z160: 2.400000095 | AA160: 0.47 | AB160: 0.5 | AC160: 0.47 | AD160: 0.8000000119 | AE160: 0.4
A161: 3191 | B161: 3191 Ada Merritt K-8 Center | C161: 69 | D161: 21.5 | E161: 0.69 | F161: 1.5 | G161: 0.77 | H161: 0.6999999881 | I161: 0.68 | J161: 1.5 | K161: 0.75 | L161: 0.8999999762 | M161: 0.91 | N161: 1.700000048 | O161: 0.85 | P161: 2.599999905 | Q161: 0.64 | R161: 1.299999952 | S161: 0.67 | T161: 0.6000000238 | U161: 0.64 | V161: 1.5 | W161: 0.77 | X161: 4 | Y161: 0.66 | Z161: 3.5 | AA161: 0.7 | AB161: 0.6999999881 | AC161: 0.72 | AD161: 0.8999999762 | AE161: 0.46
A162: 3241 | B162: 3241 Miami Gardens Elementary | C162: 39 | D162: 13.69999981 | E162: 0.44 | F162: 0.8999999762 | G162: 0.45 | H162: 0.3000000119 | I162: 0.31 | J162: 1 | K162: 0.51 | L162: 0.6000000238 | M162: 0.64 | N162: 1.100000024 | O162: 0.55 | P162: 1.899999976 | Q162: 0.47 | R162: 1.100000024 | S162: 0.53 | T162: 0.3000000119 | U162: 0.26 | V162: 0.8999999762 | W162: 0.44 | X162: 2.299999952 | Y162: 0.39 | Z162: 2.200000048 | AA162: 0.45 | AB162: 0.400000006 | AC162: 0.44 | AD162: 0.6999999881 | AE162: 0.33
A163: 3261 | B163: 3261 Miami Heights Elementary | C163: 167 | D163: 14.69999981 | E163: 0.47 | F163: 1.200000048 | G163: 0.58 | H163: 0.400000006 | I163: 0.41 | J163: 0.8999999762 | K163: 0.46 | L163: 0.6000000238 | M163: 0.62 | N163: 1.100000024 | O163: 0.57 | P163: 2 | Q163: 0.5 | R163: 1 | S163: 0.51 | T163: 0.400000006 | U163: 0.38 | V163: 1 | W163: 0.52 | X163: 2.599999905 | Y163: 0.44 | Z163: 2.299999952 | AA163: 0.46 | AB163: 0.400000006 | AC163: 0.43 | AD163: 0.6000000238 | AE163: 0.29
A164: 3281 | B164: 3281 Miami Lakes K-8 Center | C164: 142 | D164: 18.39999962 | E164: 0.59 | F164: 1.399999976 | G164: 0.7 | H164: 0.6000000238 | I164: 0.57 | J164: 1.299999952 | K164: 0.64 | L164: 0.8000000119 | M164: 0.78 | N164: 1.399999976 | O164: 0.68 | P164: 2.400000095 | Q164: 0.59 | R164: 1.200000048 | S164: 0.6 | T164: 0.5 | U164: 0.54 | V164: 1.200000048 | W164: 0.61 | X164: 3.299999952 | Y164: 0.55 | Z164: 3 | AA164: 0.59 | AB164: 0.6000000238 | AC164: 0.59 | AD164: 0.8000000119 | AE164: 0.42
A165: 3301 | B165: 3301 Miami Park Elementary School | C165: 66 | D165: 15.69999981 | E165: 0.51 | F165: 1.200000048 | G165: 0.6 | H165: 0.5 | I165: 0.53 | J165: 1.100000024 | K165: 0.55 | L165: 0.6999999881 | M165: 0.73 | N165: 1.100000024 | O165: 0.55 | P165: 2.299999952 | Q165: 0.56 | R165: 1 | S165: 0.48 | T165: 0.400000006 | U165: 0.38 | V165: 1 | W165: 0.52 | X165: 2.700000048 | Y165: 0.45 | Z165: 2.5 | AA165: 0.5 | AB165: 0.5 | AC165: 0.48 | AD165: 0.8000000119 | AE165: 0.38
A166: 3341 | B166: 3341 Miami Shores Elementary | C166: 129 | D166: 19.5 | E166: 0.63 | F166: 1.5 | G166: 0.75 | H166: 0.6000000238 | I166: 0.6 | J166: 1.299999952 | K166: 0.67 | L166: 0.8000000119 | M166: 0.84 | N166: 1.5 | O166: 0.74 | P166: 2.5 | Q166: 0.62 | R166: 1.200000048 | S166: 0.6 | T166: 0.5 | U166: 0.47 | V166: 1.399999976 | W166: 0.68 | X166: 3.400000095 | Y166: 0.57 | Z166: 3.299999952 | AA166: 0.66 | AB166: 0.6000000238 | AC166: 0.59 | AD166: 0.8999999762 | AE166: 0.44
A167: 3381 | B167: 3381 Miami Springs Elementary | C167: 80 | D167: 17 | E167: 0.55 | F167: 1.299999952 | G167: 0.66 | H167: 0.5 | I167: 0.5 | J167: 1 | K167: 0.51 | L167: 0.8000000119 | M167: 0.79 | N167: 1.299999952 | O167: 0.66 | P167: 2.400000095 | Q167: 0.6 | R167: 1.100000024 | S167: 0.55 | T167: 0.400000006 | U167: 0.36 | V167: 1.200000048 | W167: 0.61 | X167: 3.099999905 | Y167: 0.51 | Z167: 2.700000048 | AA167: 0.55 | AB167: 0.5 | AC167: 0.47 | AD167: 0.8000000119 | AE167: 0.38
A168: 3421 | B168: 3421 Milam K-8 Center | C168: 92 | D168: 14.69999981 | E168: 0.48 | F168: 1.100000024 | G168: 0.55 | H168: 0.5 | I168: 0.48 | J168: 1.100000024 | K168: 0.54 | L168: 0.8000000119 | M168: 0.79 | N168: 1.100000024 | O168: 0.55 | P168: 1.899999976 | Q168: 0.47 | R168: 1 | S168: 0.49 | T168: 0.400000006 | U168: 0.45 | V168: 0.8999999762 | W168: 0.45 | X168: 2.5 | Y168: 0.42 | Z168: 2.299999952 | AA168: 0.47 | AB168: 0.400000006 | AC168: 0.4 | AD168: 0.6999999881 | AE168: 0.36
A169: 3431 | B169: 3431 Phyllis Ruth Miller Elementary | C169: 129 | D169: 18.5 | E169: 0.6 | F169: 1.5 | G169: 0.74 | H169: 0.6000000238 | I169: 0.58 | J169: 1.200000048 | K169: 0.62 | L169: 0.8000000119 | M169: 0.78 | N169: 1.399999976 | O169: 0.71 | P169: 2.400000095 | Q169: 0.61 | R169: 1.200000048 | S169: 0.61 | T169: 0.400000006 | U169: 0.4 | V169: 1.299999952 | W169: 0.63 | X169: 3.200000048 | Y169: 0.53 | Z169: 3 | AA169: 0.6 | AB169: 0.6000000238 | AC169: 0.61 | AD169: 0.8999999762 | AE169: 0.44
A170: 3501 | B170: 3501 Morningside Elementary | C170: 57 | D170: 17.5 | E170: 0.56 | F170: 1.399999976 | G170: 0.69 | H170: 0.6999999881 | I170: 0.72 | J170: 1.100000024 | K170: 0.54 | L170: 0.8000000119 | M170: 0.81 | N170: 1.399999976 | O170: 0.71 | P170: 2.299999952 | Q170: 0.58 | R170: 1.200000048 | S170: 0.58 | T170: 0.5 | U170: 0.49 | V170: 1.200000048 | W170: 0.6 | X170: 3 | Y170: 0.49 | Z170: 2.599999905 | AA170: 0.53 | AB170: 0.5 | AC170: 0.49 | AD170: 0.8999999762 | AE170: 0.43
A171: 3541 | B171: 3541 Robert Russa Moton Elementary | C171: 42 | D171: 15.89999962 | E171: 0.51 | F171: 1.299999952 | G171: 0.63 | H171: 0.200000003 | I171: 0.24 | J171: 0.8000000119 | K171: 0.39 | L171: 0.8999999762 | M171: 0.93 | N171: 1.399999976 | O171: 0.71 | P171: 2.400000095 | Q171: 0.59 | R171: 1 | S171: 0.5 | T171: 0.5 | U171: 0.5 | V171: 1.399999976 | W171: 0.68 | X171: 2.599999905 | Y171: 0.44 | Z171: 2.5 | AA171: 0.5 | AB171: 0.3000000119 | AC171: 0.31 | AD171: 0.6000000238 | AE171: 0.31
A172: 3581 | B172: 3581 Myrtle Grove Elementary | C172: 47 | D172: 16.5 | E172: 0.53 | F172: 1.5 | G172: 0.73 | H172: 0.5 | I172: 0.51 | J172: 0.8999999762 | K172: 0.47 | L172: 0.8999999762 | M172: 0.85 | N172: 1.399999976 | O172: 0.68 | P172: 2.400000095 | Q172: 0.61 | R172: 1.299999952 | S172: 0.63 | T172: 0.3000000119 | U172: 0.34 | V172: 1 | W172: 0.52 | X172: 2.700000048 | Y172: 0.45 | Z172: 2.5 | AA172: 0.5 | AB172: 0.400000006 | AC172: 0.45 | AD172: 0.6999999881 | AE172: 0.33
A173: 3600 | B173: 3600 Downtown Miami | C173: 1 | D173: 14 | E173: 0.45 | F173: 1 | G173: 0.5 | H173: 0 | I173: 0 | J173: 0 | K173: 0 | L173: 1 | M173: 1 | N173: 1 | O173: 0.5 | P173: 2 | Q173: 0.5 | R173: 1 | S173: 0.5 | T173: 0 | U173: 0 | V173: 1 | W173: 0.5 | X173: 3 | Y173: 0.5 | Z173: 3 | AA173: 0.6 | AB173: 0 | AC173: 0 | AD173: 1 | AE173: 0.5
A174: 3610 | B174: 3610 Keys Gate Charter School | C174: 184 | D174: 17.29999924 | E174: 0.56 | F174: 1.399999976 | G174: 0.69 | H174: 0.6000000238 | I174: 0.57 | J174: 1.299999952 | K174: 0.66 | L174: 0.6999999881 | M174: 0.73 | N174: 1.399999976 | O174: 0.68 | P174: 2.099999905 | Q174: 0.53 | R174: 1.200000048 | S174: 0.61 | T174: 0.400000006 | U174: 0.38 | V174: 1.200000048 | W174: 0.61 | X174: 3.099999905 | Y174: 0.52 | Z174: 2.700000048 | AA174: 0.53 | AB174: 0.5 | AC174: 0.49 | AD174: 0.8000000119 | AE174: 0.38
A175: 3621 | B175: 3621 Coconut Palms K-8 Academy | C175: 159 | D175: 16.60000038 | E175: 0.54 | F175: 1.299999952 | G175: 0.65 | H175: 0.5 | I175: 0.45 | J175: 1.100000024 | K175: 0.55 | L175: 0.8000000119 | M175: 0.79 | N175: 1.200000048 | O175: 0.6 | P175: 2.200000048 | Q175: 0.55 | R175: 1.200000048 | S175: 0.58 | T175: 0.400000006 | U175: 0.4 | V175: 1.200000048 | W175: 0.6 | X175: 2.900000095 | Y175: 0.49 | Z175: 2.599999905 | AA175: 0.52 | AB175: 0.5 | AC175: 0.47 | AD175: 0.8000000119 | AE175: 0.4
A176: 3661 | B176: 3661 Natural Bridge Elementary | C176: 94 | D176: 16.79999924 | E176: 0.54 | F176: 1.299999952 | G176: 0.64 | H176: 0.5 | I176: 0.5 | J176: 1 | K176: 0.51 | L176: 0.8000000119 | M176: 0.79 | N176: 1.399999976 | O176: 0.68 | P176: 2.200000048 | Q176: 0.55 | R176: 1.299999952 | S176: 0.64 | T176: 0.400000006 | U176: 0.35 | V176: 1.200000048 | W176: 0.61 | X176: 2.900000095 | Y176: 0.48 | Z176: 2.700000048 | AA176: 0.53 | AB176: 0.5 | AC176: 0.49 | AD176: 0.6999999881 | AE176: 0.35
A177: 3701 | B177: 3701 Norland Elementary School | C177: 94 | D177: 16.20000076 | E177: 0.52 | F177: 1.5 | G177: 0.73 | H177: 0.6000000238 | I177: 0.55 | J177: 1 | K177: 0.52 | L177: 0.6999999881 | M177: 0.72 | N177: 1.299999952 | O177: 0.66 | P177: 2.200000048 | Q177: 0.56 | R177: 1.200000048 | S177: 0.59 | T177: 0.400000006 | U177: 0.35 | V177: 1.100000024 | W177: 0.53 | X177: 2.799999952 | Y177: 0.46 | Z177: 2.200000048 | AA177: 0.44 | AB177: 0.400000006 | AC177: 0.45 | AD177: 0.8000000119 | AE177: 0.39
A178: 3741 | B178: 3741 North Beach Elementary | C178: 173 | D178: 20.60000038 | E178: 0.66 | F178: 1.5 | G178: 0.77 | H178: 0.6000000238 | I178: 0.61 | J178: 1.5 | K178: 0.74 | L178: 0.8000000119 | M178: 0.81 | N178: 1.5 | O178: 0.77 | P178: 2.599999905 | Q178: 0.66 | R178: 1.299999952 | S178: 0.66 | T178: 0.5 | U178: 0.54 | V178: 1.399999976 | W178: 0.68 | X178: 3.700000048 | Y178: 0.61 | Z178: 3.5 | AA178: 0.7 | AB178: 0.6000000238 | AC178: 0.65 | AD178: 0.8999999762 | AE178: 0.45
A179: 3781 | B179: 3781 Barbara Hawkins Elementary | C179: 61 | D179: 16.5 | E179: 0.53 | F179: 1.299999952 | G179: 0.67 | H179: 0.6000000238 | I179: 0.56 | J179: 1 | K179: 0.51 | L179: 0.6999999881 | M179: 0.7 | N179: 1.299999952 | O179: 0.67 | P179: 2.200000048 | Q179: 0.56 | R179: 1.100000024 | S179: 0.55 | T179: 0.400000006 | U179: 0.44 | V179: 1 | W179: 0.52 | X179: 3 | Y179: 0.49 | Z179: 2.599999905 | AA179: 0.51 | AB179: 0.5 | AC179: 0.52 | AD179: 0.6999999881 | AE179: 0.34
A180: 3821 | B180: 3821 North County Elementary School | C180: 50 | D180: 17 | E180: 0.55 | F180: 1.5 | G180: 0.75 | H180: 0.5 | I180: 0.46 | J180: 1.100000024 | K180: 0.55 | L180: 0.8000000119 | M180: 0.78 | N180: 1.399999976 | O180: 0.7 | P180: 2.099999905 | Q180: 0.54 | R180: 1.299999952 | S180: 0.67 | T180: 0.400000006 | U180: 0.38 | V180: 1.299999952 | W180: 0.64 | X180: 2.700000048 | Y180: 0.44 | Z180: 2.700000048 | AA180: 0.54 | AB180: 0.5 | AC180: 0.54 | AD180: 0.8000000119 | AE180: 0.38
A181: 3861 | B181: 3861 North Glade Elementary | C181: 71 | D181: 15.10000038 | E181: 0.49 | F181: 1.200000048 | G181: 0.58 | H181: 0.400000006 | I181: 0.35 | J181: 1.100000024 | K181: 0.54 | L181: 0.6999999881 | M181: 0.75 | N181: 1.100000024 | O181: 0.56 | P181: 2.299999952 | Q181: 0.57 | R181: 0.8999999762 | S181: 0.44 | T181: 0.400000006 | U181: 0.41 | V181: 1 | W181: 0.48 | X181: 2.599999905 | Y181: 0.43 | Z181: 2.5 | AA181: 0.49 | AB181: 0.400000006 | AC181: 0.44 | AD181: 0.6000000238 | AE181: 0.29
A182: 3901 | B182: 3901 North Hialeah Elementary | C182: 107 | D182: 14.5 | E182: 0.47 | F182: 1.100000024 | G182: 0.57 | H182: 0.3000000119 | I182: 0.34 | J182: 1 | K182: 0.51 | L182: 0.6000000238 | M182: 0.64 | N182: 1.100000024 | O182: 0.56 | P182: 1.899999976 | Q182: 0.47 | R182: 1.100000024 | S182: 0.53 | T182: 0.400000006 | U182: 0.38 | V182: 1 | W182: 0.52 | X182: 2.700000048 | Y182: 0.45 | Z182: 2.299999952 | AA182: 0.45 | AB182: 0.3000000119 | AC182: 0.35 | AD182: 0.6000000238 | AE182: 0.29
A183: 3941 | B183: 3941 North Miami Elementary | C183: 78 | D183: 14.60000038 | E183: 0.47 | F183: 1.100000024 | G183: 0.57 | H183: 0.5 | I183: 0.47 | J183: 0.8999999762 | K183: 0.44 | L183: 0.6999999881 | M183: 0.73 | N183: 1.200000048 | O183: 0.59 | P183: 2 | Q183: 0.49 | R183: 0.8999999762 | S183: 0.47 | T183: 0.3000000119 | U183: 0.33 | V183: 1 | W183: 0.49 | X183: 2.400000095 | Y183: 0.4 | Z183: 2.400000095 | AA183: 0.48 | AB183: 0.400000006 | AC183: 0.41 | AD183: 0.6999999881 | AE183: 0.35
A184: 3981 | B184: 3981 North Twin Lakes Elementary Community School | C184: 98 | D184: 15.5 | E184: 0.5 | F184: 1.200000048 | G184: 0.61 | H184: 0.5 | I184: 0.49 | J184: 1.100000024 | K184: 0.57 | L184: 0.6999999881 | M184: 0.65 | N184: 1.200000048 | O184: 0.59 | P184: 2.099999905 | Q184: 0.53 | R184: 1.200000048 | S184: 0.58 | T184: 0.400000006 | U184: 0.4 | V184: 1.100000024 | W184: 0.54 | X184: 2.5 | Y184: 0.42 | Z184: 2.400000095 | AA184: 0.47 | AB184: 0.400000006 | AC184: 0.39 | AD184: 0.8000000119 | AE184: 0.42
A185: 4000 | B185: 4000 Miami Children's Museum Charter | C185: 52 | D185: 20.60000038 | E185: 0.66 | F185: 1.600000024 | G185: 0.78 | H185: 0.6999999881 | I185: 0.65 | J185: 1.399999976 | K185: 0.7 | L185: 0.8999999762 | M185: 0.88 | N185: 1.600000024 | O185: 0.8 | P185: 2.599999905 | Q185: 0.64 | R185: 1.399999976 | S185: 0.72 | T185: 0.5 | U185: 0.5 | V185: 1.299999952 | W185: 0.66 | X185: 3.5 | Y185: 0.59 | Z185: 3.5 | AA185: 0.71 | AB185: 0.6000000238 | AC185: 0.58 | AD185: 1.100000024 | AE185: 0.53
A186: 4001 | B186: 4001 Norwood Elementary | C186: 68 | D186: 18.39999962 | E186: 0.59 | F186: 1.5 | G186: 0.76 | H186: 0.6000000238 | I186: 0.63 | J186: 1.200000048 | K186: 0.59 | L186: 0.8000000119 | M186: 0.84 | N186: 1.399999976 | O186: 0.71 | P186: 2.599999905 | Q186: 0.65 | R186: 1.299999952 | S186: 0.65 | T186: 0.400000006 | U186: 0.43 | V186: 1 | W186: 0.52 | X186: 3.099999905 | Y186: 0.51 | Z186: 3 | AA186: 0.59 | AB186: 0.6000000238 | AC186: 0.56 | AD186: 0.8999999762 | AE186: 0.43
A187: 4012 | B187: 4012 Somerset Academy At Silver Palms | C187: 68 | D187: 17.20000076 | E187: 0.56 | F187: 1.5 | G187: 0.73 | H187: 0.400000006 | I187: 0.43 | J187: 1.200000048 | K187: 0.59 | L187: 0.8000000119 | M187: 0.78 | N187: 1.399999976 | O187: 0.7 | P187: 2.099999905 | Q187: 0.53 | R187: 1 | S187: 0.52 | T187: 0.400000006 | U187: 0.43 | V187: 1.100000024 | W187: 0.57 | X187: 3 | Y187: 0.5 | Z187: 3 | AA187: 0.61 | AB187: 0.400000006 | AC187: 0.38 | AD187: 0.8000000119 | AE187: 0.4
A188: 4021 | B188: 4021 Oak Grove Elementary | C188: 92 | D188: 14.39999962 | E188: 0.46 | F188: 1.200000048 | G188: 0.59 | H188: 0.400000006 | I188: 0.38 | J188: 0.8000000119 | K188: 0.39 | L188: 0.6999999881 | M188: 0.67 | N188: 1.299999952 | O188: 0.64 | P188: 1.899999976 | Q188: 0.49 | R188: 1 | S188: 0.51 | T188: 0.400000006 | U188: 0.4 | V188: 1 | W188: 0.48 | X188: 2.599999905 | Y188: 0.43 | Z188: 2.200000048 | AA188: 0.44 | AB188: 0.400000006 | AC188: 0.42 | AD188: 0.6000000238 | AE188: 0.3
A189: 4031 | B189: 4031 Gateway Environmental K-8 Learning Center | C189: 228 | D189: 15.80000019 | E189: 0.51 | F189: 1.200000048 | G189: 0.6 | H189: 0.5 | I189: 0.46 | J189: 1 | K189: 0.49 | L189: 0.6999999881 | M189: 0.74 | N189: 1.200000048 | O189: 0.61 | P189: 2.099999905 | Q189: 0.53 | R189: 1.100000024 | S189: 0.53 | T189: 0.400000006 | U189: 0.43 | V189: 1 | W189: 0.52 | X189: 2.799999952 | Y189: 0.47 | Z189: 2.599999905 | AA189: 0.52 | AB189: 0.5 | AC189: 0.45 | AD189: 0.6999999881 | AE189: 0.36
A190: 4061 | B190: 4061 Ojus Elementary School | C190: 147 | D190: 18.70000076 | E190: 0.6 | F190: 1.299999952 | G190: 0.67 | H190: 0.6000000238 | I190: 0.59 | J190: 1.200000048 | K190: 0.62 | L190: 0.8000000119 | M190: 0.84 | N190: 1.5 | O190: 0.73 | P190: 2.5 | Q190: 0.63 | R190: 1.299999952 | S190: 0.63 | T190: 0.5 | U190: 0.5 | V190: 1.299999952 | W190: 0.63 | X190: 3.200000048 | Y190: 0.53 | Z190: 3.099999905 | AA190: 0.62 | AB190: 0.6000000238 | AC190: 0.55 | AD190: 0.8999999762 | AE190: 0.43
A191: 4071 | B191: 4071 Olinda Elementary | C191: 53 | D191: 14.19999981 | E191: 0.46 | F191: 1.200000048 | G191: 0.59 | H191: 0.400000006 | I191: 0.43 | J191: 0.8000000119 | K191: 0.39 | L191: 0.8000000119 | M191: 0.75 | N191: 1.299999952 | O191: 0.64 | P191: 2.200000048 | Q191: 0.54 | R191: 1 | S191: 0.52 | T191: 0.400000006 | U191: 0.4 | V191: 0.8999999762 | W191: 0.43 | X191: 2.299999952 | Y191: 0.38 | Z191: 2 | AA191: 0.4 | AB191: 0.400000006 | AC191: 0.38 | AD191: 0.6000000238 | AE191: 0.31
A192: 4081 | B192: 4081 Primary Learning Center | C192: 18 | D192: 22.10000038 | E192: 0.71 | F192: 1.600000024 | G192: 0.81 | H192: 0.6999999881 | I192: 0.72 | J192: 1.399999976 | K192: 0.72 | L192: 0.8999999762 | M192: 0.89 | N192: 1.600000024 | O192: 0.78 | P192: 3 | Q192: 0.75 | R192: 1.5 | S192: 0.75 | T192: 0.400000006 | U192: 0.39 | V192: 1.600000024 | W192: 0.78 | X192: 4.199999809 | Y192: 0.69 | Z192: 3.599999905 | AA192: 0.71 | AB192: 0.8000000119 | AC192: 0.78 | AD192: 0.8999999762 | AE192: 0.47
A193: 4091 | B193: 4091 Olympia Heights Elementary | C193: 77 | D193: 16.5 | E193: 0.53 | F193: 1.200000048 | G193: 0.6 | H193: 0.5 | I193: 0.49 | J193: 1.100000024 | K193: 0.55 | L193: 0.6000000238 | M193: 0.64 | N193: 1.299999952 | O193: 0.66 | P193: 2.200000048 | Q193: 0.56 | R193: 1.100000024 | S193: 0.55 | T193: 0.5 | U193: 0.49 | V193: 1.100000024 | W193: 0.56 | X193: 2.900000095 | Y193: 0.49 | Z193: 2.700000048 | AA193: 0.53 | AB193: 0.400000006 | AC193: 0.42 | AD193: 0.8999999762 | AE193: 0.44
A194: 4121 | B194: 4121 Dr. Robert B. Ingram Elementary School | C194: 62 | D194: 13.19999981 | E194: 0.43 | F194: 1 | G194: 0.51 | H194: 0.5 | I194: 0.47 | J194: 0.8000000119 | K194: 0.38 | L194: 0.6999999881 | M194: 0.68 | N194: 1.200000048 | O194: 0.6 | P194: 1.899999976 | Q194: 0.48 | R194: 1 | S194: 0.5 | T194: 0.400000006 | U194: 0.37 | V194: 0.8999999762 | W194: 0.44 | X194: 2.200000048 | Y194: 0.36 | Z194: 1.899999976 | AA194: 0.38 | AB194: 0.3000000119 | AC194: 0.32 | AD194: 0.5 | AE194: 0.25
A195: 4171 | B195: 4171 Orchard Villa Elementary | C195: 72 | D195: 14.80000019 | E195: 0.48 | F195: 1.200000048 | G195: 0.6 | H195: 0.400000006 | I195: 0.36 | J195: 0.8999999762 | K195: 0.43 | L195: 0.8000000119 | M195: 0.76 | N195: 1.200000048 | O195: 0.62 | P195: 2 | Q195: 0.5 | R195: 1 | S195: 0.49 | T195: 0.400000006 | U195: 0.39 | V195: 1 | W195: 0.52 | X195: 2.599999905 | Y195: 0.44 | Z195: 2.099999905 | AA195: 0.43 | AB195: 0.5 | AC195: 0.47 | AD195: 0.6999999881 | AE195: 0.37
A196: 4221 | B196: 4221 Palmetto Elementary | C196: 113 | D196: 21.20000076 | E196: 0.68 | F196: 1.600000024 | G196: 0.81 | H196: 0.6999999881 | I196: 0.65 | J196: 1.5 | K196: 0.73 | L196: 0.8999999762 | M196: 0.89 | N196: 1.5 | O196: 0.77 | P196: 2.599999905 | Q196: 0.64 | R196: 1.5 | S196: 0.73 | T196: 0.5 | U196: 0.48 | V196: 1.399999976 | W196: 0.69 | X196: 3.799999952 | Y196: 0.63 | Z196: 3.5 | AA196: 0.7 | AB196: 0.6999999881 | AC196: 0.74 | AD196: 1.100000024 | AE196: 0.53
A197: 4241 | B197: 4241 Palm Lakes Elementary School | C197: 155 | D197: 16 | E197: 0.52 | F197: 1.200000048 | G197: 0.61 | H197: 0.400000006 | I197: 0.43 | J197: 1 | K197: 0.51 | L197: 0.6999999881 | M197: 0.68 | N197: 1.200000048 | O197: 0.6 | P197: 2.299999952 | Q197: 0.59 | R197: 1 | S197: 0.52 | T197: 0.400000006 | U197: 0.43 | V197: 1.100000024 | W197: 0.54 | X197: 2.900000095 | Y197: 0.48 | Z197: 2.599999905 | AA197: 0.51 | AB197: 0.400000006 | AC197: 0.39 | AD197: 0.8000000119 | AE197: 0.38
A198: 4261 | B198: 4261 Palm Springs Elementary | C198: 122 | D198: 14.80000019 | E198: 0.48 | F198: 1.100000024 | G198: 0.53 | H198: 0.5 | I198: 0.5 | J198: 1 | K198: 0.52 | L198: 0.6999999881 | M198: 0.66 | N198: 1.100000024 | O198: 0.55 | P198: 1.899999976 | Q198: 0.48 | R198: 1.100000024 | S198: 0.53 | T198: 0.5 | U198: 0.45 | V198: 1 | W198: 0.49 | X198: 2.599999905 | Y198: 0.43 | Z198: 2.5 | AA198: 0.49 | AB198: 0.3000000119 | AC198: 0.3 | AD198: 0.6999999881 | AE198: 0.36
A199: 4281 | B199: 4281 Palm Springs North Elementary | C199: 157 | D199: 19.60000038 | E199: 0.63 | F199: 1.5 | G199: 0.75 | H199: 0.6999999881 | I199: 0.66 | J199: 1.299999952 | K199: 0.67 | L199: 0.8000000119 | M199: 0.83 | N199: 1.5 | O199: 0.75 | P199: 2.5 | Q199: 0.61 | R199: 1.200000048 | S199: 0.62 | T199: 0.5 | U199: 0.48 | V199: 1.299999952 | W199: 0.66 | X199: 3.700000048 | Y199: 0.61 | Z199: 3.099999905 | AA199: 0.62 | AB199: 0.5 | AC199: 0.54 | AD199: 0.8999999762 | AE199: 0.47
A200: 4301 | B200: 4301 Parkview Elementary | C200: 65 | D200: 16.20000076 | E200: 0.52 | F200: 1.299999952 | G200: 0.64 | H200: 0.6000000238 | I200: 0.55 | J200: 1.100000024 | K200: 0.53 | L200: 0.6999999881 | M200: 0.74 | N200: 1.399999976 | O200: 0.68 | P200: 2.099999905 | Q200: 0.52 | R200: 1.200000048 | S200: 0.62 | T200: 0.5 | U200: 0.49 | V200: 1 | W200: 0.51 | X200: 2.799999952 | Y200: 0.47 | Z200: 2.400000095 | AA200: 0.48 | AB200: 0.400000006 | AC200: 0.42 | AD200: 0.8000000119 | AE200: 0.39
A201: 4341 | B201: 4341 Parkway Elementary | C201: 46 | D201: 17.39999962 | E201: 0.56 | F201: 1.399999976 | G201: 0.68 | H201: 0.5 | I201: 0.54 | J201: 1.100000024 | K201: 0.57 | L201: 0.8000000119 | M201: 0.8 | N201: 1.200000048 | O201: 0.62 | P201: 2.299999952 | Q201: 0.59 | R201: 1.299999952 | S201: 0.64 | T201: 0.5 | U201: 0.46 | V201: 1.100000024 | W201: 0.57 | X201: 3.099999905 | Y201: 0.51 | Z201: 2.799999952 | AA201: 0.55 | AB201: 0.5 | AC201: 0.54 | AD201: 0.8000000119 | AE201: 0.38
... 89 more rows

Sheet BLG3CC-R (hidden)
B1: R-G03-RC-SCHL-ALL
B3: Description: | C3: Reading RC G03 all
B4: Student Selection: | C4: All Schools | 2012-2013 Fall, 2012-2013 School Year
B5: Group By Data: | C5: School
B6: Assessments: | C6: Baseline 2012 - Grade 3 Reading AUGUST 2012
B7: Scores: | C7: Overall Avg Raw Score, Overall Avg % Correct, Overall # in Performance Band, Overall % in Performance Band, Question Groups Avg Raw Score, Question Groups Avg % Correct, Question Groups # in Performance Band, Question Groups % in Performance Band
B8: Author Name: | C8: Yuwadee Wongbundhit
A9: =COLUMN() -> 1 | B9: =COLUMN() -> 2 | C9: =COLUMN() -> 3 | D9: =COLUMN() -> 4 | E9: =COLUMN() -> 5 | F9: =COLUMN() -> 6 | G9: =COLUMN() -> 7 | H9: =COLUMN() -> 8 | I9: =COLUMN() -> 9 | J9: =COLUMN() -> 10 | K9: =COLUMN() -> 11 | L9: =COLUMN() -> 12 | M9: =COLUMN() -> 13 | N9: =COLUMN() -> 14 | O9: =COLUMN() -> 15 | P9: =COLUMN() -> 16 | Q9: =COLUMN() -> 17 | R9: =COLUMN() -> 18 | S9: =COLUMN() -> 19 | T9: =COLUMN() -> 20 | U9: =COLUMN() -> 21 | V9: =COLUMN() -> 22 | W9: =COLUMN() -> 23 | X9: =COLUMN() -> 24 | Y9: =COLUMN() -> 25 | Z9: =COLUMN() -> 26 | AA9: =COLUMN() -> 27 | AB9: =COLUMN() -> 28 | AC9: =COLUMN() -> 29
B10: Total Row(s): 270 Generated on Sep-22-2012 by Yuwadee Wongbundhit | C10: Baseline 2012 - Grade 3 Reading AUGUST 2012
C11: Total # students | D11: Overall (31 pts max) | J11: Vocabulary (6 pts max) | P11: Reading Application (17 pts max) | V11: Literary Analysis - Fiction/Non-Fiction (6 pts max) | AB11: Informational Text/Research Process (2 pts max)
D12: Avg Raw Score | E12: Avg % Correct | F12: # in Performance Band | H12: % in Performance Band | J12: Avg Raw Score | K12: Avg % Correct | L12: # in Performance Band | N12: % in Performance Band | P12: Avg Raw Score | Q12: Avg % Correct | R12: # in Performance Band | T12: % in Performance Band | V12: Avg Raw Score | W12: Avg % Correct | X12: # in Performance Band | Z12: % in Performance Band | AB12: Avg Raw Score | AC12: Avg % Correct | AD12: # in Performance Band | AF12: % in Performance Band
B13: School Name | F13: Non Proficient | G13: Proficient | H13: Non Proficient | I13: Proficient | L13: Non Proficient | M13: Proficient | N13: Non Proficient | O13: Proficient | R13: Non Proficient | S13: Proficient | T13: Non Proficient | U13: Proficient | X13: Non Proficient | Y13: Proficient | Z13: Non Proficient | AA13: Proficient | AD13: Non Proficient | AE13: Proficient | AF13: Non Proficient | AG13: Proficient
A14: =IFERROR(VALUE(LEFT(B14,4)),"") -> 41 | B14: 0041 Air Base Elementary | C14: 111 | D14: 20.20000076 | E14: 0.65 | F14: 60 | G14: 51 | H14: 54.05% | I14: 45.95% | J14: 4.400000095 | K14: 0.73 | L14: 55 | M14: 56 | N14: 49.55% | O14: 50.45% | P14: 11 | Q14: 0.65 | R14: 57 | S14: 54 | T14: 51.35% | U14: 48.65% | V14: 3.799999952 | W14: 0.63 | X14: 71 | Y14: 40 | Z14: 63.96% | AA14: 36.04% | AB14: 1 | AC14: 0.5 | AD14: 89 | AE14: 22 | AF14: 80.18% | AG14: 19.82%
A15: =IFERROR(VALUE(LEFT(B15,4)),"") -> 70 | B15: 0070 Coral Reef Montessori Academy | C15: 57 | D15: 19.20000076 | E15: 0.62 | F15: 38 | G15: 19 | H15: 66.67% | I15: 33.33% | J15: 4 | K15: 0.67 | L15: 33 | M15: 24 | N15: 57.89% | O15: 42.11% | P15: 10.39999962 | Q15: 0.61 | R15: 34 | S15: 23 | T15: 59.65% | U15: 40.35% | V15: 3.799999952 | W15: 0.64 | X15: 37 | Y15: 20 | Z15: 64.91% | AA15: 35.09% | AB15: 0.8999999762 | AC15: 0.46 | AD15: 47 | AE15: 10 | AF15: 82.46% | AG15: 17.54%
A16: 71 | B16: 0071 Eugenia B. Thomas K-8 | C16: 191 | D16: 16.79999924 | E16: 0.54 | F16: 138 | G16: 53 | H16: 72.25% | I16: 27.75% | J16: 3.5 | K16: 0.58 | L16: 126 | M16: 65 | N16: 65.97% | O16: 34.03% | P16: 9.399999619 | Q16: 0.55 | R16: 130 | S16: 61 | T16: 68.06% | U16: 31.94% | V16: 3.099999905 | W16: 0.52 | X16: 147 | Y16: 44 | Z16: 76.96% | AA16: 23.04% | AB16: 0.8000000119 | AC16: 0.39 | AD16: 168 | AE16: 23 | AF16: 87.96% | AG16: 12.04%
A17: 72 | B17: 0072 Summerville Charter School | C17: 85 | D17: 17.60000038 | E17: 0.57 | F17: 63 | G17: 22 | H17: 74.12% | I17: 25.88% | J17: 3.799999952 | K17: 0.63 | L17: 58 | M17: 27 | N17: 68.24% | O17: 31.76% | P17: 9.600000381 | Q17: 0.56 | R17: 59 | S17: 26 | T17: 69.41% | U17: 30.59% | V17: 3.400000095 | W17: 0.56 | X17: 63 | Y17: 22 | Z17: 74.12% | AA17: 25.88% | AB17: 0.8000000119 | AC17: 0.42 | AD17: 76 | AE17: 9 | AF17: 89.41% | AG17: 10.59%
A18: 73 | B18: 0073 Mandarin Lakes K-8 Center | C18: 145 | D18: 14.19999981 | E18: 0.46 | F18: 131 | G18: 14 | H18: 90.34% | I18: 9.66% | J18: 3.099999905 | K18: 0.52 | L18: 116 | M18: 29 | N18: 80.00% | O18: 20.00% | P18: 7.800000191 | Q18: 0.46 | R18: 131 | S18: 14 | T18: 90.34% | U18: 9.66% | V18: 2.700000048 | W18: 0.44 | X18: 130 | Y18: 15 | Z18: 89.66% | AA18: 10.34% | AB18: 0.6000000238 | AC18: 0.3 | AD18: 136 | AE18: 9 | AF18: 93.79% | AG18: 6.21%
A19: 81 | B19: 0081 Lenora B. Smith Elementary | C19: 76 | D19: 14.80000019 | E19: 0.48 | F19: 65 | G19: 11 | H19: 85.53% | I19: 14.47% | J19: 3 | K19: 0.5 | L19: 62 | M19: 14 | N19: 81.58% | O19: 18.42% | P19: 8.399999619 | Q19: 0.49 | R19: 63 | S19: 13 | T19: 82.89% | U19: 17.11% | V19: 2.599999905 | W19: 0.44 | X19: 63 | Y19: 13 | Z19: 82.89% | AA19: 17.11% | AB19: 0.8000000119 | AC19: 0.41 | AD19: 70 | AE19: 6 | AF19: 92.11% | AG19: 7.89%
A20: 91 | B20: 0091 Bob Graham Education Center | C20: 188 | D20: 18.70000076 | E20: 0.6 | F20: 122 | G20: 66 | H20: 64.89% | I20: 35.11% | J20: 4.099999905 | K20: 0.68 | L20: 95 | M20: 93 | N20: 50.53% | O20: 49.47% | P20: 10.19999981 | Q20: 0.6 | R20: 119 | S20: 69 | T20: 63.30% | U20: 36.70% | V20: 3.700000048 | W20: 0.61 | X20: 128 | Y20: 60 | Z20: 68.09% | AA20: 31.91% | AB20: 0.8000000119 | AC20: 0.4 | AD20: 163 | AE20: 25 | AF20: 86.70% | AG20: 13.30%
A21: 92 | B21: 0092 Sunny Isles Beach Community School K-8 | C21: 216 | D21: 20.20000076 | E21: 0.65 | F21: 107 | G21: 109 | H21: 49.54% | I21: 50.46% | J21: 4.5 | K21: 0.74 | L21: 89 | M21: 127 | N21: 41.20% | O21: 58.80% | P21: 10.80000019 | Q21: 0.63 | R21: 113 | S21: 103 | T21: 52.31% | U21: 47.69% | V21: 4 | W21: 0.67 | X21: 121 | Y21: 95 | Z21: 56.02% | AA21: 43.98% | AB21: 1 | AC21: 0.49 | AD21: 173 | AE21: 43 | AF21: 80.09% | AG21: 19.91%
A22: 100 | B22: 0100 Mater Academy Charter | C22: 125 | D22: 19 | E22: 0.61 | F22: 83 | G22: 42 | H22: 66.40% | I22: 33.60% | J22: 4.300000191 | K22: 0.72 | L22: 64 | M22: 61 | N22: 51.20% | O22: 48.80% | P22: 10.19999981 | Q22: 0.6 | R22: 82 | S22: 43 | T22: 65.60% | U22: 34.40% | V22: 3.599999905 | W22: 0.6 | X22: 92 | Y22: 33 | Z22: 73.60% | AA22: 26.40% | AB22: 0.8999999762 | AC22: 0.43 | AD22: 109 | AE22: 16 | AF22: 87.20% | AG22: 12.80%
A23: 101 | B23: 0101 Arcola Lake Elementary School | C23: 65 | D23: 13.39999962 | E23: 0.43 | F23: 58 | G23: 7 | H23: 89.23% | I23: 10.77% | J23: 2.799999952 | K23: 0.46 | L23: 49 | M23: 16 | N23: 75.38% | O23: 24.62% | P23: 7.599999905 | Q23: 0.45 | R23: 57 | S23: 8 | T23: 87.69% | U23: 12.31% | V23: 2.5 | W23: 0.42 | X23: 60 | Y23: 5 | Z23: 92.31% | AA23: 7.69% | AB23: 0.6000000238 | AC23: 0.29 | AD23: 59 | AE23: 6 | AF23: 90.77% | AG23: 9.23%
A24: 102 | B24: 0102 Miami Community Charter School | C24: 84 | D24: 14.5 | E24: 0.47 | F24: 76 | G24: 8 | H24: 90.48% | I24: 9.52% | J24: 3.200000048 | K24: 0.54 | L24: 61 | M24: 23 | N24: 72.62% | O24: 27.38% | P24: 7.900000095 | Q24: 0.47 | R24: 72 | S24: 12 | T24: 85.71% | U24: 14.29% | V24: 2.700000048 | W24: 0.45 | X24: 75 | Y24: 9 | Z24: 89.29% | AA24: 10.71% | AB24: 0.6000000238 | AC24: 0.32 | AD24: 75 | AE24: 9 | AF24: 89.29% | AG24: 10.71%
A25: 111 | B25: 0111 Maya Angelou Elementary School | C25: 88 | D25: 14.10000038 | E25: 0.45 | F25: 76 | G25: 12 | H25: 86.36% | I25: 13.64% | J25: 3 | K25: 0.49 | L25: 69 | M25: 19 | N25: 78.41% | O25: 21.59% | P25: 7.800000191 | Q25: 0.46 | R25: 78 | S25: 10 | T25: 88.64% | U25: 11.36% | V25: 2.700000048 | W25: 0.44 | X25: 78 | Y25: 10 | Z25: 88.64% | AA25: 11.36% | AB25: 0.6999999881 | AC25: 0.34 | AD25: 81 | AE25: 7 | AF25: 92.05% | AG25: 7.95%
A26: 121 | B26: 0121 Auburndale Elementary Community School | C26: 119 | D26: 17.10000038 | E26: 0.55 | F26: 85 | G26: 34 | H26: 71.43% | I26: 28.57% | J26: 3.799999952 | K26: 0.63 | L26: 65 | M26: 54 | N26: 54.62% | O26: 45.38% | P26: 9.399999619 | Q26: 0.55 | R26: 83 | S26: 36 | T26: 69.75% | U26: 30.25% | V26: 3.200000048 | W26: 0.53 | X26: 89 | Y26: 30 | Z26: 74.79% | AA26: 25.21% | AB26: 0.8000000119 | AC26: 0.39 | AD26: 101 | AE26: 18 | AF26: 84.87% | AG26: 15.13%
A27: 122 | B27: 0122 Dr. Rolando Espinosa K-8 Center | C27: 166 | D27: 16.60000038 | E27: 0.53 | F27: 123 | G27: 43 | H27: 74.10% | I27: 25.90% | J27: 3.599999905 | K27: 0.6 | L27: 108 | M27: 58 | N27: 65.06% | O27: 34.94% | P27: 9.199999809 | Q27: 0.54 | R27: 120 | S27: 46 | T27: 72.29% | U27: 27.71% | V27: 3 | W27: 0.51 | X27: 132 | Y27: 34 | Z27: 79.52% | AA27: 20.48% | AB27: 0.6999999881 | AC27: 0.36 | AD27: 150 | AE27: 16 | AF27: 90.36% | AG27: 9.64%
A28: 125 | B28: 0125 Norma Butler Bossard Elementary | C28: 228 | D28: 20.39999962 | E28: 0.66 | F28: 108 | G28: 120 | H28: 47.37% | I28: 52.63% | J28: 4.5 | K28: 0.75 | L28: 92 | M28: 136 | N28: 40.35% | O28: 59.65% | P28: 11 | Q28: 0.65 | R28: 114 | S28: 114 | T28: 50.00% | U28: 50.00% | V28: 4 | W28: 0.67 | X28: 124 | Y28: 104 | Z28: 54.39% | AA28: 45.61% | AB28: 0.8999999762 | AC28: 0.45 | AD28: 190 | AE28: 38 | AF28: 83.33% | AG28: 16.67%
A29: 161 | B29: 0161 Avocado Elementary | C29: 139 | D29: 14.39999962 | E29: 0.46 | F29: 116 | G29: 23 | H29: 83.45% | I29: 16.55% | J29: 3 | K29: 0.5 | L29: 106 | M29: 33 | N29: 76.26% | O29: 23.74% | P29: 8.199999809 | Q29: 0.48 | R29: 112 | S29: 27 | T29: 80.58% | U29: 19.42% | V29: 2.599999905 | W29: 0.44 | X29: 115 | Y29: 24 | Z29: 82.73% | AA29: 17.27% | AB29: 0.5 | AC29: 0.27 | AD29: 133 | AE29: 6 | AF29: 95.68% | AG29: 4.32%
A30: 201 | B30: 0201 Banyan Elementary | C30: 35 | D30: 19.79999924 | E30: 0.64 | F30: 19 | G30: 16 | H30: 54.29% | I30: 45.71% | J30: 4.300000191 | K30: 0.72 | L30: 13 | M30: 22 | N30: 37.14% | O30: 62.86% | P30: 10.69999981 | Q30: 0.63 | R30: 20 | S30: 15 | T30: 57.14% | U30: 42.86% | V30: 3.900000095 | W30: 0.66 | X30: 20 | Y30: 15 | Z30: 57.14% | AA30: 42.86% | AB30: 0.8999999762 | AC30: 0.43 | AD30: 32 | AE30: 3 | AF30: 91.43% | AG30: 8.57%
A31: 211 | B31: 0211 Dr. Manuel C. Barreiro Elementary | C31: 126 | D31: 20.70000076 | E31: 0.67 | F31: 58 | G31: 68 | H31: 46.03% | I31: 53.97% | J31: 4.599999905 | K31: 0.76 | L31: 46 | M31: 80 | N31: 36.51% | O31: 63.49% | P31: 11 | Q31: 0.65 | R31: 62 | S31: 64 | T31: 49.21% | U31: 50.79% | V31: 4.099999905 | W31: 0.69 | X31: 70 | Y31: 56 | Z31: 55.56% | AA31: 44.44% | AB31: 1 | AC31: 0.51 | AD31: 102 | AE31: 24 | AF31: 80.95% | AG31: 19.05%
A32: 231 | B32: 0231 Aventura Waterways K-8 | C32: 198 | D32: 19.39999962 | E32: 0.63 | F32: 116 | G32: 82 | H32: 58.59% | I32: 41.41% | J32: 4.199999809 | K32: 0.71 | L32: 94 | M32: 104 | N32: 47.47% | O32: 52.53% | P32: 10.5 | Q32: 0.62 | R32: 123 | S32: 75 | T32: 62.12% | U32: 37.88% | V32: 3.700000048 | W32: 0.62 | X32: 124 | Y32: 74 | Z32: 62.63% | AA32: 37.37% | AB32: 0.8999999762 | AC32: 0.47 | AD32: 158 | AE32: 40 | AF32: 79.80% | AG32: 20.20%
A33: 241 | B33: 0241 Ruth K. Broad/Bay Harbor K-8 | C33: 143 | D33: 20.10000038 | E33: 0.65 | F33: 74 | G33: 69 | H33: 51.75% | I33: 48.25% | J33: 4.400000095 | K33: 0.73 | L33: 62 | M33: 81 | N33: 43.36% | O33: 56.64% | P33: 10.89999962 | Q33: 0.64 | R33: 71 | S33: 72 | T33: 49.65% | U33: 50.35% | V33: 3.900000095 | W33: 0.65 | X33: 88 | Y33: 55 | Z33: 61.54% | AA33: 38.46% | AB33: 0.8999999762 | AC33: 0.47 | AD33: 119 | AE33: 24 | AF33: 83.22% | AG33: 16.78%
A34: 251 | B34: 0251 Ethel Koger Beckham Elementary | C34: 117 | D34: 19.70000076 | E34: 0.64 | F34: 72 | G34: 45 | H34: 61.54% | I34: 38.46% | J34: 4.199999809 | K34: 0.7 | L34: 64 | M34: 53 | N34: 54.70% | O34: 45.30% | P34: 10.80000019 | Q34: 0.64 | R34: 67 | S34: 50 | T34: 57.26% | U34: 42.74% | V34: 3.700000048 | W34: 0.62 | X34: 77 | Y34: 40 | Z34: 65.81% | AA34: 34.19% | AB34: 1 | AC34: 0.49 | AD34: 93 | AE34: 24 | AF34: 79.49% | AG34: 20.51%
A35: 261 | B35: 0261 Bel-Aire Elementary | C35: 74 | D35: 16 | E35: 0.52 | F35: 57 | G35: 17 | H35: 77.03% | I35: 22.97% | J35: 3.5 | K35: 0.58 | L35: 49 | M35: 25 | N35: 66.22% | O35: 33.78% | P35: 8.699999809 | Q35: 0.51 | R35: 58 | S35: 16 | T35: 78.38% | U35: 21.62% | V35: 3 | W35: 0.5 | X35: 59 | Y35: 15 | Z35: 79.73% | AA35: 20.27% | AB35: 0.8000000119 | AC35: 0.38 | AD35: 66 | AE35: 8 | AF35: 89.19% | AG35: 10.81%
A36: 271 | B36: 0271 Bent Tree Elementary | C36: 74 | D36: 16.39999962 | E36: 0.53 | F36: 54 | G36: 20 | H36: 72.97% | I36: 27.03% | J36: 3.599999905 | K36: 0.61 | L36: 47 | M36: 27 | N36: 63.51% | O36: 36.49% | P36: 9.100000381 | Q36: 0.53 | R36: 53 | S36: 21 | T36: 71.62% | U36: 28.38% | V36: 3 | W36: 0.5 | X36: 58 | Y36: 16 | Z36: 78.38% | AA36: 21.62% | AB36: 0.6999999881 | AC36: 0.36 | AD36: 66 | AE36: 8 | AF36: 89.19% | AG36: 10.81%
A37: 311 | B37: 0311 Goulds Elementary | C37: 78 | D37: 15.69999981 | E37: 0.5 | F37: 65 | G37: 13 | H37: 83.33% | I37: 16.67% | J37: 3.599999905 | K37: 0.6 | L37: 51 | M37: 27 | N37: 65.38% | O37: 34.62% | P37: 8.199999809 | Q37: 0.48 | R37: 66 | S37: 12 | T37: 84.62% | U37: 15.38% | V37: 3 | W37: 0.5 | X37: 70 | Y37: 8 | Z37: 89.74% | AA37: 10.26% | AB37: 0.8000000119 | AC37: 0.42 | AD37: 68 | AE37: 10 | AF37: 87.18% | AG37: 12.82%
A38: 312 | B38: 0312 Mater Gardens Academy | C38: 104 | D38: 19.79999924 | E38: 0.64 | F38: 59 | G38: 45 | H38: 56.73% | I38: 43.27% | J38: 4.5 | K38: 0.75 | L38: 47 | M38: 57 | N38: 45.19% | O38: 54.81% | P38: 10.39999962 | Q38: 0.61 | R38: 64 | S38: 40 | T38: 61.54% | U38: 38.46% | V38: 4.099999905 | W38: 0.68 | X38: 62 | Y38: 42 | Z38: 59.62% | AA38: 40.38% | AB38: 0.8999999762 | AC38: 0.45 | AD38: 90 | AE38: 14 | AF38: 86.54% | AG38: 13.46%
A39: 321 | B39: 0321 Biscayne Elementary | C39: 117 | D39: 13.89999962 | E39: 0.45 | F39: 96 | G39: 21 | H39: 82.05% | I39: 17.95% | J39: 2.900000095 | K39: 0.48 | L39: 86 | M39: 31 | N39: 73.50% | O39: 26.50% | P39: 7.900000095 | Q39: 0.46 | R39: 96 | S39: 21 | T39: 82.05% | U39: 17.95% | V39: 2.599999905 | W39: 0.43 | X39: 101 | Y39: 16 | Z39: 86.32% | AA39: 13.68% | AB39: 0.6000000238 | AC39: 0.29 | AD39: 103 | AE39: 14 | AF39: 88.03% | AG39: 11.97%
A40: 332 | B40: 0332 Somerset Silver Palms K-8 | C40: 66 | D40: 15.80000019 | E40: 0.51 | F40: 53 | G40: 13 | H40: 80.30% | I40: 19.70% | J40: 3.400000095 | K40: 0.57 | L40: 49 | M40: 17 | N40: 74.24% | O40: 25.76% | P40: 8.399999619 | Q40: 0.5 | R40: 55 | S40: 11 | T40: 83.33% | U40: 16.67% | V40: 3.299999952 | W40: 0.55 | X40: 48 | Y40: 18 | Z40: 72.73% | AA40: 27.27% | AB40: 0.6999999881 | AC40: 0.36 | AD40: 60 | AE40: 6 | AF40: 90.91% | AG40: 9.09%
A41: 339 | B41: 0339 Somerset Academy (Country Palms) | C41: 60 | D41: 17.39999962 | E41: 0.56 | F41: 45 | G41: 15 | H41: 75.00% | I41: 25.00% | J41: 3.900000095 | K41: 0.65 | L41: 39 | M41: 21 | N41: 65.00% | O41: 35.00% | P41: 9.300000191 | Q41: 0.55 | R41: 46 | S41: 14 | T41: 76.67% | U41: 23.33% | V41: 3.200000048 | W41: 0.54 | X41: 44 | Y41: 16 | Z41: 73.33% | AA41: 26.67% | AB41: 1 | AC41: 0.5 | AD41: 48 | AE41: 12 | AF41: 80.00% | AG41: 20.00%
A42: 341 | B42: 0341 Archcreek Elementary | C42: 94 | D42: 15.30000019 | E42: 0.49 | F42: 74 | G42: 20 | H42: 78.72% | I42: 21.28% | J42: 3.400000095 | K42: 0.56 | L42: 66 | M42: 28 | N42: 70.21% | O42: 29.79% | P42: 8.300000191 | Q42: 0.49 | R42: 72 | S42: 22 | T42: 76.60% | U42: 23.40% | V42: 2.900000095 | W42: 0.49 | X42: 75 | Y42: 19 | Z42: 79.79% | AA42: 20.21% | AB42: 0.6000000238 | AC42: 0.31 | AD42: 85 | AE42: 9 | AF42: 90.43% | AG42: 9.57%
A43: 342 | B43: 0342 Pinecrest Academy (South Campus) | C43: 124 | D43: 20.5 | E43: 0.66 | F43: 64 | G43: 60 | H43: 51.61% | I43: 48.39% | J43: 4.599999905 | K43: 0.77 | L43: 48 | M43: 76 | N43: 38.71% | O43: 61.29% | P43: 10.80000019 | Q43: 0.64 | R43: 67 | S43: 57 | T43: 54.03% | U43: 45.97% | V43: 4.099999905 | W43: 0.69 | X43: 65 | Y43: 59 | Z43: 52.42% | AA43: 47.58% | AB43: 0.8999999762 | AC43: 0.46 | AD43: 102 | AE43: 22 | AF43: 82.26% | AG43: 17.74%
A44: 361 | B44: 0361 Biscayne Gardens Elementary | C44: 88 | D44: 15.80000019 | E44: 0.51 | F44: 70 | G44: 18 | H44: 79.55% | I44: 20.45% | J44: 3.599999905 | K44: 0.6 | L44: 63 | M44: 25 | N44: 71.59% | O44: 28.41% | P44: 8.5 | Q44: 0.5 | R44: 70 | S44: 18 | T44: 79.55% | U44: 20.45% | V44: 2.900000095 | W44: 0.49 | X44: 71 | Y44: 17 | Z44: 80.68% | AA44: 19.32% | AB44: 0.8000000119 | AC44: 0.39 | AD44: 74 | AE44: 14 | AF44: 84.09% | AG44: 15.91%
A45: 400 | B45: 0400 Renaissance Elementary Charter School | C45: 1 | D45: 7 | E45: 0.23 | F45: 1 | H45: 100.00% | J45: 1 | K45: 0.17 | L45: 1 | N45: 100.00% | P45: 3 | Q45: 0.18 | R45: 1 | T45: 100.00% | V45: 3 | W45: 0.5 | X45: 1 | Z45: 100.00% | AB45: 0 | AC45: 0 | AD45: 1 | AF45: 100.00%
A46: 401 | B46: 0401 Van E. Blanton Elementary | C46: 100 | D46: 15.19999981 | E46: 0.49 | F46: 82 | G46: 18 | H46: 82.00% | I46: 18.00% | J46: 3.5 | K46: 0.59 | L46: 68 | M46: 32 | N46: 68.00% | O46: 32.00% | P46: 8.300000191 | Q46: 0.49 | R46: 83 | S46: 17 | T46: 83.00% | U46: 17.00% | V46: 2.599999905 | W46: 0.43 | X46: 87 | Y46: 13 | Z46: 87.00% | AA46: 13.00% | AB46: 0.8000000119 | AC46: 0.38 | AD46: 86 | AE46: 14 | AF46: 86.00% | AG46: 14.00%
A47: 410 | B47: 0410 Academir Charter School West | C47: 113 | D47: 18.79999924 | E47: 0.61 | F47: 76 | G47: 37 | H47: 67.26% | I47: 32.74% | J47: 4.199999809 | K47: 0.69 | L47: 57 | M47: 56 | N47: 50.44% | O47: 49.56% | P47: 10.10000038 | Q47: 0.6 | R47: 74 | S47: 39 | T47: 65.49% | U47: 34.51% | V47: 3.700000048 | W47: 0.61 | X47: 77 | Y47: 36 | Z47: 68.14% | AA47: 31.86% | AB47: 0.8999999762 | AC47: 0.43 | AD47: 95 | AE47: 18 | AF47: 84.07% | AG47: 15.93%
A48: 441 | B48: 0441 Blue Lakes Elementary | C48: 75 | D48: 17.79999924 | E48: 0.57 | F48: 52 | G48: 23 | H48: 69.33% | I48: 30.67% | J48: 4 | K48: 0.66 | L48: 39 | M48: 36 | N48: 52.00% | O48: 48.00% | P48: 9.5 | Q48: 0.56 | R48: 51 | S48: 24 | T48: 68.00% | U48: 32.00% | V48: 3.400000095 | W48: 0.56 | X48: 53 | Y48: 22 | Z48: 70.67% | AA48: 29.33% | AB48: 0.8999999762 | AC48: 0.44 | AD48: 64 | AE48: 11 | AF48: 85.33% | AG48: 14.67%
A49: 451 | B49: 0451 Doolin /Ashe K-8 Academy | C49: 123 | D49: 18.79999924 | E49: 0.61 | F49: 75 | G49: 48 | H49: 60.98% | I49: 39.02% | J49: 4.300000191 | K49: 0.72 | L49: 59 | M49: 64 | N49: 47.97% | O49: 52.03% | P49: 10.19999981 | Q49: 0.6 | R49: 77 | S49: 46 | T49: 62.60% | U49: 37.40% | V49: 3.400000095 | W49: 0.57 | X49: 84 | Y49: 39 | Z49: 68.29% | AA49: 31.71% | AB49: 1 | AC49: 0.48 | AD49: 99 | AE49: 24 | AF49: 80.49% | AG49: 19.51%
A50: 461 | B50: 0461 Brentwood Elementary | C50: 136 | D50: 15.10000038 | E50: 0.49 | F50: 116 | G50: 20 | H50: 85.29% | I50: 14.71% | J50: 3.299999952 | K50: 0.55 | L50: 101 | M50: 35 | N50: 74.26% | O50: 25.74% | P50: 8.5 | Q50: 0.5 | R50: 113 | S50: 23 | T50: 83.09% | U50: 16.91% | V50: 2.700000048 | W50: 0.46 | X50: 115 | Y50: 21 | Z50: 84.56% | AA50: 15.44% | AB50: 0.6000000238 | AC50: 0.28 | AD50: 126 | AE50: 10 | AF50: 92.65% | AG50: 7.35%
A51: 481 | B51: 0481 James H. Bright Elementary | C51: 123 | D51: 14.60000038 | E51: 0.47 | F51: 101 | G51: 22 | H51: 82.11% | I51: 17.89% | J51: 3.099999905 | K51: 0.52 | L51: 93 | M51: 30 | N51: 75.61% | O51: 24.39% | P51: 8.100000381 | Q51: 0.48 | R51: 98 | S51: 25 | T51: 79.67% | U51: 20.33% | V51: 2.700000048 | W51: 0.44 | X51: 101 | Y51: 22 | Z51: 82.11% | AA51: 17.89% | AB51: 0.6999999881 | AC51: 0.33 | AD51: 110 | AE51: 13 | AF51: 89.43% | AG51: 10.57%
A52: 510 | B52: 0510 Archimedean Academy Charter | C52: 73 | D52: 20.20000076 | E52: 0.65 | F52: 33 | G52: 40 | H52: 45.21% | I52: 54.79% | J52: 4.300000191 | K52: 0.72 | L52: 35 | M52: 38 | N52: 47.95% | O52: 52.05% | P52: 11 | Q52: 0.65 | R52: 35 | S52: 38 | T52: 47.95% | U52: 52.05% | V52: 3.900000095 | W52: 0.66 | X52: 39 | Y52: 34 | Z52: 53.42% | AA52: 46.58% | AB52: 0.8999999762 | AC52: 0.47 | AD52: 59 | AE52: 14 | AF52: 80.82% | AG52: 19.18%
A53: 520 | B53: 0520 Somerset Academy | C53: 98 | D53: 20 | E53: 0.65 | F53: 55 | G53: 43 | H53: 56.12% | I53: 43.88% | J53: 4.5 | K53: 0.75 | L53: 40 | M53: 58 | N53: 40.82% | O53: 59.18% | P53: 10.89999962 | Q53: 0.64 | R53: 56 | S53: 42 | T53: 57.14% | U53: 42.86% | V53: 3.799999952 | W53: 0.63 | X53: 61 | Y53: 37 | Z53: 62.24% | AA53: 37.76% | AB53: 0.8999999762 | AC53: 0.45 | AD53: 83 | AE53: 15 | AF53: 84.69% | AG53: 15.31%
A54: 521 | B54: 0521 Broadmoor Elementary | C54: 62 | D54: 14.60000038 | E54: 0.47 | F54: 50 | G54: 12 | H54: 80.65% | I54: 19.35% | J54: 3.299999952 | K54: 0.56 | L54: 41 | M54: 21 | N54: 66.13% | O54: 33.87% | P54: 7.699999809 | Q54: 0.46 | R54: 56 | S54: 6 | T54: 90.32% | U54: 9.68% | V54: 2.799999952 | W54: 0.47 | X54: 50 | Y54: 12 | Z54: 80.65% | AA54: 19.35% | AB54: 0.6999999881 | AC54: 0.36 | AD54: 58 | AE54: 4 | AF54: 93.55% | AG54: 6.45%
A55: 561 | B55: 0561 William J. Bryan Elementary | C55: 127 | D55: 14.19999981 | E55: 0.46 | F55: 108 | G55: 19 | H55: 85.04% | I55: 14.96% | J55: 3.299999952 | K55: 0.55 | L55: 95 | M55: 32 | N55: 74.80% | O55: 25.20% | P55: 7.5 | Q55: 0.44 | R55: 113 | S55: 14 | T55: 88.98% | U55: 11.02% | V55: 2.799999952 | W55: 0.47 | X55: 103 | Y55: 24 | Z55: 81.10% | AA55: 18.90% | AB55: 0.6999999881 | AC55: 0.34 | AD55: 111 | AE55: 16 | AF55: 87.40% | AG55: 12.60%
A56: 600 | B56: 0600 Pinecrest Preparatory Academy Charter | C56: 121 | D56: 22.29999924 | E56: 0.72 | F56: 41 | G56: 80 | H56: 33.88% | I56: 66.12% | J56: 4.900000095 | K56: 0.82 | L56: 35 | M56: 86 | N56: 28.93% | O56: 71.07% | P56: 12.10000038 | Q56: 0.71 | R56: 44 | S56: 77 | T56: 36.36% | U56: 63.64% | V56: 4.199999809 | W56: 0.7 | X56: 56 | Y56: 65 | Z56: 46.28% | AA56: 53.72% | AB56: 1.100000024 | AC56: 0.54 | AD56: 92 | AE56: 29 | AF56: 76.03% | AG56: 23.97%
A57: 641 | B57: 0641 Bunche Park Elementary | C57: 37 | D57: 14.89999962 | E57: 0.48 | F57: 31 | G57: 6 | H57: 83.78% | I57: 16.22% | J57: 3.200000048 | K57: 0.53 | L57: 28 | M57: 9 | N57: 75.68% | O57: 24.32% | P57: 8.100000381 | Q57: 0.48 | R57: 31 | S57: 6 | T57: 83.78% | U57: 16.22% | V57: 3.099999905 | W57: 0.51 | X57: 30 | Y57: 7 | Z57: 81.08% | AA57: 18.92% | AB57: 0.5 | AC57: 0.26 | AD57: 35 | AE57: 2 | AF57: 94.59% | AG57: 5.41%
A58: 651 | B58: 0651 Campbell Drive Elementary | C58: 94 | D58: 14.60000038 | E58: 0.47 | F58: 85 | G58: 9 | H58: 90.43% | I58: 9.57% | J58: 3.200000048 | K58: 0.54 | L58: 69 | M58: 25 | N58: 73.40% | O58: 26.60% | P58: 8 | Q58: 0.47 | R58: 79 | S58: 15 | T58: 84.04% | U58: 15.96% | V58: 2.599999905 | W58: 0.44 | X58: 84 | Y58: 10 | Z58: 89.36% | AA58: 10.64% | AB58: 0.8000000119 | AC58: 0.39 | AD58: 81 | AE58: 13 | AF58: 86.17% | AG58: 13.83%
A59: 661 | B59: 0661 Caribbean Elementary | C59: 97 | D59: 14.39999962 | E59: 0.46 | F59: 83 | G59: 14 | H59: 85.57% | I59: 14.43% | J59: 3 | K59: 0.5 | L59: 71 | M59: 26 | N59: 73.20% | O59: 26.80% | P59: 7.900000095 | Q59: 0.46 | R59: 81 | S59: 16 | T59: 83.51% | U59: 16.49% | V59: 2.799999952 | W59: 0.46 | X59: 79 | Y59: 18 | Z59: 81.44% | AA59: 18.56% | AB59: 0.6999999881 | AC59: 0.35 | AD59: 88 | AE59: 9 | AF59: 90.72% | AG59: 9.28%
A60: 671 | B60: 0671 Calusa Elementary School | C60: 140 | D60: 19.39999962 | E60: 0.63 | F60: 82 | G60: 58 | H60: 58.57% | I60: 41.43% | J60: 4.300000191 | K60: 0.72 | L60: 62 | M60: 78 | N60: 44.29% | O60: 55.71% | P60: 10.5 | Q60: 0.62 | R60: 86 | S60: 54 | T60: 61.43% | U60: 38.57% | V60: 3.700000048 | W60: 0.61 | X60: 92 | Y60: 48 | Z60: 65.71% | AA60: 34.29% | AB60: 0.8999999762 | AC60: 0.46 | AD60: 112 | AE60: 28 | AF60: 80.00% | AG60: 20.00%
A61: 681 | B61: 0681 Carol City Elementary School | C61: 96 | D61: 13.80000019 | E61: 0.45 | F61: 88 | G61: 8 | H61: 91.67% | I61: 8.33% | J61: 3.099999905 | K61: 0.51 | L61: 71 | M61: 25 | N61: 73.96% | O61: 26.04% | P61: 7.699999809 | Q61: 0.45 | R61: 79 | S61: 17 | T61: 82.29% | U61: 17.71% | V61: 2.400000095 | W61: 0.4 | X61: 92 | Y61: 4 | Z61: 95.83% | AA61: 4.17% | AB61: 0.6000000238 | AC61: 0.3 | AD61: 86 | AE61: 10 | AF61: 89.58% | AG61: 10.42%
A62: 721 | B62: 0721 George Washington Carver Elementary | C62: 83 | D62: 18.70000076 | E62: 0.6 | F62: 46 | G62: 37 | H62: 55.42% | I62: 44.58% | J62: 4.300000191 | K62: 0.71 | L62: 37 | M62: 46 | N62: 44.58% | O62: 55.42% | P62: 10.10000038 | Q62: 0.59 | R62: 50 | S62: 33 | T62: 60.24% | U62: 39.76% | V62: 3.400000095 | W62: 0.57 | X62: 59 | Y62: 24 | Z62: 71.08% | AA62: 28.92% | AB62: 0.8999999762 | AC62: 0.45 | AD62: 68 | AE62: 15 | AF62: 81.93% | AG62: 18.07%
A63: 761 | B63: 0761 Fienberg Fisher K-8 Center | C63: 81 | D63: 14.89999962 | E63: 0.48 | F63: 62 | G63: 19 | H63: 76.54% | I63: 23.46% | J63: 3.099999905 | K63: 0.52 | L63: 57 | M63: 24 | N63: 70.37% | O63: 29.63% | P63: 8.199999809 | Q63: 0.48 | R63: 62 | S63: 19 | T63: 76.54% | U63: 23.46% | V63: 2.799999952 | W63: 0.47 | X63: 65 | Y63: 16 | Z63: 80.25% | AA63: 19.75% | AB63: 0.8000000119 | AC63: 0.39 | AD63: 73 | AE63: 8 | AF63: 90.12% | AG63: 9.88%
A64: 771 | B64: 0771 Dr William A. Chapman Elementary | C64: 62 | D64: 16.20000076 | E64: 0.52 | F64: 50 | G64: 12 | H64: 80.65% | I64: 19.35% | J64: 3.400000095 | K64: 0.57 | L64: 45 | M64: 17 | N64: 72.58% | O64: 27.42% | P64: 9.100000381 | Q64: 0.54 | R64: 49 | S64: 13 | T64: 79.03% | U64: 20.97% | V64: 3 | W64: 0.51 | X64: 48 | Y64: 14 | Z64: 77.42% | AA64: 22.58% | AB64: 0.6999999881 | AC64: 0.34 | AD64: 52 | AE64: 10 | AF64: 83.87% | AG64: 16.13%
A65: 801 | B65: 0801 Citrus Grove Elementary | C65: 130 | D65: 15.30000019 | E65: 0.49 | F65: 105 | G65: 25 | H65: 80.77% | I65: 19.23% | J65: 3.400000095 | K65: 0.57 | L65: 89 | M65: 41 | N65: 68.46% | O65: 31.54% | P65: 8.100000381 | Q65: 0.48 | R65: 108 | S65: 22 | T65: 83.08% | U65: 16.92% | V65: 3.099999905 | W65: 0.52 | X65: 105 | Y65: 25 | Z65: 80.77% | AA65: 19.23% | AB65: 0.6999999881 | AC65: 0.35 | AD65: 116 | AE65: 14 | AF65: 89.23% | AG65: 10.77%
A66: 831 | B66: 0831 Claude Pepper Elementary | C66: 121 | D66: 17.89999962 | E66: 0.58 | F66: 82 | G66: 39 | H66: 67.77% | I66: 32.23% | J66: 3.700000048 | K66: 0.61 | L66: 80 | M66: 41 | N66: 66.12% | O66: 33.88% | P66: 9.800000191 | Q66: 0.58 | R66: 79 | S66: 42 | T66: 65.29% | U66: 34.71% | V66: 3.599999905 | W66: 0.59 | X66: 79 | Y66: 42 | Z66: 65.29% | AA66: 34.71% | AB66: 0.8999999762 | AC66: 0.45 | AD66: 99 | AE66: 22 | AF66: 81.82% | AG66: 18.18%
A67: 841 | B67: 0841 Coconut Grove Elementary School | C67: 53 | D67: 17.10000038 | E67: 0.55 | F67: 33 | G67: 20 | H67: 62.26% | I67: 37.74% | J67: 3.700000048 | K67: 0.62 | L67: 31 | M67: 22 | N67: 58.49% | O67: 41.51% | P67: 9.300000191 | Q67: 0.55 | R67: 34 | S67: 19 | T67: 64.15% | U67: 35.85% | V67: 3.299999952 | W67: 0.54 | X67: 37 | Y67: 16 | Z67: 69.81% | AA67: 30.19% | AB67: 0.8000000119 | AC67: 0.42 | AD67: 43 | AE67: 10 | AF67: 81.13% | AG67: 18.87%
A68: 861 | B68: 0861 Colonial Drive Elementary | C68: 45 | D68: 18 | E68: 0.58 | F68: 32 | G68: 13 | H68: 71.11% | I68: 28.89% | J68: 4.400000095 | K68: 0.73 | L68: 24 | M68: 21 | N68: 53.33% | O68: 46.67% | P68: 9.600000381 | Q68: 0.56 | R68: 31 | S68: 14 | T68: 68.89% | U68: 31.11% | V68: 3.299999952 | W68: 0.55 | X68: 33 | Y68: 12 | Z68: 73.33% | AA68: 26.67% | AB68: 0.8000000119 | AC68: 0.4 | AD68: 40 | AE68: 5 | AF68: 88.89% | AG68: 11.11%
A69: 881 | B69: 0881 Comstock Elementary School | C69: 88 | D69: 13.89999962 | E69: 0.45 | F69: 73 | G69: 15 | H69: 82.95% | I69: 17.05% | J69: 3 | K69: 0.5 | L69: 72 | M69: 16 | N69: 81.82% | O69: 18.18% | P69: 7.599999905 | Q69: 0.45 | R69: 74 | S69: 14 | T69: 84.09% | U69: 15.91% | V69: 2.599999905 | W69: 0.43 | X69: 75 | Y69: 13 | Z69: 85.23% | AA69: 14.77% | AB69: 0.6999999881 | AC69: 0.36 | AD69: 78 | AE69: 10 | AF69: 88.64% | AG69: 11.36%
A70: 950 | B70: 0950 Aventura City Of Excellence School | C70: 104 | D70: 20.79999924 | E70: 0.67 | F70: 53 | G70: 51 | H70: 50.96% | I70: 49.04% | J70: 4.699999809 | K70: 0.78 | L70: 37 | M70: 67 | N70: 35.58% | O70: 64.42% | P70: 11.10000038 | Q70: 0.65 | R70: 52 | S70: 52 | T70: 50.00% | U70: 50.00% | V70: 4.099999905 | W70: 0.68 | X70: 56 | Y70: 48 | Z70: 53.85% | AA70: 46.15% | AB70: 0.8999999762 | AC70: 0.47 | AD70: 87 | AE70: 17 | AF70: 83.65% | AG70: 16.35%
A71: 961 | B71: 0961 Coral Gables Elementary | C71: 94 | D71: 19.29999924 | E71: 0.62 | F71: 54 | G71: 40 | H71: 57.45% | I71: 42.55% | J71: 4.300000191 | K71: 0.71 | L71: 42 | M71: 52 | N71: 44.68% | O71: 55.32% | P71: 10.60000038 | Q71: 0.62 | R71: 54 | S71: 40 | T71: 57.45% | U71: 42.55% | V71: 3.599999905 | W71: 0.6 | X71: 62 | Y71: 32 | Z71: 65.96% | AA71: 34.04% | AB71: 0.8999999762 | AC71: 0.44 | AD71: 80 | AE71: 14 | AF71: 85.11% | AG71: 14.89%
A72: 1001 | B72: 1001 Coral Park Elementary | C72: 151 | D72: 19.89999962 | E72: 0.64 | F72: 78 | G72: 73 | H72: 51.66% | I72: 48.34% | J72: 4.5 | K72: 0.75 | L72: 66 | M72: 85 | N72: 43.71% | O72: 56.29% | P72: 10.60000038 | Q72: 0.62 | R72: 79 | S72: 72 | T72: 52.32% | U72: 47.68% | V72: 3.799999952 | W72: 0.64 | X72: 91 | Y72: 60 | Z72: 60.26% | AA72: 39.74% | AB72: 0.8999999762 | AC72: 0.46 | AD72: 121 | AE72: 30 | AF72: 80.13% | AG72: 19.87%
A73: 1010 | B73: 1010 The Charter School At Waterstone | C73: 153 | D73: 19 | E73: 0.61 | F73: 96 | G73: 57 | H73: 62.75% | I73: 37.25% | J73: 4.300000191 | K73: 0.72 | L73: 77 | M73: 76 | N73: 50.33% | O73: 49.67% | P73: 10.19999981 | Q73: 0.6 | R73: 101 | S73: 52 | T73: 66.01% | U73: 33.99% | V73: 3.700000048 | W73: 0.61 | X73: 102 | Y73: 51 | Z73: 66.67% | AA73: 33.33% | AB73: 0.8000000119 | AC73: 0.42 | AD73: 131 | AE73: 22 | AF73: 85.62% | AG73: 14.38%
A74: 1014 | B74: 1014 Advanced Learning Charter | C74: 66 | D74: 19.70000076 | E74: 0.63 | F74: 36 | G74: 30 | H74: 54.55% | I74: 45.45% | J74: 4.300000191 | K74: 0.72 | L74: 32 | M74: 34 | N74: 48.48% | O74: 51.52% | P74: 10.60000038 | Q74: 0.62 | R74: 34 | S74: 32 | T74: 51.52% | U74: 48.48% | V74: 3.700000048 | W74: 0.61 | X74: 44 | Y74: 22 | Z74: 66.67% | AA74: 33.33% | AB74: 1.100000024 | AC74: 0.55 | AD74: 48 | AE74: 18 | AF74: 72.73% | AG74: 27.27%
A75: 1017 | B75: 1017 Mater Academy of International Studies | C75: 85 | D75: 19.10000038 | E75: 0.62 | F75: 55 | G75: 30 | H75: 64.71% | I75: 35.29% | J75: 4.300000191 | K75: 0.72 | L75: 40 | M75: 45 | N75: 47.06% | O75: 52.94% | P75: 10.30000019 | Q75: 0.61 | R75: 55 | S75: 30 | T75: 64.71% | U75: 35.29% | V75: 3.700000048 | W75: 0.62 | X75: 56 | Y75: 29 | Z75: 65.88% | AA75: 34.12% | AB75: 0.8000000119 | AC75: 0.39 | AD75: 72 | AE75: 13 | AF75: 84.71% | AG75: 15.29%
A76: 1020 | B76: 1020 Youth Co-op Charter School | C76: 52 | D76: 19.60000038 | E76: 0.63 | F76: 33 | G76: 19 | H76: 63.46% | I76: 36.54% | J76: 4.400000095 | K76: 0.73 | L76: 29 | M76: 23 | N76: 55.77% | O76: 44.23% | P76: 10.39999962 | Q76: 0.61 | R76: 33 | S76: 19 | T76: 63.46% | U76: 36.54% | V76: 4 | W76: 0.67 | X76: 29 | Y76: 23 | Z76: 55.77% | AA76: 44.23% | AB76: 0.8000000119 | AC76: 0.41 | AD76: 45 | AE76: 7 | AF76: 86.54% | AG76: 13.46%
A77: 1041 | B77: 1041 Coral Reef Elementary | C77: 131 | D77: 21.39999962 | E77: 0.69 | F77: 55 | G77: 76 | H77: 41.98% | I77: 58.02% | J77: 4.599999905 | K77: 0.76 | L77: 44 | M77: 87 | N77: 33.59% | O77: 66.41% | P77: 11.60000038 | Q77: 0.68 | R77: 55 | S77: 76 | T77: 41.98% | U77: 58.02% | V77: 4.199999809 | W77: 0.7 | X77: 64 | Y77: 67 | Z77: 48.85% | AA77: 51.15% | AB77: 1 | AC77: 0.5 | AD77: 104 | AE77: 27 | AF77: 79.39% | AG77: 20.61%
A78: 1081 | B78: 1081 Coral Terrace Elementary | C78: 75 | D78: 16.60000038 | E78: 0.53 | F78: 56 | G78: 19 | H78: 74.67% | I78: 25.33% | J78: 3.599999905 | K78: 0.61 | L78: 48 | M78: 27 | N78: 64.00% | O78: 36.00% | P78: 8.800000191 | Q78: 0.52 | R78: 56 | S78: 19 | T78: 74.67% | U78: 25.33% | V78: 3.200000048 | W78: 0.54 | X78: 59 | Y78: 16 | Z78: 78.67% | AA78: 21.33% | AB78: 0.8999999762 | AC78: 0.44 | AD78: 64 | AE78: 11 | AF78: 85.33% | AG78: 14.67%
A79: =IFERROR(VALUE(LEFT(B79,4)),"") -> 1121 | B79: 1121 Coral Way K-8 Center | C79: 169 | D79: 16.79999924 | E79: 0.54 | F79: 125 | G79: 44 | H79: 73.96% | I79: 26.04% | J79: 3.599999905 | K79: 0.6 | L79: 111 | M79: 58 | N79: 65.68% | O79: 34.32% | P79: 9.100000381 | Q79: 0.54 | R79: 117 | S79: 52 | T79: 69.23% | U79: 30.77% | V79: 3.200000048 | W79: 0.54 | X79: 126 | Y79: 43 | Z79: 74.56% | AA79: 25.44% | AB79: 0.8000000119 | AC79: 0.41 | AD79: 143 | AE79: 26 | AF79: 84.62% | AG79: 15.38%
A80: 1161 | B80: 1161 Crestview Elementary | C80: 90 | D80: 16.10000038 | E80: 0.52 | F80: 68 | G80: 22 | H80: 75.56% | I80: 24.44% | J80: 3.5 | K80: 0.58 | L80: 64 | M80: 26 | N80: 71.11% | O80: 28.89% | P80: 9.199999809 | Q80: 0.54 | R80: 65 | S80: 25 | T80: 72.22% | U80: 27.78% | V80: 2.799999952 | W80: 0.46 | X80: 77 | Y80: 13 | Z80: 85.56% | AA80: 14.44% | AB80: 0.6999999881 | AC80: 0.34 | AD80: 83 | AE80: 7 | AF80: 92.22% | AG80: 7.78%
A81: 1241 | B81: 1241 Cutler Ridge Elementary | C81: 159 | D81: 17.79999924 | E81: 0.58 | F81: 103 | G81: 56 | H81: 64.78% | I81: 35.22% | J81: 3.799999952 | K81: 0.63 | L81: 88 | M81: 71 | N81: 55.35% | O81: 44.65% | P81: 9.699999809 | Q81: 0.57 | R81: 98 | S81: 61 | T81: 61.64% | U81: 38.36% | V81: 3.400000095 | W81: 0.57 | X81: 105 | Y81: 54 | Z81: 66.04% | AA81: 33.96% | AB81: 0.8999999762 | AC81: 0.46 | AD81: 130 | AE81: 29 | AF81: 81.76% | AG81: 18.24%
A82: 1281 | B82: 1281 Cypress Elementary | C82: 47 | D82: 18 | E82: 0.58 | F82: 33 | G82: 14 | H82: 70.21% | I82: 29.79% | J82: 4.099999905 | K82: 0.68 | L82: 26 | M82: 21 | N82: 55.32% | O82: 44.68% | P82: 9.100000381 | Q82: 0.54 | R82: 35 | S82: 12 | T82: 74.47% | U82: 25.53% | V82: 4.099999905 | W82: 0.68 | X82: 27 | Y82: 20 | Z82: 57.45% | AA82: 42.55% | AB82: 0.6999999881 | AC82: 0.37 | AD82: 44 | AE82: 3 | AF82: 93.62% | AG82: 6.38%
A83: 1331 | B83: 1331 Devon Aire K-8 Center | C83: 156 | D83: 19.89999962 | E83: 0.64 | F83: 90 | G83: 66 | H83: 57.69% | I83: 42.31% | J83: 4.5 | K83: 0.75 | L83: 63 | M83: 93 | N83: 40.38% | O83: 59.62% | P83: 10.60000038 | Q83: 0.62 | R83: 93 | S83: 63 | T83: 59.62% | U83: 40.38% | V83: 3.799999952 | W83: 0.63 | X83: 107 | Y83: 49 | Z83: 68.59% | AA83: 31.41% | AB83: 1.100000024 | AC83: 0.53 | AD83: 119 | AE83: 37 | AF83: 76.28% | AG83: 23.72%
A84: 1361 | B84: 1361 Frederick Douglass Elementary | C84: 62 | D84: 11.30000019 | E84: 0.36 | F84: 60 | G84: 2 | H84: 96.77% | I84: 3.23% | J84: 2.299999952 | K84: 0.38 | L84: 55 | M84: 7 | N84: 88.71% | O84: 11.29% | P84: 6.400000095 | Q84: 0.37 | R84: 60 | S84: 2 | T84: 96.77% | U84: 3.23% | V84: 2 | W84: 0.33 | X84: 61 | Y84: 1 | Z84: 98.39% | AA84: 1.61% | AB84: 0.6000000238 | AC84: 0.32 | AD84: 54 | AE84: 8 | AF84: 87.10% | AG84: 12.90%
A85: 1371 | B85: 1371 Marjory Stoneman Douglas Elementary | C85: 157 | D85: 18.10000038 | E85: 0.58 | F85: 98 | G85: 59 | H85: 62.42% | I85: 37.58% | J85: 3.799999952 | K85: 0.64 | L85: 92 | M85: 65 | N85: 58.60% | O85: 41.40% | P85: 10 | Q85: 0.59 | R85: 99 | S85: 58 | T85: 63.06% | U85: 36.94% | V85: 3.400000095 | W85: 0.57 | X85: 109 | Y85: 48 | Z85: 69.43% | AA85: 30.57% | AB85: 0.8999999762 | AC85: 0.44 | AD85: 135 | AE85: 22 | AF85: 85.99% | AG85: 14.01%
A86: 1401 | B86: 1401 Charles R. Drew Elementary | C86: 36 | D86: 12.39999962 | E86: 0.4 | F86: 34 | G86: 2 | H86: 94.44% | I86: 5.56% | J86: 2.700000048 | K86: 0.45 | L86: 29 | M86: 7 | N86: 80.56% | O86: 19.44% | P86: 6.599999905 | Q86: 0.39 | R86: 33 | S86: 3 | T86: 91.67% | U86: 8.33% | V86: 2.400000095 | W86: 0.4 | X86: 35 | Y86: 1 | Z86: 97.22% | AA86: 2.78% | AB86: 0.8000000119 | AC86: 0.38 | AD86: 33 | AE86: 3 | AF86: 91.67% | AG86: 8.33%
A87: 1441 | B87: 1441 Paul Lawrence Dunbar Elementary | C87: 59 | D87: 12.69999981 | E87: 0.41 | F87: 52 | G87: 7 | H87: 88.14% | I87: 11.86% | J87: 2.799999952 | K87: 0.47 | L87: 49 | M87: 10 | N87: 83.05% | O87: 16.95% | P87: 7.199999809 | Q87: 0.42 | R87: 52 | S87: 7 | T87: 88.14% | U87: 11.86% | V87: 2.200000048 | W87: 0.37 | X87: 55 | Y87: 4 | Z87: 93.22% | AA87: 6.78% | AB87: 0.5 | AC87: 0.25 | AD87: 55 | AE87: 4 | AF87: 93.22% | AG87: 6.78%
A88: 1481 | B88: 1481 John G. Dupuis | C88: 96 | D88: 17.89999962 | E88: 0.58 | F88: 64 | G88: 32 | H88: 66.67% | I88: 33.33% | J88: 4.199999809 | K88: 0.7 | L88: 45 | M88: 51 | N88: 46.88% | O88: 53.12% | P88: 9.300000191 | Q88: 0.55 | R88: 65 | S88: 31 | T88: 67.71% | U88: 32.29% | V88: 3.5 | W88: 0.59 | X88: 65 | Y88: 31 | Z88: 67.71% | AA88: 32.29% | AB88: 0.8000000119 | AC88: 0.41 | AD88: 79 | AE88: 17 | AF88: 82.29% | AG88: 17.71%
A89: 1521 | B89: 1521 Amelia Earhart Elementary | C89: 78 | D89: 17 | E89: 0.55 | F89: 51 | G89: 27 | H89: 65.38% | I89: 34.62% | J89: 3.400000095 | K89: 0.57 | L89: 50 | M89: 28 | N89: 64.10% | O89: 35.90% | P89: 9.300000191 | Q89: 0.55 | R89: 55 | S89: 23 | T89: 70.51% | U89: 29.49% | V89: 3.299999952 | W89: 0.55 | X89: 59 | Y89: 19 | Z89: 75.64% | AA89: 24.36% | AB89: 1 | AC89: 0.48 | AD89: 62 | AE89: 16 | AF89: 79.49% | AG89: 20.51%
A90: 1561 | B90: 1561 Earlington Heights Elementary | C90: 68 | D90: 13.19999981 | E90: 0.43 | F90: 60 | G90: 8 | H90: 88.24% | I90: 11.76% | J90: 2.799999952 | K90: 0.47 | L90: 54 | M90: 14 | N90: 79.41% | O90: 20.59% | P90: 7.300000191 | Q90: 0.43 | R90: 56 | S90: 12 | T90: 82.35% | U90: 17.65% | V90: 2.5 | W90: 0.42 | X90: 62 | Y90: 6 | Z90: 91.18% | AA90: 8.82% | AB90: 0.6999999881 | AC90: 0.34 | AD90: 58 | AE90: 10 | AF90: 85.29% | AG90: 14.71%
A91: 1601 | B91: 1601 Edison Park Elementary | C91: 57 | D91: 14.80000019 | E91: 0.48 | F91: 46 | G91: 11 | H91: 80.70% | I91: 19.30% | J91: 3.200000048 | K91: 0.53 | L91: 46 | M91: 11 | N91: 80.70% | O91: 19.30% | P91: 7.900000095 | Q91: 0.47 | R91: 45 | S91: 12 | T91: 78.95% | U91: 21.05% | V91: 2.900000095 | W91: 0.48 | X91: 44 | Y91: 13 | Z91: 77.19% | AA91: 22.81% | AB91: 0.6999999881 | AC91: 0.37 | AD91: 49 | AE91: 8 | AF91: 85.96% | AG91: 14.04%
A92: 1641 | B92: 1641 Emerson Elementary | C92: 80 | D92: 17.39999962 | E92: 0.56 | F92: 53 | G92: 27 | H92: 66.25% | I92: 33.75% | J92: 3.900000095 | K92: 0.65 | L92: 46 | M92: 34 | N92: 57.50% | O92: 42.50% | P92: 9.100000381 | Q92: 0.54 | R92: 55 | S92: 25 | T92: 68.75% | U92: 31.25% | V92: 3.400000095 | W92: 0.56 | X92: 59 | Y92: 21 | Z92: 73.75% | AA92: 26.25% | AB92: 1 | AC92: 0.48 | AD92: 62 | AE92: 18 | AF92: 77.50% | AG92: 22.50%
A93: 1681 | B93: 1681 Lillie C. Evans Elementary | C93: 43 | D93: 14 | E93: 0.45 | F93: 38 | G93: 5 | H93: 88.37% | I93: 11.63% | J93: 3 | K93: 0.5 | L93: 34 | M93: 9 | N93: 79.07% | O93: 20.93% | P93: 7.900000095 | Q93: 0.47 | R93: 35 | S93: 8 | T93: 81.40% | U93: 18.60% | V93: 2.299999952 | W93: 0.38 | X93: 40 | Y93: 3 | Z93: 93.02% | AA93: 6.98% | AB93: 0.8000000119 | AC93: 0.38 | AD93: 38 | AE93: 5 | AF93: 88.37% | AG93: 11.63%
A94: 1691 | B94: 1691 Christina Eve Elementary | C94: 96 | D94: 19.60000038 | E94: 0.63 | F94: 54 | G94: 42 | H94: 56.25% | I94: 43.75% | J94: 4.300000191 | K94: 0.71 | L94: 48 | M94: 48 | N94: 50.00% | O94: 50.00% | P94: 10.80000019 | Q94: 0.63 | R94: 50 | S94: 46 | T94: 52.08% | U94: 47.92% | V94: 3.700000048 | W94: 0.62 | X94: 55 | Y94: 41 | Z94: 57.29% | AA94: 42.71% | AB94: 0.8999999762 | AC94: 0.43 | AD94: 82 | AE94: 14 | AF94: 85.42% | AG94: 14.58%
A95: 1721 | B95: 1721 Everglades K-8 Center | C95: 101 | D95: 19.79999924 | E95: 0.64 | F95: 58 | G95: 43 | H95: 57.43% | I95: 42.57% | J95: 4.400000095 | K95: 0.73 | L95: 47 | M95: 54 | N95: 46.53% | O95: 53.47% | P95: 10.5 | Q95: 0.62 | R95: 54 | S95: 47 | T95: 53.47% | U95: 46.53% | V95: 3.900000095 | W95: 0.64 | X95: 60 | Y95: 41 | Z95: 59.41% | AA95: 40.59% | AB95: 1 | AC95: 0.52 | AD95: 74 | AE95: 27 | AF95: 73.27% | AG95: 26.73%
A96: 1761 | B96: 1761 David Fairchild Elementary | C96: 111 | D96: 19.79999924 | E96: 0.64 | F96: 63 | G96: 48 | H96: 56.76% | I96: 43.24% | J96: 4.300000191 | K96: 0.72 | L96: 48 | M96: 63 | N96: 43.24% | O96: 56.76% | P96: 10.69999981 | Q96: 0.63 | R96: 62 | S96: 49 | T96: 55.86% | U96: 44.14% | V96: 3.900000095 | W96: 0.65 | X96: 70 | Y96: 41 | Z96: 63.06% | AA96: 36.94% | AB96: 0.8999999762 | AC96: 0.46 | AD96: 96 | AE96: 15 | AF96: 86.49% | AG96: 13.51%
A97: 1801 | B97: 1801 Fairlawn Elementary | C97: 100 | D97: 17.89999962 | E97: 0.58 | F97: 67 | G97: 33 | H97: 67.00% | I97: 33.00% | J97: 3.799999952 | K97: 0.63 | L97: 62 | M97: 38 | N97: 62.00% | O97: 38.00% | P97: 9.800000191 | Q97: 0.57 | R97: 68 | S97: 32 | T97: 68.00% | U97: 32.00% | V97: 3.299999952 | W97: 0.56 | X97: 79 | Y97: 21 | Z97: 79.00% | AA97: 21.00% | AB97: 1 | AC97: 0.51 | AD97: 75 | AE97: 25 | AF97: 75.00% | AG97: 25.00%
A98: 1811 | B98: 1811 Dante B. Fascell Elementary | C98: 81 | D98: 18 | E98: 0.58 | F98: 54 | G98: 27 | H98: 66.67% | I98: 33.33% | J98: 4 | K98: 0.66 | L98: 49 | M98: 32 | N98: 60.49% | O98: 39.51% | P98: 9.899999619 | Q98: 0.58 | R98: 53 | S98: 28 | T98: 65.43% | U98: 34.57% | V98: 3.299999952 | W98: 0.55 | X98: 57 | Y98: 24 | Z98: 70.37% | AA98: 29.63% | AB98: 0.8999999762 | AC98: 0.44 | AD98: 67 | AE98: 14 | AF98: 82.72% | AG98: 17.28%
A99: 1841 | B99: 1841 Flagami Elementary | C99: 67 | D99: 17.5 | E99: 0.56 | F99: 49 | G99: 18 | H99: 73.13% | I99: 26.87% | J99: 3.700000048 | K99: 0.62 | L99: 45 | M99: 22 | N99: 67.16% | O99: 32.84% | P99: 9.800000191 | Q99: 0.58 | R99: 50 | S99: 17 | T99: 74.63% | U99: 25.37% | V99: 3.099999905 | W99: 0.52 | X99: 53 | Y99: 14 | Z99: 79.10% | AA99: 20.90% | AB99: 0.8999999762 | AC99: 0.44 | AD99: 55 | AE99: 12 | AF99: 82.09% | AG99: 17.91%
A100: 1881 | B100: 1881 Henry M. Flagler Elementary | C100: 117 | D100: 15.80000019 | E100: 0.51 | F100: 91 | G100: 26 | H100: 77.78% | I100: 22.22% | J100: 3.200000048 | K100: 0.54 | L100: 82 | M100: 35 | N100: 70.09% | O100: 29.91% | P100: 9 | Q100: 0.53 | R100: 80 | S100: 37 | T100: 68.38% | U100: 31.62% | V100: 2.799999952 | W100: 0.47 | X100: 95 | Y100: 22 | Z100: 81.20% | AA100: 18.80% | AB100: 0.8000000119 | AC100: 0.38 | AD100: 105 | AE100: 12 | AF100: 89.74% | AG100: 10.26%
A101: 1921 | B101: 1921 Flamingo Elementary | C101: 146 | D101: 14.69999981 | E101: 0.47 | F101: 121 | G101: 25 | H101: 82.88% | I101: 17.12% | J101: 3.299999952 | K101: 0.55 | L101: 104 | M101: 42 | N101: 71.23% | O101: 28.77% | P101: 8 | Q101: 0.47 | R101: 120 | S101: 26 | T101: 82.19% | U101: 17.81% | V101: 2.700000048 | W101: 0.45 | X101: 123 | Y101: 23 | Z101: 84.25% | AA101: 15.75% | AB101: 0.6999999881 | AC101: 0.35 | AD101: 134 | AE101: 12 | AF101: 91.78% | AG101: 8.22%
A102: 2001 | B102: 2001 Florida City Elementary | C102: 93 | D102: 14 | E102: 0.45 | F102: 85 | G102: 8 | H102: 91.40% | I102: 8.60% | J102: 3.200000048 | K102: 0.54 | L102: 73 | M102: 20 | N102: 78.49% | O102: 21.51% | P102: 7.599999905 | Q102: 0.45 | R102: 85 | S102: 8 | T102: 91.40% | U102: 8.60% | V102: 2.5 | W102: 0.41 | X102: 85 | Y102: 8 | Z102: 91.40% | AA102: 8.60% | AB102: 0.6000000238 | AC102: 0.31 | AD102: 89 | AE102: 4 | AF102: 95.70% | AG102: 4.30%
A103: 2003 | B103: 2003 Bridgepoint Academy | C103: 53 | D103: 21.60000038 | E103: 0.7 | F103: 22 | G103: 31 | H103: 41.51% | I103: 58.49% | J103: 4.599999905 | K103: 0.77 | L103: 18 | M103: 35 | N103: 33.96% | O103: 66.04% | P103: 11.60000038 | Q103: 0.68 | R103: 24 | S103: 29 | T103: 45.28% | U103: 54.72% | V103: 4.300000191 | W103: 0.71 | X103: 21 | Y103: 32 | Z103: 39.62% | AA103: 60.38% | AB103: 1.200000048 | AC103: 0.58 | AD103: 36 | AE103: 17 | AF103: 67.92% | AG103: 32.08%
A104: 2006 | B104: 2006 Richard Allen Leadership Academy | C104: 17 | D104: 15.30000019 | E104: 0.49 | F104: 13 | G104: 4 | H104: 76.47% | I104: 23.53% | J104: 3.299999952 | K104: 0.55 | L104: 12 | M104: 5 | N104: 70.59% | O104: 29.41% | P104: 8.300000191 | Q104: 0.49 | R104: 15 | S104: 2 | T104: 88.24% | U104: 11.76% | V104: 2.900000095 | W104: 0.48 | X104: 13 | Y104: 4 | Z104: 76.47% | AA104: 23.53% | AB104: 0.8000000119 | AC104: 0.41 | AD104: 16 | AE104: 1 | AF104: 94.12% | AG104: 5.88%
A105: 2007 | B105: 2007 Somerset Academy Elementary (South Miami) | C105: 98 | D105: 21.60000038 | E105: 0.7 | F105: 39 | G105: 59 | H105: 39.80% | I105: 60.20% | J105: 4.900000095 | K105: 0.82 | L105: 29 | M105: 69 | N105: 29.59% | O105: 70.41% | P105: 11.60000038 | Q105: 0.68 | R105: 40 | S105: 58 | T105: 40.82% | U105: 59.18% | V105: 4.099999905 | W105: 0.68 | X105: 48 | Y105: 50 | Z105: 48.98% | AA105: 51.02% | AB105: 1 | AC105: 0.48 | AD105: 78 | AE105: 20 | AF105: 79.59% | AG105: 20.41%
A106: 2012 | B106: 2012 Somerset Arts Academy | C106: 49 | D106: 18.70000076 | E106: 0.6 | F106: 31 | G106: 18 | H106: 63.27% | I106: 36.73% | J106: 4 | K106: 0.67 | L106: 28 | M106: 21 | N106: 57.14% | O106: 42.86% | P106: 10.30000019 | Q106: 0.6 | R106: 30 | S106: 19 | T106: 61.22% | U106: 38.78% | V106: 3.400000095 | W106: 0.57 | X106: 33 | Y106: 16 | Z106: 67.35% | AA106: 32.65% | AB106: 0.8999999762 | AC106: 0.47 | AD106: 39 | AE106: 10 | AF106: 79.59% | AG106: 20.41%
A107: 2013 | B107: 2013 Bridgepoint Academy Greater Miami | C107: 23 | D107: 16.70000076 | E107: 0.54 | F107: 16 | G107: 7 | H107: 69.57% | I107: 30.43% | J107: 3.5 | K107: 0.58 | L107: 15 | M107: 8 | N107: 65.22% | O107: 34.78% | P107: 8.800000191 | Q107: 0.52 | R107: 17 | S107: 6 | T107: 73.91% | U107: 26.09% | V107: 3.5 | W107: 0.58 | X107: 14 | Y107: 9 | Z107: 60.87% | AA107: 39.13% | AB107: 1 | AC107: 0.48 | AD107: 19 | AE107: 4 | AF107: 82.61% | AG107: 17.39%
A108: 2021 | B108: 2021 Gloria Floyd Elementary | C108: 92 | D108: 17.60000038 | E108: 0.57 | F108: 66 | G108: 26 | H108: 71.74% | I108: 28.26% | J108: 3.799999952 | K108: 0.64 | L108: 56 | M108: 36 | N108: 60.87% | O108: 39.13% | P108: 9.5 | Q108: 0.56 | R108: 66 | S108: 26 | T108: 71.74% | U108: 28.26% | V108: 3.5 | W108: 0.58 | X108: 63 | Y108: 29 | Z108: 68.48% | AA108: 31.52% | AB108: 0.8000000119 | AC108: 0.39 | AD108: 81 | AE108: 11 | AF108: 88.04% | AG108: 11.96%
A109: 2041 | B109: 2041 Benjamin Franklin Elementary School | C109: 67 | D109: 16.70000076 | E109: 0.54 | F109: 50 | G109: 17 | H109: 74.63% | I109: 25.37% | J109: 3.599999905 | K109: 0.59 | L109: 44 | M109: 23 | N109: 65.67% | O109: 34.33% | P109: 9.199999809 | Q109: 0.54 | R109: 46 | S109: 21 | T109: 68.66% | U109: 31.34% | V109: 3.099999905 | W109: 0.51 | X109: 50 | Y109: 17 | Z109: 74.63% | AA109: 25.37% | AB109: 0.8000000119 | AC109: 0.39 | AD109: 61 | AE109: 6 | AF109: 91.04% | AG109: 8.96%
A110: 2060 | B110: 2060 Theodore R. And Thelma A. Gibson Charter | C110: 19 | D110: 10.89999962 | E110: 0.35 | F110: 19 | H110: 100.00% | J110: 2.299999952 | K110: 0.38 | L110: 18 | M110: 1 | N110: 94.74% | O110: 5.26% | P110: 5.699999809 | Q110: 0.34 | R110: 19 | T110: 100.00% | V110: 2.200000048 | W110: 0.37 | X110: 19 | Z110: 100.00% | AB110: 0.6999999881 | AC110: 0.37 | AD110: 19 | AF110: 100.00%
A111: 2081 | B111: 2081 Fulford Elementary | C111: 79 | D111: 15.60000038 | E111: 0.5 | F111: 62 | G111: 17 | H111: 78.48% | I111: 21.52% | J111: 3.5 | K111: 0.58 | L111: 56 | M111: 23 | N111: 70.89% | O111: 29.11% | P111: 8.600000381 | Q111: 0.5 | R111: 62 | S111: 17 | T111: 78.48% | U111: 21.52% | V111: 2.799999952 | W111: 0.47 | X111: 66 | Y111: 13 | Z111: 83.54% | AA111: 16.46% | AB111: 0.8000000119 | AC111: 0.38 | AD111: 67 | AE111: 12 | AF111: 84.81% | AG111: 15.19%
A112: 2111 | B112: 2111 Hialeah Gardens Elementary | C112: 130 | D112: 18.29999924 | E112: 0.59 | F112: 83 | G112: 47 | H112: 63.85% | I112: 36.15% | J112: 3.900000095 | K112: 0.65 | L112: 73 | M112: 57 | N112: 56.15% | O112: 43.85% | P112: 10 | Q112: 0.59 | R112: 87 | S112: 43 | T112: 66.92% | U112: 33.08% | V112: 3.5 | W112: 0.58 | X112: 94 | Y112: 36 | Z112: 72.31% | AA112: 27.69% | AB112: 0.8999999762 | AC112: 0.44 | AD112: 107 | AE112: 23 | AF112: 82.31% | AG112: 17.69%
A113: 2151 | B113: 2151 Jack D. Gordon Elementary | C113: 176 | D113: 18.70000076 | E113: 0.6 | F113: 108 | G113: 68 | H113: 61.36% | I113: 38.64% | J113: 4 | K113: 0.67 | L113: 98 | M113: 78 | N113: 55.68% | O113: 44.32% | P113: 10.19999981 | Q113: 0.6 | R113: 106 | S113: 70 | T113: 60.23% | U113: 39.77% | V113: 3.599999905 | W113: 0.59 | X113: 116 | Y113: 60 | Z113: 65.91% | AA113: 34.09% | AB113: 0.8999999762 | AC113: 0.44 | AD113: 144 | AE113: 32 | AF113: 81.82% | AG113: 18.18%
A114: 2161 | B114: 2161 Golden Glades Elementary | C114: 46 | D114: 13.5 | E114: 0.44 | F114: 38 | G114: 8 | H114: 82.61% | I114: 17.39% | J114: 3.299999952 | K114: 0.55 | L114: 34 | M114: 12 | N114: 73.91% | O114: 26.09% | P114: 7.199999809 | Q114: 0.42 | R114: 40 | S114: 6 | T114: 86.96% | U114: 13.04% | V114: 2.400000095 | W114: 0.4 | X114: 44 | Y114: 2 | Z114: 95.65% | AA114: 4.35% | AB114: 0.6999999881 | AC114: 0.33 | AD114: 38 | AE114: 8 | AF114: 82.61% | AG114: 17.39%
A115: 2181 | B115: 2181 Joella C. Good Elementary | C115: 152 | D115: 17.29999924 | E115: 0.56 | F115: 104 | G115: 48 | H115: 68.42% | I115: 31.58% | J115: 3.900000095 | K115: 0.65 | L115: 89 | M115: 63 | N115: 58.55% | O115: 41.45% | P115: 9.300000191 | Q115: 0.55 | R115: 105 | S115: 47 | T115: 69.08% | U115: 30.92% | V115: 3.299999952 | W115: 0.55 | X115: 113 | Y115: 39 | Z115: 74.34% | AA115: 25.66% | AB115: 0.8000000119 | AC115: 0.42 | AD115: 125 | AE115: 27 | AF115: 82.24% | AG115: 17.76%
A116: 2191 | B116: 2191 Spanish Lake Elementary | C116: 304 | D116: 16.89999962 | E116: 0.54 | F116: 222 | G116: 82 | H116: 73.03% | I116: 26.97% | J116: 3.799999952 | K116: 0.63 | L116: 189 | M116: 115 | N116: 62.17% | O116: 37.83% | P116: 9.199999809 | Q116: 0.54 | R116: 217 | S116: 87 | T116: 71.38% | U116: 28.62% | V116: 3.099999905 | W116: 0.52 | X116: 232 | Y116: 72 | Z116: 76.32% | AA116: 23.68% | AB116: 0.8000000119 | AC116: 0.4 | AD116: 263 | AE116: 41 | AF116: 86.51% | AG116: 13.49%
A117: 2241 | B117: 2241 Gratigny Elementary | C117: 110 | D117: 13.69999981 | E117: 0.44 | F117: 96 | G117: 14 | H117: 87.27% | I117: 12.73% | J117: 2.900000095 | K117: 0.48 | L117: 90 | M117: 20 | N117: 81.82% | O117: 18.18% | P117: 7.599999905 | Q117: 0.45 | R117: 96 | S117: 14 | T117: 87.27% | U117: 12.73% | V117: 2.599999905 | W117: 0.43 | X117: 96 | Y117: 14 | Z117: 87.27% | AA117: 12.73% | AB117: 0.6999999881 | AC117: 0.33 | AD117: 99 | AE117: 11 | AF117: 90.00% | AG117: 10.00%
A118: 2261 | B118: 2261 Greenglade Elementary | C118: 82 | D118: 17.5 | E118: 0.57 | F118: 51 | G118: 31 | H118: 62.20% | I118: 37.80% | J118: 3.900000095 | K118: 0.65 | L118: 41 | M118: 41 | N118: 50.00% | O118: 50.00% | P118: 9.399999619 | Q118: 0.55 | R118: 57 | S118: 25 | T118: 69.51% | U118: 30.49% | V118: 3.299999952 | W118: 0.56 | X118: 60 | Y118: 22 | Z118: 73.17% | AA118: 26.83% | AB118: 0.8000000119 | AC118: 0.42 | AD118: 68 | AE118: 14 | AF118: 82.93% | AG118: 17.07%
A119: 2281 | B119: 2281 Greynolds Park Elementary | C119: 132 | D119: 16.10000038 | E119: 0.52 | F119: 105 | G119: 27 | H119: 79.55% | I119: 20.45% | J119: 3.700000048 | K119: 0.61 | L119: 84 | M119: 48 | N119: 63.64% | O119: 36.36% | P119: 8.600000381 | Q119: 0.51 | R119: 101 | S119: 31 | T119: 76.52% | U119: 23.48% | V119: 3.099999905 | W119: 0.51 | X119: 102 | Y119: 30 | Z119: 77.27% | AA119: 22.73% | AB119: 0.6999999881 | AC119: 0.36 | AD119: 114 | AE119: 18 | AF119: 86.36% | AG119: 13.64%
A120: 2321 | B120: 2321 Gulfstream Elementary | C120: 65 | D120: 17.20000076 | E120: 0.55 | F120: 48 | G120: 17 | H120: 73.85% | I120: 26.15% | J120: 3.900000095 | K120: 0.65 | L120: 41 | M120: 24 | N120: 63.08% | O120: 36.92% | P120: 9.300000191 | Q120: 0.55 | R120: 47 | S120: 18 | T120: 72.31% | U120: 27.69% | V120: 3.200000048 | W120: 0.53 | X120: 48 | Y120: 17 | Z120: 73.85% | AA120: 26.15% | AB120: 0.8000000119 | AC120: 0.38 | AD120: 57 | AE120: 8 | AF120: 87.69% | AG120: 12.31%
A121: 2331 | B121: 2331 Charles R. Hadley Elementary | C121: 140 | D121: 17.79999924 | E121: 0.57 | F121: 98 | G121: 42 | H121: 70.00% | I121: 30.00% | J121: 3.799999952 | K121: 0.63 | L121: 88 | M121: 52 | N121: 62.86% | O121: 37.14% | P121: 9.899999619 | Q121: 0.58 | R121: 91 | S121: 49 | T121: 65.00% | U121: 35.00% | V121: 3.299999952 | W121: 0.55 | X121: 103 | Y121: 37 | Z121: 73.57% | AA121: 26.43% | AB121: 0.8999999762 | AC121: 0.45 | AD121: 114 | AE121: 26 | AF121: 81.43% | AG121: 18.57%
A122: 2341 | B122: 2341 Joe Hall Elementary | C122: 91 | D122: 18.39999962 | E122: 0.59 | F122: 55 | G122: 36 | H122: 60.44% | I122: 39.56% | J122: 4 | K122: 0.66 | L122: 49 | M122: 42 | N122: 53.85% | O122: 46.15% | P122: 9.800000191 | Q122: 0.58 | R122: 59 | S122: 32 | T122: 64.84% | U122: 35.16% | V122: 3.700000048 | W122: 0.61 | X122: 61 | Y122: 30 | Z122: 67.03% | AA122: 32.97% | AB122: 0.8999999762 | AC122: 0.46 | AD122: 74 | AE122: 17 | AF122: 81.32% | AG122: 18.68%
A123: 2351 | B123: 2351 Eneida Massas Hartner Elementary | C123: 88 | D123: 16.5 | E123: 0.53 | F123: 65 | G123: 23 | H123: 73.86% | I123: 26.14% | J123: 3.5 | K123: 0.58 | L123: 60 | M123: 28 | N123: 68.18% | O123: 31.82% | P123: 9 | Q123: 0.53 | R123: 64 | S123: 24 | T123: 72.73% | U123: 27.27% | V123: 3.200000048 | W123: 0.53 | X123: 67 | Y123: 21 | Z123: 76.14% | AA123: 23.86% | AB123: 0.8000000119 | AC123: 0.42 | AD123: 75 | AE123: 13 | AF123: 85.23% | AG123: 14.77%
A124: 2361 | B124: 2361 Hialeah Elementary | C124: 107 | D124: 15.60000038 | E124: 0.5 | F124: 84 | G124: 23 | H124: 78.50% | I124: 21.50% | J124: 3.400000095 | K124: 0.56 | L124: 75 | M124: 32 | N124: 70.09% | O124: 29.91% | P124: 8.5 | Q124: 0.5 | R124: 81 | S124: 26 | T124: 75.70% | U124: 24.30% | V124: 3 | W124: 0.49 | X124: 85 | Y124: 22 | Z124: 79.44% | AA124: 20.56% | AB124: 0.6999999881 | AC124: 0.37 | AD124: 95 | AE124: 12 | AF124: 88.79% | AG124: 11.21%
A125: 2371 | B125: 2371 West Hialeah Gardens Elementary School | C125: 211 | D125: 16.39999962 | E125: 0.53 | F125: 164 | G125: 47 | H125: 77.73% | I125: 22.27% | J125: 3.5 | K125: 0.58 | L125: 148 | M125: 63 | N125: 70.14% | O125: 29.86% | P125: 9.199999809 | Q125: 0.54 | R125: 157 | S125: 54 | T125: 74.41% | U125: 25.59% | V125: 3 | W125: 0.5 | X125: 167 | Y125: 44 | Z125: 79.15% | AA125: 20.85% | AB125: 0.6999999881 | AC125: 0.35 | AD125: 185 | AE125: 26 | AF125: 87.68% | AG125: 12.32%
A126: 2401 | B126: 2401 Hibiscus Elementary | C126: 88 | D126: 16.79999924 | E126: 0.54 | F126: 69 | G126: 19 | H126: 78.41% | I126: 21.59% | J126: 3.700000048 | K126: 0.62 | L126: 59 | M126: 29 | N126: 67.05% | O126: 32.95% | P126: 9.199999809 | Q126: 0.54 | R126: 69 | S126: 19 | T126: 78.41% | U126: 21.59% | V126: 3.099999905 | W126: 0.53 | X126: 73 | Y126: 15 | Z126: 82.95% | AA126: 17.05% | AB126: 0.8000000119 | AC126: 0.38 | AD126: 77 | AE126: 11 | AF126: 87.50% | AG126: 12.50%
A127: 2441 | B127: 2441 V.A. Boone/ Highland Oaks Elementary | C127: 137 | D127: 20 | E127: 0.65 | F127: 72 | G127: 65 | H127: 52.55% | I127: 47.45% | J127: 4.400000095 | K127: 0.73 | L127: 57 | M127: 80 | N127: 41.61% | O127: 58.39% | P127: 10.80000019 | Q127: 0.63 | R127: 77 | S127: 60 | T127: 56.20% | U127: 43.80% | V127: 3.900000095 | W127: 0.66 | X127: 79 | Y127: 58 | Z127: 57.66% | AA127: 42.34% | AB127: 0.8999999762 | AC127: 0.46 | AD127: 114 | AE127: 23 | AF127: 83.21% | AG127: 16.79%
A128: 2501 | B128: 2501 Holmes Elementary School | C128: 98 | D128: 13.60000038 | E128: 0.44 | F128: 89 | G128: 9 | H128: 90.82% | I128: 9.18% | J128: 3.200000048 | K128: 0.53 | L128: 74 | M128: 24 | N128: 75.51% | O128: 24.49% | P128: 7.5 | Q128: 0.44 | R128: 85 | S128: 13 | T128: 86.73% | U128: 13.27% | V128: 2.299999952 | W128: 0.38 | X128: 92 | Y128: 6 | Z128: 93.88% | AA128: 6.12% | AB128: 0.6999999881 | AC128: 0.33 | AD128: 89 | AE128: 9 | AF128: 90.82% | AG128: 9.18%
A129: 2511 | B129: 2511 Zora Neale Hurston Elementary | C129: 132 | D129: 18.79999924 | E129: 0.61 | F129: 84 | G129: 48 | H129: 63.64% | I129: 36.36% | J129: 4.300000191 | K129: 0.71 | L129: 60 | M129: 72 | N129: 45.45% | O129: 54.55% | P129: 10.10000038 | Q129: 0.59 | R129: 81 | S129: 51 | T129: 61.36% | U129: 38.64% | V129: 3.599999905 | W129: 0.59 | X129: 95 | Y129: 37 | Z129: 71.97% | AA129: 28.03% | AB129: 0.8999999762 | AC129: 0.45 | AD129: 105 | AE129: 27 | AF129: 79.55% | AG129: 20.45%
A130: 2521 | B130: 2521 Oliver Hoover Elementary | C130: 137 | D130: 18.60000038 | E130: 0.6 | F130: 87 | G130: 50 | H130: 63.50% | I130: 36.50% | J130: 4.199999809 | K130: 0.69 | L130: 72 | M130: 65 | N130: 52.55% | O130: 47.45% | P130: 10 | Q130: 0.59 | R130: 87 | S130: 50 | T130: 63.50% | U130: 36.50% | V130: 3.5 | W130: 0.59 | X130: 92 | Y130: 45 | Z130: 67.15% | AA130: 32.85% | AB130: 0.8999999762 | AC130: 0.45 | AD130: 118 | AE130: 19 | AF130: 86.13% | AG130: 13.87%
A131: 2541 | B131: 2541 Howard Drive Elementary | C131: 95 | D131: 19.10000038 | E131: 0.62 | F131: 53 | G131: 42 | H131: 55.79% | I131: 44.21% | J131: 4.199999809 | K131: 0.7 | L131: 48 | M131: 47 | N131: 50.53% | O131: 49.47% | P131: 10.30000019 | Q131: 0.61 | R131: 56 | S131: 39 | T131: 58.95% | U131: 41.05% | V131: 3.700000048 | W131: 0.62 | X131: 59 | Y131: 36 | Z131: 62.11% | AA131: 37.89% | AB131: 0.8999999762 | AC131: 0.44 | AD131: 78 | AE131: 17 | AF131: 82.11% | AG131: 17.89%
A132: 2581 | B132: 2581 Madie Ives Elementary | C132: 111 | D132: 16.39999962 | E132: 0.53 | F132: 85 | G132: 26 | H132: 76.58% | I132: 23.42% | J132: 3.599999905 | K132: 0.6 | L132: 73 | M132: 38 | N132: 65.77% | O132: 34.23% | P132: 9.100000381 | Q132: 0.53 | R132: 85 | S132: 26 | T132: 76.58% | U132: 23.42% | V132: 3 | W132: 0.5 | X132: 84 | Y132: 27 | Z132: 75.68% | AA132: 24.32% | AB132: 0.8000000119 | AC132: 0.41 | AD132: 98 | AE132: 13 | AF132: 88.29% | AG132: 11.71%
A133: 2641 | B133: 2641 Kendale Elementary | C133: 79 | D133: 21.20000076 | E133: 0.68 | F133: 35 | G133: 44 | H133: 44.30% | I133: 55.70% | J133: 4.800000191 | K133: 0.8 | L133: 26 | M133: 53 | N133: 32.91% | O133: 67.09% | P133: 11.30000019 | Q133: 0.66 | R133: 39 | S133: 40 | T133: 49.37% | U133: 50.63% | V133: 4 | W133: 0.67 | X133: 43 | Y133: 36 | Z133: 54.43% | AA133: 45.57% | AB133: 1.100000024 | AC133: 0.54 | AD133: 57 | AE133: 22 | AF133: 72.15% | AG133: 27.85%
A134: 2651 | B134: 2651 Kendale Lakes Elementary | C134: 102 | D134: 17.79999924 | E134: 0.57 | F134: 67 | G134: 35 | H134: 65.69% | I134: 34.31% | J134: 3.900000095 | K134: 0.65 | L134: 55 | M134: 47 | N134: 53.92% | O134: 46.08% | P134: 9.899999619 | Q134: 0.58 | R134: 66 | S134: 36 | T134: 64.71% | U134: 35.29% | V134: 3.200000048 | W134: 0.54 | X134: 78 | Y134: 24 | Z134: 76.47% | AA134: 23.53% | AB134: 0.8000000119 | AC134: 0.41 | AD134: 86 | AE134: 16 | AF134: 84.31% | AG134: 15.69%
A135: 2661 | B135: 2661 Kensington Park Elementary | C135: 189 | D135: 14.60000038 | E135: 0.47 | F135: 158 | G135: 31 | H135: 83.60% | I135: 16.40% | J135: 3 | K135: 0.51 | L135: 140 | M135: 49 | N135: 74.07% | O135: 25.93% | P135: 8.199999809 | Q135: 0.48 | R135: 151 | S135: 38 | T135: 79.89% | U135: 20.11% | V135: 2.700000048 | W135: 0.45 | X135: 157 | Y135: 32 | Z135: 83.07% | AA135: 16.93% | AB135: 0.6999999881 | AC135: 0.34 | AD135: 164 | AE135: 25 | AF135: 86.77% | AG135: 13.23%
A136: 2701 | B136: 2701 Kenwood K-8 Center | C136: 122 | D136: 16.70000076 | E136: 0.54 | F136: 87 | G136: 35 | H136: 71.31% | I136: 28.69% | J136: 3.700000048 | K136: 0.61 | L136: 74 | M136: 48 | N136: 60.66% | O136: 39.34% | P136: 9 | Q136: 0.53 | R136: 91 | S136: 31 | T136: 74.59% | U136: 25.41% | V136: 3.200000048 | W136: 0.53 | X136: 84 | Y136: 38 | Z136: 68.85% | AA136: 31.15% | AB136: 0.8999999762 | AC136: 0.43 | AD136: 102 | AE136: 20 | AF136: 83.61% | AG136: 16.39%
A137: 2741 | B137: 2741 Key Biscayne K-8 Center | C137: 177 | D137: 19.5 | E137: 0.63 | F137: 99 | G137: 78 | H137: 55.93% | I137: 44.07% | J137: 4.099999905 | K137: 0.69 | L137: 89 | M137: 88 | N137: 50.28% | O137: 49.72% | P137: 10.60000038 | Q137: 0.63 | R137: 90 | S137: 87 | T137: 50.85% | U137: 49.15% | V137: 3.799999952 | W137: 0.63 | X137: 117 | Y137: 60 | Z137: 66.10% | AA137: 33.90% | AB137: 1 | AC137: 0.48 | AD137: 140 | AE137: 37 | AF137: 79.10% | AG137: 20.90%
A138: 2781 | B138: 2781 Kinloch Park Elementary | C138: 133 | D138: 17.10000038 | E138: 0.55 | F138: 91 | G138: 42 | H138: 68.42% | I138: 31.58% | J138: 3.799999952 | K138: 0.63 | L138: 75 | M138: 58 | N138: 56.39% | O138: 43.61% | P138: 9.5 | Q138: 0.56 | R138: 84 | S138: 49 | T138: 63.16% | U138: 36.84% | V138: 3 | W138: 0.51 | X138: 107 | Y138: 26 | Z138: 80.45% | AA138: 19.55% | AB138: 0.8000000119 | AC138: 0.42 | AD138: 110 | AE138: 23 | AF138: 82.71% | AG138: 17.29%
A139: 2801 | B139: 2801 Lake Stevens Elementary | C139: 43 | D139: 17 | E139: 0.55 | F139: 30 | G139: 13 | H139: 69.77% | I139: 30.23% | J139: 3.700000048 | K139: 0.61 | L139: 30 | M139: 13 | N139: 69.77% | O139: 30.23% | P139: 9.300000191 | Q139: 0.55 | R139: 29 | S139: 14 | T139: 67.44% | U139: 32.56% | V139: 3.200000048 | W139: 0.53 | X139: 32 | Y139: 11 | Z139: 74.42% | AA139: 25.58% | AB139: 0.8000000119 | AC139: 0.38 | AD139: 36 | AE139: 7 | AF139: 83.72% | AG139: 16.28%
A140: 2821 | B140: 2821 Lakeview Elementary | C140: 63 | D140: 16.70000076 | E140: 0.54 | F140: 45 | G140: 18 | H140: 71.43% | I140: 28.57% | J140: 3.400000095 | K140: 0.57 | L140: 44 | M140: 19 | N140: 69.84% | O140: 30.16% | P140: 9.300000191 | Q140: 0.55 | R140: 43 | S140: 20 | T140: 68.25% | U140: 31.75% | V140: 3.299999952 | W140: 0.55 | X140: 46 | Y140: 17 | Z140: 73.02% | AA140: 26.98% | AB140: 0.6999999881 | AC140: 0.35 | AD140: 59 | AE140: 4 | AF140: 93.65% | AG140: 6.35%
A141: 2881 | B141: 2881 Leewood K-8 Center | C141: 106 | D141: 21 | E141: 0.68 | F141: 49 | G141: 57 | H141: 46.23% | I141: 53.77% | J141: 4.599999905 | K141: 0.77 | L141: 43 | M141: 63 | N141: 40.57% | O141: 59.43% | P141: 11.39999962 | Q141: 0.67 | R141: 48 | S141: 58 | T141: 45.28% | U141: 54.72% | V141: 4.099999905 | W141: 0.68 | X141: 56 | Y141: 50 | Z141: 52.83% | AA141: 47.17% | AB141: 0.8999999762 | AC141: 0.44 | AD141: 85 | AE141: 21 | AF141: 80.19% | AG141: 19.81%
A142: 2891 | B142: 2891 William Lehman Elementary | C142: 95 | D142: 19.10000038 | E142: 0.62 | F142: 60 | G142: 35 | H142: 63.16% | I142: 36.84% | J142: 4.300000191 | K142: 0.72 | L142: 43 | M142: 52 | N142: 45.26% | O142: 54.74% | P142: 10.19999981 | Q142: 0.6 | R142: 58 | S142: 37 | T142: 61.05% | U142: 38.95% | V142: 3.700000048 | W142: 0.62 | X142: 64 | Y142: 31 | Z142: 67.37% | AA142: 32.63% | AB142: 0.8999999762 | AC142: 0.44 | AD142: 81 | AE142: 14 | AF142: 85.26% | AG142: 14.74%
A143: =IFERROR(VALUE(LEFT(B143,4)),"") -> 2901 | B143: 2901 Leisure City K-8 Center | C143: 88 | D143: 16.39999962 | E143: 0.53 | F143: 71 | G143: 17 | H143: 80.68% | I143: 19.32% | J143: 3.5 | K143: 0.59 | L143: 62 | M143: 26 | N143: 70.45% | O143: 29.55% | P143: 8.800000191 | Q143: 0.52 | R143: 68 | S143: 20 | T143: 77.27% | U143: 22.73% | V143: 3.200000048 | W143: 0.54 | X143: 68 | Y143: 20 | Z143: 77.27% | AA143: 22.73% | AB143: 0.8000000119 | AC143: 0.4 | AD143: 79 | AE143: 9 | AF143: 89.77% | AG143: 10.23%
A144: 2911 | B144: 2911 Linda Lentin K - 8 Center | C144: 103 | D144: 15.19999981 | E144: 0.49 | F144: 81 | G144: 22 | H144: 78.64% | I144: 21.36% | J144: 3.299999952 | K144: 0.56 | L144: 75 | M144: 28 | N144: 72.82% | O144: 27.18% | P144: 8.600000381 | Q144: 0.51 | R144: 80 | S144: 23 | T144: 77.67% | U144: 22.33% | V144: 2.599999905 | W144: 0.43 | X144: 88 | Y144: 15 | Z144: 85.44% | AA144: 14.56% | AB144: 0.6999999881 | AC144: 0.33 | AD144: 91 | AE144: 12 | AF144: 88.35% | AG144: 11.65%
A145: 2941 | B145: 2941 Laura C. Saunders Elem | C145: 118 | D145: 14.69999981 | E145: 0.48 | F145: 106 | G145: 12 | H145: 89.83% | I145: 10.17% | J145: 3.299999952 | K145: 0.56 | L145: 93 | M145: 25 | N145: 78.81% | O145: 21.19% | P145: 7.800000191 | Q145: 0.46 | R145: 101 | S145: 17 | T145: 85.59% | U145: 14.41% | V145: 2.799999952 | W145: 0.47 | X145: 104 | Y145: 14 | Z145: 88.14% | AA145: 11.86% | AB145: 0.6999999881 | AC145: 0.37 | AD145: 102 | AE145: 16 | AF145: 86.44% | AG145: 13.56%
A146: 2981 | B146: 2981 Liberty City Elementary School | C146: 51 | D146: 14.80000019 | E146: 0.48 | F146: 44 | G146: 7 | H146: 86.27% | I146: 13.73% | J146: 2.799999952 | K146: 0.47 | L146: 42 | M146: 9 | N146: 82.35% | O146: 17.65% | P146: 8.399999619 | Q146: 0.49 | R146: 41 | S146: 10 | T146: 80.39% | U146: 19.61% | V146: 2.700000048 | W146: 0.45 | X146: 48 | Y146: 3 | Z146: 94.12% | AA146: 5.88% | AB146: 0.8000000119 | AC146: 0.42 | AD146: 43 | AE146: 8 | AF146: 84.31% | AG146: 15.69%
A147: 3021 | B147: 3021 Little River Elementary School | C147: 97 | D147: 14 | E147: 0.45 | F147: 86 | G147: 11 | H147: 88.66% | I147: 11.34% | J147: 3.099999905 | K147: 0.52 | L147: 77 | M147: 20 | N147: 79.38% | O147: 20.62% | P147: 7.5 | Q147: 0.44 | R147: 88 | S147: 9 | T147: 90.72% | U147: 9.28% | V147: 2.700000048 | W147: 0.46 | X147: 82 | Y147: 15 | Z147: 84.54% | AA147: 15.46% | AB147: 0.6999999881 | AC147: 0.34 | AD147: 86 | AE147: 11 | AF147: 88.66% | AG147: 11.34%
A148: 3024 | B148: 3024 Florida International Elementary Academy | C148: 77 | D148: 13.80000019 | E148: 0.44 | F148: 73 | G148: 4 | H148: 94.81% | I148: 5.19% | J148: 2.799999952 | K148: 0.47 | L148: 66 | M148: 11 | N148: 85.71% | O148: 14.29% | P148: 7.900000095 | Q148: 0.46 | R148: 69 | S148: 8 | T148: 89.61% | U148: 10.39% | V148: 2.5 | W148: 0.41 | X148: 67 | Y148: 10 | Z148: 87.01% | AA148: 12.99% | AB148: 0.6999999881 | AC148: 0.34 | AD148: 72 | AE148: 5 | AF148: 93.51% | AG148: 6.49%
A149: 3025 | B149: 3025 Advantage Academy Santa Fe | C149: 25 | D149: 17.70000076 | E149: 0.57 | F149: 17 | G149: 8 | H149: 68.00% | I149: 32.00% | J149: 4 | K149: 0.66 | L149: 14 | M149: 11 | N149: 56.00% | O149: 44.00% | P149: 9.399999619 | Q149: 0.55 | R149: 16 | S149: 9 | T149: 64.00% | U149: 36.00% | V149: 3.400000095 | W149: 0.57 | X149: 19 | Y149: 6 | Z149: 76.00% | AA149: 24.00% | AB149: 1 | AC149: 0.48 | AD149: 21 | AE149: 4 | AF149: 84.00% | AG149: 16.00%
A150: 3030 | B150: 3030 Doral Academy Elementary | C150: 127 | D150: 21.10000038 | E150: 0.68 | F150: 65 | G150: 62 | H150: 51.18% | I150: 48.82% | J150: 4.599999905 | K150: 0.77 | L150: 52 | M150: 75 | N150: 40.94% | O150: 59.06% | P150: 11.19999981 | Q150: 0.66 | R150: 61 | S150: 66 | T150: 48.03% | U150: 51.97% | V150: 4.300000191 | W150: 0.71 | X150: 64 | Y150: 63 | Z150: 50.39% | AA150: 49.61% | AB150: 1 | AC150: 0.51 | AD150: 97 | AE150: 30 | AF150: 76.38% | AG150: 23.62%
A151: 3034 | B151: 3034 Bridgepoint Academy Of Village Green | C151: 17 | D151: 20.10000038 | E151: 0.65 | F151: 9 | G151: 8 | H151: 52.94% | I151: 47.06% | J151: 4.400000095 | K151: 0.72 | L151: 7 | M151: 10 | N151: 41.18% | O151: 58.82% | P151: 10.60000038 | Q151: 0.63 | R151: 10 | S151: 7 | T151: 58.82% | U151: 41.18% | V151: 4.099999905 | W151: 0.69 | X151: 10 | Y151: 7 | Z151: 58.82% | AA151: 41.18% | AB151: 1 | AC151: 0.5 | AD151: 14 | AE151: 3 | AF151: 82.35% | AG151: 17.65%
A152: 3035 | B152: 3035 Ramz Academy K-5 Miami Campus | C152: 22 | D152: 15.30000019 | E152: 0.49 | F152: 18 | G152: 4 | H152: 81.82% | I152: 18.18% | J152: 3.5 | K152: 0.58 | L152: 14 | M152: 8 | N152: 63.64% | O152: 36.36% | P152: 7.900000095 | Q152: 0.46 | R152: 18 | S152: 4 | T152: 81.82% | U152: 18.18% | V152: 3 | W152: 0.49 | X152: 17 | Y152: 5 | Z152: 77.27% | AA152: 22.73% | AB152: 0.8999999762 | AC152: 0.45 | AD152: 16 | AE152: 6 | AF152: 72.73% | AG152: 27.27%
A153: 3041 | B153: 3041 Lorah Park Elementary School | C153: 68 | D153: 15.60000038 | E153: 0.5 | F153: 61 | G153: 7 | H153: 89.71% | I153: 10.29% | J153: 3.5 | K153: 0.59 | L153: 45 | M153: 23 | N153: 66.18% | O153: 33.82% | P153: 8.300000191 | Q153: 0.49 | R153: 58 | S153: 10 | T153: 85.29% | U153: 14.71% | V153: 3 | W153: 0.5 | X153: 60 | Y153: 8 | Z153: 88.24% | AA153: 11.76% | AB153: 0.8000000119 | AC153: 0.4 | AD153: 59 | AE153: 9 | AF153: 86.76% | AG153: 13.24%
A154: 3051 | B154: 3051 Toussaint Louverture Elementary | C154: 82 | D154: 15.10000038 | E154: 0.49 | F154: 69 | G154: 13 | H154: 84.15% | I154: 15.85% | J154: 3.200000048 | K154: 0.54 | L154: 65 | M154: 17 | N154: 79.27% | O154: 20.73% | P154: 8.100000381 | Q154: 0.48 | R154: 69 | S154: 13 | T154: 84.15% | U154: 15.85% | V154: 3 | W154: 0.5 | X154: 65 | Y154: 17 | Z154: 79.27% | AA154: 20.73% | AB154: 0.6999999881 | AC154: 0.35 | AD154: 74 | AE154: 8 | AF154: 90.24% | AG154: 9.76%
A155: 3061 | B155: 3061 Ludlam Elementary School | C155: 59 | D155: 19 | E155: 0.61 | F155: 30 | G155: 29 | H155: 50.85% | I155: 49.15% | J155: 3.900000095 | K155: 0.65 | L155: 31 | M155: 28 | N155: 52.54% | O155: 47.46% | P155: 10.30000019 | Q155: 0.61 | R155: 31 | S155: 28 | T155: 52.54% | U155: 47.46% | V155: 3.799999952 | W155: 0.63 | X155: 32 | Y155: 27 | Z155: 54.24% | AA155: 45.76% | AB155: 1 | AC155: 0.49 | AD155: 47 | AE155: 12 | AF155: 79.66% | AG155: 20.34%
A156: 3100 | B156: 3100 Mater Academy East Charter School | C156: 81 | D156: 19.89999962 | E156: 0.64 | F156: 43 | G156: 38 | H156: 53.09% | I156: 46.91% | J156: 4.400000095 | K156: 0.73 | L156: 36 | M156: 45 | N156: 44.44% | O156: 55.56% | P156: 10.60000038 | Q156: 0.63 | R156: 44 | S156: 37 | T156: 54.32% | U156: 45.68% | V156: 3.900000095 | W156: 0.65 | X156: 54 | Y156: 27 | Z156: 66.67% | AA156: 33.33% | AB156: 1 | AC156: 0.48 | AD156: 67 | AE156: 14 | AF156: 82.72% | AG156: 17.28%
A157: 3101 | B157: 3101 Frank C. Martin K-8 Center | C157: 141 | D157: 21.79999924 | E157: 0.7 | F157: 56 | G157: 85 | H157: 39.72% | I157: 60.28% | J157: 4.800000191 | K157: 0.79 | L157: 46 | M157: 95 | N157: 32.62% | O157: 67.38% | P157: 11.60000038 | Q157: 0.68 | R157: 59 | S157: 82 | T157: 41.84% | U157: 58.16% | V157: 4.400000095 | W157: 0.74 | X157: 59 | Y157: 82 | Z157: 41.84% | AA157: 58.16% | AB157: 1 | AC157: 0.5 | AD157: 109 | AE157: 32 | AF157: 77.30% | AG157: 22.70%
A158: 3111 | B158: 3111 Wesley Matthews Elementary School | C158: 86 | D158: 19.60000038 | E158: 0.63 | F158: 52 | G158: 34 | H158: 60.47% | I158: 39.53% | J158: 4.199999809 | K158: 0.7 | L158: 40 | M158: 46 | N158: 46.51% | O158: 53.49% | P158: 10.60000038 | Q158: 0.62 | R158: 50 | S158: 36 | T158: 58.14% | U158: 41.86% | V158: 3.799999952 | W158: 0.64 | X158: 53 | Y158: 33 | Z158: 61.63% | AA158: 38.37% | AB158: 1 | AC158: 0.48 | AD158: 67 | AE158: 19 | AF158: 77.91% | AG158: 22.09%
A159: 3141 | B159: 3141 Meadowlane Elementary | C159: 179 | D159: 16 | E159: 0.52 | F159: 135 | G159: 44 | H159: 75.42% | I159: 24.58% | J159: 3.5 | K159: 0.58 | L159: 119 | M159: 60 | N159: 66.48% | O159: 33.52% | P159: 8.800000191 | Q159: 0.52 | R159: 128 | S159: 51 | T159: 71.51% | U159: 28.49% | V159: 3 | W159: 0.5 | X159: 134 | Y159: 45 | Z159: 74.86% | AA159: 25.14% | AB159: 0.6999999881 | AC159: 0.37 | AD159: 154 | AE159: 25 | AF159: 86.03% | AG159: 13.97%
A160: 3181 | B160: 3181 Melrose Elementary School | C160: 92 | D160: 14.89999962 | E160: 0.48 | F160: 76 | G160: 16 | H160: 82.61% | I160: 17.39% | J160: 3.200000048 | K160: 0.53 | L160: 70 | M160: 22 | N160: 76.09% | O160: 23.91% | P160: 8.100000381 | Q160: 0.48 | R160: 74 | S160: 18 | T160: 80.43% | U160: 19.57% | V160: 2.799999952 | W160: 0.47 | X160: 78 | Y160: 14 | Z160: 84.78% | AA160: 15.22% | AB160: 0.8000000119 | AC160: 0.4 | AD160: 77 | AE160: 15 | AF160: 83.70% | AG160: 16.30%
A161: 3191 | B161: 3191 Ada Merritt K-8 Center | C161: 69 | D161: 21.5 | E161: 0.69 | F161: 31 | G161: 38 | H161: 44.93% | I161: 55.07% | J161: 4.599999905 | K161: 0.77 | L161: 26 | M161: 43 | N161: 37.68% | O161: 62.32% | P161: 11.69999981 | Q161: 0.69 | R161: 32 | S161: 37 | T161: 46.38% | U161: 53.62% | V161: 4.199999809 | W161: 0.7 | X161: 38 | Y161: 31 | Z161: 55.07% | AA161: 44.93% | AB161: 0.8999999762 | AC161: 0.46 | AD161: 56 | AE161: 13 | AF161: 81.16% | AG161: 18.84%
A162: 3241 | B162: 3241 Miami Gardens Elementary | C162: 39 | D162: 13.69999981 | E162: 0.44 | F162: 31 | G162: 8 | H162: 79.49% | I162: 20.51% | J162: 2.900000095 | K162: 0.48 | L162: 26 | M162: 13 | N162: 66.67% | O162: 33.33% | P162: 7.5 | Q162: 0.44 | R162: 33 | S162: 6 | T162: 84.62% | U162: 15.38% | V162: 2.700000048 | W162: 0.44 | X162: 31 | Y162: 8 | Z162: 79.49% | AA162: 20.51% | AB162: 0.6999999881 | AC162: 0.33 | AD162: 34 | AE162: 5 | AF162: 87.18% | AG162: 12.82%
A163: 3261 | B163: 3261 Miami Heights Elementary | C163: 167 | D163: 14.69999981 | E163: 0.47 | F163: 136 | G163: 31 | H163: 81.44% | I163: 18.56% | J163: 3.099999905 | K163: 0.52 | L163: 125 | M163: 42 | N163: 74.85% | O163: 25.15% | P163: 8.199999809 | Q163: 0.48 | R163: 133 | S163: 34 | T163: 79.64% | U163: 20.36% | V163: 2.700000048 | W163: 0.45 | X163: 140 | Y163: 27 | Z163: 83.83% | AA163: 16.17% | AB163: 0.6000000238 | AC163: 0.29 | AD163: 159 | AE163: 8 | AF163: 95.21% | AG163: 4.79%
A164: 3281 | B164: 3281 Miami Lakes K-8 Center | C164: 142 | D164: 18.39999962 | E164: 0.59 | F164: 86 | G164: 56 | H164: 60.56% | I164: 39.44% | J164: 4 | K164: 0.67 | L164: 74 | M164: 68 | N164: 52.11% | O164: 47.89% | P164: 10 | Q164: 0.59 | R164: 87 | S164: 55 | T164: 61.27% | U164: 38.73% | V164: 3.599999905 | W164: 0.59 | X164: 94 | Y164: 48 | Z164: 66.20% | AA164: 33.80% | AB164: 0.8000000119 | AC164: 0.42 | AD164: 121 | AE164: 21 | AF164: 85.21% | AG164: 14.79%
A165: 3301 | B165: 3301 Miami Park Elementary School | C165: 66 | D165: 15.69999981 | E165: 0.51 | F165: 52 | G165: 14 | H165: 78.79% | I165: 21.21% | J165: 3.5 | K165: 0.59 | L165: 48 | M165: 18 | N165: 72.73% | O165: 27.27% | P165: 8.399999619 | Q165: 0.49 | R165: 52 | S165: 14 | T165: 78.79% | U165: 21.21% | V165: 3 | W165: 0.5 | X165: 50 | Y165: 16 | Z165: 75.76% | AA165: 24.24% | AB165: 0.8000000119 | AC165: 0.38 | AD165: 53 | AE165: 13 | AF165: 80.30% | AG165: 19.70%
A166: 3341 | B166: 3341 Miami Shores Elementary | C166: 129 | D166: 19.5 | E166: 0.63 | F166: 71 | G166: 58 | H166: 55.04% | I166: 44.96% | J166: 4.300000191 | K166: 0.71 | L166: 65 | M166: 64 | N166: 50.39% | O166: 49.61% | P166: 10.39999962 | Q166: 0.61 | R166: 72 | S166: 57 | T166: 55.81% | U166: 44.19% | V166: 3.900000095 | W166: 0.65 | X166: 69 | Y166: 60 | Z166: 53.49% | AA166: 46.51% | AB166: 0.8999999762 | AC166: 0.44 | AD166: 108 | AE166: 21 | AF166: 83.72% | AG166: 16.28%
A167: 3381 | B167: 3381 Miami Springs Elementary | C167: 80 | D167: 17 | E167: 0.55 | F167: 57 | G167: 23 | H167: 71.25% | I167: 28.75% | J167: 3.599999905 | K167: 0.6 | L167: 50 | M167: 30 | N167: 62.50% | O167: 37.50% | P167: 9.5 | Q167: 0.56 | R167: 54 | S167: 26 | T167: 67.50% | U167: 32.50% | V167: 3.200000048 | W167: 0.54 | X167: 60 | Y167: 20 | Z167: 75.00% | AA167: 25.00% | AB167: 0.8000000119 | AC167: 0.38 | AD167: 69 | AE167: 11 | AF167: 86.25% | AG167: 13.75%
A168: 3421 | B168: 3421 Milam K-8 Center | C168: 92 | D168: 14.69999981 | E168: 0.48 | F168: 81 | G168: 11 | H168: 88.04% | I168: 11.96% | J168: 3.5 | K168: 0.58 | L168: 67 | M168: 25 | N168: 72.83% | O168: 27.17% | P168: 7.800000191 | Q168: 0.46 | R168: 79 | S168: 13 | T168: 85.87% | U168: 14.13% | V168: 2.700000048 | W168: 0.46 | X168: 81 | Y168: 11 | Z168: 88.04% | AA168: 11.96% | AB168: 0.6999999881 | AC168: 0.36 | AD168: 79 | AE168: 13 | AF168: 85.87% | AG168: 14.13%
A169: 3431 | B169: 3431 Phyllis Ruth Miller Elementary | C169: 129 | D169: 18.5 | E169: 0.6 | F169: 81 | G169: 48 | H169: 62.79% | I169: 37.21% | J169: 4.099999905 | K169: 0.68 | L169: 61 | M169: 68 | N169: 47.29% | O169: 52.71% | P169: 9.899999619 | Q169: 0.58 | R169: 83 | S169: 46 | T169: 64.34% | U169: 35.66% | V169: 3.599999905 | W169: 0.6 | X169: 76 | Y169: 53 | Z169: 58.91% | AA169: 41.09% | AB169: 0.8999999762 | AC169: 0.44 | AD169: 111 | AE169: 18 | AF169: 86.05% | AG169: 13.95%
A170: 3501 | B170: 3501 Morningside Elementary | C170: 57 | D170: 17.5 | E170: 0.56 | F170: 38 | G170: 19 | H170: 66.67% | I170: 33.33% | J170: 4 | K170: 0.66 | L170: 30 | M170: 27 | N170: 52.63% | O170: 47.37% | P170: 9.5 | Q170: 0.56 | R170: 37 | S170: 20 | T170: 64.91% | U170: 35.09% | V170: 3.099999905 | W170: 0.52 | X170: 42 | Y170: 15 | Z170: 73.68% | AA170: 26.32% | AB170: 0.8999999762 | AC170: 0.43 | AD170: 47 | AE170: 10 | AF170: 82.46% | AG170: 17.54%
A171: 3541 | B171: 3541 Robert Russa Moton Elementary | C171: 42 | D171: 15.89999962 | E171: 0.51 | F171: 38 | G171: 4 | H171: 90.48% | I171: 9.52% | J171: 3.200000048 | K171: 0.54 | L171: 35 | M171: 7 | N171: 83.33% | O171: 16.67% | P171: 9.300000191 | Q171: 0.55 | R171: 34 | S171: 8 | T171: 80.95% | U171: 19.05% | V171: 2.799999952 | W171: 0.47 | X171: 37 | Y171: 5 | Z171: 88.10% | AA171: 11.90% | AB171: 0.6000000238 | AC171: 0.31 | AD171: 40 | AE171: 2 | AF171: 95.24% | AG171: 4.76%
A172: 3581 | B172: 3581 Myrtle Grove Elementary | C172: 47 | D172: 16.5 | E172: 0.53 | F172: 35 | G172: 12 | H172: 74.47% | I172: 25.53% | J172: 3.799999952 | K172: 0.63 | L172: 30 | M172: 17 | N172: 63.83% | O172: 36.17% | P172: 9.100000381 | Q172: 0.54 | R172: 34 | S172: 13 | T172: 72.34% | U172: 27.66% | V172: 3 | W172: 0.49 | X172: 37 | Y172: 10 | Z172: 78.72% | AA172: 21.28% | AB172: 0.6999999881 | AC172: 0.33 | AD172: 44 | AE172: 3 | AF172: 93.62% | AG172: 6.38%
A173: 3600 | B173: 3600 Downtown Miami | C173: 1 | D173: 14 | E173: 0.45 | F173: 1 | H173: 100.00% | J173: 2 | K173: 0.33 | L173: 1 | N173: 100.00% | P173: 8 | Q173: 0.47 | R173: 1 | T173: 100.00% | V173: 3 | W173: 0.5 | X173: 1 | Z173: 100.00% | AB173: 1 | AC173: 0.5 | AD173: 1 | AF173: 100.00%
A174: 3610 | B174: 3610 Keys Gate Charter School | C174: 184 | D174: 17.29999924 | E174: 0.56 | F174: 127 | G174: 57 | H174: 69.02% | I174: 30.98% | J174: 4 | K174: 0.67 | L174: 97 | M174: 87 | N174: 52.72% | O174: 47.28% | P174: 9.399999619 | Q174: 0.55 | R174: 124 | S174: 60 | T174: 67.39% | U174: 32.61% | V174: 3.200000048 | W174: 0.53 | X174: 139 | Y174: 45 | Z174: 75.54% | AA174: 24.46% | AB174: 0.8000000119 | AC174: 0.38 | AD174: 157 | AE174: 27 | AF174: 85.33% | AG174: 14.67%
A175: 3621 | B175: 3621 Coconut Palms K-8 Academy | C175: 159 | D175: 16.60000038 | E175: 0.54 | F175: 120 | G175: 39 | H175: 75.47% | I175: 24.53% | J175: 3.599999905 | K175: 0.61 | L175: 102 | M175: 57 | N175: 64.15% | O175: 35.85% | P175: 9.100000381 | Q175: 0.53 | R175: 118 | S175: 41 | T175: 74.21% | U175: 25.79% | V175: 3.099999905 | W175: 0.51 | X175: 132 | Y175: 27 | Z175: 83.02% | AA175: 16.98% | AB175: 0.8000000119 | AC175: 0.4 | AD175: 133 | AE175: 26 | AF175: 83.65% | AG175: 16.35%
A176: 3661 | B176: 3661 Natural Bridge Elementary | C176: 94 | D176: 16.79999924 | E176: 0.54 | F176: 73 | G176: 21 | H176: 77.66% | I176: 22.34% | J176: 3.599999905 | K176: 0.6 | L176: 65 | M176: 29 | N176: 69.15% | O176: 30.85% | P176: 9.300000191 | Q176: 0.55 | R176: 70 | S176: 24 | T176: 74.47% | U176: 25.53% | V176: 3.200000048 | W176: 0.53 | X176: 72 | Y176: 22 | Z176: 76.60% | AA176: 23.40% | AB176: 0.6999999881 | AC176: 0.35 | AD176: 87 | AE176: 7 | AF176: 92.55% | AG176: 7.45%
A177: 3701 | B177: 3701 Norland Elementary School | C177: 94 | D177: 16.20000076 | E177: 0.52 | F177: 71 | G177: 23 | H177: 75.53% | I177: 24.47% | J177: 3.799999952 | K177: 0.63 | L177: 57 | M177: 37 | N177: 60.64% | O177: 39.36% | P177: 9 | Q177: 0.53 | R177: 66 | S177: 28 | T177: 70.21% | U177: 29.79% | V177: 2.700000048 | W177: 0.44 | X177: 77 | Y177: 17 | Z177: 81.91% | AA177: 18.09% | AB177: 0.8000000119 | AC177: 0.39 | AD177: 80 | AE177: 14 | AF177: 85.11% | AG177: 14.89%
A178: 3741 | B178: 3741 North Beach Elementary | C178: 173 | D178: 20.60000038 | E178: 0.66 | F178: 86 | G178: 87 | H178: 49.71% | I178: 50.29% | J178: 4.400000095 | K178: 0.74 | L178: 69 | M178: 104 | N178: 39.88% | O178: 60.12% | P178: 11.10000038 | Q178: 0.65 | R178: 88 | S178: 85 | T178: 50.87% | U178: 49.13% | V178: 4.199999809 | W178: 0.69 | X178: 85 | Y178: 88 | Z178: 49.13% | AA178: 50.87% | AB178: 0.8999999762 | AC178: 0.45 | AD178: 143 | AE178: 30 | AF178: 82.66% | AG178: 17.34%
A179: 3781 | B179: 3781 Barbara Hawkins Elementary | C179: 61 | D179: 16.5 | E179: 0.53 | F179: 52 | G179: 9 | H179: 85.25% | I179: 14.75% | J179: 3.599999905 | K179: 0.6 | L179: 41 | M179: 20 | N179: 67.21% | O179: 32.79% | P179: 9.100000381 | Q179: 0.54 | R179: 51 | S179: 10 | T179: 83.61% | U179: 16.39% | V179: 3.099999905 | W179: 0.51 | X179: 53 | Y179: 8 | Z179: 86.89% | AA179: 13.11% | AB179: 0.6999999881 | AC179: 0.34 | AD179: 54 | AE179: 7 | AF179: 88.52% | AG179: 11.48%
A180: 3821 | B180: 3821 North County Elementary School | C180: 50 | D180: 17 | E180: 0.55 | F180: 36 | G180: 14 | H180: 72.00% | I180: 28.00% | J180: 3.799999952 | K180: 0.64 | L180: 29 | M180: 21 | N180: 58.00% | O180: 42.00% | P180: 9.199999809 | Q180: 0.54 | R180: 37 | S180: 13 | T180: 74.00% | U180: 26.00% | V180: 3.200000048 | W180: 0.54 | X180: 39 | Y180: 11 | Z180: 78.00% | AA180: 22.00% | AB180: 0.8000000119 | AC180: 0.38 | AD180: 43 | AE180: 7 | AF180: 86.00% | AG180: 14.00%
A181: 3861 | B181: 3861 North Glade Elementary | C181: 71 | D181: 15.10000038 | E181: 0.49 | F181: 58 | G181: 13 | H181: 81.69% | I181: 18.31% | J181: 3.299999952 | K181: 0.55 | L181: 51 | M181: 20 | N181: 71.83% | O181: 28.17% | P181: 8.300000191 | Q181: 0.49 | R181: 57 | S181: 14 | T181: 80.28% | U181: 19.72% | V181: 2.900000095 | W181: 0.48 | X181: 55 | Y181: 16 | Z181: 77.46% | AA181: 22.54% | AB181: 0.6000000238 | AC181: 0.29 | AD181: 66 | AE181: 5 | AF181: 92.96% | AG181: 7.04%
A182: 3901 | B182: 3901 North Hialeah Elementary | C182: 107 | D182: 14.5 | E182: 0.47 | F182: 93 | G182: 14 | H182: 86.92% | I182: 13.08% | J182: 3.099999905 | K182: 0.52 | L182: 76 | M182: 31 | N182: 71.03% | O182: 28.97% | P182: 8.199999809 | Q182: 0.48 | R182: 81 | S182: 26 | T182: 75.70% | U182: 24.30% | V182: 2.599999905 | W182: 0.43 | X182: 94 | Y182: 13 | Z182: 87.85% | AA182: 12.15% | AB182: 0.6000000238 | AC182: 0.29 | AD182: 102 | AE182: 5 | AF182: 95.33% | AG182: 4.67%
A183: 3941 | B183: 3941 North Miami Elementary | C183: 78 | D183: 14.60000038 | E183: 0.47 | F183: 66 | G183: 12 | H183: 84.62% | I183: 15.38% | J183: 3.200000048 | K183: 0.54 | L183: 59 | M183: 19 | N183: 75.64% | O183: 24.36% | P183: 7.800000191 | Q183: 0.46 | R183: 67 | S183: 11 | T183: 85.90% | U183: 14.10% | V183: 2.799999952 | W183: 0.47 | X183: 64 | Y183: 14 | Z183: 82.05% | AA183: 17.95% | AB183: 0.6999999881 | AC183: 0.35 | AD183: 69 | AE183: 9 | AF183: 88.46% | AG183: 11.54%
A184: 3981 | B184: 3981 North Twin Lakes Elementary Community School | C184: 98 | D184: 15.5 | E184: 0.5 | F184: 73 | G184: 25 | H184: 74.49% | I184: 25.51% | J184: 3.5 | K184: 0.58 | L184: 64 | M184: 34 | N184: 65.31% | O184: 34.69% | P184: 8.399999619 | Q184: 0.5 | R184: 73 | S184: 25 | T184: 74.49% | U184: 25.51% | V184: 2.799999952 | W184: 0.46 | X184: 79 | Y184: 19 | Z184: 80.61% | AA184: 19.39% | AB184: 0.8000000119 | AC184: 0.42 | AD184: 80 | AE184: 18 | AF184: 81.63% | AG184: 18.37%
A185: 4000 | B185: 4000 Miami Children's Museum Charter | C185: 52 | D185: 20.60000038 | E185: 0.66 | F185: 23 | G185: 29 | H185: 44.23% | I185: 55.77% | J185: 4.5 | K185: 0.75 | L185: 22 | M185: 30 | N185: 42.31% | O185: 57.69% | P185: 11 | Q185: 0.64 | R185: 24 | S185: 28 | T185: 46.15% | U185: 53.85% | V185: 4.099999905 | W185: 0.69 | X185: 27 | Y185: 25 | Z185: 51.92% | AA185: 48.08% | AB185: 1.100000024 | AC185: 0.53 | AD185: 38 | AE185: 14 | AF185: 73.08% | AG185: 26.92%
A186: 4001 | B186: 4001 Norwood Elementary | C186: 68 | D186: 18.39999962 | E186: 0.59 | F186: 43 | G186: 25 | H186: 63.24% | I186: 36.76% | J186: 4.199999809 | K186: 0.69 | L186: 35 | M186: 33 | N186: 51.47% | O186: 48.53% | P186: 9.800000191 | Q186: 0.58 | R186: 43 | S186: 25 | T186: 63.24% | U186: 36.76% | V186: 3.5 | W186: 0.59 | X186: 48 | Y186: 20 | Z186: 70.59% | AA186: 29.41% | AB186: 0.8999999762 | AC186: 0.43 | AD186: 58 | AE186: 10 | AF186: 85.29% | AG186: 14.71%
A187: 4012 | B187: 4012 Somerset Academy At Silver Palms | C187: 68 | D187: 17.20000076 | E187: 0.56 | F187: 50 | G187: 18 | H187: 73.53% | I187: 26.47% | J187: 3.799999952 | K187: 0.64 | L187: 46 | M187: 22 | N187: 67.65% | O187: 32.35% | P187: 9.100000381 | Q187: 0.54 | R187: 48 | S187: 20 | T187: 70.59% | U187: 29.41% | V187: 3.400000095 | W187: 0.57 | X187: 48 | Y187: 20 | Z187: 70.59% | AA187: 29.41% | AB187: 0.8000000119 | AC187: 0.4 | AD187: 59 | AE187: 9 | AF187: 86.76% | AG187: 13.24%
A188: 4021 | B188: 4021 Oak Grove Elementary | C188: 92 | D188: 14.39999962 | E188: 0.46 | F188: 81 | G188: 11 | H188: 88.04% | I188: 11.96% | J188: 3 | K188: 0.5 | L188: 71 | M188: 21 | N188: 77.17% | O188: 22.83% | P188: 8.199999809 | Q188: 0.48 | R188: 77 | S188: 15 | T188: 83.70% | U188: 16.30% | V188: 2.599999905 | W188: 0.44 | X188: 81 | Y188: 11 | Z188: 88.04% | AA188: 11.96% | AB188: 0.6000000238 | AC188: 0.3 | AD188: 85 | AE188: 7 | AF188: 92.39% | AG188: 7.61%
A189: 4031 | B189: 4031 Gateway Environmental K-8 Learning Center | C189: 228 | D189: 15.80000019 | E189: 0.51 | F189: 179 | G189: 49 | H189: 78.51% | I189: 21.49% | J189: 3.400000095 | K189: 0.56 | L189: 165 | M189: 63 | N189: 72.37% | O189: 27.63% | P189: 8.699999809 | Q189: 0.51 | R189: 174 | S189: 54 | T189: 76.32% | U189: 23.68% | V189: 3.099999905 | W189: 0.51 | X189: 172 | Y189: 56 | Z189: 75.44% | AA189: 24.56% | AB189: 0.6999999881 | AC189: 0.36 | AD189: 201 | AE189: 27 | AF189: 88.16% | AG189: 11.84%
A190: 4061 | B190: 4061 Ojus Elementary School | C190: 147 | D190: 18.70000076 | E190: 0.6 | F190: 101 | G190: 46 | H190: 68.71% | I190: 31.29% | J190: 4 | K190: 0.67 | L190: 87 | M190: 60 | N190: 59.18% | O190: 40.82% | P190: 10.19999981 | Q190: 0.6 | R190: 95 | S190: 52 | T190: 64.63% | U190: 35.37% | V190: 3.599999905 | W190: 0.61 | X190: 101 | Y190: 46 | Z190: 68.71% | AA190: 31.29% | AB190: 0.8999999762 | AC190: 0.43 | AD190: 124 | AE190: 23 | AF190: 84.35% | AG190: 15.65%
A191: 4071 | B191: 4071 Olinda Elementary | C191: 53 | D191: 14.19999981 | E191: 0.46 | F191: 46 | G191: 7 | H191: 86.79% | I191: 13.21% | J191: 3.200000048 | K191: 0.53 | L191: 40 | M191: 13 | N191: 75.47% | O191: 24.53% | P191: 8 | Q191: 0.47 | R191: 44 | S191: 9 | T191: 83.02% | U191: 16.98% | V191: 2.400000095 | W191: 0.39 | X191: 49 | Y191: 4 | Z191: 92.45% | AA191: 7.55% | AB191: 0.6000000238 | AC191: 0.31 | AD191: 47 | AE191: 6 | AF191: 88.68% | AG191: 11.32%
A192: 4081 | B192: 4081 Primary Learning Center | C192: 18 | D192: 22.10000038 | E192: 0.71 | F192: 7 | G192: 11 | H192: 38.89% | I192: 61.11% | J192: 4.699999809 | K192: 0.78 | L192: 6 | M192: 12 | N192: 33.33% | O192: 66.67% | P192: 12.19999981 | Q192: 0.71 | R192: 7 | S192: 11 | T192: 38.89% | U192: 61.11% | V192: 4.300000191 | W192: 0.72 | X192: 9 | Y192: 9 | Z192: 50.00% | AA192: 50.00% | AB192: 0.8999999762 | AC192: 0.47 | AD192: 14 | AE192: 4 | AF192: 77.78% | AG192: 22.22%
A193: 4091 | B193: 4091 Olympia Heights Elementary | C193: 77 | D193: 16.5 | E193: 0.53 | F193: 58 | G193: 19 | H193: 75.32% | I193: 24.68% | J193: 3.400000095 | K193: 0.57 | L193: 51 | M193: 26 | N193: 66.23% | O193: 33.77% | P193: 9.199999809 | Q193: 0.54 | R193: 54 | S193: 23 | T193: 70.13% | U193: 29.87% | V193: 3.099999905 | W193: 0.51 | X193: 64 | Y193: 13 | Z193: 83.12% | AA193: 16.88% | AB193: 0.8999999762 | AC193: 0.44 | AD193: 61 | AE193: 16 | AF193: 79.22% | AG193: 20.78%
A194: 4121 | B194: 4121 Dr. Robert B. Ingram Elementary School | C194: 62 | D194: 13.19999981 | E194: 0.43 | F194: 56 | G194: 6 | H194: 90.32% | I194: 9.68% | J194: 2.900000095 | K194: 0.49 | L194: 48 | M194: 14 | N194: 77.42% | O194: 22.58% | P194: 7.599999905 | Q194: 0.45 | R194: 55 | S194: 7 | T194: 88.71% | U194: 11.29% | V194: 2.200000048 | W194: 0.37 | X194: 58 | Y194: 4 | Z194: 93.55% | AA194: 6.45% | AB194: 0.5 | AC194: 0.25 | AD194: 58 | AE194: 4 | AF194: 93.55% | AG194: 6.45%
A195: 4171 | B195: 4171 Orchard Villa Elementary | C195: 72 | D195: 14.80000019 | E195: 0.48 | F195: 62 | G195: 10 | H195: 86.11% | I195: 13.89% | J195: 3.200000048 | K195: 0.53 | L195: 57 | M195: 15 | N195: 79.17% | O195: 20.83% | P195: 8.300000191 | Q195: 0.49 | R195: 56 | S195: 16 | T195: 77.78% | U195: 22.22% | V195: 2.599999905 | W195: 0.43 | X195: 65 | Y195: 7 | Z195: 90.28% | AA195: 9.72% | AB195: 0.6999999881 | AC195: 0.37 | AD195: 59 | AE195: 13 | AF195: 81.94% | AG195: 18.06%
A196: 4221 | B196: 4221 Palmetto Elementary | C196: 113 | D196: 21.20000076 | E196: 0.68 | F196: 45 | G196: 68 | H196: 39.82% | I196: 60.18% | J196: 4.599999905 | K196: 0.77 | L196: 40 | M196: 73 | N196: 35.40% | O196: 64.60% | P196: 11.19999981 | Q196: 0.66 | R196: 47 | S196: 66 | T196: 41.59% | U196: 58.41% | V196: 4.199999809 | W196: 0.71 | X196: 53 | Y196: 60 | Z196: 46.90% | AA196: 53.10% | AB196: 1.100000024 | AC196: 0.53 | AD196: 84 | AE196: 29 | AF196: 74.34% | AG196: 25.66%
A197: 4241 | B197: 4241 Palm Lakes Elementary School | C197: 155 | D197: 16 | E197: 0.52 | F197: 119 | G197: 36 | H197: 76.77% | I197: 23.23% | J197: 3.400000095 | K197: 0.56 | L197: 111 | M197: 44 | N197: 71.61% | O197: 28.39% | P197: 9 | Q197: 0.53 | R197: 113 | S197: 42 | T197: 72.90% | U197: 27.10% | V197: 2.900000095 | W197: 0.49 | X197: 125 | Y197: 30 | Z197: 80.65% | AA197: 19.35% | AB197: 0.8000000119 | AC197: 0.38 | AD197: 132 | AE197: 23 | AF197: 85.16% | AG197: 14.84%
A198: 4261 | B198: 4261 Palm Springs Elementary | C198: 122 | D198: 14.80000019 | E198: 0.48 | F198: 103 | G198: 19 | H198: 84.43% | I198: 15.57% | J198: 3.299999952 | K198: 0.55 | L198: 88 | M198: 34 | N198: 72.13% | O198: 27.87% | P198: 8.100000381 | Q198: 0.48 | R198: 102 | S198: 20 | T198: 83.61% | U198: 16.39% | V198: 2.799999952 | W198: 0.46 | X198: 100 | Y198: 22 | Z198: 81.97% | AA198: 18.03% | AB198: 0.6999999881 | AC198: 0.36 | AD198: 108 | AE198: 14 | AF198: 88.52% | AG198: 11.48%
A199: 4281 | B199: 4281 Palm Springs North Elementary | C199: 157 | D199: 19.60000038 | E199: 0.63 | F199: 90 | G199: 67 | H199: 57.32% | I199: 42.68% | J199: 4.300000191 | K199: 0.72 | L199: 73 | M199: 84 | N199: 46.50% | O199: 53.50% | P199: 10.69999981 | Q199: 0.63 | R199: 86 | S199: 71 | T199: 54.78% | U199: 45.22% | V199: 3.700000048 | W199: 0.61 | X199: 102 | Y199: 55 | Z199: 64.97% | AA199: 35.03% | AB199: 0.8999999762 | AC199: 0.47 | AD199: 125 | AE199: 32 | AF199: 79.62% | AG199: 20.38%
A200: 4301 | B200: 4301 Parkview Elementary | C200: 65 | D200: 16.20000076 | E200: 0.52 | F200: 51 | G200: 14 | H200: 78.46% | I200: 21.54% | J200: 3.599999905 | K200: 0.6 | L200: 44 | M200: 21 | N200: 67.69% | O200: 32.31% | P200: 9 | Q200: 0.53 | R200: 49 | S200: 16 | T200: 75.38% | U200: 24.62% | V200: 2.799999952 | W200: 0.47 | X200: 57 | Y200: 8 | Z200: 87.69% | AA200: 12.31% | AB200: 0.8000000119 | AC200: 0.39 | AD200: 55 | AE200: 10 | AF200: 84.62% | AG200: 15.38%
A201: 4341 | B201: 4341 Parkway Elementary | C201: 46 | D201: 17.39999962 | E201: 0.56 | F201: 32 | G201: 14 | H201: 69.57% | I201: 30.43% | J201: 3.799999952 | K201: 0.64 | L201: 28 | M201: 18 | N201: 60.87% | O201: 39.13% | P201: 9.5 | Q201: 0.56 | R201: 31 | S201: 15 | T201: 67.39% | U201: 32.61% | V201: 3.299999952 | W201: 0.55 | X201: 35 | Y201: 11 | Z201: 76.09% | AA201: 23.91% | AB201: 0.8000000119 | AC201: 0.38 | AD201: 43 | AE201: 3 | AF201: 93.48% | AG201: 6.52%
... 84 more rows

Sheet BLG4BM-R (hidden)
B1: R-G04-BM-SCHL-ALL
B3: Description: | C3: Reading benchmark G04 all
B4: Student Selection: | C4: All Schools | 2012-2013 Fall, 2012-2013 School Year
B5: Group By Data: | C5: School
B6: Assessments: | C6: Baseline 2012 - Grade 4 Reading AUGUST 2012
B7: Scores: | C7: Overall Avg Raw Score, Overall Avg % Correct, Standards Avg Raw Score, Standards Avg % Correct
B8: Author Name: | C8: Yuwadee Wongbundhit
A9: =COLUMN() -> 1 | B9: =COLUMN() -> 2 | C9: =COLUMN() -> 3 | D9: =COLUMN() -> 4 | E9: =COLUMN() -> 5 | F9: =COLUMN() -> 6 | G9: =COLUMN() -> 7 | H9: =COLUMN() -> 8 | I9: =COLUMN() -> 9 | J9: =COLUMN() -> 10 | K9: =COLUMN() -> 11 | L9: =COLUMN() -> 12 | M9: =COLUMN() -> 13 | N9: =COLUMN() -> 14 | O9: =COLUMN() -> 15 | P9: =COLUMN() -> 16 | Q9: =COLUMN() -> 17 | R9: =COLUMN() -> 18 | S9: =COLUMN() -> 19 | T9: =COLUMN() -> 20 | U9: =COLUMN() -> 21 | V9: =COLUMN() -> 22 | W9: =COLUMN() -> 23 | X9: =COLUMN() -> 24 | Y9: =COLUMN() -> 25 | Z9: =COLUMN() -> 26 | AA9: =COLUMN() -> 27 | AB9: =COLUMN() -> 28 | AC9: =COLUMN() -> 29 | AD9: =COLUMN() -> 30 | AE9: =COLUMN() -> 31
B10: Total Row(s): 266 Generated on Sep-22-2012 by Yuwadee Wongbundhit | C10: Baseline 2012 - Grade 4 Reading AUGUST 2012
C11: Total # students | D11: Overall (43 pts max) | F11: LA.4.1--LA.4.1.6: Benchmark LA.4.1.6.3 | H11: LA.4.1--LA.4.1.6: Benchmark LA.4.1.6.7 | J11: LA.4.1--LA.4.1.6: Benchmark LA.4.1.6.8 | L11: LA.4.1--LA.4.1.6: Benchmark LA.4.1.6.9 | N11: LA.4.1--LA.4.1.7: Benchmark LA.4.1.7.2 | P11: LA.4.1--LA.4.1.7: Benchmark LA.4.1.7.3 | R11: LA.4.1--LA.4.1.7: Benchmark LA.4.1.7.4 | T11: LA.4.1--LA.4.1.7: Benchmark LA.4.1.7.5 | V11: LA.4.1--LA.4.1.7: Benchmark LA.4.1.7.6 | X11: LA.4.1--LA.4.1.7: Benchmark LA.4.1.7.7 | Z11: LA.4.2--LA.4.2.1: Benchmark LA.4.2.1.2 | AB11: LA.4.2--LA.4.2.1: Benchmark LA.4.2.1.7 | AD11: LA.4.6--LA.4.6.1: Benchmark LA.4.6.1.1
D12: Avg Raw Score | E12: Avg % Correct | F12: Avg Raw Score | G12: Avg % Correct | H12: Avg Raw Score | I12: Avg % Correct | J12: Avg Raw Score | K12: Avg % Correct | L12: Avg Raw Score | M12: Avg % Correct | N12: Avg Raw Score | O12: Avg % Correct | P12: Avg Raw Score | Q12: Avg % Correct | R12: Avg Raw Score | S12: Avg % Correct | T12: Avg Raw Score | U12: Avg % Correct | V12: Avg Raw Score | W12: Avg % Correct | X12: Avg Raw Score | Y12: Avg % Correct | Z12: Avg Raw Score | AA12: Avg % Correct | AB12: Avg Raw Score | AC12: Avg % Correct | AD12: Avg Raw Score | AE12: Avg % Correct
B13: School Name
A14: =IFERROR(VALUE(LEFT(B14,4)),"") -> 41 | B14: 0041 Air Base Elementary | C14: 98 | D14: 30.89999962 | E14: 0.72 | F14: 1.299999952 | G14: 0.64 | H14: 1.5 | I14: 0.75 | J14: 1.799999952 | K14: 0.91 | L14: 0.8000000119 | M14: 0.79 | N14: 4.5 | O14: 0.75 | P14: 1.799999952 | Q14: 0.88 | R14: 2.799999952 | S14: 0.69 | T14: 1.299999952 | U14: 0.44 | V14: 2.599999905 | W14: 0.66 | X14: 4 | Y14: 0.67 | Z14: 2.900000095 | AA14: 0.72 | AB14: 1.5 | AC14: 0.73 | AD14: 4.099999905 | AE14: 0.82
A15: 70 | B15: 0070 Coral Reef Montessori Academy | C15: 43 | D15: 28.5 | E15: 0.66 | F15: 1.100000024 | G15: 0.53 | H15: 1.299999952 | I15: 0.65 | J15: 1.700000048 | K15: 0.85 | L15: 0.8000000119 | M15: 0.79 | N15: 4.199999809 | O15: 0.7 | P15: 1.600000024 | Q15: 0.78 | R15: 2.599999905 | S15: 0.66 | T15: 1.200000048 | U15: 0.4 | V15: 2.599999905 | W15: 0.65 | X15: 3.599999905 | Y15: 0.6 | Z15: 2.5 | AA15: 0.62 | AB15: 1.5 | AC15: 0.73 | AD15: 3.900000095 | AE15: 0.79
A16: 71 | B16: 0071 Eugenia B. Thomas K-8 | C16: 181 | D16: 26.29999924 | E16: 0.61 | F16: 0.8999999762 | G16: 0.44 | H16: 1.399999976 | I16: 0.69 | J16: 1.700000048 | K16: 0.85 | L16: 0.6999999881 | M16: 0.7 | N16: 3.5 | O16: 0.59 | P16: 1.600000024 | Q16: 0.79 | R16: 2.299999952 | S16: 0.59 | T16: 1.299999952 | U16: 0.42 | V16: 2.200000048 | W16: 0.56 | X16: 3.400000095 | Y16: 0.57 | Z16: 2.5 | AA16: 0.62 | AB16: 1.299999952 | AC16: 0.67 | AD16: 3.400000095 | AE16: 0.69
A17: 72 | B17: 0072 Summerville Charter School | C17: 81 | D17: 25 | E17: 0.58 | F17: 1 | G17: 0.48 | H17: 1.200000048 | I17: 0.62 | J17: 1.600000024 | K17: 0.81 | L17: 0.6999999881 | M17: 0.73 | N17: 3.599999905 | O17: 0.59 | P17: 1.399999976 | Q17: 0.72 | R17: 2.099999905 | S17: 0.53 | T17: 1.100000024 | U17: 0.36 | V17: 2 | W17: 0.51 | X17: 3.400000095 | Y17: 0.57 | Z17: 2.400000095 | AA17: 0.6 | AB17: 1.100000024 | AC17: 0.56 | AD17: 3.200000048 | AE17: 0.64
A18: 73 | B18: 0073 Mandarin Lakes K-8 Center | C18: 113 | D18: 20.5 | E18: 0.48 | F18: 0.6000000238 | G18: 0.29 | H18: 1.100000024 | I18: 0.56 | J18: 1.299999952 | K18: 0.65 | L18: 0.6000000238 | M18: 0.6 | N18: 2.700000048 | O18: 0.46 | P18: 1.200000048 | Q18: 0.6 | R18: 1.799999952 | S18: 0.45 | T18: 1 | U18: 0.33 | V18: 1.799999952 | W18: 0.45 | X18: 2.599999905 | Y18: 0.43 | Z18: 1.899999976 | AA18: 0.47 | AB18: 1 | AC18: 0.48 | AD18: 2.900000095 | AE18: 0.58
A19: 81 | B19: 0081 Lenora B. Smith Elementary | C19: 60 | D19: 19.70000076 | E19: 0.46 | F19: 0.8000000119 | G19: 0.4 | H19: 1 | I19: 0.49 | J19: 1.200000048 | K19: 0.6 | L19: 0.6000000238 | M19: 0.58 | N19: 2.400000095 | O19: 0.4 | P19: 1.200000048 | Q19: 0.61 | R19: 1.799999952 | S19: 0.46 | T19: 1.100000024 | U19: 0.36 | V19: 1.600000024 | W19: 0.41 | X19: 2.700000048 | Y19: 0.45 | Z19: 1.600000024 | AA19: 0.4 | AB19: 0.8000000119 | AC19: 0.39 | AD19: 2.900000095 | AE19: 0.59
A20: 91 | B20: 0091 Bob Graham Education Center | C20: 211 | D20: 28.89999962 | E20: 0.67 | F20: 1 | G20: 0.5 | H20: 1.399999976 | I20: 0.69 | J20: 1.799999952 | K20: 0.89 | L20: 0.8000000119 | M20: 0.82 | N20: 4.099999905 | O20: 0.69 | P20: 1.700000048 | Q20: 0.86 | R20: 2.599999905 | S20: 0.64 | T20: 1.399999976 | U20: 0.46 | V20: 2.5 | W20: 0.62 | X20: 3.799999952 | Y20: 0.64 | Z20: 2.700000048 | AA20: 0.67 | AB20: 1.399999976 | AC20: 0.69 | AD20: 3.700000048 | AE20: 0.75
A21: 92 | B21: 0092 Sunny Isles Beach Community School K-8 | C21: 200 | D21: 28.29999924 | E21: 0.66 | F21: 1 | G21: 0.52 | H21: 1.5 | I21: 0.75 | J21: 1.799999952 | K21: 0.88 | L21: 0.6999999881 | M21: 0.69 | N21: 4 | O21: 0.66 | P21: 1.600000024 | Q21: 0.79 | R21: 2.5 | S21: 0.63 | T21: 1.399999976 | U21: 0.47 | V21: 2.400000095 | W21: 0.59 | X21: 3.799999952 | Y21: 0.63 | Z21: 2.700000048 | AA21: 0.68 | AB21: 1.299999952 | AC21: 0.64 | AD21: 3.599999905 | AE21: 0.73
A22: 100 | B22: 0100 Mater Academy Charter | C22: 122 | D22: 29.70000076 | E22: 0.69 | F22: 0.8999999762 | G22: 0.45 | H22: 1.5 | I22: 0.74 | J22: 1.899999976 | K22: 0.93 | L22: 0.8999999762 | M22: 0.89 | N22: 4.199999809 | O22: 0.69 | P22: 1.700000048 | Q22: 0.86 | R22: 2.700000048 | S22: 0.68 | T22: 1.299999952 | U22: 0.43 | V22: 2.599999905 | W22: 0.65 | X22: 4 | Y22: 0.67 | Z22: 2.799999952 | AA22: 0.69 | AB22: 1.299999952 | AC22: 0.63 | AD22: 4.099999905 | AE22: 0.81
A23: 101 | B23: 0101 Arcola Lake Elementary School | C23: 56 | D23: 21 | E23: 0.49 | F23: 0.5 | G23: 0.26 | H23: 1.100000024 | I23: 0.54 | J23: 1.5 | K23: 0.77 | L23: 0.6999999881 | M23: 0.66 | N23: 2.900000095 | O23: 0.48 | P23: 1.299999952 | Q23: 0.66 | R23: 1.700000048 | S23: 0.43 | T23: 1.100000024 | U23: 0.38 | V23: 1.799999952 | W23: 0.46 | X23: 2.5 | Y23: 0.41 | Z23: 1.899999976 | AA23: 0.49 | AB23: 1 | AC23: 0.49 | AD23: 2.900000095 | AE23: 0.57
A24: 102 | B24: 0102 Miami Community Charter School | C24: 70 | D24: 21.60000038 | E24: 0.5 | F24: 0.6000000238 | G24: 0.31 | H24: 1.399999976 | I24: 0.69 | J24: 1.5 | K24: 0.74 | L24: 0.6999999881 | M24: 0.67 | N24: 2.900000095 | O24: 0.48 | P24: 1.299999952 | Q24: 0.64 | R24: 1.700000048 | S24: 0.43 | T24: 1.299999952 | U24: 0.42 | V24: 1.700000048 | W24: 0.43 | X24: 2.700000048 | Y24: 0.45 | Z24: 2 | AA24: 0.49 | AB24: 1 | AC24: 0.51 | AD24: 2.900000095 | AE24: 0.58
A25: 111 | B25: 0111 Maya Angelou Elementary School | C25: 76 | D25: 22.10000038 | E25: 0.51 | F25: 0.6999999881 | G25: 0.36 | H25: 1 | I25: 0.5 | J25: 1.5 | K25: 0.77 | L25: 0.6000000238 | M25: 0.62 | N25: 2.900000095 | O25: 0.49 | P25: 1.399999976 | Q25: 0.69 | R25: 2.099999905 | S25: 0.52 | T25: 1.100000024 | U25: 0.35 | V25: 1.700000048 | W25: 0.43 | X25: 2.799999952 | Y25: 0.46 | Z25: 2 | AA25: 0.49 | AB25: 1.100000024 | AC25: 0.53 | AD25: 3.200000048 | AE25: 0.65
A26: 121 | B26: 0121 Auburndale Elementary Community School | C26: 130 | D26: 23.39999962 | E26: 0.54 | F26: 0.6999999881 | G26: 0.37 | H26: 1.100000024 | I26: 0.55 | J26: 1.5 | K26: 0.74 | L26: 0.6999999881 | M26: 0.7 | N26: 3.299999952 | O26: 0.55 | P26: 1.399999976 | Q26: 0.71 | R26: 2 | S26: 0.49 | T26: 1.200000048 | U26: 0.39 | V26: 1.799999952 | W26: 0.45 | X26: 3.099999905 | Y26: 0.51 | Z26: 2.200000048 | AA26: 0.55 | AB26: 1.100000024 | AC26: 0.55 | AD26: 3.400000095 | AE26: 0.67
A27: 122 | B27: 0122 Dr. Rolando Espinosa K-8 Center | C27: 197 | D27: 27.20000076 | E27: 0.63 | F27: 0.8999999762 | G27: 0.43 | H27: 1.299999952 | I27: 0.67 | J27: 1.700000048 | K27: 0.83 | L27: 0.8000000119 | M27: 0.78 | N27: 3.900000095 | O27: 0.65 | P27: 1.5 | Q27: 0.76 | R27: 2.5 | S27: 0.62 | T27: 1.200000048 | U27: 0.41 | V27: 2.299999952 | W27: 0.57 | X27: 3.599999905 | Y27: 0.59 | Z27: 2.5 | AA27: 0.63 | AB27: 1.399999976 | AC27: 0.68 | AD27: 3.700000048 | AE27: 0.74
A28: 125 | B28: 0125 Norma Butler Bossard Elementary | C28: 202 | D28: 28.10000038 | E28: 0.65 | F28: 1 | G28: 0.51 | H28: 1.299999952 | I28: 0.67 | J28: 1.700000048 | K28: 0.85 | L28: 0.8000000119 | M28: 0.77 | N28: 4 | O28: 0.67 | P28: 1.600000024 | Q28: 0.79 | R28: 2.5 | S28: 0.62 | T28: 1.299999952 | U28: 0.43 | V28: 2.299999952 | W28: 0.58 | X28: 3.700000048 | Y28: 0.62 | Z28: 2.700000048 | AA28: 0.67 | AB28: 1.399999976 | AC28: 0.7 | AD28: 3.799999952 | AE28: 0.76
A29: 201 | B29: 0201 Banyan Elementary | C29: 55 | D29: 29.39999962 | E29: 0.68 | F29: 1.200000048 | G29: 0.58 | H29: 1.5 | I29: 0.74 | J29: 1.700000048 | K29: 0.86 | L29: 0.6999999881 | M29: 0.73 | N29: 4.400000095 | O29: 0.73 | P29: 1.600000024 | Q29: 0.79 | R29: 2.5 | S29: 0.63 | T29: 1.200000048 | U29: 0.39 | V29: 2.599999905 | W29: 0.64 | X29: 3.700000048 | Y29: 0.62 | Z29: 2.900000095 | AA29: 0.74 | AB29: 1.399999976 | AC29: 0.72 | AD29: 4 | AE29: 0.8
A30: 211 | B30: 0211 Dr. Manuel C. Barreiro Elementary | C30: 140 | D30: 28.60000038 | E30: 0.66 | F30: 1.100000024 | G30: 0.53 | H30: 1.5 | I30: 0.77 | J30: 1.799999952 | K30: 0.89 | L30: 0.8000000119 | M30: 0.76 | N30: 4.099999905 | O30: 0.68 | P30: 1.600000024 | Q30: 0.78 | R30: 2.5 | S30: 0.61 | T30: 1.200000048 | U30: 0.41 | V30: 2.5 | W30: 0.64 | X30: 4 | Y30: 0.67 | Z30: 2.599999905 | AA30: 0.66 | AB30: 1.299999952 | AC30: 0.67 | AD30: 3.599999905 | AE30: 0.72
A31: 231 | B31: 0231 Aventura Waterways K-8 | C31: 210 | D31: 28.5 | E31: 0.66 | F31: 1.100000024 | G31: 0.55 | H31: 1.399999976 | I31: 0.71 | J31: 1.700000048 | K31: 0.86 | L31: 0.6999999881 | M31: 0.68 | N31: 4 | O31: 0.66 | P31: 1.600000024 | Q31: 0.8 | R31: 2.5 | S31: 0.63 | T31: 1.299999952 | U31: 0.43 | V31: 2.5 | W31: 0.62 | X31: 3.799999952 | Y31: 0.63 | Z31: 2.700000048 | AA31: 0.68 | AB31: 1.299999952 | AC31: 0.67 | AD31: 3.799999952 | AE31: 0.76
A32: 241 | B32: 0241 Ruth K. Broad/Bay Harbor K-8 | C32: 159 | D32: 29.89999962 | E32: 0.69 | F32: 1.200000048 | G32: 0.61 | H32: 1.600000024 | I32: 0.78 | J32: 1.799999952 | K32: 0.92 | L32: 0.8000000119 | M32: 0.81 | N32: 4.300000191 | O32: 0.71 | P32: 1.600000024 | Q32: 0.78 | R32: 2.700000048 | S32: 0.68 | T32: 1.299999952 | U32: 0.43 | V32: 2.5 | W32: 0.61 | X32: 4.199999809 | Y32: 0.69 | Z32: 2.900000095 | AA32: 0.72 | AB32: 1.399999976 | AC32: 0.71 | AD32: 3.700000048 | AE32: 0.74
A33: 251 | B33: 0251 Ethel Koger Beckham Elementary | C33: 112 | D33: 29.60000038 | E33: 0.69 | F33: 1.100000024 | G33: 0.54 | H33: 1.399999976 | I33: 0.72 | J33: 1.799999952 | K33: 0.9 | L33: 0.8000000119 | M33: 0.82 | N33: 4.199999809 | O33: 0.69 | P33: 1.700000048 | Q33: 0.85 | R33: 2.599999905 | S33: 0.65 | T33: 1.200000048 | U33: 0.4 | V33: 2.700000048 | W33: 0.67 | X33: 3.900000095 | Y33: 0.64 | Z33: 2.900000095 | AA33: 0.71 | AB33: 1.5 | AC33: 0.75 | AD33: 4 | AE33: 0.79
A34: 261 | B34: 0261 Bel-Aire Elementary | C34: 60 | D34: 23.10000038 | E34: 0.54 | F34: 0.6999999881 | G34: 0.33 | H34: 1.200000048 | I34: 0.62 | J34: 1.5 | K34: 0.77 | L34: 0.6999999881 | M34: 0.68 | N34: 3.099999905 | O34: 0.52 | P34: 1.5 | Q34: 0.73 | R34: 1.899999976 | S34: 0.47 | T34: 1.100000024 | U34: 0.35 | V34: 1.899999976 | W34: 0.46 | X34: 3.099999905 | Y34: 0.51 | Z34: 2.299999952 | AA34: 0.58 | AB34: 1 | AC34: 0.51 | AD34: 3.200000048 | AE34: 0.64
A35: 271 | B35: 0271 Bent Tree Elementary | C35: 91 | D35: 26 | E35: 0.6 | F35: 0.8000000119 | G35: 0.42 | H35: 1.299999952 | I35: 0.63 | J35: 1.600000024 | K35: 0.79 | L35: 0.6000000238 | M35: 0.64 | N35: 3.799999952 | O35: 0.63 | P35: 1.399999976 | Q35: 0.71 | R35: 2.299999952 | S35: 0.56 | T35: 1.299999952 | U35: 0.43 | V35: 2.299999952 | W35: 0.57 | X35: 3.400000095 | Y35: 0.57 | Z35: 2.5 | AA35: 0.62 | AB35: 1.299999952 | AC35: 0.64 | AD35: 3.400000095 | AE35: 0.67
A36: 311 | B36: 0311 Goulds Elementary | C36: 86 | D36: 22.29999924 | E36: 0.52 | F36: 0.8000000119 | G36: 0.38 | H36: 1.200000048 | I36: 0.62 | J36: 1.5 | K36: 0.76 | L36: 0.6000000238 | M36: 0.63 | N36: 3.099999905 | O36: 0.52 | P36: 1.299999952 | Q36: 0.65 | R36: 2.099999905 | S36: 0.52 | T36: 0.8999999762 | U36: 0.31 | V36: 2 | W36: 0.49 | X36: 2.700000048 | Y36: 0.46 | Z36: 1.899999976 | AA36: 0.48 | AB36: 1.100000024 | AC36: 0.53 | AD36: 3 | AE36: 0.6
A37: 312 | B37: 0312 Mater Gardens Academy | C37: 95 | D37: 29.70000076 | E37: 0.69 | F37: 1.200000048 | G37: 0.58 | H37: 1.5 | I37: 0.76 | J37: 1.899999976 | K37: 0.93 | L37: 0.8000000119 | M37: 0.76 | N37: 4 | O37: 0.67 | P37: 1.700000048 | Q37: 0.86 | R37: 2.5 | S37: 0.64 | T37: 1.5 | U37: 0.52 | V37: 2.5 | W37: 0.62 | X37: 4.099999905 | Y37: 0.68 | Z37: 2.900000095 | AA37: 0.72 | AB37: 1.399999976 | AC37: 0.68 | AD37: 3.700000048 | AE37: 0.75
A38: 321 | B38: 0321 Biscayne Elementary | C38: 102 | D38: 23.39999962 | E38: 0.54 | F38: 0.8000000119 | G38: 0.41 | H38: 1.200000048 | I38: 0.59 | J38: 1.5 | K38: 0.75 | L38: 0.6000000238 | M38: 0.62 | N38: 3.200000048 | O38: 0.53 | P38: 1.299999952 | Q38: 0.67 | R38: 2.200000048 | S38: 0.55 | T38: 1.100000024 | U38: 0.36 | V38: 1.899999976 | W38: 0.48 | X38: 3 | Y38: 0.5 | Z38: 2.200000048 | AA38: 0.55 | AB38: 1.100000024 | AC38: 0.55 | AD38: 3.299999952 | AE38: 0.66
A39: 332 | B39: 0332 Somerset Silver Palms K-8 | C39: 46 | D39: 24.10000038 | E39: 0.56 | F39: 1 | G39: 0.49 | H39: 1.100000024 | I39: 0.57 | J39: 1.5 | K39: 0.77 | L39: 0.6999999881 | M39: 0.67 | N39: 3.400000095 | O39: 0.57 | P39: 1.399999976 | Q39: 0.71 | R39: 2.200000048 | S39: 0.54 | T39: 1.100000024 | U39: 0.36 | V39: 1.899999976 | W39: 0.48 | X39: 3.200000048 | Y39: 0.54 | Z39: 2.099999905 | AA39: 0.53 | AB39: 1.100000024 | AC39: 0.55 | AD39: 3.299999952 | AE39: 0.67
A40: 339 | B40: 0339 Somerset Academy (Country Palms) | C40: 48 | D40: 27.89999962 | E40: 0.65 | F40: 1.200000048 | G40: 0.6 | H40: 1.5 | I40: 0.73 | J40: 1.799999952 | K40: 0.88 | L40: 0.6999999881 | M40: 0.73 | N40: 3.900000095 | O40: 0.64 | P40: 1.600000024 | Q40: 0.81 | R40: 2.299999952 | S40: 0.57 | T40: 1.299999952 | U40: 0.43 | V40: 2.299999952 | W40: 0.58 | X40: 4 | Y40: 0.66 | Z40: 2.5 | AA40: 0.61 | AB40: 1.299999952 | AC40: 0.67 | AD40: 3.700000048 | AE40: 0.73
A41: 341 | B41: 0341 Archcreek Elementary | C41: 95 | D41: 22.60000038 | E41: 0.53 | F41: 0.6999999881 | G41: 0.37 | H41: 1.399999976 | I41: 0.68 | J41: 1.399999976 | K41: 0.7 | L41: 0.6999999881 | M41: 0.66 | N41: 3.099999905 | O41: 0.52 | P41: 1.299999952 | Q41: 0.66 | R41: 2.099999905 | S41: 0.52 | T41: 1.100000024 | U41: 0.36 | V41: 1.899999976 | W41: 0.48 | X41: 2.799999952 | Y41: 0.47 | Z41: 2 | AA41: 0.5 | AB41: 1.100000024 | AC41: 0.56 | AD41: 3 | AE41: 0.6
A42: 342 | B42: 0342 Pinecrest Academy (South Campus) | C42: 112 | D42: 27.5 | E42: 0.64 | F42: 1 | G42: 0.49 | H42: 1.399999976 | I42: 0.69 | J42: 1.700000048 | K42: 0.87 | L42: 0.8000000119 | M42: 0.81 | N42: 3.900000095 | O42: 0.65 | P42: 1.600000024 | Q42: 0.8 | R42: 2.400000095 | S42: 0.6 | T42: 1.200000048 | U42: 0.39 | V42: 2.5 | W42: 0.61 | X42: 3.5 | Y42: 0.58 | Z42: 2.599999905 | AA42: 0.65 | AB42: 1.299999952 | AC42: 0.66 | AD42: 3.700000048 | AE42: 0.73
A43: 361 | B43: 0361 Biscayne Gardens Elementary | C43: 81 | D43: 23.10000038 | E43: 0.54 | F43: 0.8999999762 | G43: 0.43 | H43: 1.299999952 | I43: 0.64 | J43: 1.5 | K43: 0.77 | L43: 0.6000000238 | M43: 0.64 | N43: 3.099999905 | O43: 0.52 | P43: 1.399999976 | Q43: 0.72 | R43: 2.099999905 | S43: 0.54 | T43: 0.8999999762 | U43: 0.31 | V43: 2 | W43: 0.49 | X43: 3 | Y43: 0.5 | Z43: 2.200000048 | AA43: 0.55 | AB43: 0.8000000119 | AC43: 0.42 | AD43: 3.099999905 | AE43: 0.62
A44: 400 | B44: 0400 Renaissance Elementary Charter School | C44: 2 | D44: 28.5 | E44: 0.67 | F44: 0.5 | G44: 0.25 | H44: 1 | I44: 0.5 | J44: 2 | K44: 1 | L44: 1 | M44: 1 | N44: 5 | O44: 0.84 | P44: 2 | Q44: 1 | R44: 2.5 | S44: 0.63 | T44: 1.5 | U44: 0.5 | V44: 2 | W44: 0.5 | X44: 3.5 | Y44: 0.58 | Z44: 3 | AA44: 0.75 | AB44: 1.5 | AC44: 0.75 | AD44: 3 | AE44: 0.6
A45: 401 | B45: 0401 Van E. Blanton Elementary | C45: 70 | D45: 24.39999962 | E45: 0.57 | F45: 0.8000000119 | G45: 0.41 | H45: 1.5 | I45: 0.75 | J45: 1.600000024 | K45: 0.81 | L45: 0.6999999881 | M45: 0.74 | N45: 3.5 | O45: 0.58 | P45: 1.399999976 | Q45: 0.69 | R45: 2.299999952 | S45: 0.57 | T45: 1.100000024 | U45: 0.36 | V45: 2 | W45: 0.51 | X45: 3.099999905 | Y45: 0.52 | Z45: 2.200000048 | AA45: 0.56 | AB45: 1.100000024 | AC45: 0.55 | AD45: 3 | AE45: 0.6
